Workbook

Sheet Database (hidden)
B1: =IFERROR(B2,0) -> 7 | C1: check if error | K1: Expanded
A2: national grid | B2: =MATCH('wind pressure'!L9,Database!C3:C37,0) -> 7 | C2: City | D2: vb,map (m/s) | E2: alt (m) | F2: Lshore I | G2: Lshore II | H2: Lshore III | I2: Lshore IV | J2: Distance into town | L2: Direction | M2: cdir | O2: 3 | P2: Terrain | Q2: z0 (m) | R2: zmin (m) | Y2: Direction | Z2: cdir
A3: NJ943065 | B3: 1 | C3: Aberdeen | D3: 25.7 | E3: 61 | F3: 58 | G3: 1.5 | H3: 9.5 | I3: 200 | J3: 4.5 | K3: =ROUNDDOWN(ROW()-3,-1)+1 -> 1 | L3: 310 | M3: =IFERROR(INDEX($Z$3:$Z$39,MATCH(L3,$Y$3:$Y$39,0)),(INDEX(Factor,K3+10)-INDEX(Factor,K3))/(INDEX(Degrees,K3+10)-INDEX(Degrees,K3))*(L3-INDEX(Degrees,K3))+INDEX(Factor,K3)) -> 0.88 | O3: 1 | P3: Sea | Q3: 0.03 | R3: 1.00 | Y3: 0 | Z3: 0.78
A4: SN584817 | B4: 2 | C4: Aberystwyth | D4: 23.9 | E4: 57 | F4: 4.5 | G4: 200 | H4: 200 | I4: 0.5 | J4: 2.5 | K4: 1 | L4: 311 | M4: =IFERROR(INDEX($Z$3:$Z$39,MATCH(L4,$Y$3:$Y$39,0)),(INDEX(Factor,K4+10)-INDEX(Factor,K4))/(INDEX(Degrees,K4+10)-INDEX(Degrees,K4))*(L4-INDEX(Degrees,K4))+INDEX(Factor,K4)) -> 0.877 | O4: 2 | P4: Country | Q4: 0.05 | R4: 2.00 | Y4: 10 | Z4: 0.76
A5: TL050497 | B5: 3 | C5: Bedford | D5: 21.6 | E5: 31 | F5: 200 | G5: 132 | H5: 145 | I5: 200 | J5: 3.5 | K5: 1 | L5: 312 | M5: =IFERROR(INDEX($Z$3:$Z$39,MATCH(L5,$Y$3:$Y$39,0)),(INDEX(Factor,K5+10)-INDEX(Factor,K5))/(INDEX(Degrees,K5+10)-INDEX(Degrees,K5))*(L5-INDEX(Degrees,K5))+INDEX(Factor,K5)) -> 0.874 | O5: 3 | P5: Town | Q5: 0.30 | R5: 5.00 | Y5: 20 | Z5: 0.74
A6: NW462295 | B6: 4 | C6: Belfast | D6: 25.5 | E6: 15 | F6: 5 | G6: 25 | H6: 45 | I6: 200 | J6: 3.5 | K6: 1 | L6: 313 | M6: =IFERROR(INDEX($Z$3:$Z$39,MATCH(L6,$Y$3:$Y$39,0)),(INDEX(Factor,K6+10)-INDEX(Factor,K6))/(INDEX(Degrees,K6+10)-INDEX(Degrees,K6))*(L6-INDEX(Degrees,K6))+INDEX(Factor,K6)) -> 0.871 | Y6: 30 | Z6: 0.73
A7: SP075875 | B7: 5 | C7: Birmingham | D7: 21.7 | E7: 120 | F7: 200 | G7: 200 | H7: 200 | I7: 152 | J7: 14 | K7: 1 | L7: 314 | M7: =IFERROR(INDEX($Z$3:$Z$39,MATCH(L7,$Y$3:$Y$39,0)),(INDEX(Factor,K7+10)-INDEX(Factor,K7))/(INDEX(Degrees,K7+10)-INDEX(Degrees,K7))*(L7-INDEX(Degrees,K7))+INDEX(Factor,K7)) -> 0.868 | Y7: 40 | Z7: 0.73
A8: SZ085910 | B8: 6 | C8: Bournemouth | D8: 21.9 | E8: 37 | F8: 200 | G8: 200 | H8: 2 | I8: 200 | J8: 12 | K8: 1 | L8: 315 | M8: =IFERROR(INDEX($Z$3:$Z$39,MATCH(L8,$Y$3:$Y$39,0)),(INDEX(Factor,K8+10)-INDEX(Factor,K8))/(INDEX(Degrees,K8+10)-INDEX(Degrees,K8))*(L8-INDEX(Degrees,K8))+INDEX(Factor,K8)) -> 0.865 | Y8: 50 | Z8: 0.73
A9: TQ313042 | B9: 7 | C9: Brighton | D9: 21.6 | E9: 112 | F9: 200 | G9: 54 | H9: 0.5 | I9: 200 | J9: 6 | K9: 1 | L9: 316 | M9: =IFERROR(INDEX($Z$3:$Z$39,MATCH(L9,$Y$3:$Y$39,0)),(INDEX(Factor,K9+10)-INDEX(Factor,K9))/(INDEX(Degrees,K9+10)-INDEX(Degrees,K9))*(L9-INDEX(Degrees,K9))+INDEX(Factor,K9)) -> 0.862 | O9: =IF('wind pressure'!Z11>=0,2,1) -> 1 | P9: Site location | Y9: 60 | Z9: 0.73
A10: ST592730 | B10: 8 | C10: Bristol | D10: 22 | E10: 72 | F10: 200 | G10: 200 | H10: 88 | I10: 119 | J10: 9 | K10: 1 | L10: 317 | M10: =IFERROR(INDEX($Z$3:$Z$39,MATCH(L10,$Y$3:$Y$39,0)),(INDEX(Factor,K10+10)-INDEX(Factor,K10))/(INDEX(Degrees,K10+10)-INDEX(Degrees,K10))*(L10-INDEX(Degrees,K10))+INDEX(Factor,K10)) -> 0.859 | O10: 1 | P10: Upwind | Y10: 70 | Z10: 0.73
A11: ST182765 | B11: 9 | C11: Cardiff | D11: 22.7 | E11: 12 | F11: 200 | G11: 4 | H11: 9 | I11: 39 | J11: 7 | K11: 1 | L11: 318 | M11: =IFERROR(INDEX($Z$3:$Z$39,MATCH(L11,$Y$3:$Y$39,0)),(INDEX(Factor,K11+10)-INDEX(Factor,K11))/(INDEX(Degrees,K11+10)-INDEX(Degrees,K11))*(L11-INDEX(Degrees,K11))+INDEX(Factor,K11)) -> 0.856 | O11: 2 | P11: Downwind | Y11: 80 | Z11: 0.74
A12: NY402557 | B12: 10 | C12: Carlisle | D12: 24.2 | E12: 22 | F12: 200 | G12: 98 | H12: 200 | I12: 30 | J12: 4 | K12: 1 | L12: 319 | M12: =IFERROR(INDEX($Z$3:$Z$39,MATCH(L12,$Y$3:$Y$39,0)),(INDEX(Factor,K12+10)-INDEX(Factor,K12))/(INDEX(Degrees,K12+10)-INDEX(Degrees,K12))*(L12-INDEX(Degrees,K12))+INDEX(Factor,K12)) -> 0.853 | Y12: 90 | Z12: 0.74
A13: NO402304 | B13: 11 | C13: Dundee | D13: 24.9 | E13: 124 | F13: 132 | G13: 16 | H13: 2 | I13: 198 | J13: 5 | K13: 11 | L13: 320 | M13: =IFERROR(INDEX($Z$3:$Z$39,MATCH(L13,$Y$3:$Y$39,0)),(INDEX(Factor,K13+10)-INDEX(Factor,K13))/(INDEX(Degrees,K13+10)-INDEX(Degrees,K13))*(L13-INDEX(Degrees,K13))+INDEX(Factor,K13)) -> 0.85 | Y13: 100 | Z13: 0.74
A14: NT258739 | B14: 12 | C14: Edinburgh | D14: 24.5 | E14: 180 | F14: 4 | G14: 54 | H14: 200 | I14: 154 | J14: 8 | K14: 11 | L14: 321 | M14: =IFERROR(INDEX($Z$3:$Z$39,MATCH(L14,$Y$3:$Y$39,0)),(INDEX(Factor,K14+10)-INDEX(Factor,K14))/(INDEX(Degrees,K14+10)-INDEX(Degrees,K14))*(L14-INDEX(Degrees,K14))+INDEX(Factor,K14)) -> 0.847 | O14: =MATCH('wind pressure'!X9,Database!P15:P16,0) -> 2 | P14: Feature | Y14: 110 | Z14: 0.73
A15: NS591657 | B15: 13 | C15: Glasgow | D15: 25.2 | E15: 53 | F15: 200 | G15: 55 | H15: 112 | I15: 40 | J15: 10 | K15: 11 | L15: 322 | M15: =IFERROR(INDEX($Z$3:$Z$39,MATCH(L15,$Y$3:$Y$39,0)),(INDEX(Factor,K15+10)-INDEX(Factor,K15))/(INDEX(Degrees,K15+10)-INDEX(Degrees,K15))*(L15-INDEX(Degrees,K15))+INDEX(Factor,K15)) -> 0.844 | O15: 1 | P15: Cliffs/escarpments | Y15: 120 | Z15: 0.73
A16: NH666452 | B16: 14 | C16: Inverness | D16: 27.1 | E16: 16 | F16: 2 | G16: 134 | H16: 200 | I16: 134 | J16: 4 | K16: 11 | L16: 323 | M16: =IFERROR(INDEX($Z$3:$Z$39,MATCH(L16,$Y$3:$Y$39,0)),(INDEX(Factor,K16+10)-INDEX(Factor,K16))/(INDEX(Degrees,K16+10)-INDEX(Degrees,K16))*(L16-INDEX(Degrees,K16))+INDEX(Factor,K16)) -> 0.841 | O16: 2 | P16: Hills/ridges | Y16: 130 | Z16: 0.75
A17: TM159444 | B17: 15 | C17: Ipswich | D17: 21.9 | E17: 26 | F17: 92 | G17: 25 | H17: 30 | I17: 200 | J17: 4 | K17: 11 | L17: 324 | M17: =IFERROR(INDEX($Z$3:$Z$39,MATCH(L17,$Y$3:$Y$39,0)),(INDEX(Factor,K17+10)-INDEX(Factor,K17))/(INDEX(Degrees,K17+10)-INDEX(Degrees,K17))*(L17-INDEX(Degrees,K17))+INDEX(Factor,K17)) -> 0.838 | Y17: 140 | Z17: 0.78
A18: TA097289 | B18: 16 | C18: Kingston-on-Hull | D18: 22.4 | E18: 2 | F18: 66 | G18: 2 | H18: 0.5 | I18: 180 | J18: 7 | K18: 11 | L18: 325 | M18: =IFERROR(INDEX($Z$3:$Z$39,MATCH(L18,$Y$3:$Y$39,0)),(INDEX(Factor,K18+10)-INDEX(Factor,K18))/(INDEX(Degrees,K18+10)-INDEX(Degrees,K18))*(L18-INDEX(Degrees,K18))+INDEX(Factor,K18)) -> 0.835 | Y18: 150 | Z18: 0.80
A19: SE298339 | B19: 17 | C19: Leeds | D19: 22.6 | E19: 70 | F19: 200 | G19: 88 | H19: 200 | I19: 94 | J19: 9 | K19: 11 | L19: 326 | M19: =IFERROR(INDEX($Z$3:$Z$39,MATCH(L19,$Y$3:$Y$39,0)),(INDEX(Factor,K19+10)-INDEX(Factor,K19))/(INDEX(Degrees,K19+10)-INDEX(Degrees,K19))*(L19-INDEX(Degrees,K19))+INDEX(Factor,K19)) -> 0.832 | Y19: 160 | Z19: 0.82
A20: SK583046 | B20: 18 | C20: Leicester | D20: 21.6 | E20: 64 | F20: 200 | G20: 114 | H20: 200 | I20: 200 | J20: 7 | K20: 11 | L20: 327 | M20: =IFERROR(INDEX($Z$3:$Z$39,MATCH(L20,$Y$3:$Y$39,0)),(INDEX(Factor,K20+10)-INDEX(Factor,K20))/(INDEX(Degrees,K20+10)-INDEX(Degrees,K20))*(L20-INDEX(Degrees,K20))+INDEX(Factor,K20)) -> 0.829 | Y20: 170 | Z20: 0.84
A21: SJ341906 | B21: 19 | C21: Liverpool | D21: 23.2 | E21: 58 | F21: 200 | G21: 200 | H21: 2 | I21: 14 | J21: 10 | K21: 11 | L21: 328 | M21: =IFERROR(INDEX($Z$3:$Z$39,MATCH(L21,$Y$3:$Y$39,0)),(INDEX(Factor,K21+10)-INDEX(Factor,K21))/(INDEX(Degrees,K21+10)-INDEX(Degrees,K21))*(L21-INDEX(Degrees,K21))+INDEX(Factor,K21)) -> 0.826 | O21: a) | P21: b) | Q21: b1) | R21: c) | S21: d) | T21: d1) | V21: f | W21: =+'wind pressure'!Z15 -> 0.30 | Y21: 180 | Z21: 0.85
A22: TQ301805 | B22: 20 | C22: London | D22: 21.4 | E22: 20 | F22: 200 | G22: 102 | H22: 78 | I22: 200 | J22: 18 | K22: 11 | L22: 329 | M22: =IFERROR(INDEX($Z$3:$Z$39,MATCH(L22,$Y$3:$Y$39,0)),(INDEX(Factor,K22+10)-INDEX(Factor,K22))/(INDEX(Degrees,K22+10)-INDEX(Degrees,K22))*(L22-INDEX(Degrees,K22))+INDEX(Factor,K22)) -> 0.823 | O22: =AND(O9=1,O14=2,W21>0.05,W21<=0.3,W22<=W24/2) -> TRUE | P22: =AND(O9=2,O14=2,W21<0.3,W23<W25/2) -> FALSE | Q22: =AND(O9=2,O14=2,W21>=0.3,W23<1.6*W26) -> FALSE | R22: =AND(O9=1,O14=1,0.05<W21,W21<=0.3,W22<=W24/2) -> FALSE | S22: =AND(O9=2,O14=1,W21<0.3,W23<1.5*W27) -> FALSE | T22: =AND(O9=2,O14=1,W21>=0.3,W23<5*W26) -> FALSE | U22: =AND(O22=FALSE,P22=FALSE,Q22=FALSE,R22=FALSE,S22=FALSE,T22=FALSE) -> FALSE | V22: abs(x) | W22: =+ABS('wind pressure'!Z11) -> 5 | Y22: 190 | Z22: 0.88
A23: NV606797 | B23: 21 | C23: Londonderry | D23: 24.8 | E23: 15 | F23: 5 | G23: 75 | H23: 200 | I23: 45 | J23: 3 | K23: 21 | L23: 330 | M23: =IFERROR(INDEX($Z$3:$Z$39,MATCH(L23,$Y$3:$Y$39,0)),(INDEX(Factor,K23+10)-INDEX(Factor,K23))/(INDEX(Degrees,K23+10)-INDEX(Degrees,K23))*(L23-INDEX(Degrees,K23))+INDEX(Factor,K23)) -> 0.82 | V23: x | W23: =+'wind pressure'!Z11 -> -5 | Y23: 200 | Z23: 0.90
A24: SJ836980 | B24: 22 | C24: Manchester | D24: 22.5 | E24: 43 | F24: 200 | G24: 152 | H24: 200 | I24: 55 | J24: 12 | K24: 21 | L24: 331 | M24: =IFERROR(INDEX($Z$3:$Z$39,MATCH(L24,$Y$3:$Y$39,0)),(INDEX(Factor,K24+10)-INDEX(Factor,K24))/(INDEX(Degrees,K24+10)-INDEX(Degrees,K24))*(L24-INDEX(Degrees,K24))+INDEX(Factor,K24)) -> 0.818 | P24: =MATCH(U22,Q26:Q27,0) -> 2 | V24: Lu | W24: =+'wind pressure'!Z12 -> 50 | Y24: 210 | Z24: 0.93
A25: NZ245649 | B25: 23 | C25: Newcastle | D25: 23.8 | E25: 42 | F25: 66 | G25: 15 | H25: 200 | I25: 200 | J25: 9 | K25: 21 | L25: 332 | M25: =IFERROR(INDEX($Z$3:$Z$39,MATCH(L25,$Y$3:$Y$39,0)),(INDEX(Factor,K25+10)-INDEX(Factor,K25))/(INDEX(Degrees,K25+10)-INDEX(Degrees,K25))*(L25-INDEX(Degrees,K25))+INDEX(Factor,K25)) -> 0.816 | V25: Ld | W25: =+'wind pressure'!Z13 -> 50 | Y25: 220 | Z25: 0.95
A26: SP750608 | B26: 24 | C26: Northampton | D26: 21.5 | E26: 92 | F26: 200 | G26: 166 | H26: 163 | I26: 200 | J26: 7 | K26: 21 | L26: 333 | M26: =IFERROR(INDEX($Z$3:$Z$39,MATCH(L26,$Y$3:$Y$39,0)),(INDEX(Factor,K26+10)-INDEX(Factor,K26))/(INDEX(Degrees,K26+10)-INDEX(Degrees,K26))*(L26-INDEX(Degrees,K26))+INDEX(Factor,K26)) -> 0.814 | O26: 1 | P26: non significant | Q26: TRUE | V26: H | W26: =+'wind pressure'!Z10 -> 15 | Y26: 230 | Z26: 0.97
A27: TG232087 | B27: 25 | C27: Norwich | D27: 22.3 | E27: 24 | F27: 33 | G27: 31 | H27: 200 | I27: 200 | J27: 5 | K27: 21 | L27: 334 | M27: =IFERROR(INDEX($Z$3:$Z$39,MATCH(L27,$Y$3:$Y$39,0)),(INDEX(Factor,K27+10)-INDEX(Factor,K27))/(INDEX(Degrees,K27+10)-INDEX(Degrees,K27))*(L27-INDEX(Degrees,K27))+INDEX(Factor,K27)) -> 0.812 | O27: 2 | P27: significant | Q27: FALSE | V27: Le | W27: =+'wind pressure'!Z16 -> 50 | Y27: 240 | Z27: 1.00
A28: SK566400 | B28: 26 | C28: Nottingham | D28: 21.8 | E28: 74 | F28: 200 | G28: 94 | H28: 200 | I28: 135 | J28: 10 | K28: 21 | L28: 335 | M28: =IFERROR(INDEX($Z$3:$Z$39,MATCH(L28,$Y$3:$Y$39,0)),(INDEX(Factor,K28+10)-INDEX(Factor,K28))/(INDEX(Degrees,K28+10)-INDEX(Degrees,K28))*(L28-INDEX(Degrees,K28))+INDEX(Factor,K28)) -> 0.81 | Y28: 250 | Z28: 1.00
A29: NM859301 | B29: 27 | C29: Oban | D29: 27 | E29: 119 | F29: 3 | G29: 170 | H29: 110 | I29: 3 | J29: 3 | K29: 21 | L29: 336 | M29: =IFERROR(INDEX($Z$3:$Z$39,MATCH(L29,$Y$3:$Y$39,0)),(INDEX(Factor,K29+10)-INDEX(Factor,K29))/(INDEX(Degrees,K29+10)-INDEX(Degrees,K29))*(L29-INDEX(Degrees,K29))+INDEX(Factor,K29)) -> 0.808 | Y29: 260 | Z29: 0.99
A30: SP513061 | B30: 28 | C30: Oxford | D30: 21.3 | E30: 64 | F30: 200 | G30: 186 | H30: 109 | I30: 200 | J30: 6 | K30: 21 | L30: 337 | M30: =IFERROR(INDEX($Z$3:$Z$39,MATCH(L30,$Y$3:$Y$39,0)),(INDEX(Factor,K30+10)-INDEX(Factor,K30))/(INDEX(Degrees,K30+10)-INDEX(Degrees,K30))*(L30-INDEX(Degrees,K30))+INDEX(Factor,K30)) -> 0.806 | Y30: 270 | Z30: 0.99
A31: NO117234 | B31: 29 | C31: Perth | D31: 25 | E31: 10 | F31: 138 | G31: 41 | H31: 200 | I31: 166 | J31: 2 | K31: 21 | L31: 338 | M31: =IFERROR(INDEX($Z$3:$Z$39,MATCH(L31,$Y$3:$Y$39,0)),(INDEX(Factor,K31+10)-INDEX(Factor,K31))/(INDEX(Degrees,K31+10)-INDEX(Degrees,K31))*(L31-INDEX(Degrees,K31))+INDEX(Factor,K31)) -> 0.804 | Y31: 280 | Z31: 0.96
A32: SX477550 | B32: 30 | C32: Plymouth | D32: 23.8 | E32: 72 | F32: 200 | G32: 44 | H32: 3 | I32: 82 | J32: 8 | K32: 21 | L32: 339 | M32: =IFERROR(INDEX($Z$3:$Z$39,MATCH(L32,$Y$3:$Y$39,0)),(INDEX(Factor,K32+10)-INDEX(Factor,K32))/(INDEX(Degrees,K32+10)-INDEX(Degrees,K32))*(L32-INDEX(Degrees,K32))+INDEX(Factor,K32)) -> 0.802 | Y32: 290 | Z32: 0.93
A33: SD537298 | B33: 31 | C33: Preston | D33: 23.2 | E33: 40 | F33: 200 | G33: 170 | H33: 200 | I33: 23 | J33: 9 | K33: 31 | L33: 340 | M33: =IFERROR(INDEX($Z$3:$Z$39,MATCH(L33,$Y$3:$Y$39,0)),(INDEX(Factor,K33+10)-INDEX(Factor,K33))/(INDEX(Degrees,K33+10)-INDEX(Degrees,K33))*(L33-INDEX(Degrees,K33))+INDEX(Factor,K33)) -> 0.8 | Y33: 300 | Z33: 0.91
A34: SK353872 | B34: 32 | C34: Sheffield | D34: 22.2 | E34: 80 | F34: 200 | G34: 114 | H34: 200 | I34: 200 | J34: 10 | K34: 31 | L34: 341 | M34: =IFERROR(INDEX($Z$3:$Z$39,MATCH(L34,$Y$3:$Y$39,0)),(INDEX(Factor,K34+10)-INDEX(Factor,K34))/(INDEX(Degrees,K34+10)-INDEX(Degrees,K34))*(L34-INDEX(Degrees,K34))+INDEX(Factor,K34)) -> 0.799 | Y34: 310 | Z34: 0.88
A35: SJ880450 | B35: 33 | C35: Stoke | D35: 22 | E35: 158 | F35: 200 | G35: 145 | H35: 200 | I35: 76 | J35: 7 | K35: 31 | L35: 342 | M35: =IFERROR(INDEX($Z$3:$Z$39,MATCH(L35,$Y$3:$Y$39,0)),(INDEX(Factor,K35+10)-INDEX(Factor,K35))/(INDEX(Degrees,K35+10)-INDEX(Degrees,K35))*(L35-INDEX(Degrees,K35))+INDEX(Factor,K35)) -> 0.798 | Y35: 320 | Z35: 0.85
A36: SS655931 | B36: 34 | C36: Swansea | D36: 23.5 | E36: 160 | F36: 182 | G36: 200 | H36: 2 | I36: 24 | J36: 7 | K36: 31 | L36: 343 | M36: =IFERROR(INDEX($Z$3:$Z$39,MATCH(L36,$Y$3:$Y$39,0)),(INDEX(Factor,K36+10)-INDEX(Factor,K36))/(INDEX(Degrees,K36+10)-INDEX(Degrees,K36))*(L36-INDEX(Degrees,K36))+INDEX(Factor,K36)) -> 0.797 | Y36: 330 | Z36: 0.82
A37: SE599519 | B37: 35 | C37: York | D37: 22.7 | E37: 19 | F37: 74 | G37: 62 | H37: 200 | I37: 124 | J37: 4 | K37: 31 | L37: 344 | M37: =IFERROR(INDEX($Z$3:$Z$39,MATCH(L37,$Y$3:$Y$39,0)),(INDEX(Factor,K37+10)-INDEX(Factor,K37))/(INDEX(Degrees,K37+10)-INDEX(Degrees,K37))*(L37-INDEX(Degrees,K37))+INDEX(Factor,K37)) -> 0.796 | Y37: 340 | Z37: 0.80
K38: 31 | L38: 345 | M38: =IFERROR(INDEX($Z$3:$Z$39,MATCH(L38,$Y$3:$Y$39,0)),(INDEX(Factor,K38+10)-INDEX(Factor,K38))/(INDEX(Degrees,K38+10)-INDEX(Degrees,K38))*(L38-INDEX(Degrees,K38))+INDEX(Factor,K38)) -> 0.795 | Y38: 350 | Z38: 0.79
K39: 31 | L39: 346 | M39: =IFERROR(INDEX($Z$3:$Z$39,MATCH(L39,$Y$3:$Y$39,0)),(INDEX(Factor,K39+10)-INDEX(Factor,K39))/(INDEX(Degrees,K39+10)-INDEX(Degrees,K39))*(L39-INDEX(Degrees,K39))+INDEX(Factor,K39)) -> 0.794 | Y39: 360 | Z39: 0.78
K40: 31 | L40: 347 | M40: =IFERROR(INDEX($Z$3:$Z$39,MATCH(L40,$Y$3:$Y$39,0)),(INDEX(Factor,K40+10)-INDEX(Factor,K40))/(INDEX(Degrees,K40+10)-INDEX(Degrees,K40))*(L40-INDEX(Degrees,K40))+INDEX(Factor,K40)) -> 0.793
K41: 31 | L41: 348 | M41: =IFERROR(INDEX($Z$3:$Z$39,MATCH(L41,$Y$3:$Y$39,0)),(INDEX(Factor,K41+10)-INDEX(Factor,K41))/(INDEX(Degrees,K41+10)-INDEX(Degrees,K41))*(L41-INDEX(Degrees,K41))+INDEX(Factor,K41)) -> 0.792
K42: 31 | L42: 349 | M42: =IFERROR(INDEX($Z$3:$Z$39,MATCH(L42,$Y$3:$Y$39,0)),(INDEX(Factor,K42+10)-INDEX(Factor,K42))/(INDEX(Degrees,K42+10)-INDEX(Degrees,K42))*(L42-INDEX(Degrees,K42))+INDEX(Factor,K42)) -> 0.791
K43: 41 | L43: 350 | M43: =IFERROR(INDEX($Z$3:$Z$39,MATCH(L43,$Y$3:$Y$39,0)),(INDEX(Factor,K43+10)-INDEX(Factor,K43))/(INDEX(Degrees,K43+10)-INDEX(Degrees,K43))*(L43-INDEX(Degrees,K43))+INDEX(Factor,K43)) -> 0.79
K44: 41 | L44: 351 | M44: =M404 -> 0.789
K45: 41 | L45: 352 | M45: =M405 -> 0.788
K46: 41 | L46: 353 | M46: 0.787
K47: 41 | L47: 354 | M47: 0.786
K48: 41 | L48: 355 | M48: 0.785
K49: 41 | L49: 356 | M49: 0.784
K50: 41 | L50: 357 | M50: 0.783
K51: 41 | L51: 358 | M51: 0.782
K52: 41 | L52: 359 | M52: 0.781
K53: 51 | L53: 0 | M53: =IFERROR(INDEX($Z$3:$Z$39,MATCH(L53,$Y$3:$Y$39,0)),(INDEX(Factor,K53+10)-INDEX(Factor,K53))/(INDEX(Degrees,K53+10)-INDEX(Degrees,K53))*(L53-INDEX(Degrees,K53))+INDEX(Factor,K53)) -> 0.78
K54: 51 | L54: 1 | M54: =IFERROR(INDEX($Z$3:$Z$39,MATCH(L54,$Y$3:$Y$39,0)),(INDEX(Factor,K54+10)-INDEX(Factor,K54))/(INDEX(Degrees,K54+10)-INDEX(Degrees,K54))*(L54-INDEX(Degrees,K54))+INDEX(Factor,K54)) -> 0.778
K55: 51 | L55: 2 | M55: =IFERROR(INDEX($Z$3:$Z$39,MATCH(L55,$Y$3:$Y$39,0)),(INDEX(Factor,K55+10)-INDEX(Factor,K55))/(INDEX(Degrees,K55+10)-INDEX(Degrees,K55))*(L55-INDEX(Degrees,K55))+INDEX(Factor,K55)) -> 0.776
K56: 51 | L56: 3 | M56: =IFERROR(INDEX($Z$3:$Z$39,MATCH(L56,$Y$3:$Y$39,0)),(INDEX(Factor,K56+10)-INDEX(Factor,K56))/(INDEX(Degrees,K56+10)-INDEX(Degrees,K56))*(L56-INDEX(Degrees,K56))+INDEX(Factor,K56)) -> 0.774
K57: 51 | L57: 4 | M57: =IFERROR(INDEX($Z$3:$Z$39,MATCH(L57,$Y$3:$Y$39,0)),(INDEX(Factor,K57+10)-INDEX(Factor,K57))/(INDEX(Degrees,K57+10)-INDEX(Degrees,K57))*(L57-INDEX(Degrees,K57))+INDEX(Factor,K57)) -> 0.772
K58: 51 | L58: 5 | M58: =IFERROR(INDEX($Z$3:$Z$39,MATCH(L58,$Y$3:$Y$39,0)),(INDEX(Factor,K58+10)-INDEX(Factor,K58))/(INDEX(Degrees,K58+10)-INDEX(Degrees,K58))*(L58-INDEX(Degrees,K58))+INDEX(Factor,K58)) -> 0.77
K59: 51 | L59: 6 | M59: =IFERROR(INDEX($Z$3:$Z$39,MATCH(L59,$Y$3:$Y$39,0)),(INDEX(Factor,K59+10)-INDEX(Factor,K59))/(INDEX(Degrees,K59+10)-INDEX(Degrees,K59))*(L59-INDEX(Degrees,K59))+INDEX(Factor,K59)) -> 0.768
K60: 51 | L60: 7 | M60: =IFERROR(INDEX($Z$3:$Z$39,MATCH(L60,$Y$3:$Y$39,0)),(INDEX(Factor,K60+10)-INDEX(Factor,K60))/(INDEX(Degrees,K60+10)-INDEX(Degrees,K60))*(L60-INDEX(Degrees,K60))+INDEX(Factor,K60)) -> 0.766
K61: 51 | L61: 8 | M61: =IFERROR(INDEX($Z$3:$Z$39,MATCH(L61,$Y$3:$Y$39,0)),(INDEX(Factor,K61+10)-INDEX(Factor,K61))/(INDEX(Degrees,K61+10)-INDEX(Degrees,K61))*(L61-INDEX(Degrees,K61))+INDEX(Factor,K61)) -> 0.764
K62: 51 | L62: 9 | M62: =IFERROR(INDEX($Z$3:$Z$39,MATCH(L62,$Y$3:$Y$39,0)),(INDEX(Factor,K62+10)-INDEX(Factor,K62))/(INDEX(Degrees,K62+10)-INDEX(Degrees,K62))*(L62-INDEX(Degrees,K62))+INDEX(Factor,K62)) -> 0.762
K63: 61 | L63: 10 | M63: =IFERROR(INDEX($Z$3:$Z$39,MATCH(L63,$Y$3:$Y$39,0)),(INDEX(Factor,K63+10)-INDEX(Factor,K63))/(INDEX(Degrees,K63+10)-INDEX(Degrees,K63))*(L63-INDEX(Degrees,K63))+INDEX(Factor,K63)) -> 0.76
K64: 61 | L64: 11 | M64: =IFERROR(INDEX($Z$3:$Z$39,MATCH(L64,$Y$3:$Y$39,0)),(INDEX(Factor,K64+10)-INDEX(Factor,K64))/(INDEX(Degrees,K64+10)-INDEX(Degrees,K64))*(L64-INDEX(Degrees,K64))+INDEX(Factor,K64)) -> 0.758
K65: 61 | L65: 12 | M65: =IFERROR(INDEX($Z$3:$Z$39,MATCH(L65,$Y$3:$Y$39,0)),(INDEX(Factor,K65+10)-INDEX(Factor,K65))/(INDEX(Degrees,K65+10)-INDEX(Degrees,K65))*(L65-INDEX(Degrees,K65))+INDEX(Factor,K65)) -> 0.756
K66: 61 | L66: 13 | M66: =IFERROR(INDEX($Z$3:$Z$39,MATCH(L66,$Y$3:$Y$39,0)),(INDEX(Factor,K66+10)-INDEX(Factor,K66))/(INDEX(Degrees,K66+10)-INDEX(Degrees,K66))*(L66-INDEX(Degrees,K66))+INDEX(Factor,K66)) -> 0.754
K67: =ROUNDDOWN(ROW()-3,-1)+1 -> 61 | L67: 14 | M67: =IFERROR(INDEX($Z$3:$Z$39,MATCH(L67,$Y$3:$Y$39,0)),(INDEX(Factor,K67+10)-INDEX(Factor,K67))/(INDEX(Degrees,K67+10)-INDEX(Degrees,K67))*(L67-INDEX(Degrees,K67))+INDEX(Factor,K67)) -> 0.752
K68: 61 | L68: 15 | M68: =IFERROR(INDEX($Z$3:$Z$39,MATCH(L68,$Y$3:$Y$39,0)),(INDEX(Factor,K68+10)-INDEX(Factor,K68))/(INDEX(Degrees,K68+10)-INDEX(Degrees,K68))*(L68-INDEX(Degrees,K68))+INDEX(Factor,K68)) -> 0.75
K69: 61 | L69: 16 | M69: =IFERROR(INDEX($Z$3:$Z$39,MATCH(L69,$Y$3:$Y$39,0)),(INDEX(Factor,K69+10)-INDEX(Factor,K69))/(INDEX(Degrees,K69+10)-INDEX(Degrees,K69))*(L69-INDEX(Degrees,K69))+INDEX(Factor,K69)) -> 0.748
K70: 61 | L70: 17 | M70: =IFERROR(INDEX($Z$3:$Z$39,MATCH(L70,$Y$3:$Y$39,0)),(INDEX(Factor,K70+10)-INDEX(Factor,K70))/(INDEX(Degrees,K70+10)-INDEX(Degrees,K70))*(L70-INDEX(Degrees,K70))+INDEX(Factor,K70)) -> 0.746
K71: 61 | L71: 18 | M71: =IFERROR(INDEX($Z$3:$Z$39,MATCH(L71,$Y$3:$Y$39,0)),(INDEX(Factor,K71+10)-INDEX(Factor,K71))/(INDEX(Degrees,K71+10)-INDEX(Degrees,K71))*(L71-INDEX(Degrees,K71))+INDEX(Factor,K71)) -> 0.744
K72: 61 | L72: 19 | M72: =IFERROR(INDEX($Z$3:$Z$39,MATCH(L72,$Y$3:$Y$39,0)),(INDEX(Factor,K72+10)-INDEX(Factor,K72))/(INDEX(Degrees,K72+10)-INDEX(Degrees,K72))*(L72-INDEX(Degrees,K72))+INDEX(Factor,K72)) -> 0.742
K73: 71 | L73: 20 | M73: =IFERROR(INDEX($Z$3:$Z$39,MATCH(L73,$Y$3:$Y$39,0)),(INDEX(Factor,K73+10)-INDEX(Factor,K73))/(INDEX(Degrees,K73+10)-INDEX(Degrees,K73))*(L73-INDEX(Degrees,K73))+INDEX(Factor,K73)) -> 0.74
K74: 71 | L74: 21 | M74: =IFERROR(INDEX($Z$3:$Z$39,MATCH(L74,$Y$3:$Y$39,0)),(INDEX(Factor,K74+10)-INDEX(Factor,K74))/(INDEX(Degrees,K74+10)-INDEX(Degrees,K74))*(L74-INDEX(Degrees,K74))+INDEX(Factor,K74)) -> 0.739
K75: 71 | L75: 22 | M75: =IFERROR(INDEX($Z$3:$Z$39,MATCH(L75,$Y$3:$Y$39,0)),(INDEX(Factor,K75+10)-INDEX(Factor,K75))/(INDEX(Degrees,K75+10)-INDEX(Degrees,K75))*(L75-INDEX(Degrees,K75))+INDEX(Factor,K75)) -> 0.738
K76: 71 | L76: 23 | M76: =IFERROR(INDEX($Z$3:$Z$39,MATCH(L76,$Y$3:$Y$39,0)),(INDEX(Factor,K76+10)-INDEX(Factor,K76))/(INDEX(Degrees,K76+10)-INDEX(Degrees,K76))*(L76-INDEX(Degrees,K76))+INDEX(Factor,K76)) -> 0.737
K77: 71 | L77: 24 | M77: =IFERROR(INDEX($Z$3:$Z$39,MATCH(L77,$Y$3:$Y$39,0)),(INDEX(Factor,K77+10)-INDEX(Factor,K77))/(INDEX(Degrees,K77+10)-INDEX(Degrees,K77))*(L77-INDEX(Degrees,K77))+INDEX(Factor,K77)) -> 0.736
K78: 71 | L78: 25 | M78: =IFERROR(INDEX($Z$3:$Z$39,MATCH(L78,$Y$3:$Y$39,0)),(INDEX(Factor,K78+10)-INDEX(Factor,K78))/(INDEX(Degrees,K78+10)-INDEX(Degrees,K78))*(L78-INDEX(Degrees,K78))+INDEX(Factor,K78)) -> 0.735
K79: 71 | L79: 26 | M79: =IFERROR(INDEX($Z$3:$Z$39,MATCH(L79,$Y$3:$Y$39,0)),(INDEX(Factor,K79+10)-INDEX(Factor,K79))/(INDEX(Degrees,K79+10)-INDEX(Degrees,K79))*(L79-INDEX(Degrees,K79))+INDEX(Factor,K79)) -> 0.734
K80: 71 | L80: 27 | M80: =IFERROR(INDEX($Z$3:$Z$39,MATCH(L80,$Y$3:$Y$39,0)),(INDEX(Factor,K80+10)-INDEX(Factor,K80))/(INDEX(Degrees,K80+10)-INDEX(Degrees,K80))*(L80-INDEX(Degrees,K80))+INDEX(Factor,K80)) -> 0.733
K81: 71 | L81: 28 | M81: =IFERROR(INDEX($Z$3:$Z$39,MATCH(L81,$Y$3:$Y$39,0)),(INDEX(Factor,K81+10)-INDEX(Factor,K81))/(INDEX(Degrees,K81+10)-INDEX(Degrees,K81))*(L81-INDEX(Degrees,K81))+INDEX(Factor,K81)) -> 0.732
K82: 71 | L82: 29 | M82: =IFERROR(INDEX($Z$3:$Z$39,MATCH(L82,$Y$3:$Y$39,0)),(INDEX(Factor,K82+10)-INDEX(Factor,K82))/(INDEX(Degrees,K82+10)-INDEX(Degrees,K82))*(L82-INDEX(Degrees,K82))+INDEX(Factor,K82)) -> 0.731
K83: 81 | L83: 30 | M83: =IFERROR(INDEX($Z$3:$Z$39,MATCH(L83,$Y$3:$Y$39,0)),(INDEX(Factor,K83+10)-INDEX(Factor,K83))/(INDEX(Degrees,K83+10)-INDEX(Degrees,K83))*(L83-INDEX(Degrees,K83))+INDEX(Factor,K83)) -> 0.73
K84: 81 | L84: 31 | M84: =IFERROR(INDEX($Z$3:$Z$39,MATCH(L84,$Y$3:$Y$39,0)),(INDEX(Factor,K84+10)-INDEX(Factor,K84))/(INDEX(Degrees,K84+10)-INDEX(Degrees,K84))*(L84-INDEX(Degrees,K84))+INDEX(Factor,K84)) -> 0.73
K85: 81 | L85: 32 | M85: =IFERROR(INDEX($Z$3:$Z$39,MATCH(L85,$Y$3:$Y$39,0)),(INDEX(Factor,K85+10)-INDEX(Factor,K85))/(INDEX(Degrees,K85+10)-INDEX(Degrees,K85))*(L85-INDEX(Degrees,K85))+INDEX(Factor,K85)) -> 0.73
K86: 81 | L86: 33 | M86: =IFERROR(INDEX($Z$3:$Z$39,MATCH(L86,$Y$3:$Y$39,0)),(INDEX(Factor,K86+10)-INDEX(Factor,K86))/(INDEX(Degrees,K86+10)-INDEX(Degrees,K86))*(L86-INDEX(Degrees,K86))+INDEX(Factor,K86)) -> 0.73
K87: 81 | L87: 34 | M87: =IFERROR(INDEX($Z$3:$Z$39,MATCH(L87,$Y$3:$Y$39,0)),(INDEX(Factor,K87+10)-INDEX(Factor,K87))/(INDEX(Degrees,K87+10)-INDEX(Degrees,K87))*(L87-INDEX(Degrees,K87))+INDEX(Factor,K87)) -> 0.73
K88: 81 | L88: 35 | M88: =IFERROR(INDEX($Z$3:$Z$39,MATCH(L88,$Y$3:$Y$39,0)),(INDEX(Factor,K88+10)-INDEX(Factor,K88))/(INDEX(Degrees,K88+10)-INDEX(Degrees,K88))*(L88-INDEX(Degrees,K88))+INDEX(Factor,K88)) -> 0.73
K89: 81 | L89: 36 | M89: =IFERROR(INDEX($Z$3:$Z$39,MATCH(L89,$Y$3:$Y$39,0)),(INDEX(Factor,K89+10)-INDEX(Factor,K89))/(INDEX(Degrees,K89+10)-INDEX(Degrees,K89))*(L89-INDEX(Degrees,K89))+INDEX(Factor,K89)) -> 0.73
K90: 81 | L90: 37 | M90: =IFERROR(INDEX($Z$3:$Z$39,MATCH(L90,$Y$3:$Y$39,0)),(INDEX(Factor,K90+10)-INDEX(Factor,K90))/(INDEX(Degrees,K90+10)-INDEX(Degrees,K90))*(L90-INDEX(Degrees,K90))+INDEX(Factor,K90)) -> 0.73
K91: 81 | L91: 38 | M91: =IFERROR(INDEX($Z$3:$Z$39,MATCH(L91,$Y$3:$Y$39,0)),(INDEX(Factor,K91+10)-INDEX(Factor,K91))/(INDEX(Degrees,K91+10)-INDEX(Degrees,K91))*(L91-INDEX(Degrees,K91))+INDEX(Factor,K91)) -> 0.73
K92: 81 | L92: 39 | M92: =IFERROR(INDEX($Z$3:$Z$39,MATCH(L92,$Y$3:$Y$39,0)),(INDEX(Factor,K92+10)-INDEX(Factor,K92))/(INDEX(Degrees,K92+10)-INDEX(Degrees,K92))*(L92-INDEX(Degrees,K92))+INDEX(Factor,K92)) -> 0.73
K93: 91 | L93: 40 | M93: =IFERROR(INDEX($Z$3:$Z$39,MATCH(L93,$Y$3:$Y$39,0)),(INDEX(Factor,K93+10)-INDEX(Factor,K93))/(INDEX(Degrees,K93+10)-INDEX(Degrees,K93))*(L93-INDEX(Degrees,K93))+INDEX(Factor,K93)) -> 0.73
K94: 91 | L94: 41 | M94: =IFERROR(INDEX($Z$3:$Z$39,MATCH(L94,$Y$3:$Y$39,0)),(INDEX(Factor,K94+10)-INDEX(Factor,K94))/(INDEX(Degrees,K94+10)-INDEX(Degrees,K94))*(L94-INDEX(Degrees,K94))+INDEX(Factor,K94)) -> 0.73
K95: 91 | L95: 42 | M95: =IFERROR(INDEX($Z$3:$Z$39,MATCH(L95,$Y$3:$Y$39,0)),(INDEX(Factor,K95+10)-INDEX(Factor,K95))/(INDEX(Degrees,K95+10)-INDEX(Degrees,K95))*(L95-INDEX(Degrees,K95))+INDEX(Factor,K95)) -> 0.73
K96: 91 | L96: 43 | M96: =IFERROR(INDEX($Z$3:$Z$39,MATCH(L96,$Y$3:$Y$39,0)),(INDEX(Factor,K96+10)-INDEX(Factor,K96))/(INDEX(Degrees,K96+10)-INDEX(Degrees,K96))*(L96-INDEX(Degrees,K96))+INDEX(Factor,K96)) -> 0.73
K97: 91 | L97: 44 | M97: =IFERROR(INDEX($Z$3:$Z$39,MATCH(L97,$Y$3:$Y$39,0)),(INDEX(Factor,K97+10)-INDEX(Factor,K97))/(INDEX(Degrees,K97+10)-INDEX(Degrees,K97))*(L97-INDEX(Degrees,K97))+INDEX(Factor,K97)) -> 0.73
K98: 91 | L98: 45 | M98: =IFERROR(INDEX($Z$3:$Z$39,MATCH(L98,$Y$3:$Y$39,0)),(INDEX(Factor,K98+10)-INDEX(Factor,K98))/(INDEX(Degrees,K98+10)-INDEX(Degrees,K98))*(L98-INDEX(Degrees,K98))+INDEX(Factor,K98)) -> 0.73
K99: 91 | L99: 46 | M99: =IFERROR(INDEX($Z$3:$Z$39,MATCH(L99,$Y$3:$Y$39,0)),(INDEX(Factor,K99+10)-INDEX(Factor,K99))/(INDEX(Degrees,K99+10)-INDEX(Degrees,K99))*(L99-INDEX(Degrees,K99))+INDEX(Factor,K99)) -> 0.73
K100: 91 | L100: 47 | M100: =IFERROR(INDEX($Z$3:$Z$39,MATCH(L100,$Y$3:$Y$39,0)),(INDEX(Factor,K100+10)-INDEX(Factor,K100))/(INDEX(Degrees,K100+10)-INDEX(Degrees,K100))*(L100-INDEX(Degrees,K100))+INDEX(Factor,K100)) -> 0.73
K101: 91 | L101: 48 | M101: =IFERROR(INDEX($Z$3:$Z$39,MATCH(L101,$Y$3:$Y$39,0)),(INDEX(Factor,K101+10)-INDEX(Factor,K101))/(INDEX(Degrees,K101+10)-INDEX(Degrees,K101))*(L101-INDEX(Degrees,K101))+INDEX(Factor,K101)) -> 0.73
K102: 91 | L102: 49 | M102: =IFERROR(INDEX($Z$3:$Z$39,MATCH(L102,$Y$3:$Y$39,0)),(INDEX(Factor,K102+10)-INDEX(Factor,K102))/(INDEX(Degrees,K102+10)-INDEX(Degrees,K102))*(L102-INDEX(Degrees,K102))+INDEX(Factor,K102)) -> 0.73
K103: 101 | L103: 50 | M103: =IFERROR(INDEX($Z$3:$Z$39,MATCH(L103,$Y$3:$Y$39,0)),(INDEX(Factor,K103+10)-INDEX(Factor,K103))/(INDEX(Degrees,K103+10)-INDEX(Degrees,K103))*(L103-INDEX(Degrees,K103))+INDEX(Factor,K103)) -> 0.73
K104: 101 | L104: 51 | M104: =IFERROR(INDEX($Z$3:$Z$39,MATCH(L104,$Y$3:$Y$39,0)),(INDEX(Factor,K104+10)-INDEX(Factor,K104))/(INDEX(Degrees,K104+10)-INDEX(Degrees,K104))*(L104-INDEX(Degrees,K104))+INDEX(Factor,K104)) -> 0.73
K105: 101 | L105: 52 | M105: =IFERROR(INDEX($Z$3:$Z$39,MATCH(L105,$Y$3:$Y$39,0)),(INDEX(Factor,K105+10)-INDEX(Factor,K105))/(INDEX(Degrees,K105+10)-INDEX(Degrees,K105))*(L105-INDEX(Degrees,K105))+INDEX(Factor,K105)) -> 0.73
K106: 101 | L106: 53 | M106: =IFERROR(INDEX($Z$3:$Z$39,MATCH(L106,$Y$3:$Y$39,0)),(INDEX(Factor,K106+10)-INDEX(Factor,K106))/(INDEX(Degrees,K106+10)-INDEX(Degrees,K106))*(L106-INDEX(Degrees,K106))+INDEX(Factor,K106)) -> 0.73
K107: 101 | L107: 54 | M107: =IFERROR(INDEX($Z$3:$Z$39,MATCH(L107,$Y$3:$Y$39,0)),(INDEX(Factor,K107+10)-INDEX(Factor,K107))/(INDEX(Degrees,K107+10)-INDEX(Degrees,K107))*(L107-INDEX(Degrees,K107))+INDEX(Factor,K107)) -> 0.73
K108: 101 | L108: 55 | M108: =IFERROR(INDEX($Z$3:$Z$39,MATCH(L108,$Y$3:$Y$39,0)),(INDEX(Factor,K108+10)-INDEX(Factor,K108))/(INDEX(Degrees,K108+10)-INDEX(Degrees,K108))*(L108-INDEX(Degrees,K108))+INDEX(Factor,K108)) -> 0.73
K109: 101 | L109: 56 | M109: =IFERROR(INDEX($Z$3:$Z$39,MATCH(L109,$Y$3:$Y$39,0)),(INDEX(Factor,K109+10)-INDEX(Factor,K109))/(INDEX(Degrees,K109+10)-INDEX(Degrees,K109))*(L109-INDEX(Degrees,K109))+INDEX(Factor,K109)) -> 0.73
K110: 101 | L110: 57 | M110: =IFERROR(INDEX($Z$3:$Z$39,MATCH(L110,$Y$3:$Y$39,0)),(INDEX(Factor,K110+10)-INDEX(Factor,K110))/(INDEX(Degrees,K110+10)-INDEX(Degrees,K110))*(L110-INDEX(Degrees,K110))+INDEX(Factor,K110)) -> 0.73
K111: 101 | L111: 58 | M111: =IFERROR(INDEX($Z$3:$Z$39,MATCH(L111,$Y$3:$Y$39,0)),(INDEX(Factor,K111+10)-INDEX(Factor,K111))/(INDEX(Degrees,K111+10)-INDEX(Degrees,K111))*(L111-INDEX(Degrees,K111))+INDEX(Factor,K111)) -> 0.73
K112: 101 | L112: 59 | M112: =IFERROR(INDEX($Z$3:$Z$39,MATCH(L112,$Y$3:$Y$39,0)),(INDEX(Factor,K112+10)-INDEX(Factor,K112))/(INDEX(Degrees,K112+10)-INDEX(Degrees,K112))*(L112-INDEX(Degrees,K112))+INDEX(Factor,K112)) -> 0.73
K113: 111 | L113: 60 | M113: =IFERROR(INDEX($Z$3:$Z$39,MATCH(L113,$Y$3:$Y$39,0)),(INDEX(Factor,K113+10)-INDEX(Factor,K113))/(INDEX(Degrees,K113+10)-INDEX(Degrees,K113))*(L113-INDEX(Degrees,K113))+INDEX(Factor,K113)) -> 0.73
K114: 111 | L114: 61 | M114: =IFERROR(INDEX($Z$3:$Z$39,MATCH(L114,$Y$3:$Y$39,0)),(INDEX(Factor,K114+10)-INDEX(Factor,K114))/(INDEX(Degrees,K114+10)-INDEX(Degrees,K114))*(L114-INDEX(Degrees,K114))+INDEX(Factor,K114)) -> 0.73
K115: 111 | L115: 62 | M115: =IFERROR(INDEX($Z$3:$Z$39,MATCH(L115,$Y$3:$Y$39,0)),(INDEX(Factor,K115+10)-INDEX(Factor,K115))/(INDEX(Degrees,K115+10)-INDEX(Degrees,K115))*(L115-INDEX(Degrees,K115))+INDEX(Factor,K115)) -> 0.73
K116: 111 | L116: 63 | M116: =IFERROR(INDEX($Z$3:$Z$39,MATCH(L116,$Y$3:$Y$39,0)),(INDEX(Factor,K116+10)-INDEX(Factor,K116))/(INDEX(Degrees,K116+10)-INDEX(Degrees,K116))*(L116-INDEX(Degrees,K116))+INDEX(Factor,K116)) -> 0.73
K117: 111 | L117: 64 | M117: =IFERROR(INDEX($Z$3:$Z$39,MATCH(L117,$Y$3:$Y$39,0)),(INDEX(Factor,K117+10)-INDEX(Factor,K117))/(INDEX(Degrees,K117+10)-INDEX(Degrees,K117))*(L117-INDEX(Degrees,K117))+INDEX(Factor,K117)) -> 0.73
K118: 111 | L118: 65 | M118: =IFERROR(INDEX($Z$3:$Z$39,MATCH(L118,$Y$3:$Y$39,0)),(INDEX(Factor,K118+10)-INDEX(Factor,K118))/(INDEX(Degrees,K118+10)-INDEX(Degrees,K118))*(L118-INDEX(Degrees,K118))+INDEX(Factor,K118)) -> 0.73
K119: 111 | L119: 66 | M119: =IFERROR(INDEX($Z$3:$Z$39,MATCH(L119,$Y$3:$Y$39,0)),(INDEX(Factor,K119+10)-INDEX(Factor,K119))/(INDEX(Degrees,K119+10)-INDEX(Degrees,K119))*(L119-INDEX(Degrees,K119))+INDEX(Factor,K119)) -> 0.73
K120: 111 | L120: 67 | M120: =IFERROR(INDEX($Z$3:$Z$39,MATCH(L120,$Y$3:$Y$39,0)),(INDEX(Factor,K120+10)-INDEX(Factor,K120))/(INDEX(Degrees,K120+10)-INDEX(Degrees,K120))*(L120-INDEX(Degrees,K120))+INDEX(Factor,K120)) -> 0.73
K121: 111 | L121: 68 | M121: =IFERROR(INDEX($Z$3:$Z$39,MATCH(L121,$Y$3:$Y$39,0)),(INDEX(Factor,K121+10)-INDEX(Factor,K121))/(INDEX(Degrees,K121+10)-INDEX(Degrees,K121))*(L121-INDEX(Degrees,K121))+INDEX(Factor,K121)) -> 0.73
K122: 111 | L122: 69 | M122: =IFERROR(INDEX($Z$3:$Z$39,MATCH(L122,$Y$3:$Y$39,0)),(INDEX(Factor,K122+10)-INDEX(Factor,K122))/(INDEX(Degrees,K122+10)-INDEX(Degrees,K122))*(L122-INDEX(Degrees,K122))+INDEX(Factor,K122)) -> 0.73
K123: 121 | L123: 70 | M123: =IFERROR(INDEX($Z$3:$Z$39,MATCH(L123,$Y$3:$Y$39,0)),(INDEX(Factor,K123+10)-INDEX(Factor,K123))/(INDEX(Degrees,K123+10)-INDEX(Degrees,K123))*(L123-INDEX(Degrees,K123))+INDEX(Factor,K123)) -> 0.73
K124: 121 | L124: 71 | M124: =IFERROR(INDEX($Z$3:$Z$39,MATCH(L124,$Y$3:$Y$39,0)),(INDEX(Factor,K124+10)-INDEX(Factor,K124))/(INDEX(Degrees,K124+10)-INDEX(Degrees,K124))*(L124-INDEX(Degrees,K124))+INDEX(Factor,K124)) -> 0.731
K125: 121 | L125: 72 | M125: =IFERROR(INDEX($Z$3:$Z$39,MATCH(L125,$Y$3:$Y$39,0)),(INDEX(Factor,K125+10)-INDEX(Factor,K125))/(INDEX(Degrees,K125+10)-INDEX(Degrees,K125))*(L125-INDEX(Degrees,K125))+INDEX(Factor,K125)) -> 0.732
K126: 121 | L126: 73 | M126: =IFERROR(INDEX($Z$3:$Z$39,MATCH(L126,$Y$3:$Y$39,0)),(INDEX(Factor,K126+10)-INDEX(Factor,K126))/(INDEX(Degrees,K126+10)-INDEX(Degrees,K126))*(L126-INDEX(Degrees,K126))+INDEX(Factor,K126)) -> 0.733
K127: 121 | L127: 74 | M127: =IFERROR(INDEX($Z$3:$Z$39,MATCH(L127,$Y$3:$Y$39,0)),(INDEX(Factor,K127+10)-INDEX(Factor,K127))/(INDEX(Degrees,K127+10)-INDEX(Degrees,K127))*(L127-INDEX(Degrees,K127))+INDEX(Factor,K127)) -> 0.734
K128: 121 | L128: 75 | M128: =IFERROR(INDEX($Z$3:$Z$39,MATCH(L128,$Y$3:$Y$39,0)),(INDEX(Factor,K128+10)-INDEX(Factor,K128))/(INDEX(Degrees,K128+10)-INDEX(Degrees,K128))*(L128-INDEX(Degrees,K128))+INDEX(Factor,K128)) -> 0.735
K129: 121 | L129: 76 | M129: =IFERROR(INDEX($Z$3:$Z$39,MATCH(L129,$Y$3:$Y$39,0)),(INDEX(Factor,K129+10)-INDEX(Factor,K129))/(INDEX(Degrees,K129+10)-INDEX(Degrees,K129))*(L129-INDEX(Degrees,K129))+INDEX(Factor,K129)) -> 0.736
K130: 121 | L130: 77 | M130: =IFERROR(INDEX($Z$3:$Z$39,MATCH(L130,$Y$3:$Y$39,0)),(INDEX(Factor,K130+10)-INDEX(Factor,K130))/(INDEX(Degrees,K130+10)-INDEX(Degrees,K130))*(L130-INDEX(Degrees,K130))+INDEX(Factor,K130)) -> 0.737
K131: =ROUNDDOWN(ROW()-3,-1)+1 -> 121 | L131: 78 | M131: =IFERROR(INDEX($Z$3:$Z$39,MATCH(L131,$Y$3:$Y$39,0)),(INDEX(Factor,K131+10)-INDEX(Factor,K131))/(INDEX(Degrees,K131+10)-INDEX(Degrees,K131))*(L131-INDEX(Degrees,K131))+INDEX(Factor,K131)) -> 0.738
K132: 121 | L132: 79 | M132: =IFERROR(INDEX($Z$3:$Z$39,MATCH(L132,$Y$3:$Y$39,0)),(INDEX(Factor,K132+10)-INDEX(Factor,K132))/(INDEX(Degrees,K132+10)-INDEX(Degrees,K132))*(L132-INDEX(Degrees,K132))+INDEX(Factor,K132)) -> 0.739
K133: 131 | L133: 80 | M133: =IFERROR(INDEX($Z$3:$Z$39,MATCH(L133,$Y$3:$Y$39,0)),(INDEX(Factor,K133+10)-INDEX(Factor,K133))/(INDEX(Degrees,K133+10)-INDEX(Degrees,K133))*(L133-INDEX(Degrees,K133))+INDEX(Factor,K133)) -> 0.74
K134: 131 | L134: 81 | M134: =IFERROR(INDEX($Z$3:$Z$39,MATCH(L134,$Y$3:$Y$39,0)),(INDEX(Factor,K134+10)-INDEX(Factor,K134))/(INDEX(Degrees,K134+10)-INDEX(Degrees,K134))*(L134-INDEX(Degrees,K134))+INDEX(Factor,K134)) -> 0.74
K135: 131 | L135: 82 | M135: =IFERROR(INDEX($Z$3:$Z$39,MATCH(L135,$Y$3:$Y$39,0)),(INDEX(Factor,K135+10)-INDEX(Factor,K135))/(INDEX(Degrees,K135+10)-INDEX(Degrees,K135))*(L135-INDEX(Degrees,K135))+INDEX(Factor,K135)) -> 0.74
K136: 131 | L136: 83 | M136: =IFERROR(INDEX($Z$3:$Z$39,MATCH(L136,$Y$3:$Y$39,0)),(INDEX(Factor,K136+10)-INDEX(Factor,K136))/(INDEX(Degrees,K136+10)-INDEX(Degrees,K136))*(L136-INDEX(Degrees,K136))+INDEX(Factor,K136)) -> 0.74
K137: 131 | L137: 84 | M137: =IFERROR(INDEX($Z$3:$Z$39,MATCH(L137,$Y$3:$Y$39,0)),(INDEX(Factor,K137+10)-INDEX(Factor,K137))/(INDEX(Degrees,K137+10)-INDEX(Degrees,K137))*(L137-INDEX(Degrees,K137))+INDEX(Factor,K137)) -> 0.74
K138: 131 | L138: 85 | M138: =IFERROR(INDEX($Z$3:$Z$39,MATCH(L138,$Y$3:$Y$39,0)),(INDEX(Factor,K138+10)-INDEX(Factor,K138))/(INDEX(Degrees,K138+10)-INDEX(Degrees,K138))*(L138-INDEX(Degrees,K138))+INDEX(Factor,K138)) -> 0.74
K139: 131 | L139: 86 | M139: =IFERROR(INDEX($Z$3:$Z$39,MATCH(L139,$Y$3:$Y$39,0)),(INDEX(Factor,K139+10)-INDEX(Factor,K139))/(INDEX(Degrees,K139+10)-INDEX(Degrees,K139))*(L139-INDEX(Degrees,K139))+INDEX(Factor,K139)) -> 0.74
K140: 131 | L140: 87 | M140: =IFERROR(INDEX($Z$3:$Z$39,MATCH(L140,$Y$3:$Y$39,0)),(INDEX(Factor,K140+10)-INDEX(Factor,K140))/(INDEX(Degrees,K140+10)-INDEX(Degrees,K140))*(L140-INDEX(Degrees,K140))+INDEX(Factor,K140)) -> 0.74
K141: 131 | L141: 88 | M141: =IFERROR(INDEX($Z$3:$Z$39,MATCH(L141,$Y$3:$Y$39,0)),(INDEX(Factor,K141+10)-INDEX(Factor,K141))/(INDEX(Degrees,K141+10)-INDEX(Degrees,K141))*(L141-INDEX(Degrees,K141))+INDEX(Factor,K141)) -> 0.74
K142: 131 | L142: 89 | M142: =IFERROR(INDEX($Z$3:$Z$39,MATCH(L142,$Y$3:$Y$39,0)),(INDEX(Factor,K142+10)-INDEX(Factor,K142))/(INDEX(Degrees,K142+10)-INDEX(Degrees,K142))*(L142-INDEX(Degrees,K142))+INDEX(Factor,K142)) -> 0.74
K143: 141 | L143: 90 | M143: =IFERROR(INDEX($Z$3:$Z$39,MATCH(L143,$Y$3:$Y$39,0)),(INDEX(Factor,K143+10)-INDEX(Factor,K143))/(INDEX(Degrees,K143+10)-INDEX(Degrees,K143))*(L143-INDEX(Degrees,K143))+INDEX(Factor,K143)) -> 0.74
K144: 141 | L144: 91 | M144: =IFERROR(INDEX($Z$3:$Z$39,MATCH(L144,$Y$3:$Y$39,0)),(INDEX(Factor,K144+10)-INDEX(Factor,K144))/(INDEX(Degrees,K144+10)-INDEX(Degrees,K144))*(L144-INDEX(Degrees,K144))+INDEX(Factor,K144)) -> 0.74
K145: 141 | L145: 92 | M145: =IFERROR(INDEX($Z$3:$Z$39,MATCH(L145,$Y$3:$Y$39,0)),(INDEX(Factor,K145+10)-INDEX(Factor,K145))/(INDEX(Degrees,K145+10)-INDEX(Degrees,K145))*(L145-INDEX(Degrees,K145))+INDEX(Factor,K145)) -> 0.74
K146: 141 | L146: 93 | M146: =IFERROR(INDEX($Z$3:$Z$39,MATCH(L146,$Y$3:$Y$39,0)),(INDEX(Factor,K146+10)-INDEX(Factor,K146))/(INDEX(Degrees,K146+10)-INDEX(Degrees,K146))*(L146-INDEX(Degrees,K146))+INDEX(Factor,K146)) -> 0.74
K147: 141 | L147: 94 | M147: =IFERROR(INDEX($Z$3:$Z$39,MATCH(L147,$Y$3:$Y$39,0)),(INDEX(Factor,K147+10)-INDEX(Factor,K147))/(INDEX(Degrees,K147+10)-INDEX(Degrees,K147))*(L147-INDEX(Degrees,K147))+INDEX(Factor,K147)) -> 0.74
K148: 141 | L148: 95 | M148: =IFERROR(INDEX($Z$3:$Z$39,MATCH(L148,$Y$3:$Y$39,0)),(INDEX(Factor,K148+10)-INDEX(Factor,K148))/(INDEX(Degrees,K148+10)-INDEX(Degrees,K148))*(L148-INDEX(Degrees,K148))+INDEX(Factor,K148)) -> 0.74
K149: 141 | L149: 96 | M149: =IFERROR(INDEX($Z$3:$Z$39,MATCH(L149,$Y$3:$Y$39,0)),(INDEX(Factor,K149+10)-INDEX(Factor,K149))/(INDEX(Degrees,K149+10)-INDEX(Degrees,K149))*(L149-INDEX(Degrees,K149))+INDEX(Factor,K149)) -> 0.74
K150: 141 | L150: 97 | M150: =IFERROR(INDEX($Z$3:$Z$39,MATCH(L150,$Y$3:$Y$39,0)),(INDEX(Factor,K150+10)-INDEX(Factor,K150))/(INDEX(Degrees,K150+10)-INDEX(Degrees,K150))*(L150-INDEX(Degrees,K150))+INDEX(Factor,K150)) -> 0.74
K151: 141 | L151: 98 | M151: =IFERROR(INDEX($Z$3:$Z$39,MATCH(L151,$Y$3:$Y$39,0)),(INDEX(Factor,K151+10)-INDEX(Factor,K151))/(INDEX(Degrees,K151+10)-INDEX(Degrees,K151))*(L151-INDEX(Degrees,K151))+INDEX(Factor,K151)) -> 0.74
K152: 141 | L152: 99 | M152: =IFERROR(INDEX($Z$3:$Z$39,MATCH(L152,$Y$3:$Y$39,0)),(INDEX(Factor,K152+10)-INDEX(Factor,K152))/(INDEX(Degrees,K152+10)-INDEX(Degrees,K152))*(L152-INDEX(Degrees,K152))+INDEX(Factor,K152)) -> 0.74
K153: 151 | L153: 100 | M153: =IFERROR(INDEX($Z$3:$Z$39,MATCH(L153,$Y$3:$Y$39,0)),(INDEX(Factor,K153+10)-INDEX(Factor,K153))/(INDEX(Degrees,K153+10)-INDEX(Degrees,K153))*(L153-INDEX(Degrees,K153))+INDEX(Factor,K153)) -> 0.74
K154: 151 | L154: 101 | M154: =IFERROR(INDEX($Z$3:$Z$39,MATCH(L154,$Y$3:$Y$39,0)),(INDEX(Factor,K154+10)-INDEX(Factor,K154))/(INDEX(Degrees,K154+10)-INDEX(Degrees,K154))*(L154-INDEX(Degrees,K154))+INDEX(Factor,K154)) -> 0.739
K155: 151 | L155: 102 | M155: =IFERROR(INDEX($Z$3:$Z$39,MATCH(L155,$Y$3:$Y$39,0)),(INDEX(Factor,K155+10)-INDEX(Factor,K155))/(INDEX(Degrees,K155+10)-INDEX(Degrees,K155))*(L155-INDEX(Degrees,K155))+INDEX(Factor,K155)) -> 0.738
K156: 151 | L156: 103 | M156: =IFERROR(INDEX($Z$3:$Z$39,MATCH(L156,$Y$3:$Y$39,0)),(INDEX(Factor,K156+10)-INDEX(Factor,K156))/(INDEX(Degrees,K156+10)-INDEX(Degrees,K156))*(L156-INDEX(Degrees,K156))+INDEX(Factor,K156)) -> 0.737
K157: 151 | L157: 104 | M157: =IFERROR(INDEX($Z$3:$Z$39,MATCH(L157,$Y$3:$Y$39,0)),(INDEX(Factor,K157+10)-INDEX(Factor,K157))/(INDEX(Degrees,K157+10)-INDEX(Degrees,K157))*(L157-INDEX(Degrees,K157))+INDEX(Factor,K157)) -> 0.736
K158: 151 | L158: 105 | M158: =IFERROR(INDEX($Z$3:$Z$39,MATCH(L158,$Y$3:$Y$39,0)),(INDEX(Factor,K158+10)-INDEX(Factor,K158))/(INDEX(Degrees,K158+10)-INDEX(Degrees,K158))*(L158-INDEX(Degrees,K158))+INDEX(Factor,K158)) -> 0.735
K159: 151 | L159: 106 | M159: =IFERROR(INDEX($Z$3:$Z$39,MATCH(L159,$Y$3:$Y$39,0)),(INDEX(Factor,K159+10)-INDEX(Factor,K159))/(INDEX(Degrees,K159+10)-INDEX(Degrees,K159))*(L159-INDEX(Degrees,K159))+INDEX(Factor,K159)) -> 0.734
K160: 151 | L160: 107 | M160: =IFERROR(INDEX($Z$3:$Z$39,MATCH(L160,$Y$3:$Y$39,0)),(INDEX(Factor,K160+10)-INDEX(Factor,K160))/(INDEX(Degrees,K160+10)-INDEX(Degrees,K160))*(L160-INDEX(Degrees,K160))+INDEX(Factor,K160)) -> 0.733
K161: 151 | L161: 108 | M161: =IFERROR(INDEX($Z$3:$Z$39,MATCH(L161,$Y$3:$Y$39,0)),(INDEX(Factor,K161+10)-INDEX(Factor,K161))/(INDEX(Degrees,K161+10)-INDEX(Degrees,K161))*(L161-INDEX(Degrees,K161))+INDEX(Factor,K161)) -> 0.732
K162: 151 | L162: 109 | M162: =IFERROR(INDEX($Z$3:$Z$39,MATCH(L162,$Y$3:$Y$39,0)),(INDEX(Factor,K162+10)-INDEX(Factor,K162))/(INDEX(Degrees,K162+10)-INDEX(Degrees,K162))*(L162-INDEX(Degrees,K162))+INDEX(Factor,K162)) -> 0.731
K163: 161 | L163: 110 | M163: =IFERROR(INDEX($Z$3:$Z$39,MATCH(L163,$Y$3:$Y$39,0)),(INDEX(Factor,K163+10)-INDEX(Factor,K163))/(INDEX(Degrees,K163+10)-INDEX(Degrees,K163))*(L163-INDEX(Degrees,K163))+INDEX(Factor,K163)) -> 0.73
K164: 161 | L164: 111 | M164: =IFERROR(INDEX($Z$3:$Z$39,MATCH(L164,$Y$3:$Y$39,0)),(INDEX(Factor,K164+10)-INDEX(Factor,K164))/(INDEX(Degrees,K164+10)-INDEX(Degrees,K164))*(L164-INDEX(Degrees,K164))+INDEX(Factor,K164)) -> 0.73
K165: 161 | L165: 112 | M165: =IFERROR(INDEX($Z$3:$Z$39,MATCH(L165,$Y$3:$Y$39,0)),(INDEX(Factor,K165+10)-INDEX(Factor,K165))/(INDEX(Degrees,K165+10)-INDEX(Degrees,K165))*(L165-INDEX(Degrees,K165))+INDEX(Factor,K165)) -> 0.73
K166: 161 | L166: 113 | M166: =IFERROR(INDEX($Z$3:$Z$39,MATCH(L166,$Y$3:$Y$39,0)),(INDEX(Factor,K166+10)-INDEX(Factor,K166))/(INDEX(Degrees,K166+10)-INDEX(Degrees,K166))*(L166-INDEX(Degrees,K166))+INDEX(Factor,K166)) -> 0.73
K167: 161 | L167: 114 | M167: =IFERROR(INDEX($Z$3:$Z$39,MATCH(L167,$Y$3:$Y$39,0)),(INDEX(Factor,K167+10)-INDEX(Factor,K167))/(INDEX(Degrees,K167+10)-INDEX(Degrees,K167))*(L167-INDEX(Degrees,K167))+INDEX(Factor,K167)) -> 0.73
K168: 161 | L168: 115 | M168: =IFERROR(INDEX($Z$3:$Z$39,MATCH(L168,$Y$3:$Y$39,0)),(INDEX(Factor,K168+10)-INDEX(Factor,K168))/(INDEX(Degrees,K168+10)-INDEX(Degrees,K168))*(L168-INDEX(Degrees,K168))+INDEX(Factor,K168)) -> 0.73
K169: 161 | L169: 116 | M169: =IFERROR(INDEX($Z$3:$Z$39,MATCH(L169,$Y$3:$Y$39,0)),(INDEX(Factor,K169+10)-INDEX(Factor,K169))/(INDEX(Degrees,K169+10)-INDEX(Degrees,K169))*(L169-INDEX(Degrees,K169))+INDEX(Factor,K169)) -> 0.73
K170: 161 | L170: 117 | M170: =IFERROR(INDEX($Z$3:$Z$39,MATCH(L170,$Y$3:$Y$39,0)),(INDEX(Factor,K170+10)-INDEX(Factor,K170))/(INDEX(Degrees,K170+10)-INDEX(Degrees,K170))*(L170-INDEX(Degrees,K170))+INDEX(Factor,K170)) -> 0.73
K171: 161 | L171: 118 | M171: =IFERROR(INDEX($Z$3:$Z$39,MATCH(L171,$Y$3:$Y$39,0)),(INDEX(Factor,K171+10)-INDEX(Factor,K171))/(INDEX(Degrees,K171+10)-INDEX(Degrees,K171))*(L171-INDEX(Degrees,K171))+INDEX(Factor,K171)) -> 0.73
K172: 161 | L172: 119 | M172: =IFERROR(INDEX($Z$3:$Z$39,MATCH(L172,$Y$3:$Y$39,0)),(INDEX(Factor,K172+10)-INDEX(Factor,K172))/(INDEX(Degrees,K172+10)-INDEX(Degrees,K172))*(L172-INDEX(Degrees,K172))+INDEX(Factor,K172)) -> 0.73
K173: 171 | L173: 120 | M173: =IFERROR(INDEX($Z$3:$Z$39,MATCH(L173,$Y$3:$Y$39,0)),(INDEX(Factor,K173+10)-INDEX(Factor,K173))/(INDEX(Degrees,K173+10)-INDEX(Degrees,K173))*(L173-INDEX(Degrees,K173))+INDEX(Factor,K173)) -> 0.73
K174: 171 | L174: 121 | M174: =IFERROR(INDEX($Z$3:$Z$39,MATCH(L174,$Y$3:$Y$39,0)),(INDEX(Factor,K174+10)-INDEX(Factor,K174))/(INDEX(Degrees,K174+10)-INDEX(Degrees,K174))*(L174-INDEX(Degrees,K174))+INDEX(Factor,K174)) -> 0.732
K175: 171 | L175: 122 | M175: =IFERROR(INDEX($Z$3:$Z$39,MATCH(L175,$Y$3:$Y$39,0)),(INDEX(Factor,K175+10)-INDEX(Factor,K175))/(INDEX(Degrees,K175+10)-INDEX(Degrees,K175))*(L175-INDEX(Degrees,K175))+INDEX(Factor,K175)) -> 0.734
K176: 171 | L176: 123 | M176: =IFERROR(INDEX($Z$3:$Z$39,MATCH(L176,$Y$3:$Y$39,0)),(INDEX(Factor,K176+10)-INDEX(Factor,K176))/(INDEX(Degrees,K176+10)-INDEX(Degrees,K176))*(L176-INDEX(Degrees,K176))+INDEX(Factor,K176)) -> 0.736
K177: 171 | L177: 124 | M177: =IFERROR(INDEX($Z$3:$Z$39,MATCH(L177,$Y$3:$Y$39,0)),(INDEX(Factor,K177+10)-INDEX(Factor,K177))/(INDEX(Degrees,K177+10)-INDEX(Degrees,K177))*(L177-INDEX(Degrees,K177))+INDEX(Factor,K177)) -> 0.738
K178: 171 | L178: 125 | M178: =IFERROR(INDEX($Z$3:$Z$39,MATCH(L178,$Y$3:$Y$39,0)),(INDEX(Factor,K178+10)-INDEX(Factor,K178))/(INDEX(Degrees,K178+10)-INDEX(Degrees,K178))*(L178-INDEX(Degrees,K178))+INDEX(Factor,K178)) -> 0.74
K179: 171 | L179: 126 | M179: =IFERROR(INDEX($Z$3:$Z$39,MATCH(L179,$Y$3:$Y$39,0)),(INDEX(Factor,K179+10)-INDEX(Factor,K179))/(INDEX(Degrees,K179+10)-INDEX(Degrees,K179))*(L179-INDEX(Degrees,K179))+INDEX(Factor,K179)) -> 0.742
K180: 171 | L180: 127 | M180: =IFERROR(INDEX($Z$3:$Z$39,MATCH(L180,$Y$3:$Y$39,0)),(INDEX(Factor,K180+10)-INDEX(Factor,K180))/(INDEX(Degrees,K180+10)-INDEX(Degrees,K180))*(L180-INDEX(Degrees,K180))+INDEX(Factor,K180)) -> 0.744
K181: 171 | L181: 128 | M181: =IFERROR(INDEX($Z$3:$Z$39,MATCH(L181,$Y$3:$Y$39,0)),(INDEX(Factor,K181+10)-INDEX(Factor,K181))/(INDEX(Degrees,K181+10)-INDEX(Degrees,K181))*(L181-INDEX(Degrees,K181))+INDEX(Factor,K181)) -> 0.746
K182: 171 | L182: 129 | M182: =IFERROR(INDEX($Z$3:$Z$39,MATCH(L182,$Y$3:$Y$39,0)),(INDEX(Factor,K182+10)-INDEX(Factor,K182))/(INDEX(Degrees,K182+10)-INDEX(Degrees,K182))*(L182-INDEX(Degrees,K182))+INDEX(Factor,K182)) -> 0.748
K183: 181 | L183: 130 | M183: =IFERROR(INDEX($Z$3:$Z$39,MATCH(L183,$Y$3:$Y$39,0)),(INDEX(Factor,K183+10)-INDEX(Factor,K183))/(INDEX(Degrees,K183+10)-INDEX(Degrees,K183))*(L183-INDEX(Degrees,K183))+INDEX(Factor,K183)) -> 0.75
K184: 181 | L184: 131 | M184: =IFERROR(INDEX($Z$3:$Z$39,MATCH(L184,$Y$3:$Y$39,0)),(INDEX(Factor,K184+10)-INDEX(Factor,K184))/(INDEX(Degrees,K184+10)-INDEX(Degrees,K184))*(L184-INDEX(Degrees,K184))+INDEX(Factor,K184)) -> 0.753
K185: 181 | L185: 132 | M185: =IFERROR(INDEX($Z$3:$Z$39,MATCH(L185,$Y$3:$Y$39,0)),(INDEX(Factor,K185+10)-INDEX(Factor,K185))/(INDEX(Degrees,K185+10)-INDEX(Degrees,K185))*(L185-INDEX(Degrees,K185))+INDEX(Factor,K185)) -> 0.756
K186: 181 | L186: 133 | M186: =IFERROR(INDEX($Z$3:$Z$39,MATCH(L186,$Y$3:$Y$39,0)),(INDEX(Factor,K186+10)-INDEX(Factor,K186))/(INDEX(Degrees,K186+10)-INDEX(Degrees,K186))*(L186-INDEX(Degrees,K186))+INDEX(Factor,K186)) -> 0.759
K187: 181 | L187: 134 | M187: =IFERROR(INDEX($Z$3:$Z$39,MATCH(L187,$Y$3:$Y$39,0)),(INDEX(Factor,K187+10)-INDEX(Factor,K187))/(INDEX(Degrees,K187+10)-INDEX(Degrees,K187))*(L187-INDEX(Degrees,K187))+INDEX(Factor,K187)) -> 0.762
K188: 181 | L188: 135 | M188: =IFERROR(INDEX($Z$3:$Z$39,MATCH(L188,$Y$3:$Y$39,0)),(INDEX(Factor,K188+10)-INDEX(Factor,K188))/(INDEX(Degrees,K188+10)-INDEX(Degrees,K188))*(L188-INDEX(Degrees,K188))+INDEX(Factor,K188)) -> 0.765
K189: 181 | L189: 136 | M189: =IFERROR(INDEX($Z$3:$Z$39,MATCH(L189,$Y$3:$Y$39,0)),(INDEX(Factor,K189+10)-INDEX(Factor,K189))/(INDEX(Degrees,K189+10)-INDEX(Degrees,K189))*(L189-INDEX(Degrees,K189))+INDEX(Factor,K189)) -> 0.768
K190: 181 | L190: 137 | M190: =IFERROR(INDEX($Z$3:$Z$39,MATCH(L190,$Y$3:$Y$39,0)),(INDEX(Factor,K190+10)-INDEX(Factor,K190))/(INDEX(Degrees,K190+10)-INDEX(Degrees,K190))*(L190-INDEX(Degrees,K190))+INDEX(Factor,K190)) -> 0.771
K191: 181 | L191: 138 | M191: =IFERROR(INDEX($Z$3:$Z$39,MATCH(L191,$Y$3:$Y$39,0)),(INDEX(Factor,K191+10)-INDEX(Factor,K191))/(INDEX(Degrees,K191+10)-INDEX(Degrees,K191))*(L191-INDEX(Degrees,K191))+INDEX(Factor,K191)) -> 0.774
K192: 181 | L192: 139 | M192: =IFERROR(INDEX($Z$3:$Z$39,MATCH(L192,$Y$3:$Y$39,0)),(INDEX(Factor,K192+10)-INDEX(Factor,K192))/(INDEX(Degrees,K192+10)-INDEX(Degrees,K192))*(L192-INDEX(Degrees,K192))+INDEX(Factor,K192)) -> 0.777
K193: 191 | L193: 140 | M193: =IFERROR(INDEX($Z$3:$Z$39,MATCH(L193,$Y$3:$Y$39,0)),(INDEX(Factor,K193+10)-INDEX(Factor,K193))/(INDEX(Degrees,K193+10)-INDEX(Degrees,K193))*(L193-INDEX(Degrees,K193))+INDEX(Factor,K193)) -> 0.78
K194: 191 | L194: 141 | M194: =IFERROR(INDEX($Z$3:$Z$39,MATCH(L194,$Y$3:$Y$39,0)),(INDEX(Factor,K194+10)-INDEX(Factor,K194))/(INDEX(Degrees,K194+10)-INDEX(Degrees,K194))*(L194-INDEX(Degrees,K194))+INDEX(Factor,K194)) -> 0.782
K195: =ROUNDDOWN(ROW()-3,-1)+1 -> 191 | L195: 142 | M195: =IFERROR(INDEX($Z$3:$Z$39,MATCH(L195,$Y$3:$Y$39,0)),(INDEX(Factor,K195+10)-INDEX(Factor,K195))/(INDEX(Degrees,K195+10)-INDEX(Degrees,K195))*(L195-INDEX(Degrees,K195))+INDEX(Factor,K195)) -> 0.784
K196: 191 | L196: 143 | M196: =IFERROR(INDEX($Z$3:$Z$39,MATCH(L196,$Y$3:$Y$39,0)),(INDEX(Factor,K196+10)-INDEX(Factor,K196))/(INDEX(Degrees,K196+10)-INDEX(Degrees,K196))*(L196-INDEX(Degrees,K196))+INDEX(Factor,K196)) -> 0.786
K197: 191 | L197: 144 | M197: =IFERROR(INDEX($Z$3:$Z$39,MATCH(L197,$Y$3:$Y$39,0)),(INDEX(Factor,K197+10)-INDEX(Factor,K197))/(INDEX(Degrees,K197+10)-INDEX(Degrees,K197))*(L197-INDEX(Degrees,K197))+INDEX(Factor,K197)) -> 0.788
K198: 191 | L198: 145 | M198: =IFERROR(INDEX($Z$3:$Z$39,MATCH(L198,$Y$3:$Y$39,0)),(INDEX(Factor,K198+10)-INDEX(Factor,K198))/(INDEX(Degrees,K198+10)-INDEX(Degrees,K198))*(L198-INDEX(Degrees,K198))+INDEX(Factor,K198)) -> 0.79
K199: 191 | L199: 146 | M199: =IFERROR(INDEX($Z$3:$Z$39,MATCH(L199,$Y$3:$Y$39,0)),(INDEX(Factor,K199+10)-INDEX(Factor,K199))/(INDEX(Degrees,K199+10)-INDEX(Degrees,K199))*(L199-INDEX(Degrees,K199))+INDEX(Factor,K199)) -> 0.792
K200: 191 | L200: 147 | M200: =IFERROR(INDEX($Z$3:$Z$39,MATCH(L200,$Y$3:$Y$39,0)),(INDEX(Factor,K200+10)-INDEX(Factor,K200))/(INDEX(Degrees,K200+10)-INDEX(Degrees,K200))*(L200-INDEX(Degrees,K200))+INDEX(Factor,K200)) -> 0.794
... 263 more rows

Sheet wind pressure
B1: version: 1.0. | S1: © 2014 Damian Janicki | AW1: NA3 | AX1: Cr(z) | FD1: column ref: | FE1: 113 | FF1: 114 | FG1: 115 | FH1: 116 | FK1: 119
E2: YourSpreadsheets™ 2nd Floor, 52 Marcus Hill, London www.YourSpreadsheets.co.uk Tel: 020 7542 8734 | Q2: TEST PROJECT | AX2: 2.000 | AY2: 2.094 | AZ2: 2.193 | BA2: 2.296 | BB2: 2.405 | BC2: 2.518 | BD2: 2.637 | BE2: 2.761 | BF2: 2.891 | BG2: 3.027 | BH2: 3.170 | BI2: 3.319 | BJ2: 3.476 | BK2: 3.639 | BL2: 3.811 | BM2: 3.991 | BN2: 4.179 | BO2: 4.376 | BP2: 4.582 | BQ2: 4.798 | BR2: 5.024 | BS2: 5.261 | BT2: 5.508 | BU2: 5.768 | BV2: 6.040 | BW2: 6.325 | BX2: 6.623 | BY2: 6.935 | BZ2: 7.262 | CA2: 7.604 | CB2: 7.962 | CC2: 8.337 | CD2: 8.730 | CE2: 9.142 | CF2: 9.573 | CG2: 10.024 | CH2: 10.496 | CI2: 10.991 | CJ2: 11.509 | CK2: 12.051 | CL2: 12.619 | CM2: 13.214 | CN2: 13.837 | CO2: 14.489 | CP2: 15.172 | CQ2: 15.887 | CR2: 16.635 | CS2: 17.419 | CT2: 18.240 | CU2: 19.100 | CV2: 20.000 | CW2: 20.943 | CX2: 21.930 | CY2: 22.963 | CZ2: 24.045 | DA2: 25.179 | DB2: 26.365 | DC2: 27.608 | DD2: 28.909 | DE2: 30.271 | DF2: 31.698 | DG2: 33.192 | DH2: 34.756 | DI2: 36.394 | DJ2: 38.109 | DK2: 39.905 | DL2: 41.786 | DM2: 43.755 | DN2: 45.817 | DO2: 47.977 | DP2: 50.238 | DQ2: 52.605 | DR2: 55.085 | DS2: 57.681 | DT2: 60.399 | DU2: 63.246 | DV2: 66.226 | DW2: 69.347 | DX2: 72.616 | DY2: 76.038 | DZ2: 79.621 | EA2: 83.374 | EB2: 87.303 | EC2: 91.418 | ED2: 95.726 | EE2: 100.237 | EF2: 104.961 | EG2: 109.908 | EH2: 115.088 | EI2: 120.512 | EJ2: 126.191 | EK2: 132.139 | EL2: 138.366 | EM2: 144.887 | EN2: 151.716 | EO2: 158.866 | EP2: 166.353 | EQ2: 174.193 | ER2: 182.402 | ES2: 190.999 | ET2: 200.000 | EU2: 209.426 | EV2: 219.296 | EW2: 229.631 | EX2: 240.453 | EY2: 251.785 | EZ2: 263.651 | FA2: 276.077 | FB2: 289.088 | FC2: 302.712
W3: Revision | AK3: Terrain | AM3: cr,T | AN3: 1 | AO3: 1 | AP3: 1 | AQ3: 1 | AR3: 1 | AW3: 0.100 | AX3: 0.844 | AY3: 0.853 | AZ3: 0.862 | BA3: 0.872 | BB3: 0.881 | BC3: 0.890 | BD3: 0.900 | BE3: 0.909 | BF3: 0.918 | BG3: 0.928 | BH3: 0.937 | BI3: 0.946 | BJ3: 0.955 | BK3: 0.965 | BL3: 0.974 | BM3: 0.983 | BN3: 0.993 | BO3: 1.002 | BP3: 1.011 | BQ3: 1.021 | BR3: 1.030 | BS3: 1.039 | BT3: 1.049 | BU3: 1.058 | BV3: 1.068 | BW3: 1.077 | BX3: 1.086 | BY3: 1.096 | BZ3: 1.105 | CA3: 1.114 | CB3: 1.124 | CC3: 1.133 | CD3: 1.143 | CE3: 1.152 | CF3: 1.162 | CG3: 1.171 | CH3: 1.180 | CI3: 1.190 | CJ3: 1.199 | CK3: 1.209 | CL3: 1.218 | CM3: 1.228 | CN3: 1.237 | CO3: 1.247 | CP3: 1.257 | CQ3: 1.266 | CR3: 1.276 | CS3: 1.285 | CT3: 1.295 | CU3: 1.304 | CV3: 1.314 | CW3: 1.324 | CX3: 1.333 | CY3: 1.343 | CZ3: 1.351 | DA3: 1.359 | DB3: 1.366 | DC3: 1.373 | DD3: 1.381 | DE3: 1.388 | DF3: 1.396 | DG3: 1.403 | DH3: 1.410 | DI3: 1.418 | DJ3: 1.425 | DK3: 1.433 | DL3: 1.441 | DM3: 1.448 | DN3: 1.456 | DO3: 1.464 | DP3: 1.471 | DQ3: 1.479 | DR3: 1.487 | DS3: 1.495 | DT3: 1.503 | DU3: 1.511 | DV3: 1.519 | DW3: 1.527 | DX3: 1.535 | DY3: 1.543 | DZ3: 1.551 | EA3: 1.560 | EB3: 1.568 | EC3: 1.576 | ED3: 1.585 | EE3: 1.593 | EF3: 1.602 | EG3: 1.611 | EH3: 1.620 | EI3: 1.629 | EJ3: 1.638 | EK3: 1.647 | EL3: 1.656 | EM3: 1.665 | EN3: 1.675 | EO3: 1.684 | EP3: 1.694 | EQ3: 1.703 | ER3: 1.713 | ES3: 1.723 | ET3: 1.734 | EU3: 1.744 | EV3: 1.754 | EW3: 1.765 | EX3: 1.776 | EY3: 1.787 | EZ3: 1.798 | FA3: 1.809 | FB3: 1.820 | FC3: 1.832 | FE3: =FORECAST(J$39,OFFSET($AX3,0,MATCH(J$39,$AX$2:$FC$2,1)-1,1,2),OFFSET($AX$2,0,MATCH(J$39,$AX$2:$FC$2,1)-1,1,2)) -> 1.5284 | FF3: =FORECAST(L$39,OFFSET($AX3,0,MATCH(L$39,$AX$2:$FC$2,1)-1,1,2),OFFSET($AX$2,0,MATCH(L$39,$AX$2:$FC$2,1)-1,1,2)) -> 1.5233 | FG3: =FORECAST(N$39,OFFSET($AX3,0,MATCH(N$39,$AX$2:$FC$2,1)-1,1,2),OFFSET($AX$2,0,MATCH(N$39,$AX$2:$FC$2,1)-1,1,2)) -> 1.5181 | FH3: =FORECAST(P$39,OFFSET($AX3,0,MATCH(P$39,$AX$2:$FC$2,1)-1,1,2),OFFSET($AX$2,0,MATCH(P$39,$AX$2:$FC$2,1)-1,1,2)) -> 1.5127 | FK3: =FORECAST(AN$22,OFFSET($AX3,0,MATCH(AN$22,$AX$2:$FC$2,1)-1,1,2),OFFSET($AX$2,0,MATCH(AN$22,$AX$2:$FC$2,1)-1,1,2)) -> 1.5233
Q4: Job No: | T4: 22668 | W4: Page: | Y4: C/01 | AJ4: 1 | AK4: =AD19 -> country | AN4: 2 | AO4: =FORECAST(AD$39,OFFSET(FE$317,MATCH(AD$39,$AW$317:$AW$417,1)-1,0,2),OFFSET($AW$317,MATCH(AD$39,$AW$317:$AW$417,1)-1,0,2)) -> 0.88 | AP4: =FORECAST(AE$39,OFFSET(FF$317,MATCH(AE$39,$AW$317:$AW$417,1)-1,0,2),OFFSET($AW$317,MATCH(AE$39,$AW$317:$AW$417,1)-1,0,2)) -> 0.88 | AQ4: =FORECAST(AF$39,OFFSET(FG$317,MATCH(AF$39,$AW$317:$AW$417,1)-1,0,2),OFFSET($AW$317,MATCH(AF$39,$AW$317:$AW$417,1)-1,0,2)) -> 0.88 | AR4: =FORECAST(AG$39,OFFSET(FH$317,MATCH(AG$39,$AW$317:$AW$417,1)-1,0,2),OFFSET($AW$317,MATCH(AG$39,$AW$317:$AW$417,1)-1,0,2)) -> 0.88 | AW4: 0.107 | AX4: 0.842 | AY4: 0.851 | AZ4: 0.860 | BA4: 0.869 | BB4: 0.879 | BC4: 0.888 | BD4: 0.897 | BE4: 0.906 | BF4: 0.916 | BG4: 0.925 | BH4: 0.934 | BI4: 0.944 | BJ4: 0.953 | BK4: 0.962 | BL4: 0.971 | BM4: 0.981 | BN4: 0.990 | BO4: 0.999 | BP4: 1.009 | BQ4: 1.018 | BR4: 1.027 | BS4: 1.037 | BT4: 1.046 | BU4: 1.055 | BV4: 1.065 | BW4: 1.074 | BX4: 1.083 | BY4: 1.093 | BZ4: 1.102 | CA4: 1.111 | CB4: 1.121 | CC4: 1.130 | CD4: 1.140 | CE4: 1.149 | CF4: 1.158 | CG4: 1.168 | CH4: 1.177 | CI4: 1.187 | CJ4: 1.196 | CK4: 1.206 | CL4: 1.215 | CM4: 1.225 | CN4: 1.234 | CO4: 1.244 | CP4: 1.253 | CQ4: 1.263 | CR4: 1.272 | CS4: 1.282 | CT4: 1.291 | CU4: 1.301 | CV4: 1.311 | CW4: 1.320 | CX4: 1.330 | CY4: 1.340 | CZ4: 1.349 | DA4: 1.359 | DB4: 1.366 | DC4: 1.373 | DD4: 1.381 | DE4: 1.388 | DF4: 1.396 | DG4: 1.403 | DH4: 1.410 | DI4: 1.418 | DJ4: 1.425 | DK4: 1.433 | DL4: 1.441 | DM4: 1.448 | DN4: 1.456 | DO4: 1.464 | DP4: 1.471 | DQ4: 1.479 | DR4: 1.487 | DS4: 1.495 | DT4: 1.503 | DU4: 1.511 | DV4: 1.519 | DW4: 1.527 | DX4: 1.535 | DY4: 1.543 | DZ4: 1.551 | EA4: 1.560 | EB4: 1.568 | EC4: 1.576 | ED4: 1.585 | EE4: 1.593 | EF4: 1.602 | EG4: 1.611 | EH4: 1.620 | EI4: 1.629 | EJ4: 1.638 | EK4: 1.647 | EL4: 1.656 | EM4: 1.665 | EN4: 1.675 | EO4: 1.684 | EP4: 1.694 | EQ4: 1.703 | ER4: 1.713 | ES4: 1.723 | ET4: 1.734 | EU4: 1.744 | EV4: 1.754 | EW4: 1.765 | EX4: 1.776 | EY4: 1.787 | EZ4: 1.798 | FA4: 1.809 | FB4: 1.820 | FC4: 1.832 | FE4: =FORECAST(J$39,OFFSET($AX4,0,MATCH(J$39,$AX$2:$FC$2,1)-1,1,2),OFFSET($AX$2,0,MATCH(J$39,$AX$2:$FC$2,1)-1,1,2)) -> 1.5284 | FF4: 1.5233 | FG4: 1.5181 | FH4: 1.5127 | FK4: 1.5233
C5: Section: | E5: WIND ANALYSIS | Q5: Prepared By: | T5: DJ | W5: Date: | Y5: =TODAY() -> 2019-08-09 | AJ5: 2 | AK5: =AD20 -> town | AM5: kI,T | AN5: 1 | AO5: 1 | AP5: 1 | AQ5: 1 | AR5: 1 | AW5: 0.115 | AX5: 0.839 | AY5: 0.849 | AZ5: 0.858 | BA5: 0.867 | BB5: 0.876 | BC5: 0.886 | BD5: 0.895 | BE5: 0.904 | BF5: 0.913 | BG5: 0.923 | BH5: 0.932 | BI5: 0.941 | BJ5: 0.950 | BK5: 0.960 | BL5: 0.969 | BM5: 0.978 | BN5: 0.987 | BO5: 0.997 | BP5: 1.006 | BQ5: 1.015 | BR5: 1.025 | BS5: 1.034 | BT5: 1.043 | BU5: 1.053 | BV5: 1.062 | BW5: 1.071 | BX5: 1.081 | BY5: 1.090 | BZ5: 1.099 | CA5: 1.109 | CB5: 1.118 | CC5: 1.127 | CD5: 1.137 | CE5: 1.146 | CF5: 1.155 | CG5: 1.165 | CH5: 1.174 | CI5: 1.184 | CJ5: 1.193 | CK5: 1.202 | CL5: 1.212 | CM5: 1.221 | CN5: 1.231 | CO5: 1.240 | CP5: 1.250 | CQ5: 1.259 | CR5: 1.269 | CS5: 1.278 | CT5: 1.288 | CU5: 1.298 | CV5: 1.307 | CW5: 1.317 | CX5: 1.326 | CY5: 1.336 | CZ5: 1.346 | DA5: 1.355 | DB5: 1.365 | DC5: 1.373 | DD5: 1.381 | DE5: 1.388 | DF5: 1.396 | DG5: 1.403 | DH5: 1.410 | DI5: 1.418 | DJ5: 1.425 | DK5: 1.433 | DL5: 1.441 | DM5: 1.448 | DN5: 1.456 | DO5: 1.464 | DP5: 1.471 | DQ5: 1.479 | DR5: 1.487 | DS5: 1.495 | DT5: 1.503 | DU5: 1.511 | DV5: 1.519 | DW5: 1.527 | DX5: 1.535 | DY5: 1.543 | DZ5: 1.551 | EA5: 1.560 | EB5: 1.568 | EC5: 1.576 | ED5: 1.585 | EE5: 1.593 | EF5: 1.602 | EG5: 1.611 | EH5: 1.620 | EI5: 1.629 | EJ5: 1.638 | EK5: 1.647 | EL5: 1.656 | EM5: 1.665 | EN5: 1.675 | EO5: 1.684 | EP5: 1.694 | EQ5: 1.703 | ER5: 1.713 | ES5: 1.723 | ET5: 1.734 | EU5: 1.744 | EV5: 1.754 | EW5: 1.765 | EX5: 1.776 | EY5: 1.787 | EZ5: 1.798 | FA5: 1.809 | FB5: 1.820 | FC5: 1.832 | FE5: 1.5284 | FF5: 1.5233 | FG5: 1.5181 | FH5: 1.5127 | FK5: 1.5233
AD6: topography: | AN6: 2 | AO6: =FORECAST(AD$39,OFFSET(FE$422,MATCH(AD$39,$AW$422:$AW$522,1)-1,0,2),OFFSET($AW$422,MATCH(AD$39,$AW$422:$AW$522,1)-1,0,2)) -> 1.46 | AP6: =FORECAST(AE$39,OFFSET(FF$422,MATCH(AE$39,$AW$422:$AW$522,1)-1,0,2),OFFSET($AW$422,MATCH(AE$39,$AW$422:$AW$522,1)-1,0,2)) -> 1.47 | AQ6: =FORECAST(AF$39,OFFSET(FG$422,MATCH(AF$39,$AW$422:$AW$522,1)-1,0,2),OFFSET($AW$422,MATCH(AF$39,$AW$422:$AW$522,1)-1,0,2)) -> 1.47 | AR6: =FORECAST(AG$39,OFFSET(FH$422,MATCH(AG$39,$AW$422:$AW$522,1)-1,0,2),OFFSET($AW$422,MATCH(AG$39,$AW$422:$AW$522,1)-1,0,2)) -> 1.48 | AW6: 0.123 | AX6: 0.837 | AY6: 0.846 | AZ6: 0.856 | BA6: 0.865 | BB6: 0.874 | BC6: 0.883 | BD6: 0.893 | BE6: 0.902 | BF6: 0.911 | BG6: 0.920 | BH6: 0.929 | BI6: 0.939 | BJ6: 0.948 | BK6: 0.957 | BL6: 0.966 | BM6: 0.976 | BN6: 0.985 | BO6: 0.994 | BP6: 1.003 | BQ6: 1.013 | BR6: 1.022 | BS6: 1.031 | BT6: 1.041 | BU6: 1.050 | BV6: 1.059 | BW6: 1.068 | BX6: 1.078 | BY6: 1.087 | BZ6: 1.096 | CA6: 1.106 | CB6: 1.115 | CC6: 1.124 | CD6: 1.134 | CE6: 1.143 | CF6: 1.152 | CG6: 1.162 | CH6: 1.171 | CI6: 1.181 | CJ6: 1.190 | CK6: 1.199 | CL6: 1.209 | CM6: 1.218 | CN6: 1.228 | CO6: 1.237 | CP6: 1.247 | CQ6: 1.256 | CR6: 1.266 | CS6: 1.275 | CT6: 1.285 | CU6: 1.294 | CV6: 1.304 | CW6: 1.313 | CX6: 1.323 | CY6: 1.333 | CZ6: 1.342 | DA6: 1.352 | DB6: 1.362 | DC6: 1.371 | DD6: 1.381 | DE6: 1.388 | DF6: 1.396 | DG6: 1.403 | DH6: 1.410 | DI6: 1.418 | DJ6: 1.425 | DK6: 1.433 | DL6: 1.441 | DM6: 1.448 | DN6: 1.456 | DO6: 1.464 | DP6: 1.471 | DQ6: 1.479 | DR6: 1.487 | DS6: 1.495 | DT6: 1.503 | DU6: 1.511 | DV6: 1.519 | DW6: 1.527 | DX6: 1.535 | DY6: 1.543 | DZ6: 1.551 | EA6: 1.560 | EB6: 1.568 | EC6: 1.576 | ED6: 1.585 | EE6: 1.593 | EF6: 1.602 | EG6: 1.611 | EH6: 1.620 | EI6: 1.629 | EJ6: 1.638 | EK6: 1.647 | EL6: 1.656 | EM6: 1.665 | EN6: 1.675 | EO6: 1.684 | EP6: 1.694 | EQ6: 1.703 | ER6: 1.713 | ES6: 1.723 | ET6: 1.734 | EU6: 1.744 | EV6: 1.754 | EW6: 1.765 | EX6: 1.776 | EY6: 1.787 | EZ6: 1.798 | FA6: 1.809 | FB6: 1.820 | FC6: 1.832 | FE6: 1.5284 | FF6: 1.5233 | FG6: 1.5181 | FH6: 1.5127 | FK6: 1.5233
AD7: significant | AM7: ce,T | AN7: 1 | AO7: 1 | AP7: 1 | AQ7: 1 | AR7: 1 | AW7: 0.132 | AX7: 0.835 | AY7: 0.844 | AZ7: 0.853 | BA7: 0.863 | BB7: 0.872 | BC7: 0.881 | BD7: 0.890 | BE7: 0.899 | BF7: 0.909 | BG7: 0.918 | BH7: 0.927 | BI7: 0.936 | BJ7: 0.946 | BK7: 0.955 | BL7: 0.964 | BM7: 0.973 | BN7: 0.982 | BO7: 0.992 | BP7: 1.001 | BQ7: 1.010 | BR7: 1.019 | BS7: 1.029 | BT7: 1.038 | BU7: 1.047 | BV7: 1.056 | BW7: 1.066 | BX7: 1.075 | BY7: 1.084 | BZ7: 1.094 | CA7: 1.103 | CB7: 1.112 | CC7: 1.121 | CD7: 1.131 | CE7: 1.140 | CF7: 1.149 | CG7: 1.159 | CH7: 1.168 | CI7: 1.178 | CJ7: 1.187 | CK7: 1.196 | CL7: 1.206 | CM7: 1.215 | CN7: 1.225 | CO7: 1.234 | CP7: 1.243 | CQ7: 1.253 | CR7: 1.262 | CS7: 1.272 | CT7: 1.281 | CU7: 1.291 | CV7: 1.300 | CW7: 1.310 | CX7: 1.320 | CY7: 1.329 | CZ7: 1.339 | DA7: 1.348 | DB7: 1.358 | DC7: 1.368 | DD7: 1.378 | DE7: 1.387 | DF7: 1.396 | DG7: 1.403 | DH7: 1.410 | DI7: 1.418 | DJ7: 1.425 | DK7: 1.433 | DL7: 1.441 | DM7: 1.448 | DN7: 1.456 | DO7: 1.464 | DP7: 1.471 | DQ7: 1.479 | DR7: 1.487 | DS7: 1.495 | DT7: 1.503 | DU7: 1.511 | DV7: 1.519 | DW7: 1.527 | DX7: 1.535 | DY7: 1.543 | DZ7: 1.551 | EA7: 1.560 | EB7: 1.568 | EC7: 1.576 | ED7: 1.585 | EE7: 1.593 | EF7: 1.602 | EG7: 1.611 | EH7: 1.620 | EI7: 1.629 | EJ7: 1.638 | EK7: 1.647 | EL7: 1.656 | EM7: 1.665 | EN7: 1.675 | EO7: 1.684 | EP7: 1.694 | EQ7: 1.703 | ER7: 1.713 | ES7: 1.723 | ET7: 1.734 | EU7: 1.744 | EV7: 1.754 | EW7: 1.765 | EX7: 1.776 | EY7: 1.787 | EZ7: 1.798 | FA7: 1.809 | FB7: 1.820 | FC7: 1.832 | FE7: 1.5284 | FF7: 1.5233 | FG7: 1.5181 | FH7: 1.5127 | FK7: 1.5233
C8: SITE AND BUILDING (STRUCTURE) DATA | Q8: SITE TOPOGRAPHY DATA | AA8: (?) | AD8: non significant | AG8: Building orientation unknown | AK8: =IF(L11=AD10,0,1) -> 0 | AN8: 2 | AO8: =FORECAST(AD$39,OFFSET(FE$528,MATCH(AD$39,$AW$528:$AW$628,1)-1,0,2),OFFSET($AW$528,MATCH(AD$39,$AW$528:$AW$628,1)-1,0,2)) -> 1.00 | AP8: =FORECAST(AE$39,OFFSET(FF$528,MATCH(AE$39,$AW$528:$AW$628,1)-1,0,2),OFFSET($AW$528,MATCH(AE$39,$AW$528:$AW$628,1)-1,0,2)) -> 1.00 | AQ8: =FORECAST(AF$39,OFFSET(FG$528,MATCH(AF$39,$AW$528:$AW$628,1)-1,0,2),OFFSET($AW$528,MATCH(AF$39,$AW$528:$AW$628,1)-1,0,2)) -> 1.00 | AR8: =FORECAST(AG$39,OFFSET(FH$528,MATCH(AG$39,$AW$528:$AW$628,1)-1,0,2),OFFSET($AW$528,MATCH(AG$39,$AW$528:$AW$628,1)-1,0,2)) -> 1.00 | AW8: 0.141 | AX8: 0.833 | AY8: 0.842 | AZ8: 0.851 | BA8: 0.860 | BB8: 0.870 | BC8: 0.879 | BD8: 0.888 | BE8: 0.897 | BF8: 0.906 | BG8: 0.916 | BH8: 0.925 | BI8: 0.934 | BJ8: 0.943 | BK8: 0.952 | BL8: 0.962 | BM8: 0.971 | BN8: 0.980 | BO8: 0.989 | BP8: 0.998 | BQ8: 1.008 | BR8: 1.017 | BS8: 1.026 | BT8: 1.035 | BU8: 1.044 | BV8: 1.054 | BW8: 1.063 | BX8: 1.072 | BY8: 1.082 | BZ8: 1.091 | CA8: 1.100 | CB8: 1.109 | CC8: 1.119 | CD8: 1.128 | CE8: 1.137 | CF8: 1.147 | CG8: 1.156 | CH8: 1.165 | CI8: 1.175 | CJ8: 1.184 | CK8: 1.193 | CL8: 1.203 | CM8: 1.212 | CN8: 1.221 | CO8: 1.231 | CP8: 1.240 | CQ8: 1.250 | CR8: 1.259 | CS8: 1.269 | CT8: 1.278 | CU8: 1.288 | CV8: 1.297 | CW8: 1.307 | CX8: 1.316 | CY8: 1.326 | CZ8: 1.335 | DA8: 1.345 | DB8: 1.355 | DC8: 1.364 | DD8: 1.374 | DE8: 1.384 | DF8: 1.394 | DG8: 1.403 | DH8: 1.410 | DI8: 1.418 | DJ8: 1.425 | DK8: 1.433 | DL8: 1.441 | DM8: 1.448 | DN8: 1.456 | DO8: 1.464 | DP8: 1.471 | DQ8: 1.479 | DR8: 1.487 | DS8: 1.495 | DT8: 1.503 | DU8: 1.511 | DV8: 1.519 | DW8: 1.527 | DX8: 1.535 | DY8: 1.543 | DZ8: 1.551 | EA8: 1.560 | EB8: 1.568 | EC8: 1.576 | ED8: 1.585 | EE8: 1.593 | EF8: 1.602 | EG8: 1.611 | EH8: 1.620 | EI8: 1.629 | EJ8: 1.638 | EK8: 1.647 | EL8: 1.656 | EM8: 1.665 | EN8: 1.675 | EO8: 1.684 | EP8: 1.694 | EQ8: 1.703 | ER8: 1.713 | ES8: 1.723 | ET8: 1.734 | EU8: 1.744 | EV8: 1.754 | EW8: 1.765 | EX8: 1.776 | EY8: 1.787 | EZ8: 1.798 | FA8: 1.809 | FB8: 1.820 | FC8: 1.832 | FE8: 1.5284 | FF8: 1.5233 | FG8: 1.5181 | FH8: 1.5127 | FK8: 1.5233 | FQ8: SUMMARY
C9: Site location or nearest city: | L9: Brighton | Q9: Orography (feature) type: | X9: Hills/ridges | AD9: building orientation: | AG9: =MAX(OFFSET(Database!$M$3,MATCH(J25,Database!$L$53:$L$413,0)+4,0,91)) -> 0.84 | AH9: =MAX(OFFSET(Database!$M$3,MATCH(L25,Database!$L$53:$L$413,0)+4,0,91)) -> 0.79 | AI9: =MAX(OFFSET(Database!$M$3,MATCH(N25,Database!$L$53:$L$413,0)+4,0,91)) -> 0.99 | AJ9: =MAX(OFFSET(Database!$M$3,MATCH(P25,Database!$L$53:$L$413,0)+4,0,91)) -> 1.00 | AK9: FALSE | AW9: 0.151 | AX9: 0.831 | AY9: 0.840 | AZ9: 0.849 | BA9: 0.858 | BB9: 0.867 | BC9: 0.877 | BD9: 0.886 | BE9: 0.895 | BF9: 0.904 | BG9: 0.913 | BH9: 0.922 | BI9: 0.932 | BJ9: 0.941 | BK9: 0.950 | BL9: 0.959 | BM9: 0.968 | BN9: 0.977 | BO9: 0.987 | BP9: 0.996 | BQ9: 1.005 | BR9: 1.014 | BS9: 1.023 | BT9: 1.033 | BU9: 1.042 | BV9: 1.051 | BW9: 1.060 | BX9: 1.070 | BY9: 1.079 | BZ9: 1.088 | CA9: 1.097 | CB9: 1.107 | CC9: 1.116 | CD9: 1.125 | CE9: 1.134 | CF9: 1.144 | CG9: 1.153 | CH9: 1.162 | CI9: 1.172 | CJ9: 1.181 | CK9: 1.190 | CL9: 1.200 | CM9: 1.209 | CN9: 1.218 | CO9: 1.228 | CP9: 1.237 | CQ9: 1.247 | CR9: 1.256 | CS9: 1.265 | CT9: 1.275 | CU9: 1.284 | CV9: 1.294 | CW9: 1.303 | CX9: 1.313 | CY9: 1.323 | CZ9: 1.332 | DA9: 1.342 | DB9: 1.351 | DC9: 1.361 | DD9: 1.371 | DE9: 1.380 | DF9: 1.390 | DG9: 1.400 | DH9: 1.410 | DI9: 1.418 | DJ9: 1.425 | DK9: 1.433 | DL9: 1.441 | DM9: 1.448 | DN9: 1.456 | DO9: 1.464 | DP9: 1.471 | DQ9: 1.479 | DR9: 1.487 | DS9: 1.495 | DT9: 1.503 | DU9: 1.511 | DV9: 1.519 | DW9: 1.527 | DX9: 1.535 | DY9: 1.543 | DZ9: 1.551 | EA9: 1.560 | EB9: 1.568 | EC9: 1.576 | ED9: 1.585 | EE9: 1.593 | EF9: 1.602 | EG9: 1.611 | EH9: 1.620 | EI9: 1.629 | EJ9: 1.638 | EK9: 1.647 | EL9: 1.656 | EM9: 1.665 | EN9: 1.675 | EO9: 1.684 | EP9: 1.694 | EQ9: 1.703 | ER9: 1.713 | ES9: 1.723 | ET9: 1.734 | EU9: 1.744 | EV9: 1.754 | EW9: 1.765 | EX9: 1.776 | EY9: 1.787 | EZ9: 1.798 | FA9: 1.809 | FB9: 1.820 | FC9: 1.832 | FE9: 1.5284 | FF9: 1.5233 | FG9: 1.5181 | FH9: 1.5127 | FK9: 1.5233 | FQ9: =IF(L11=AD10,"I","ANY") -> I | FR9: II | FS9: III | FT9: IV | FU9: wind direction
C10: Site topography: | L10: significant | Q10: Effective height of feature 'H' [m] = | Z10: 15.0 | AD10: known | AG10: 1.00 | AH10: 1.00 | AI10: 1.00 | AJ10: 1.00 | AK10: TRUE | AW10: 0.162 | AX10: 0.829 | AY10: 0.838 | AZ10: 0.847 | BA10: 0.856 | BB10: 0.865 | BC10: 0.874 | BD10: 0.884 | BE10: 0.893 | BF10: 0.902 | BG10: 0.911 | BH10: 0.920 | BI10: 0.929 | BJ10: 0.938 | BK10: 0.948 | BL10: 0.957 | BM10: 0.966 | BN10: 0.975 | BO10: 0.984 | BP10: 0.993 | BQ10: 1.003 | BR10: 1.012 | BS10: 1.021 | BT10: 1.030 | BU10: 1.039 | BV10: 1.049 | BW10: 1.058 | BX10: 1.067 | BY10: 1.076 | BZ10: 1.085 | CA10: 1.095 | CB10: 1.104 | CC10: 1.113 | CD10: 1.122 | CE10: 1.132 | CF10: 1.141 | CG10: 1.150 | CH10: 1.159 | CI10: 1.169 | CJ10: 1.178 | CK10: 1.187 | CL10: 1.197 | CM10: 1.206 | CN10: 1.215 | CO10: 1.225 | CP10: 1.234 | CQ10: 1.244 | CR10: 1.253 | CS10: 1.262 | CT10: 1.272 | CU10: 1.281 | CV10: 1.291 | CW10: 1.300 | CX10: 1.310 | CY10: 1.319 | CZ10: 1.329 | DA10: 1.338 | DB10: 1.348 | DC10: 1.358 | DD10: 1.367 | DE10: 1.377 | DF10: 1.387 | DG10: 1.396 | DH10: 1.406 | DI10: 1.416 | DJ10: 1.425 | DK10: 1.433 | DL10: 1.441 | DM10: 1.448 | DN10: 1.456 | DO10: 1.464 | DP10: 1.471 | DQ10: 1.479 | DR10: 1.487 | DS10: 1.495 | DT10: 1.503 | DU10: 1.511 | DV10: 1.519 | DW10: 1.527 | DX10: 1.535 | DY10: 1.543 | DZ10: 1.551 | EA10: 1.560 | EB10: 1.568 | EC10: 1.576 | ED10: 1.585 | EE10: 1.593 | EF10: 1.602 | EG10: 1.611 | EH10: 1.620 | EI10: 1.629 | EJ10: 1.638 | EK10: 1.647 | EL10: 1.656 | EM10: 1.665 | EN10: 1.675 | EO10: 1.684 | EP10: 1.694 | EQ10: 1.703 | ER10: 1.713 | ES10: 1.723 | ET10: 1.734 | EU10: 1.744 | EV10: 1.754 | EW10: 1.765 | EX10: 1.776 | EY10: 1.787 | EZ10: 1.798 | FA10: 1.809 | FB10: 1.820 | FC10: 1.832 | FE10: 1.5284 | FF10: 1.5233 | FG10: 1.5181 | FH10: 1.5127 | FK10: 1.5233 | FQ10: =J28 -> 0.230 | FR10: =L28 -> 0.206 | FS10: =N28 -> 0.320 | FT10: =P28 -> 0.330 | FU10: qb [kN/m2]
C11: Building (structure) orientation: | L11: known | Q11: Horizontal distance from top of crest 'X' [m] = | Z11: -5.0 | AD11: unknown | AW11: 0.174 | AX11: 0.827 | AY11: 0.836 | AZ11: 0.845 | BA11: 0.854 | BB11: 0.863 | BC11: 0.872 | BD11: 0.881 | BE11: 0.891 | BF11: 0.900 | BG11: 0.909 | BH11: 0.918 | BI11: 0.927 | BJ11: 0.936 | BK11: 0.945 | BL11: 0.954 | BM11: 0.964 | BN11: 0.973 | BO11: 0.982 | BP11: 0.991 | BQ11: 1.000 | BR11: 1.009 | BS11: 1.018 | BT11: 1.028 | BU11: 1.037 | BV11: 1.046 | BW11: 1.055 | BX11: 1.064 | BY11: 1.074 | BZ11: 1.083 | CA11: 1.092 | CB11: 1.101 | CC11: 1.110 | CD11: 1.120 | CE11: 1.129 | CF11: 1.138 | CG11: 1.147 | CH11: 1.157 | CI11: 1.166 | CJ11: 1.175 | CK11: 1.185 | CL11: 1.194 | CM11: 1.203 | CN11: 1.212 | CO11: 1.222 | CP11: 1.231 | CQ11: 1.241 | CR11: 1.250 | CS11: 1.259 | CT11: 1.269 | CU11: 1.278 | CV11: 1.288 | CW11: 1.297 | CX11: 1.307 | CY11: 1.316 | CZ11: 1.326 | DA11: 1.335 | DB11: 1.345 | DC11: 1.354 | DD11: 1.364 | DE11: 1.374 | DF11: 1.383 | DG11: 1.393 | DH11: 1.403 | DI11: 1.413 | DJ11: 1.422 | DK11: 1.432 | DL11: 1.441 | DM11: 1.448 | DN11: 1.456 | DO11: 1.464 | DP11: 1.471 | DQ11: 1.479 | DR11: 1.487 | DS11: 1.495 | DT11: 1.503 | DU11: 1.511 | DV11: 1.519 | DW11: 1.527 | DX11: 1.535 | DY11: 1.543 | DZ11: 1.551 | EA11: 1.560 | EB11: 1.568 | EC11: 1.576 | ED11: 1.585 | EE11: 1.593 | EF11: 1.602 | EG11: 1.611 | EH11: 1.620 | EI11: 1.629 | EJ11: 1.638 | EK11: 1.647 | EL11: 1.656 | EM11: 1.665 | EN11: 1.675 | EO11: 1.684 | EP11: 1.694 | EQ11: 1.703 | ER11: 1.713 | ES11: 1.723 | ET11: 1.734 | EU11: 1.744 | EV11: 1.754 | EW11: 1.765 | EX11: 1.776 | EY11: 1.787 | EZ11: 1.798 | FA11: 1.809 | FB11: 1.820 | FC11: 1.832 | FE11: 1.5284 | FF11: 1.5233 | FG11: 1.5181 | FH11: 1.5127 | FK11: 1.5233 | FQ11: =J39 -> 70.0 | FR11: =L39 -> 68.00 | FS11: =N39 -> 66.00 | FT11: =P39 -> 64.00 | FU11: hef [m]
C12: Nearby buildings/obstructions: | L12: consider | Q12: Length of upwind slope 'Lu' [m] = | Z12: 50.0 | AD12: nearby buildings: | AG12: Nearby buildings | AI12: =IF(L12=AD13,FALSE,TRUE) -> FALSE | AJ12: false = consider | AR12: calt (z<10) | AS12: calt (z>10) | AW12: 0.186 | AX12: 0.825 | AY12: 0.834 | AZ12: 0.843 | BA12: 0.852 | BB12: 0.861 | BC12: 0.870 | BD12: 0.879 | BE12: 0.888 | BF12: 0.898 | BG12: 0.907 | BH12: 0.916 | BI12: 0.925 | BJ12: 0.934 | BK12: 0.943 | BL12: 0.952 | BM12: 0.961 | BN12: 0.970 | BO12: 0.980 | BP12: 0.989 | BQ12: 0.998 | BR12: 1.007 | BS12: 1.016 | BT12: 1.025 | BU12: 1.034 | BV12: 1.044 | BW12: 1.053 | BX12: 1.062 | BY12: 1.071 | BZ12: 1.080 | CA12: 1.089 | CB12: 1.099 | CC12: 1.108 | CD12: 1.117 | CE12: 1.126 | CF12: 1.135 | CG12: 1.145 | CH12: 1.154 | CI12: 1.163 | CJ12: 1.172 | CK12: 1.182 | CL12: 1.191 | CM12: 1.200 | CN12: 1.210 | CO12: 1.219 | CP12: 1.228 | CQ12: 1.238 | CR12: 1.247 | CS12: 1.256 | CT12: 1.266 | CU12: 1.275 | CV12: 1.285 | CW12: 1.294 | CX12: 1.303 | CY12: 1.313 | CZ12: 1.322 | DA12: 1.332 | DB12: 1.342 | DC12: 1.351 | DD12: 1.361 | DE12: 1.370 | DF12: 1.380 | DG12: 1.390 | DH12: 1.399 | DI12: 1.409 | DJ12: 1.419 | DK12: 1.429 | DL12: 1.439 | DM12: 1.448 | DN12: 1.456 | DO12: 1.464 | DP12: 1.471 | DQ12: 1.479 | DR12: 1.487 | DS12: 1.495 | DT12: 1.503 | DU12: 1.511 | DV12: 1.519 | DW12: 1.527 | DX12: 1.535 | DY12: 1.543 | DZ12: 1.551 | EA12: 1.560 | EB12: 1.568 | EC12: 1.576 | ED12: 1.585 | EE12: 1.593 | EF12: 1.602 | EG12: 1.611 | EH12: 1.620 | EI12: 1.629 | EJ12: 1.638 | EK12: 1.647 | EL12: 1.656 | EM12: 1.665 | EN12: 1.675 | EO12: 1.684 | EP12: 1.694 | EQ12: 1.703 | ER12: 1.713 | ES12: 1.723 | ET12: 1.734 | EU12: 1.744 | EV12: 1.754 | EW12: 1.765 | EX12: 1.776 | EY12: 1.787 | EZ12: 1.798 | FA12: 1.809 | FB12: 1.820 | FC12: 1.832 | FE12: 1.5284 | FF12: 1.5233 | FG12: 1.5181 | FH12: 1.5127 | FK12: 1.5233 | FQ12: =J51 -> 0.877 | FR12: =L51 -> 0.794 | FS12: =N51 -> 1.309 | FT12: =P51 -> 1.248 | FU12: qp [kN/m2]
C13: Building (structure) height 'h' [m] = | N13: 81.8 | Q13: Length of downwind slope 'Ld' [m] = | Z13: 50.0 | AD13: consider | AL13: hef=h-hdis | AQ13: full height | AR13: =1+0.001*N14 -> 1.11 | AS13: =1+0.001*N14*(10/82)^0.2 -> 1.07 | AT13: =+IF(82<=10,AR13,AS13) -> 1.073528423 | AW13: 0.200 | AX13: 0.823 | AY13: 0.832 | AZ13: 0.841 | BA13: 0.850 | BB13: 0.859 | BC13: 0.868 | BD13: 0.877 | BE13: 0.886 | BF13: 0.895 | BG13: 0.905 | BH13: 0.914 | BI13: 0.923 | BJ13: 0.932 | BK13: 0.941 | BL13: 0.950 | BM13: 0.959 | BN13: 0.968 | BO13: 0.977 | BP13: 0.986 | BQ13: 0.995 | BR13: 1.005 | BS13: 1.014 | BT13: 1.023 | BU13: 1.032 | BV13: 1.041 | BW13: 1.050 | BX13: 1.059 | BY13: 1.068 | BZ13: 1.078 | CA13: 1.087 | CB13: 1.096 | CC13: 1.105 | CD13: 1.114 | CE13: 1.124 | CF13: 1.133 | CG13: 1.142 | CH13: 1.151 | CI13: 1.160 | CJ13: 1.170 | CK13: 1.179 | CL13: 1.188 | CM13: 1.197 | CN13: 1.207 | CO13: 1.216 | CP13: 1.225 | CQ13: 1.235 | CR13: 1.244 | CS13: 1.253 | CT13: 1.263 | CU13: 1.272 | CV13: 1.282 | CW13: 1.291 | CX13: 1.300 | CY13: 1.310 | CZ13: 1.319 | DA13: 1.329 | DB13: 1.338 | DC13: 1.348 | DD13: 1.358 | DE13: 1.367 | DF13: 1.377 | DG13: 1.386 | DH13: 1.396 | DI13: 1.406 | DJ13: 1.416 | DK13: 1.425 | DL13: 1.435 | DM13: 1.445 | DN13: 1.455 | DO13: 1.464 | DP13: 1.471 | DQ13: 1.479 | DR13: 1.487 | DS13: 1.495 | DT13: 1.503 | DU13: 1.511 | DV13: 1.519 | DW13: 1.527 | DX13: 1.535 | DY13: 1.543 | DZ13: 1.551 | EA13: 1.560 | EB13: 1.568 | EC13: 1.576 | ED13: 1.585 | EE13: 1.593 | EF13: 1.602 | EG13: 1.611 | EH13: 1.620 | EI13: 1.629 | EJ13: 1.638 | EK13: 1.647 | EL13: 1.656 | EM13: 1.665 | EN13: 1.675 | EO13: 1.684 | EP13: 1.694 | EQ13: 1.703 | ER13: 1.713 | ES13: 1.723 | ET13: 1.734 | EU13: 1.744 | EV13: 1.754 | EW13: 1.765 | EX13: 1.776 | EY13: 1.787 | EZ13: 1.798 | FA13: 1.809 | FB13: 1.820 | FC13: 1.832 | FE13: 1.5284 | FF13: 1.5233 | FG13: 1.5181 | FH13: 1.5127 | FK13: 1.5233
C14: Site altitude 'A' [m] = | N14: 112.0 | Q14: Orographic location factor 's' = | Z14: =AT46 -> 0.079 | AD14: ignore | AG14: Relation | AH14: I | AI14: II | AJ14: III | AK14: IV | AL14: I | AM14: II | AN14: III | AO14: IV | AQ14: lower part only | AR14: =1+0.001*N14 -> 1.11 | AS14: =1+0.001*N14*(10/AN23)^0.2 -> 1.07 | AT14: =+IF(AN23<=10,AR14,AS14) -> 1.073892443 | AW14: 0.214 | AX14: 0.821 | AY14: 0.830 | AZ14: 0.839 | BA14: 0.848 | BB14: 0.857 | BC14: 0.866 | BD14: 0.875 | BE14: 0.884 | BF14: 0.893 | BG14: 0.902 | BH14: 0.911 | BI14: 0.921 | BJ14: 0.930 | BK14: 0.939 | BL14: 0.948 | BM14: 0.957 | BN14: 0.966 | BO14: 0.975 | BP14: 0.984 | BQ14: 0.993 | BR14: 1.002 | BS14: 1.011 | BT14: 1.020 | BU14: 1.030 | BV14: 1.039 | BW14: 1.048 | BX14: 1.057 | BY14: 1.066 | BZ14: 1.075 | CA14: 1.084 | CB14: 1.093 | CC14: 1.103 | CD14: 1.112 | CE14: 1.121 | CF14: 1.130 | CG14: 1.139 | CH14: 1.148 | CI14: 1.158 | CJ14: 1.167 | CK14: 1.176 | CL14: 1.185 | CM14: 1.195 | CN14: 1.204 | CO14: 1.213 | CP14: 1.222 | CQ14: 1.232 | CR14: 1.241 | CS14: 1.250 | CT14: 1.260 | CU14: 1.269 | CV14: 1.279 | CW14: 1.288 | CX14: 1.297 | CY14: 1.307 | CZ14: 1.316 | DA14: 1.326 | DB14: 1.335 | DC14: 1.345 | DD14: 1.354 | DE14: 1.364 | DF14: 1.374 | DG14: 1.383 | DH14: 1.393 | DI14: 1.403 | DJ14: 1.412 | DK14: 1.422 | DL14: 1.432 | DM14: 1.442 | DN14: 1.452 | DO14: 1.462 | DP14: 1.471 | DQ14: 1.479 | DR14: 1.487 | DS14: 1.495 | DT14: 1.503 | DU14: 1.511 | DV14: 1.519 | DW14: 1.527 | DX14: 1.535 | DY14: 1.543 | DZ14: 1.551 | EA14: 1.560 | EB14: 1.568 | EC14: 1.576 | ED14: 1.585 | EE14: 1.593 | EF14: 1.602 | EG14: 1.611 | EH14: 1.620 | EI14: 1.629 | EJ14: 1.638 | EK14: 1.647 | EL14: 1.656 | EM14: 1.665 | EN14: 1.675 | EO14: 1.684 | EP14: 1.694 | EQ14: 1.703 | ER14: 1.713 | ES14: 1.723 | ET14: 1.734 | EU14: 1.744 | EV14: 1.754 | EW14: 1.765 | EX14: 1.776 | EY14: 1.787 | EZ14: 1.798 | FA14: 1.809 | FB14: 1.820 | FC14: 1.832 | FE14: 1.5284 | FF14: 1.5233 | FG14: 1.5181 | FH14: 1.5127 | FK14: 1.5233 | FQ14: =IF(OR(AND(L11=AD10,MAX(J39:Q39)>200),AND(L11=AD11,J39>200)),"Warning: This spreadsheet is not intended for buildings (structures) above 200m tall. ...but it will calculate some factors for buildings up to 300m tall, based on UK N.A. figures.","") -> 
C15: Fundamental basic wind velocity 'vb,map' [m/s] = | N15: 21.6 | Q15: Upwind slope H/Lu in wind direction 'Φ' = | Z15: =+Z10/Z12 -> 0.300 | AD15: site altitude: | AE15: =VLOOKUP(Database!B2,Database!B3:E62,4) -> 112 | AG15: 1 | AH15: =IF(J38<=2*J37,TRUE,FALSE) -> TRUE | AI15: =IF(L38<=2*L37,TRUE,FALSE) -> TRUE | AJ15: =IF(N38<=2*N37,TRUE,FALSE) -> TRUE | AK15: =IF(P38<=2*P37,TRUE,FALSE) -> TRUE | AL15: =82-MIN(0.8*$J$37,0.6*82) -> 70.00 | AM15: =82-MIN(0.8*$L$37,0.6*82) -> 68.00 | AN15: =82-MIN(0.8*$N$37,0.6*82) -> 66.00 | AO15: =82-MIN(0.8*$P$37,0.6*82) -> 64.00 | AW15: 0.229 | AX15: 0.819 | AY15: 0.828 | AZ15: 0.837 | BA15: 0.846 | BB15: 0.855 | BC15: 0.864 | BD15: 0.873 | BE15: 0.882 | BF15: 0.891 | BG15: 0.900 | BH15: 0.909 | BI15: 0.918 | BJ15: 0.927 | BK15: 0.937 | BL15: 0.946 | BM15: 0.955 | BN15: 0.964 | BO15: 0.973 | BP15: 0.982 | BQ15: 0.991 | BR15: 1.000 | BS15: 1.009 | BT15: 1.018 | BU15: 1.027 | BV15: 1.036 | BW15: 1.045 | BX15: 1.054 | BY15: 1.064 | BZ15: 1.073 | CA15: 1.082 | CB15: 1.091 | CC15: 1.100 | CD15: 1.109 | CE15: 1.118 | CF15: 1.128 | CG15: 1.137 | CH15: 1.146 | CI15: 1.155 | CJ15: 1.164 | CK15: 1.173 | CL15: 1.183 | CM15: 1.192 | CN15: 1.201 | CO15: 1.210 | CP15: 1.220 | CQ15: 1.229 | CR15: 1.238 | CS15: 1.248 | CT15: 1.257 | CU15: 1.266 | CV15: 1.276 | CW15: 1.285 | CX15: 1.294 | CY15: 1.304 | CZ15: 1.313 | DA15: 1.323 | DB15: 1.332 | DC15: 1.342 | DD15: 1.351 | DE15: 1.361 | DF15: 1.370 | DG15: 1.380 | DH15: 1.390 | DI15: 1.399 | DJ15: 1.409 | DK15: 1.419 | DL15: 1.429 | DM15: 1.439 | DN15: 1.448 | DO15: 1.458 | DP15: 1.468 | DQ15: 1.478 | DR15: 1.487 | DS15: 1.495 | DT15: 1.503 | DU15: 1.511 | DV15: 1.519 | DW15: 1.527 | DX15: 1.535 | DY15: 1.543 | DZ15: 1.551 | EA15: 1.560 | EB15: 1.568 | EC15: 1.576 | ED15: 1.585 | EE15: 1.593 | EF15: 1.602 | EG15: 1.611 | EH15: 1.620 | EI15: 1.629 | EJ15: 1.638 | EK15: 1.647 | EL15: 1.656 | EM15: 1.665 | EN15: 1.675 | EO15: 1.684 | EP15: 1.694 | EQ15: 1.703 | ER15: 1.713 | ES15: 1.723 | ET15: 1.734 | EU15: 1.744 | EV15: 1.754 | EW15: 1.765 | EX15: 1.776 | EY15: 1.787 | EZ15: 1.798 | FA15: 1.809 | FB15: 1.820 | FC15: 1.832 | FE15: 1.5284 | FF15: 1.5233 | FG15: 1.5181 | FH15: 1.5127 | FK15: 1.5233
C16: Building (structure) design life [years] = | N16: 50.0 | Q16: Effective length of upwind slope 'Le' [m] = | Z16: =IF(Z15>=0.3,Z10/0.3,Z12) -> 50.0 | AD16: fundamental wind velocity: | AE16: =VLOOKUP(Database!B2,Database!B3:E62,3) -> 21.6 | AG16: 2 | AH16: =AND(2*J37<J38,J38<6*J37) -> FALSE | AI16: =AND(2*L37<L38,L38<6*L37) -> FALSE | AJ16: =AND(2*N37<N38,N38<6*N37) -> FALSE | AK16: =AND(2*P37<P38,P38<6*P37) -> FALSE | AL16: =82-MIN(1.2*$J$37-0.2*$J$38,0.6*82) -> 66.00 | AM16: =82-MIN(1.2*$L$37-0.2*$L$38,0.6*82) -> 63.00 | AN16: =82-MIN(1.2*$N$37-0.2*$N$38,0.6*82) -> 60.00 | AO16: =82-MIN(1.2*$P$37-0.2*$P$38,0.6*82) -> 57.00 | AR16: basic wind velocity vb | AW16: 0.245 | AX16: 0.817 | AY16: 0.826 | AZ16: 0.835 | BA16: 0.844 | BB16: 0.853 | BC16: 0.862 | BD16: 0.871 | BE16: 0.880 | BF16: 0.889 | BG16: 0.898 | BH16: 0.907 | BI16: 0.916 | BJ16: 0.925 | BK16: 0.934 | BL16: 0.943 | BM16: 0.952 | BN16: 0.961 | BO16: 0.971 | BP16: 0.980 | BQ16: 0.989 | BR16: 0.998 | BS16: 1.007 | BT16: 1.016 | BU16: 1.025 | BV16: 1.034 | BW16: 1.043 | BX16: 1.052 | BY16: 1.061 | BZ16: 1.070 | CA16: 1.079 | CB16: 1.088 | CC16: 1.098 | CD16: 1.107 | CE16: 1.116 | CF16: 1.125 | CG16: 1.134 | CH16: 1.143 | CI16: 1.152 | CJ16: 1.162 | CK16: 1.171 | CL16: 1.180 | CM16: 1.189 | CN16: 1.198 | CO16: 1.208 | CP16: 1.217 | CQ16: 1.226 | CR16: 1.235 | CS16: 1.245 | CT16: 1.254 | CU16: 1.263 | CV16: 1.273 | CW16: 1.282 | CX16: 1.291 | CY16: 1.301 | CZ16: 1.310 | DA16: 1.320 | DB16: 1.329 | DC16: 1.339 | DD16: 1.348 | DE16: 1.358 | DF16: 1.367 | DG16: 1.377 | DH16: 1.387 | DI16: 1.396 | DJ16: 1.406 | DK16: 1.416 | DL16: 1.425 | DM16: 1.435 | DN16: 1.445 | DO16: 1.455 | DP16: 1.465 | DQ16: 1.475 | DR16: 1.485 | DS16: 1.495 | DT16: 1.503 | DU16: 1.511 | DV16: 1.519 | DW16: 1.527 | DX16: 1.535 | DY16: 1.543 | DZ16: 1.551 | EA16: 1.560 | EB16: 1.568 | EC16: 1.576 | ED16: 1.585 | EE16: 1.593 | EF16: 1.602 | EG16: 1.611 | EH16: 1.620 | EI16: 1.629 | EJ16: 1.638 | EK16: 1.647 | EL16: 1.656 | EM16: 1.665 | EN16: 1.675 | EO16: 1.684 | EP16: 1.694 | EQ16: 1.703 | ER16: 1.713 | ES16: 1.723 | ET16: 1.734 | EU16: 1.744 | EV16: 1.754 | EW16: 1.765 | EX16: 1.776 | EY16: 1.787 | EZ16: 1.798 | FA16: 1.809 | FB16: 1.820 | FC16: 1.832 | FE16: 1.5284 | FF16: 1.5233 | FG16: 1.5181 | FH16: 1.5127 | FK16: 1.5233
C17: Season factor 'cseason' = | N17: 1.00 | AD17: season factor: | AE17: 1.00 | AG17: 3 | AH17: =IF(J38>=6*J37,TRUE,FALSE) -> FALSE | AI17: =IF(L38>=6*L37,TRUE,FALSE) -> FALSE | AJ17: =IF(N38>=6*N37,TRUE,FALSE) -> FALSE | AK17: =IF(P38>=6*P37,TRUE,FALSE) -> FALSE | AL17: =82 -> 82.00 | AM17: =82 -> 82.00 | AN17: =82 -> 82.00 | AO17: =82 -> 82.00 | AQ17: lower part only | AR17: =+J26*$N$17*$N$18*$AT$14*$N$15 -> 19.3687241 | AS17: =+L26*$N$17*$N$18*$AT$14*$N$15 -> 18.32490065 | AT17: =+N26*$N$17*$N$18*$AT$14*$N$15 -> 22.84813562 | AU17: =+P26*$N$17*$N$18*$AT$14*$N$15 -> 23.19607677 | AW17: 0.263 | AX17: 0.815 | AY17: 0.824 | AZ17: 0.833 | BA17: 0.842 | BB17: 0.851 | BC17: 0.860 | BD17: 0.869 | BE17: 0.878 | BF17: 0.887 | BG17: 0.896 | BH17: 0.905 | BI17: 0.914 | BJ17: 0.923 | BK17: 0.932 | BL17: 0.941 | BM17: 0.950 | BN17: 0.959 | BO17: 0.968 | BP17: 0.977 | BQ17: 0.986 | BR17: 0.995 | BS17: 1.004 | BT17: 1.014 | BU17: 1.023 | BV17: 1.032 | BW17: 1.041 | BX17: 1.050 | BY17: 1.059 | BZ17: 1.068 | CA17: 1.077 | CB17: 1.086 | CC17: 1.095 | CD17: 1.104 | CE17: 1.113 | CF17: 1.122 | CG17: 1.132 | CH17: 1.141 | CI17: 1.150 | CJ17: 1.159 | CK17: 1.168 | CL17: 1.177 | CM17: 1.187 | CN17: 1.196 | CO17: 1.205 | CP17: 1.214 | CQ17: 1.223 | CR17: 1.233 | CS17: 1.242 | CT17: 1.251 | CU17: 1.261 | CV17: 1.270 | CW17: 1.279 | CX17: 1.289 | CY17: 1.298 | CZ17: 1.307 | DA17: 1.317 | DB17: 1.326 | DC17: 1.336 | DD17: 1.345 | DE17: 1.355 | DF17: 1.364 | DG17: 1.374 | DH17: 1.384 | DI17: 1.393 | DJ17: 1.403 | DK17: 1.413 | DL17: 1.422 | DM17: 1.432 | DN17: 1.442 | DO17: 1.452 | DP17: 1.462 | DQ17: 1.472 | DR17: 1.482 | DS17: 1.492 | DT17: 1.502 | DU17: 1.511 | DV17: 1.519 | DW17: 1.527 | DX17: 1.535 | DY17: 1.543 | DZ17: 1.551 | EA17: 1.560 | EB17: 1.568 | EC17: 1.576 | ED17: 1.585 | EE17: 1.593 | EF17: 1.602 | EG17: 1.611 | EH17: 1.620 | EI17: 1.629 | EJ17: 1.638 | EK17: 1.647 | EL17: 1.656 | EM17: 1.665 | EN17: 1.675 | EO17: 1.684 | EP17: 1.694 | EQ17: 1.703 | ER17: 1.713 | ES17: 1.723 | ET17: 1.734 | EU17: 1.744 | EV17: 1.754 | EW17: 1.765 | EX17: 1.776 | EY17: 1.787 | EZ17: 1.798 | FA17: 1.809 | FB17: 1.820 | FC17: 1.832 | FE17: 1.5284 | FF17: 1.5233 | FG17: 1.5181 | FH17: 1.5127 | FK17: 1.5233
C18: Probability factor 'cprob' = | N18: =IF(N16<=1,0.6,((1-0.2*LN(-LN(1-1/N16)))/(1-0.2*LN(-LN(0.98))))^0.5) -> 1.00 | Q18: ="...Site is "&IF(Z11>=0,"downwind","upwind")&" from top of crest" -> ...Site is upwind from top of crest | AD18: terrain: | AJ18: FALSE | AK18: hef | AL18: =VLOOKUP(TRUE,AH14:AL17,5,FALSE) -> 70.00 | AM18: =VLOOKUP(TRUE,AI14:AM17,5,FALSE) -> 68.00 | AN18: =VLOOKUP(TRUE,AJ14:AN17,5,FALSE) -> 66.00 | AO18: =VLOOKUP(TRUE,AK14:AO17,5,FALSE) -> 64.00 | AW18: 0.282 | AX18: 0.814 | AY18: 0.823 | AZ18: 0.832 | BA18: 0.841 | BB18: 0.849 | BC18: 0.858 | BD18: 0.867 | BE18: 0.876 | BF18: 0.885 | BG18: 0.894 | BH18: 0.903 | BI18: 0.912 | BJ18: 0.921 | BK18: 0.930 | BL18: 0.939 | BM18: 0.948 | BN18: 0.957 | BO18: 0.966 | BP18: 0.975 | BQ18: 0.984 | BR18: 0.993 | BS18: 1.002 | BT18: 1.011 | BU18: 1.020 | BV18: 1.029 | BW18: 1.038 | BX18: 1.047 | BY18: 1.056 | BZ18: 1.066 | CA18: 1.075 | CB18: 1.084 | CC18: 1.093 | CD18: 1.102 | CE18: 1.111 | CF18: 1.120 | CG18: 1.129 | CH18: 1.138 | CI18: 1.147 | CJ18: 1.156 | CK18: 1.166 | CL18: 1.175 | CM18: 1.184 | CN18: 1.193 | CO18: 1.202 | CP18: 1.212 | CQ18: 1.221 | CR18: 1.230 | CS18: 1.239 | CT18: 1.249 | CU18: 1.258 | CV18: 1.267 | CW18: 1.276 | CX18: 1.286 | CY18: 1.295 | CZ18: 1.305 | DA18: 1.314 | DB18: 1.323 | DC18: 1.333 | DD18: 1.342 | DE18: 1.352 | DF18: 1.361 | DG18: 1.371 | DH18: 1.380 | DI18: 1.390 | DJ18: 1.400 | DK18: 1.409 | DL18: 1.419 | DM18: 1.429 | DN18: 1.439 | DO18: 1.449 | DP18: 1.458 | DQ18: 1.468 | DR18: 1.478 | DS18: 1.488 | DT18: 1.498 | DU18: 1.509 | DV18: 1.519 | DW18: 1.527 | DX18: 1.535 | DY18: 1.543 | DZ18: 1.551 | EA18: 1.560 | EB18: 1.568 | EC18: 1.576 | ED18: 1.585 | EE18: 1.593 | EF18: 1.602 | EG18: 1.611 | EH18: 1.620 | EI18: 1.629 | EJ18: 1.638 | EK18: 1.647 | EL18: 1.656 | EM18: 1.665 | EN18: 1.675 | EO18: 1.684 | EP18: 1.694 | EQ18: 1.703 | ER18: 1.713 | ES18: 1.723 | ET18: 1.734 | EU18: 1.744 | EV18: 1.754 | EW18: 1.765 | EX18: 1.776 | EY18: 1.787 | EZ18: 1.798 | FA18: 1.809 | FB18: 1.820 | FC18: 1.832 | FE18: 1.5284 | FF18: 1.5233 | FG18: 1.5179 | FH18: 1.5111 | FK18: 1.5233
C19: Altitude factor 'calt' = | N19: =AT13 -> 1.07 | Q19: =IF(Database!P24=1,"...Effects of orography may be ignored - cl. A3(3)","...Topography is significant") -> ...Topography is significant | AD19: country | AJ19: TRUE | AK19: hef | AL19: =82 -> 82.00 | AM19: =82 -> 82.00 | AN19: =82 -> 82.00 | AO19: =82 -> 82.00 | AW19: 0.302 | AX19: 0.812 | AY19: 0.821 | AZ19: 0.830 | BA19: 0.839 | BB19: 0.848 | BC19: 0.857 | BD19: 0.866 | BE19: 0.874 | BF19: 0.883 | BG19: 0.892 | BH19: 0.901 | BI19: 0.910 | BJ19: 0.919 | BK19: 0.928 | BL19: 0.937 | BM19: 0.946 | BN19: 0.955 | BO19: 0.964 | BP19: 0.973 | BQ19: 0.982 | BR19: 0.991 | BS19: 1.000 | BT19: 1.009 | BU19: 1.018 | BV19: 1.027 | BW19: 1.036 | BX19: 1.045 | BY19: 1.054 | BZ19: 1.063 | CA19: 1.072 | CB19: 1.081 | CC19: 1.090 | CD19: 1.099 | CE19: 1.108 | CF19: 1.118 | CG19: 1.127 | CH19: 1.136 | CI19: 1.145 | CJ19: 1.154 | CK19: 1.163 | CL19: 1.172 | CM19: 1.181 | CN19: 1.191 | CO19: 1.200 | CP19: 1.209 | CQ19: 1.218 | CR19: 1.227 | CS19: 1.237 | CT19: 1.246 | CU19: 1.255 | CV19: 1.264 | CW19: 1.274 | CX19: 1.283 | CY19: 1.292 | CZ19: 1.302 | DA19: 1.311 | DB19: 1.320 | DC19: 1.330 | DD19: 1.339 | DE19: 1.349 | DF19: 1.358 | DG19: 1.368 | DH19: 1.377 | DI19: 1.387 | DJ19: 1.397 | DK19: 1.406 | DL19: 1.416 | DM19: 1.426 | DN19: 1.436 | DO19: 1.445 | DP19: 1.455 | DQ19: 1.465 | DR19: 1.475 | DS19: 1.485 | DT19: 1.495 | DU19: 1.505 | DV19: 1.515 | DW19: 1.526 | DX19: 1.535 | DY19: 1.543 | DZ19: 1.551 | EA19: 1.560 | EB19: 1.568 | EC19: 1.576 | ED19: 1.585 | EE19: 1.593 | EF19: 1.602 | EG19: 1.611 | EH19: 1.620 | EI19: 1.629 | EJ19: 1.638 | EK19: 1.647 | EL19: 1.656 | EM19: 1.665 | EN19: 1.675 | EO19: 1.684 | EP19: 1.694 | EQ19: 1.703 | ER19: 1.713 | ES19: 1.723 | ET19: 1.734 | EU19: 1.744 | EV19: 1.754 | EW19: 1.765 | EX19: 1.776 | EY19: 1.787 | EZ19: 1.798 | FA19: 1.809 | FB19: 1.820 | FC19: 1.832 | FE19: 1.5275 | FF19: 1.5213 | FG19: 1.5146 | FH19: 1.5079 | FK19: 1.5213
AD20: town | AW20: 0.324 | AX20: 0.810 | AY20: 0.819 | AZ20: 0.828 | BA20: 0.837 | BB20: 0.846 | BC20: 0.855 | BD20: 0.864 | BE20: 0.873 | BF20: 0.882 | BG20: 0.890 | BH20: 0.899 | BI20: 0.908 | BJ20: 0.917 | BK20: 0.926 | BL20: 0.935 | BM20: 0.944 | BN20: 0.953 | BO20: 0.962 | BP20: 0.971 | BQ20: 0.980 | BR20: 0.989 | BS20: 0.998 | BT20: 1.007 | BU20: 1.016 | BV20: 1.025 | BW20: 1.034 | BX20: 1.043 | BY20: 1.052 | BZ20: 1.061 | CA20: 1.070 | CB20: 1.079 | CC20: 1.088 | CD20: 1.097 | CE20: 1.106 | CF20: 1.115 | CG20: 1.124 | CH20: 1.133 | CI20: 1.142 | CJ20: 1.151 | CK20: 1.161 | CL20: 1.170 | CM20: 1.179 | CN20: 1.188 | CO20: 1.197 | CP20: 1.206 | CQ20: 1.216 | CR20: 1.225 | CS20: 1.234 | CT20: 1.243 | CU20: 1.252 | CV20: 1.262 | CW20: 1.271 | CX20: 1.280 | CY20: 1.290 | CZ20: 1.299 | DA20: 1.308 | DB20: 1.318 | DC20: 1.327 | DD20: 1.336 | DE20: 1.346 | DF20: 1.355 | DG20: 1.365 | DH20: 1.375 | DI20: 1.384 | DJ20: 1.394 | DK20: 1.403 | DL20: 1.413 | DM20: 1.423 | DN20: 1.432 | DO20: 1.442 | DP20: 1.452 | DQ20: 1.462 | DR20: 1.472 | DS20: 1.482 | DT20: 1.492 | DU20: 1.502 | DV20: 1.512 | DW20: 1.522 | DX20: 1.533 | DY20: 1.543 | DZ20: 1.551 | EA20: 1.560 | EB20: 1.568 | EC20: 1.576 | ED20: 1.585 | EE20: 1.593 | EF20: 1.602 | EG20: 1.611 | EH20: 1.620 | EI20: 1.629 | EJ20: 1.638 | EK20: 1.647 | EL20: 1.656 | EM20: 1.665 | EN20: 1.675 | EO20: 1.684 | EP20: 1.694 | EQ20: 1.703 | ER20: 1.713 | ES20: 1.723 | ET20: 1.734 | EU20: 1.744 | EV20: 1.754 | EW20: 1.765 | EX20: 1.776 | EY20: 1.787 | EZ20: 1.798 | FA20: 1.809 | FB20: 1.820 | FC20: 1.832 | FE20: 1.5245 | FF20: 1.5180 | FG20: 1.5114 | FH20: 1.5046 | FK20: 1.5180
AW21: 0.347 | AX21: 0.808 | AY21: 0.817 | AZ21: 0.826 | BA21: 0.835 | BB21: 0.844 | BC21: 0.853 | BD21: 0.862 | BE21: 0.871 | BF21: 0.880 | BG21: 0.889 | BH21: 0.898 | BI21: 0.906 | BJ21: 0.915 | BK21: 0.924 | BL21: 0.933 | BM21: 0.942 | BN21: 0.951 | BO21: 0.960 | BP21: 0.969 | BQ21: 0.978 | BR21: 0.987 | BS21: 0.996 | BT21: 1.005 | BU21: 1.014 | BV21: 1.023 | BW21: 1.032 | BX21: 1.041 | BY21: 1.050 | BZ21: 1.059 | CA21: 1.068 | CB21: 1.077 | CC21: 1.086 | CD21: 1.095 | CE21: 1.104 | CF21: 1.113 | CG21: 1.122 | CH21: 1.131 | CI21: 1.140 | CJ21: 1.149 | CK21: 1.158 | CL21: 1.167 | CM21: 1.176 | CN21: 1.185 | CO21: 1.195 | CP21: 1.204 | CQ21: 1.213 | CR21: 1.222 | CS21: 1.231 | CT21: 1.241 | CU21: 1.250 | CV21: 1.259 | CW21: 1.268 | CX21: 1.278 | CY21: 1.287 | CZ21: 1.296 | DA21: 1.305 | DB21: 1.315 | DC21: 1.324 | DD21: 1.334 | DE21: 1.343 | DF21: 1.353 | DG21: 1.362 | DH21: 1.372 | DI21: 1.381 | DJ21: 1.391 | DK21: 1.400 | DL21: 1.410 | DM21: 1.420 | DN21: 1.429 | DO21: 1.439 | DP21: 1.449 | DQ21: 1.459 | DR21: 1.469 | DS21: 1.479 | DT21: 1.489 | DU21: 1.499 | DV21: 1.509 | DW21: 1.519 | DX21: 1.529 | DY21: 1.540 | DZ21: 1.550 | EA21: 1.560 | EB21: 1.568 | EC21: 1.576 | ED21: 1.585 | EE21: 1.593 | EF21: 1.602 | EG21: 1.611 | EH21: 1.620 | EI21: 1.629 | EJ21: 1.638 | EK21: 1.647 | EL21: 1.656 | EM21: 1.665 | EN21: 1.675 | EO21: 1.684 | EP21: 1.694 | EQ21: 1.703 | ER21: 1.713 | ES21: 1.723 | ET21: 1.734 | EU21: 1.744 | EV21: 1.754 | EW21: 1.765 | EX21: 1.776 | EY21: 1.787 | EZ21: 1.798 | FA21: 1.809 | FB21: 1.820 | FC21: 1.832 | FE21: 1.5212 | FF21: 1.5148 | FG21: 1.5082 | FH21: 1.5015 | FK21: 1.5148
C22: CALCULATIONS: BASIC WIND VELOCITY | S22: DIAGRAM: WIND DIRECTIONS | AM22: hlower-hdis= | AN22: =VLOOKUP(AI12,AJ29:AO30,IF($L$11=$AD$11,3,2+MATCH(input!$Z$14,input!$AI$24:$AI$27,0)),FALSE) -> 68.00 | AO22: key value for lower part of building | AW22: 0.372 | AX22: 0.807 | AY22: 0.816 | AZ22: 0.825 | BA22: 0.833 | BB22: 0.842 | BC22: 0.851 | BD22: 0.860 | BE22: 0.869 | BF22: 0.878 | BG22: 0.887 | BH22: 0.896 | BI22: 0.905 | BJ22: 0.913 | BK22: 0.922 | BL22: 0.931 | BM22: 0.940 | BN22: 0.949 | BO22: 0.958 | BP22: 0.967 | BQ22: 0.976 | BR22: 0.985 | BS22: 0.994 | BT22: 1.003 | BU22: 1.012 | BV22: 1.021 | BW22: 1.030 | BX22: 1.039 | BY22: 1.047 | BZ22: 1.056 | CA22: 1.065 | CB22: 1.074 | CC22: 1.083 | CD22: 1.092 | CE22: 1.101 | CF22: 1.110 | CG22: 1.120 | CH22: 1.129 | CI22: 1.138 | CJ22: 1.147 | CK22: 1.156 | CL22: 1.165 | CM22: 1.174 | CN22: 1.183 | CO22: 1.192 | CP22: 1.201 | CQ22: 1.210 | CR22: 1.220 | CS22: 1.229 | CT22: 1.238 | CU22: 1.247 | CV22: 1.256 | CW22: 1.266 | CX22: 1.275 | CY22: 1.284 | CZ22: 1.293 | DA22: 1.303 | DB22: 1.312 | DC22: 1.321 | DD22: 1.331 | DE22: 1.340 | DF22: 1.350 | DG22: 1.359 | DH22: 1.369 | DI22: 1.378 | DJ22: 1.388 | DK22: 1.397 | DL22: 1.407 | DM22: 1.417 | DN22: 1.426 | DO22: 1.436 | DP22: 1.446 | DQ22: 1.456 | DR22: 1.466 | DS22: 1.476 | DT22: 1.486 | DU22: 1.496 | DV22: 1.506 | DW22: 1.516 | DX22: 1.526 | DY22: 1.537 | DZ22: 1.547 | EA22: 1.557 | EB22: 1.568 | EC22: 1.576 | ED22: 1.585 | EE22: 1.593 | EF22: 1.602 | EG22: 1.611 | EH22: 1.620 | EI22: 1.629 | EJ22: 1.638 | EK22: 1.647 | EL22: 1.656 | EM22: 1.665 | EN22: 1.675 | EO22: 1.684 | EP22: 1.694 | EQ22: 1.703 | ER22: 1.713 | ES22: 1.723 | ET22: 1.734 | EU22: 1.744 | EV22: 1.754 | EW22: 1.765 | EX22: 1.776 | EY22: 1.787 | EZ22: 1.798 | FA22: 1.809 | FB22: 1.820 | FC22: 1.832 | FE22: 1.5180 | FF22: 1.5116 | FG22: 1.5050 | FH22: 1.4983 | FK22: 1.5116
C23: Building (structure) rotation from North 'Ø' [deg] = | P23: 10.00 | AM23: b=hlower = | AN23: =input!AL40 -> 80.00 | AO23: from walls | AW23: 0.398 | AX23: 0.805 | AY23: 0.814 | AZ23: 0.823 | BA23: 0.832 | BB23: 0.841 | BC23: 0.849 | BD23: 0.858 | BE23: 0.867 | BF23: 0.876 | BG23: 0.885 | BH23: 0.894 | BI23: 0.903 | BJ23: 0.912 | BK23: 0.920 | BL23: 0.929 | BM23: 0.938 | BN23: 0.947 | BO23: 0.956 | BP23: 0.965 | BQ23: 0.974 | BR23: 0.983 | BS23: 0.992 | BT23: 1.001 | BU23: 1.010 | BV23: 1.018 | BW23: 1.027 | BX23: 1.036 | BY23: 1.045 | BZ23: 1.054 | CA23: 1.063 | CB23: 1.072 | CC23: 1.081 | CD23: 1.090 | CE23: 1.099 | CF23: 1.108 | CG23: 1.117 | CH23: 1.126 | CI23: 1.135 | CJ23: 1.144 | CK23: 1.153 | CL23: 1.162 | CM23: 1.171 | CN23: 1.181 | CO23: 1.190 | CP23: 1.199 | CQ23: 1.208 | CR23: 1.217 | CS23: 1.226 | CT23: 1.235 | CU23: 1.245 | CV23: 1.254 | CW23: 1.263 | CX23: 1.272 | CY23: 1.281 | CZ23: 1.291 | DA23: 1.300 | DB23: 1.309 | DC23: 1.319 | DD23: 1.328 | DE23: 1.338 | DF23: 1.347 | DG23: 1.356 | DH23: 1.366 | DI23: 1.375 | DJ23: 1.385 | DK23: 1.395 | DL23: 1.404 | DM23: 1.414 | DN23: 1.424 | DO23: 1.433 | DP23: 1.443 | DQ23: 1.453 | DR23: 1.463 | DS23: 1.473 | DT23: 1.483 | DU23: 1.493 | DV23: 1.503 | DW23: 1.513 | DX23: 1.523 | DY23: 1.533 | DZ23: 1.544 | EA23: 1.554 | EB23: 1.565 | EC23: 1.575 | ED23: 1.585 | EE23: 1.593 | EF23: 1.602 | EG23: 1.611 | EH23: 1.620 | EI23: 1.629 | EJ23: 1.638 | EK23: 1.647 | EL23: 1.656 | EM23: 1.665 | EN23: 1.675 | EO23: 1.684 | EP23: 1.694 | EQ23: 1.703 | ER23: 1.713 | ES23: 1.723 | ET23: 1.734 | EU23: 1.744 | EV23: 1.754 | EW23: 1.765 | EX23: 1.776 | EY23: 1.787 | EZ23: 1.798 | FA23: 1.809 | FB23: 1.820 | FC23: 1.832 | FE23: 1.5149 | FF23: 1.5085 | FG23: 1.5019 | FH23: 1.4952 | FK23: 1.5085
C24: Wind direction: | J24: =IF(L11=AD10,"I","ANY") -> I | L24: II | N24: III | P24: IV | AG24: CALCULATIONS FOR WALLS TAB | AW24: 0.427 | AX24: 0.803 | AY24: 0.812 | AZ24: 0.821 | BA24: 0.830 | BB24: 0.839 | BC24: 0.848 | BD24: 0.857 | BE24: 0.865 | BF24: 0.874 | BG24: 0.883 | BH24: 0.892 | BI24: 0.901 | BJ24: 0.910 | BK24: 0.919 | BL24: 0.927 | BM24: 0.936 | BN24: 0.945 | BO24: 0.954 | BP24: 0.963 | BQ24: 0.972 | BR24: 0.981 | BS24: 0.990 | BT24: 0.999 | BU24: 1.007 | BV24: 1.016 | BW24: 1.025 | BX24: 1.034 | BY24: 1.043 | BZ24: 1.052 | CA24: 1.061 | CB24: 1.070 | CC24: 1.079 | CD24: 1.088 | CE24: 1.097 | CF24: 1.106 | CG24: 1.115 | CH24: 1.124 | CI24: 1.133 | CJ24: 1.142 | CK24: 1.151 | CL24: 1.160 | CM24: 1.169 | CN24: 1.178 | CO24: 1.187 | CP24: 1.196 | CQ24: 1.205 | CR24: 1.215 | CS24: 1.224 | CT24: 1.233 | CU24: 1.242 | CV24: 1.251 | CW24: 1.260 | CX24: 1.270 | CY24: 1.279 | CZ24: 1.288 | DA24: 1.297 | DB24: 1.307 | DC24: 1.316 | DD24: 1.325 | DE24: 1.335 | DF24: 1.344 | DG24: 1.354 | DH24: 1.363 | DI24: 1.373 | DJ24: 1.382 | DK24: 1.392 | DL24: 1.401 | DM24: 1.411 | DN24: 1.421 | DO24: 1.430 | DP24: 1.440 | DQ24: 1.450 | DR24: 1.460 | DS24: 1.470 | DT24: 1.480 | DU24: 1.490 | DV24: 1.500 | DW24: 1.510 | DX24: 1.520 | DY24: 1.530 | DZ24: 1.541 | EA24: 1.551 | EB24: 1.561 | EC24: 1.572 | ED24: 1.583 | EE24: 1.593 | EF24: 1.602 | EG24: 1.611 | EH24: 1.620 | EI24: 1.629 | EJ24: 1.638 | EK24: 1.647 | EL24: 1.656 | EM24: 1.665 | EN24: 1.675 | EO24: 1.684 | EP24: 1.694 | EQ24: 1.703 | ER24: 1.713 | ES24: 1.723 | ET24: 1.734 | EU24: 1.744 | EV24: 1.754 | EW24: 1.765 | EX24: 1.776 | EY24: 1.787 | EZ24: 1.798 | FA24: 1.809 | FB24: 1.820 | FC24: 1.832 | FE24: 1.5118 | FF24: 1.5054 | FG24: 1.4989 | FH24: 1.4922 | FK24: 1.5054
C25: Angle from North 'Øn' [deg] = | J25: =IF($L$11=$AD$11,"-",P23) -> 10.00 | L25: =IF($L$11=$AD$11,"-",+P23+90) -> 100.00 | N25: =IF($L$11=$AD$11,"-",+P23+180) -> 190.00 | P25: =IF($L$11=$AD$11,"-",IF(P23<=90,N25+90,P23-90)) -> 280.00 | AG25: Relation | AH25: I | AI25: II | AJ25: III | AK25: IV | AL25: I | AM25: II | AN25: III | AO25: IV | AQ25: cr,T | AR25: 1 | AS25: 1 | AW25: 0.457 | AX25: 0.802 | AY25: 0.811 | AZ25: 0.819 | BA25: 0.828 | BB25: 0.837 | BC25: 0.846 | BD25: 0.855 | BE25: 0.864 | BF25: 0.872 | BG25: 0.881 | BH25: 0.890 | BI25: 0.899 | BJ25: 0.908 | BK25: 0.917 | BL25: 0.926 | BM25: 0.934 | BN25: 0.943 | BO25: 0.952 | BP25: 0.961 | BQ25: 0.970 | BR25: 0.979 | BS25: 0.988 | BT25: 0.997 | BU25: 1.005 | BV25: 1.014 | BW25: 1.023 | BX25: 1.032 | BY25: 1.041 | BZ25: 1.050 | CA25: 1.059 | CB25: 1.068 | CC25: 1.077 | CD25: 1.086 | CE25: 1.095 | CF25: 1.104 | CG25: 1.113 | CH25: 1.122 | CI25: 1.131 | CJ25: 1.140 | CK25: 1.149 | CL25: 1.158 | CM25: 1.167 | CN25: 1.176 | CO25: 1.185 | CP25: 1.194 | CQ25: 1.203 | CR25: 1.212 | CS25: 1.221 | CT25: 1.230 | CU25: 1.240 | CV25: 1.249 | CW25: 1.258 | CX25: 1.267 | CY25: 1.276 | CZ25: 1.286 | DA25: 1.295 | DB25: 1.304 | DC25: 1.313 | DD25: 1.323 | DE25: 1.332 | DF25: 1.342 | DG25: 1.351 | DH25: 1.360 | DI25: 1.370 | DJ25: 1.379 | DK25: 1.389 | DL25: 1.399 | DM25: 1.408 | DN25: 1.418 | DO25: 1.427 | DP25: 1.437 | DQ25: 1.447 | DR25: 1.457 | DS25: 1.467 | DT25: 1.477 | DU25: 1.487 | DV25: 1.497 | DW25: 1.507 | DX25: 1.517 | DY25: 1.527 | DZ25: 1.537 | EA25: 1.548 | EB25: 1.558 | EC25: 1.569 | ED25: 1.579 | EE25: 1.590 | EF25: 1.601 | EG25: 1.611 | EH25: 1.620 | EI25: 1.629 | EJ25: 1.638 | EK25: 1.647 | EL25: 1.656 | EM25: 1.665 | EN25: 1.675 | EO25: 1.684 | EP25: 1.694 | EQ25: 1.703 | ER25: 1.713 | ES25: 1.723 | ET25: 1.734 | EU25: 1.744 | EV25: 1.754 | EW25: 1.765 | EX25: 1.776 | EY25: 1.787 | EZ25: 1.798 | FA25: 1.809 | FB25: 1.820 | FC25: 1.832 | FE25: 1.5088 | FF25: 1.5024 | FG25: 1.4959 | FH25: 1.4892 | FK25: 1.5024
C26: Direction factor 'cdir' = | J26: =IF(AK8=1,AG10,AG9) -> 0.84 | L26: =IF($L$11=$AD$11,"-",IF(AK8=1,AH10,AH9)) -> 0.79 | N26: =IF($L$11=$AD$11,"-",IF(AK8=1,AI10,AI9)) -> 0.99 | P26: =IF($L$11=$AD$11,"-",IF(AK8=1,AJ10,AJ9)) -> 1.00 | AD26: =INDEX('wind pressure'!$J$27:$Q$27,1,IF(AN41,1,2*MATCH(input!$Z$14,input!$AI$24:$AI$27,0)-1)) -> 19.36215864 | AG26: 1 | AH26: =IF(J38<=2*J37,TRUE,FALSE) -> TRUE | AI26: =IF(L38<=2*L37,TRUE,FALSE) -> TRUE | AJ26: =IF(N38<=2*N37,TRUE,FALSE) -> TRUE | AK26: =IF(P38<=2*P37,TRUE,FALSE) -> TRUE | AL26: =AN23-MIN(0.8*$J$37,0.6*AN23) -> 68.00 | AM26: =AN23-MIN(0.8*$L$37,0.6*AN23) -> 66.00 | AN26: =AN23-MIN(0.8*$N$37,0.6*AN23) -> 64.00 | AO26: =AN23-MIN(0.8*$P$37,0.6*AN23) -> 62.00 | AR26: 2 | AS26: =VLOOKUP(10,$AW$317:$FN$417,119,TRUE) -> 0.87 | AW26: 0.490 | AX26: 0.800 | AY26: 0.809 | AZ26: 0.818 | BA26: 0.827 | BB26: 0.835 | BC26: 0.844 | BD26: 0.853 | BE26: 0.862 | BF26: 0.871 | BG26: 0.880 | BH26: 0.888 | BI26: 0.897 | BJ26: 0.906 | BK26: 0.915 | BL26: 0.924 | BM26: 0.933 | BN26: 0.941 | BO26: 0.950 | BP26: 0.959 | BQ26: 0.968 | BR26: 0.977 | BS26: 0.986 | BT26: 0.995 | BU26: 1.003 | BV26: 1.012 | BW26: 1.021 | BX26: 1.030 | BY26: 1.039 | BZ26: 1.048 | CA26: 1.057 | CB26: 1.066 | CC26: 1.075 | CD26: 1.084 | CE26: 1.093 | CF26: 1.102 | CG26: 1.110 | CH26: 1.119 | CI26: 1.128 | CJ26: 1.137 | CK26: 1.146 | CL26: 1.155 | CM26: 1.164 | CN26: 1.173 | CO26: 1.183 | CP26: 1.192 | CQ26: 1.201 | CR26: 1.210 | CS26: 1.219 | CT26: 1.228 | CU26: 1.237 | CV26: 1.246 | CW26: 1.255 | CX26: 1.265 | CY26: 1.274 | CZ26: 1.283 | DA26: 1.292 | DB26: 1.302 | DC26: 1.311 | DD26: 1.320 | DE26: 1.329 | DF26: 1.339 | DG26: 1.348 | DH26: 1.358 | DI26: 1.367 | DJ26: 1.377 | DK26: 1.386 | DL26: 1.396 | DM26: 1.405 | DN26: 1.415 | DO26: 1.425 | DP26: 1.434 | DQ26: 1.444 | DR26: 1.454 | DS26: 1.464 | DT26: 1.474 | DU26: 1.484 | DV26: 1.494 | DW26: 1.504 | DX26: 1.514 | DY26: 1.524 | DZ26: 1.534 | EA26: 1.545 | EB26: 1.555 | EC26: 1.566 | ED26: 1.576 | EE26: 1.587 | EF26: 1.598 | EG26: 1.608 | EH26: 1.619 | EI26: 1.629 | EJ26: 1.638 | EK26: 1.647 | EL26: 1.656 | EM26: 1.665 | EN26: 1.675 | EO26: 1.684 | EP26: 1.694 | EQ26: 1.703 | ER26: 1.713 | ES26: 1.723 | ET26: 1.734 | EU26: 1.744 | EV26: 1.754 | EW26: 1.765 | EX26: 1.776 | EY26: 1.787 | EZ26: 1.798 | FA26: 1.809 | FB26: 1.820 | FC26: 1.832 | FE26: 1.5058 | FF26: 1.4994 | FG26: 1.4929 | FH26: 1.4862 | FK26: 1.4994
C27: Basic wind velocity 'vb' [m/s] = | J27: =+J26*$N$17*$N$18*$N$19*$N$15 -> 19.36 | L27: =IF($L$11=$AD$11,"-",+L26*$N$17*$N$18*$N$19*$N$15) -> 18.32 | N27: =IF($L$11=$AD$11,"-",+N26*$N$17*$N$18*$N$19*$N$15) -> 22.84 | P27: =IF($L$11=$AD$11,"-",+P26*$N$17*$N$18*$N$19*$N$15) -> 23.19 | AG27: 2 | AH27: =AND(2*J37<J38,J38<6*J37) -> FALSE | AI27: =AND(2*L37<L38,L38<6*L37) -> FALSE | AJ27: =AND(2*N37<N38,N38<6*N37) -> FALSE | AK27: =AND(2*P37<P38,P38<6*P37) -> FALSE | AL27: =AN23-MIN(1.2*$J$37-0.2*$J$38,0.6*AN23) -> 64.00 | AM27: =AN23-MIN(1.2*$L$37-0.2*$L$38,0.6*AN23) -> 61.00 | AN27: =AN23-MIN(1.2*$N$37-0.2*$N$38,0.6*AN23) -> 58.00 | AO27: =AN23-MIN(1.2*$P$37-0.2*$P$38,0.6*AN23) -> 55.00 | AQ27: kI,T | AR27: 1 | AS27: 1 | AW27: 0.525 | AX27: 0.799 | AY27: 0.807 | AZ27: 0.816 | BA27: 0.825 | BB27: 0.834 | BC27: 0.843 | BD27: 0.851 | BE27: 0.860 | BF27: 0.869 | BG27: 0.878 | BH27: 0.887 | BI27: 0.895 | BJ27: 0.904 | BK27: 0.913 | BL27: 0.922 | BM27: 0.931 | BN27: 0.940 | BO27: 0.948 | BP27: 0.957 | BQ27: 0.966 | BR27: 0.975 | BS27: 0.984 | BT27: 0.993 | BU27: 1.002 | BV27: 1.010 | BW27: 1.019 | BX27: 1.028 | BY27: 1.037 | BZ27: 1.046 | CA27: 1.055 | CB27: 1.064 | CC27: 1.073 | CD27: 1.082 | CE27: 1.090 | CF27: 1.099 | CG27: 1.108 | CH27: 1.117 | CI27: 1.126 | CJ27: 1.135 | CK27: 1.144 | CL27: 1.153 | CM27: 1.162 | CN27: 1.171 | CO27: 1.180 | CP27: 1.189 | CQ27: 1.198 | CR27: 1.207 | CS27: 1.216 | CT27: 1.226 | CU27: 1.235 | CV27: 1.244 | CW27: 1.253 | CX27: 1.262 | CY27: 1.271 | CZ27: 1.280 | DA27: 1.290 | DB27: 1.299 | DC27: 1.308 | DD27: 1.318 | DE27: 1.327 | DF27: 1.336 | DG27: 1.346 | DH27: 1.355 | DI27: 1.364 | DJ27: 1.374 | DK27: 1.383 | DL27: 1.393 | DM27: 1.403 | DN27: 1.412 | DO27: 1.422 | DP27: 1.432 | DQ27: 1.441 | DR27: 1.451 | DS27: 1.461 | DT27: 1.471 | DU27: 1.481 | DV27: 1.491 | DW27: 1.501 | DX27: 1.511 | DY27: 1.521 | DZ27: 1.531 | EA27: 1.542 | EB27: 1.552 | EC27: 1.563 | ED27: 1.573 | EE27: 1.584 | EF27: 1.595 | EG27: 1.605 | EH27: 1.616 | EI27: 1.627 | EJ27: 1.638 | EK27: 1.647 | EL27: 1.656 | EM27: 1.665 | EN27: 1.675 | EO27: 1.684 | EP27: 1.694 | EQ27: 1.703 | ER27: 1.713 | ES27: 1.723 | ET27: 1.734 | EU27: 1.744 | EV27: 1.754 | EW27: 1.765 | EX27: 1.776 | EY27: 1.787 | EZ27: 1.798 | FA27: 1.809 | FB27: 1.820 | FC27: 1.832 | FE27: 1.5028 | FF27: 1.4965 | FG27: 1.4900 | FH27: 1.4833 | FK27: 1.4965
C28: Basic velocity pressure 'qb' [kN/m²] = | J28: =0.613*J27^2/1000 -> 0.230 | L28: =IF($L$11=$AD$11,"-",0.613*L27^2/1000) -> 0.206 | N28: =IF($L$11=$AD$11,"-",0.613*N27^2/1000) -> 0.320 | P28: =IF($L$11=$AD$11,"-",0.613*P27^2/1000) -> 0.330 | AG28: 3 | AH28: =IF(J38>=6*J37,TRUE,FALSE) -> FALSE | AI28: =IF(L38>=6*L37,TRUE,FALSE) -> FALSE | AJ28: =IF(N38>=6*N37,TRUE,FALSE) -> FALSE | AK28: =IF(P38>=6*P37,TRUE,FALSE) -> FALSE | AL28: =+AN23 -> 80.00 | AM28: =+AN23 -> 80.00 | AN28: =+AN23 -> 80.00 | AO28: =+AN23 -> 80.00 | AR28: 2 | AS28: =VLOOKUP(10,$AW$422:$FN$522,119,TRUE) -> 1.48 | AW28: 0.562 | AX28: 0.797 | AY28: 0.806 | AZ28: 0.815 | BA28: 0.823 | BB28: 0.832 | BC28: 0.841 | BD28: 0.850 | BE28: 0.859 | BF28: 0.867 | BG28: 0.876 | BH28: 0.885 | BI28: 0.894 | BJ28: 0.903 | BK28: 0.911 | BL28: 0.920 | BM28: 0.929 | BN28: 0.938 | BO28: 0.947 | BP28: 0.955 | BQ28: 0.964 | BR28: 0.973 | BS28: 0.982 | BT28: 0.991 | BU28: 1.000 | BV28: 1.008 | BW28: 1.017 | BX28: 1.026 | BY28: 1.035 | BZ28: 1.044 | CA28: 1.053 | CB28: 1.062 | CC28: 1.071 | CD28: 1.079 | CE28: 1.088 | CF28: 1.097 | CG28: 1.106 | CH28: 1.115 | CI28: 1.124 | CJ28: 1.133 | CK28: 1.142 | CL28: 1.151 | CM28: 1.160 | CN28: 1.169 | CO28: 1.178 | CP28: 1.187 | CQ28: 1.196 | CR28: 1.205 | CS28: 1.214 | CT28: 1.223 | CU28: 1.232 | CV28: 1.241 | CW28: 1.251 | CX28: 1.260 | CY28: 1.269 | CZ28: 1.278 | DA28: 1.287 | DB28: 1.296 | DC28: 1.306 | DD28: 1.315 | DE28: 1.324 | DF28: 1.334 | DG28: 1.343 | DH28: 1.352 | DI28: 1.362 | DJ28: 1.371 | DK28: 1.381 | DL28: 1.390 | DM28: 1.400 | DN28: 1.409 | DO28: 1.419 | DP28: 1.429 | DQ28: 1.439 | DR28: 1.448 | DS28: 1.458 | DT28: 1.468 | DU28: 1.478 | DV28: 1.488 | DW28: 1.498 | DX28: 1.508 | DY28: 1.518 | DZ28: 1.528 | EA28: 1.539 | EB28: 1.549 | EC28: 1.560 | ED28: 1.570 | EE28: 1.581 | EF28: 1.591 | EG28: 1.602 | EH28: 1.613 | EI28: 1.624 | EJ28: 1.635 | EK28: 1.646 | EL28: 1.656 | EM28: 1.665 | EN28: 1.675 | EO28: 1.684 | EP28: 1.694 | EQ28: 1.703 | ER28: 1.713 | ES28: 1.723 | ET28: 1.734 | EU28: 1.744 | EV28: 1.754 | EW28: 1.765 | EX28: 1.776 | EY28: 1.787 | EZ28: 1.798 | FA28: 1.809 | FB28: 1.820 | FC28: 1.832 | FE28: 1.4999 | FF28: 1.4936 | FG28: 1.4871 | FH28: 1.4804 | FK28: 1.4936
C29: =IF($L$11=$AD$11,"","Note: directional factor is taken as maximum value for +/- 45deg from given angle.") -> Note: directional factor is taken as maximum value for +/- 45deg from given angle. | AJ29: FALSE | AK29: hef | AL29: =VLOOKUP(TRUE,AH25:AL28,5,FALSE) -> 68.00 | AM29: =VLOOKUP(TRUE,AI25:AM28,5,FALSE) -> 66.00 | AN29: =VLOOKUP(TRUE,AJ25:AN28,5,FALSE) -> 64.00 | AO29: =VLOOKUP(TRUE,AK25:AO28,5,FALSE) -> 62.00 | AQ29: ce,T | AR29: 1 | AS29: 1 | AW29: 0.603 | AX29: 0.796 | AY29: 0.804 | AZ29: 0.813 | BA29: 0.822 | BB29: 0.831 | BC29: 0.839 | BD29: 0.848 | BE29: 0.857 | BF29: 0.866 | BG29: 0.874 | BH29: 0.883 | BI29: 0.892 | BJ29: 0.901 | BK29: 0.910 | BL29: 0.918 | BM29: 0.927 | BN29: 0.936 | BO29: 0.945 | BP29: 0.954 | BQ29: 0.962 | BR29: 0.971 | BS29: 0.980 | BT29: 0.989 | BU29: 0.998 | BV29: 1.006 | BW29: 1.015 | BX29: 1.024 | BY29: 1.033 | BZ29: 1.042 | CA29: 1.051 | CB29: 1.060 | CC29: 1.068 | CD29: 1.077 | CE29: 1.086 | CF29: 1.095 | CG29: 1.104 | CH29: 1.113 | CI29: 1.122 | CJ29: 1.131 | CK29: 1.140 | CL29: 1.149 | CM29: 1.158 | CN29: 1.167 | CO29: 1.176 | CP29: 1.185 | CQ29: 1.194 | CR29: 1.203 | CS29: 1.212 | CT29: 1.221 | CU29: 1.230 | CV29: 1.239 | CW29: 1.248 | CX29: 1.257 | CY29: 1.266 | CZ29: 1.276 | DA29: 1.285 | DB29: 1.294 | DC29: 1.303 | DD29: 1.313 | DE29: 1.322 | DF29: 1.331 | DG29: 1.340 | DH29: 1.350 | DI29: 1.359 | DJ29: 1.369 | DK29: 1.378 | DL29: 1.388 | DM29: 1.397 | DN29: 1.407 | DO29: 1.416 | DP29: 1.426 | DQ29: 1.436 | DR29: 1.446 | DS29: 1.455 | DT29: 1.465 | DU29: 1.475 | DV29: 1.485 | DW29: 1.495 | DX29: 1.505 | DY29: 1.515 | DZ29: 1.526 | EA29: 1.536 | EB29: 1.546 | EC29: 1.557 | ED29: 1.567 | EE29: 1.578 | EF29: 1.588 | EG29: 1.599 | EH29: 1.610 | EI29: 1.621 | EJ29: 1.632 | EK29: 1.643 | EL29: 1.654 | EM29: 1.665 | EN29: 1.675 | EO29: 1.684 | EP29: 1.694 | EQ29: 1.703 | ER29: 1.713 | ES29: 1.723 | ET29: 1.734 | EU29: 1.744 | EV29: 1.754 | EW29: 1.765 | EX29: 1.776 | EY29: 1.787 | EZ29: 1.798 | FA29: 1.809 | FB29: 1.820 | FC29: 1.832 | FE29: 1.4971 | FF29: 1.4907 | FG29: 1.4842 | FH29: 1.4776 | FK29: 1.4907
AJ30: TRUE | AK30: hef | AL30: =+AN23 -> 80.00 | AM30: =+AN23 -> 80.00 | AN30: =+AN23 -> 80.00 | AO30: =+AN23 -> 80.00 | AR30: 2 | AS30: =VLOOKUP(10,$AW$528:$FN$628,119,TRUE) -> 0.98 | AW30: 0.646 | AX30: 0.794 | AY30: 0.803 | AZ30: 0.812 | BA30: 0.820 | BB30: 0.829 | BC30: 0.838 | BD30: 0.847 | BE30: 0.855 | BF30: 0.864 | BG30: 0.873 | BH30: 0.882 | BI30: 0.890 | BJ30: 0.899 | BK30: 0.908 | BL30: 0.917 | BM30: 0.925 | BN30: 0.934 | BO30: 0.943 | BP30: 0.952 | BQ30: 0.961 | BR30: 0.969 | BS30: 0.978 | BT30: 0.987 | BU30: 0.996 | BV30: 1.005 | BW30: 1.013 | BX30: 1.022 | BY30: 1.031 | BZ30: 1.040 | CA30: 1.049 | CB30: 1.058 | CC30: 1.066 | CD30: 1.075 | CE30: 1.084 | CF30: 1.093 | CG30: 1.102 | CH30: 1.111 | CI30: 1.120 | CJ30: 1.129 | CK30: 1.138 | CL30: 1.147 | CM30: 1.156 | CN30: 1.164 | CO30: 1.173 | CP30: 1.182 | CQ30: 1.191 | CR30: 1.200 | CS30: 1.209 | CT30: 1.219 | CU30: 1.228 | CV30: 1.237 | CW30: 1.246 | CX30: 1.255 | CY30: 1.264 | CZ30: 1.273 | DA30: 1.282 | DB30: 1.292 | DC30: 1.301 | DD30: 1.310 | DE30: 1.319 | DF30: 1.329 | DG30: 1.338 | DH30: 1.347 | DI30: 1.357 | DJ30: 1.366 | DK30: 1.376 | DL30: 1.385 | DM30: 1.395 | DN30: 1.404 | DO30: 1.414 | DP30: 1.423 | DQ30: 1.433 | DR30: 1.443 | DS30: 1.453 | DT30: 1.462 | DU30: 1.472 | DV30: 1.482 | DW30: 1.492 | DX30: 1.502 | DY30: 1.512 | DZ30: 1.523 | EA30: 1.533 | EB30: 1.543 | EC30: 1.554 | ED30: 1.564 | EE30: 1.575 | EF30: 1.585 | EG30: 1.596 | EH30: 1.607 | EI30: 1.618 | EJ30: 1.629 | EK30: 1.640 | EL30: 1.651 | EM30: 1.663 | EN30: 1.674 | EO30: 1.684 | EP30: 1.694 | EQ30: 1.703 | ER30: 1.713 | ES30: 1.723 | ET30: 1.734 | EU30: 1.744 | EV30: 1.754 | EW30: 1.765 | EX30: 1.776 | EY30: 1.787 | EZ30: 1.798 | FA30: 1.809 | FB30: 1.820 | FC30: 1.832 | FE30: 1.4942 | FF30: 1.4879 | FG30: 1.4814 | FH30: 1.4748 | FK30: 1.4879
C31: CALCULATIONS: EFFECTIVE HEIGHT | AG31: these are based on obstructions for selected direction in input tab | AW31: 0.692 | AX31: 0.793 | AY31: 0.801 | AZ31: 0.810 | BA31: 0.819 | BB31: 0.828 | BC31: 0.836 | BD31: 0.845 | BE31: 0.854 | BF31: 0.862 | BG31: 0.871 | BH31: 0.880 | BI31: 0.889 | BJ31: 0.897 | BK31: 0.906 | BL31: 0.915 | BM31: 0.924 | BN31: 0.932 | BO31: 0.941 | BP31: 0.950 | BQ31: 0.959 | BR31: 0.968 | BS31: 0.976 | BT31: 0.985 | BU31: 0.994 | BV31: 1.003 | BW31: 1.012 | BX31: 1.020 | BY31: 1.029 | BZ31: 1.038 | CA31: 1.047 | CB31: 1.056 | CC31: 1.064 | CD31: 1.073 | CE31: 1.082 | CF31: 1.091 | CG31: 1.100 | CH31: 1.109 | CI31: 1.118 | CJ31: 1.127 | CK31: 1.136 | CL31: 1.144 | CM31: 1.153 | CN31: 1.162 | CO31: 1.171 | CP31: 1.180 | CQ31: 1.189 | CR31: 1.198 | CS31: 1.207 | CT31: 1.216 | CU31: 1.225 | CV31: 1.234 | CW31: 1.243 | CX31: 1.253 | CY31: 1.262 | CZ31: 1.271 | DA31: 1.280 | DB31: 1.289 | DC31: 1.298 | DD31: 1.308 | DE31: 1.317 | DF31: 1.326 | DG31: 1.335 | DH31: 1.345 | DI31: 1.354 | DJ31: 1.364 | DK31: 1.373 | DL31: 1.382 | DM31: 1.392 | DN31: 1.402 | DO31: 1.411 | DP31: 1.421 | DQ31: 1.430 | DR31: 1.440 | DS31: 1.450 | DT31: 1.460 | DU31: 1.470 | DV31: 1.480 | DW31: 1.490 | DX31: 1.500 | DY31: 1.510 | DZ31: 1.520 | EA31: 1.530 | EB31: 1.540 | EC31: 1.551 | ED31: 1.561 | EE31: 1.572 | EF31: 1.582 | EG31: 1.593 | EH31: 1.604 | EI31: 1.615 | EJ31: 1.626 | EK31: 1.637 | EL31: 1.648 | EM31: 1.660 | EN31: 1.671 | EO31: 1.683 | EP31: 1.694 | EQ31: 1.703 | ER31: 1.713 | ES31: 1.723 | ET31: 1.734 | EU31: 1.744 | EV31: 1.754 | EW31: 1.765 | EX31: 1.776 | EY31: 1.787 | EZ31: 1.798 | FA31: 1.809 | FB31: 1.820 | FC31: 1.832 | FE31: 1.4915 | FF31: 1.4852 | FG31: 1.4787 | FH31: 1.4721 | FK31: 1.4852
C32: Wind direction: | J32: =IF(L11=AD10,"I","ANY") -> I | L32: II | N32: III | P32: IV | AD32: distance to shoreline: | AW32: 0.741 | AX32: 0.791 | AY32: 0.800 | AZ32: 0.809 | BA32: 0.817 | BB32: 0.826 | BC32: 0.835 | BD32: 0.843 | BE32: 0.852 | BF32: 0.861 | BG32: 0.870 | BH32: 0.878 | BI32: 0.887 | BJ32: 0.896 | BK32: 0.905 | BL32: 0.913 | BM32: 0.922 | BN32: 0.931 | BO32: 0.940 | BP32: 0.948 | BQ32: 0.957 | BR32: 0.966 | BS32: 0.975 | BT32: 0.983 | BU32: 0.992 | BV32: 1.001 | BW32: 1.010 | BX32: 1.018 | BY32: 1.027 | BZ32: 1.036 | CA32: 1.045 | CB32: 1.054 | CC32: 1.063 | CD32: 1.071 | CE32: 1.080 | CF32: 1.089 | CG32: 1.098 | CH32: 1.107 | CI32: 1.116 | CJ32: 1.125 | CK32: 1.133 | CL32: 1.142 | CM32: 1.151 | CN32: 1.160 | CO32: 1.169 | CP32: 1.178 | CQ32: 1.187 | CR32: 1.196 | CS32: 1.205 | CT32: 1.214 | CU32: 1.223 | CV32: 1.232 | CW32: 1.241 | CX32: 1.250 | CY32: 1.259 | CZ32: 1.268 | DA32: 1.278 | DB32: 1.287 | DC32: 1.296 | DD32: 1.305 | DE32: 1.314 | DF32: 1.324 | DG32: 1.333 | DH32: 1.342 | DI32: 1.352 | DJ32: 1.361 | DK32: 1.370 | DL32: 1.380 | DM32: 1.389 | DN32: 1.399 | DO32: 1.409 | DP32: 1.418 | DQ32: 1.428 | DR32: 1.437 | DS32: 1.447 | DT32: 1.457 | DU32: 1.467 | DV32: 1.477 | DW32: 1.487 | DX32: 1.497 | DY32: 1.507 | DZ32: 1.517 | EA32: 1.527 | EB32: 1.538 | EC32: 1.548 | ED32: 1.558 | EE32: 1.569 | EF32: 1.580 | EG32: 1.590 | EH32: 1.601 | EI32: 1.612 | EJ32: 1.623 | EK32: 1.634 | EL32: 1.645 | EM32: 1.657 | EN32: 1.668 | EO32: 1.680 | EP32: 1.691 | EQ32: 1.703 | ER32: 1.713 | ES32: 1.723 | ET32: 1.734 | EU32: 1.744 | EV32: 1.754 | EW32: 1.765 | EX32: 1.776 | EY32: 1.787 | EZ32: 1.798 | FA32: 1.809 | FB32: 1.820 | FC32: 1.832 | FE32: 1.4887 | FF32: 1.4824 | FG32: 1.4760 | FH32: 1.4694 | FK32: 1.4824
C33: Terrain in upwind direction: | J33: town | L33: town | N33: country | P33: country | AD33: I | AE33: II | AF33: III | AG33: IV | AL33: Topography factor co | AN33: Topography factor co | AW33: 0.794 | AX33: 0.790 | AY33: 0.798 | AZ33: 0.807 | BA33: 0.816 | BB33: 0.825 | BC33: 0.833 | BD33: 0.842 | BE33: 0.851 | BF33: 0.859 | BG33: 0.868 | BH33: 0.877 | BI33: 0.885 | BJ33: 0.894 | BK33: 0.903 | BL33: 0.912 | BM33: 0.920 | BN33: 0.929 | BO33: 0.938 | BP33: 0.947 | BQ33: 0.955 | BR33: 0.964 | BS33: 0.973 | BT33: 0.982 | BU33: 0.990 | BV33: 0.999 | BW33: 1.008 | BX33: 1.017 | BY33: 1.025 | BZ33: 1.034 | CA33: 1.043 | CB33: 1.052 | CC33: 1.061 | CD33: 1.069 | CE33: 1.078 | CF33: 1.087 | CG33: 1.096 | CH33: 1.105 | CI33: 1.114 | CJ33: 1.122 | CK33: 1.131 | CL33: 1.140 | CM33: 1.149 | CN33: 1.158 | CO33: 1.167 | CP33: 1.176 | CQ33: 1.185 | CR33: 1.194 | CS33: 1.203 | CT33: 1.212 | CU33: 1.221 | CV33: 1.230 | CW33: 1.239 | CX33: 1.248 | CY33: 1.257 | CZ33: 1.266 | DA33: 1.275 | DB33: 1.284 | DC33: 1.294 | DD33: 1.303 | DE33: 1.312 | DF33: 1.321 | DG33: 1.331 | DH33: 1.340 | DI33: 1.349 | DJ33: 1.359 | DK33: 1.368 | DL33: 1.377 | DM33: 1.387 | DN33: 1.396 | DO33: 1.406 | DP33: 1.416 | DQ33: 1.425 | DR33: 1.435 | DS33: 1.445 | DT33: 1.454 | DU33: 1.464 | DV33: 1.474 | DW33: 1.484 | DX33: 1.494 | DY33: 1.504 | DZ33: 1.514 | EA33: 1.525 | EB33: 1.535 | EC33: 1.545 | ED33: 1.556 | EE33: 1.566 | EF33: 1.577 | EG33: 1.587 | EH33: 1.598 | EI33: 1.609 | EJ33: 1.620 | EK33: 1.631 | EL33: 1.642 | EM33: 1.654 | EN33: 1.665 | EO33: 1.677 | EP33: 1.688 | EQ33: 1.700 | ER33: 1.712 | ES33: 1.723 | ET33: 1.734 | EU33: 1.744 | EV33: 1.754 | EW33: 1.765 | EX33: 1.776 | EY33: 1.787 | EZ33: 1.798 | FA33: 1.809 | FB33: 1.820 | FC33: 1.832 | FE33: 1.4860 | FF33: 1.4797 | FG33: 1.4733 | FH33: 1.4667 | FK33: 1.4797
C34: Distance upwind to shoreline [km] = | J34: 200 | L34: 54 | N34: 0.5 | P34: 200 | AD34: first row is from database, second from user input | AL34: FULL HEIGHT | AN34: FOR LOWER PART | AW34: 0.851 | AX34: 0.788 | AY34: 0.797 | AZ34: 0.806 | BA34: 0.814 | BB34: 0.823 | BC34: 0.832 | BD34: 0.840 | BE34: 0.849 | BF34: 0.858 | BG34: 0.866 | BH34: 0.875 | BI34: 0.884 | BJ34: 0.893 | BK34: 0.901 | BL34: 0.910 | BM34: 0.919 | BN34: 0.927 | BO34: 0.936 | BP34: 0.945 | BQ34: 0.954 | BR34: 0.962 | BS34: 0.971 | BT34: 0.980 | BU34: 0.989 | BV34: 0.997 | BW34: 1.006 | BX34: 1.015 | BY34: 1.024 | BZ34: 1.032 | CA34: 1.041 | CB34: 1.050 | CC34: 1.059 | CD34: 1.067 | CE34: 1.076 | CF34: 1.085 | CG34: 1.094 | CH34: 1.103 | CI34: 1.112 | CJ34: 1.120 | CK34: 1.129 | CL34: 1.138 | CM34: 1.147 | CN34: 1.156 | CO34: 1.165 | CP34: 1.174 | CQ34: 1.183 | CR34: 1.192 | CS34: 1.201 | CT34: 1.210 | CU34: 1.219 | CV34: 1.228 | CW34: 1.237 | CX34: 1.246 | CY34: 1.255 | CZ34: 1.264 | DA34: 1.273 | DB34: 1.282 | DC34: 1.291 | DD34: 1.300 | DE34: 1.310 | DF34: 1.319 | DG34: 1.328 | DH34: 1.337 | DI34: 1.347 | DJ34: 1.356 | DK34: 1.366 | DL34: 1.375 | DM34: 1.384 | DN34: 1.394 | DO34: 1.403 | DP34: 1.413 | DQ34: 1.423 | DR34: 1.432 | DS34: 1.442 | DT34: 1.452 | DU34: 1.462 | DV34: 1.471 | DW34: 1.481 | DX34: 1.491 | DY34: 1.501 | DZ34: 1.512 | EA34: 1.522 | EB34: 1.532 | EC34: 1.542 | ED34: 1.553 | EE34: 1.563 | EF34: 1.574 | EG34: 1.585 | EH34: 1.595 | EI34: 1.606 | EJ34: 1.617 | EK34: 1.628 | EL34: 1.639 | EM34: 1.651 | EN34: 1.662 | EO34: 1.674 | EP34: 1.685 | EQ34: 1.697 | ER34: 1.709 | ES34: 1.721 | ET34: 1.733 | EU34: 1.744 | EV34: 1.754 | EW34: 1.765 | EX34: 1.776 | EY34: 1.787 | EZ34: 1.798 | FA34: 1.809 | FB34: 1.820 | FC34: 1.832 | FE34: 1.4834 | FF34: 1.4771 | FG34: 1.4707 | FH34: 1.4641 | FK34: 1.4771
C35: Distance upwind inside town [km] = | J35: 6 | L35: 6 | N35: 6 | P35: 6 | AD35: =VLOOKUP(Database!B2,Database!B3:J62,5) -> 200 | AE35: =VLOOKUP(Database!B2,Database!B3:J62,6) -> 54 | AF35: =VLOOKUP(Database!B2,Database!B3:J62,7) -> 0.5 | AG35: =VLOOKUP(Database!B2,Database!B3:J62,8) -> 200 | AH35: min= | AI35: =MIN(AD35:AG35) -> 0.5 | AL35: =IF(AM38<=0.05,TRUE,FALSE) -> FALSE | AM35: 1.000 | AN35: =IF(AM38<=0.05,TRUE,FALSE) -> FALSE | AO35: 1.000 | AW35: 0.912 | AX35: 0.787 | AY35: 0.796 | AZ35: 0.804 | BA35: 0.813 | BB35: 0.822 | BC35: 0.830 | BD35: 0.839 | BE35: 0.848 | BF35: 0.856 | BG35: 0.865 | BH35: 0.874 | BI35: 0.882 | BJ35: 0.891 | BK35: 0.900 | BL35: 0.908 | BM35: 0.917 | BN35: 0.926 | BO35: 0.934 | BP35: 0.943 | BQ35: 0.952 | BR35: 0.961 | BS35: 0.969 | BT35: 0.978 | BU35: 0.987 | BV35: 0.996 | BW35: 1.004 | BX35: 1.013 | BY35: 1.022 | BZ35: 1.031 | CA35: 1.039 | CB35: 1.048 | CC35: 1.057 | CD35: 1.066 | CE35: 1.074 | CF35: 1.083 | CG35: 1.092 | CH35: 1.101 | CI35: 1.110 | CJ35: 1.118 | CK35: 1.127 | CL35: 1.136 | CM35: 1.145 | CN35: 1.154 | CO35: 1.163 | CP35: 1.172 | CQ35: 1.181 | CR35: 1.190 | CS35: 1.199 | CT35: 1.208 | CU35: 1.216 | CV35: 1.225 | CW35: 1.235 | CX35: 1.244 | CY35: 1.253 | CZ35: 1.262 | DA35: 1.271 | DB35: 1.280 | DC35: 1.289 | DD35: 1.298 | DE35: 1.307 | DF35: 1.317 | DG35: 1.326 | DH35: 1.335 | DI35: 1.344 | DJ35: 1.354 | DK35: 1.363 | DL35: 1.373 | DM35: 1.382 | DN35: 1.391 | DO35: 1.401 | DP35: 1.411 | DQ35: 1.420 | DR35: 1.430 | DS35: 1.439 | DT35: 1.449 | DU35: 1.459 | DV35: 1.469 | DW35: 1.479 | DX35: 1.489 | DY35: 1.499 | DZ35: 1.509 | EA35: 1.519 | EB35: 1.529 | EC35: 1.540 | ED35: 1.550 | EE35: 1.561 | EF35: 1.571 | EG35: 1.582 | EH35: 1.592 | EI35: 1.603 | EJ35: 1.614 | EK35: 1.625 | EL35: 1.636 | EM35: 1.648 | EN35: 1.659 | EO35: 1.671 | EP35: 1.682 | EQ35: 1.694 | ER35: 1.706 | ES35: 1.718 | ET35: 1.730 | EU35: 1.743 | EV35: 1.754 | EW35: 1.765 | EX35: 1.776 | EY35: 1.787 | EZ35: 1.798 | FA35: 1.809 | FB35: 1.820 | FC35: 1.832 | FE35: 1.4808 | FF35: =FORECAST(L$39,OFFSET($AX35,0,MATCH(L$39,$AX$2:$FC$2,1)-1,1,2),OFFSET($AX$2,0,MATCH(L$39,$AX$2:$FC$2,1)-1,1,2)) -> 1.4745 | FG35: =FORECAST(N$39,OFFSET($AX35,0,MATCH(N$39,$AX$2:$FC$2,1)-1,1,2),OFFSET($AX$2,0,MATCH(N$39,$AX$2:$FC$2,1)-1,1,2)) -> 1.4681 | FH35: =FORECAST(P$39,OFFSET($AX35,0,MATCH(P$39,$AX$2:$FC$2,1)-1,1,2),OFFSET($AX$2,0,MATCH(P$39,$AX$2:$FC$2,1)-1,1,2)) -> 1.4615 | FK35: =FORECAST(AN$22,OFFSET($AX35,0,MATCH(AN$22,$AX$2:$FC$2,1)-1,1,2),OFFSET($AX$2,0,MATCH(AN$22,$AX$2:$FC$2,1)-1,1,2)) -> 1.4745
C36: NEARBY BUILDINGS DATA: | AD36: =MIN(99.9,MAX(0.1,J34)) -> 99.9 | AE36: =MIN(99.9,MAX(0.1,L34)) -> 54 | AF36: =MIN(99.9,MAX(0.1,N34)) -> 0.5 | AG36: =MIN(99.9,MAX(0.1,P34)) -> 99.9 | AL36: =AND(0.05<AM38,AM38<=0.3) -> TRUE | AM36: =1+2*AT46*Z15 -> 1.047 | AN36: =AND(0.05<AM38,AM38<=0.3) -> TRUE | AO36: =1+2*AT60*Z15 -> 1.050 | AW36: 0.977 | AX36: 0.786 | AY36: 0.794 | AZ36: 0.803 | BA36: 0.812 | BB36: 0.820 | BC36: 0.829 | BD36: 0.837 | BE36: 0.846 | BF36: 0.855 | BG36: 0.863 | BH36: 0.872 | BI36: 0.881 | BJ36: 0.889 | BK36: 0.898 | BL36: 0.907 | BM36: 0.915 | BN36: 0.924 | BO36: 0.933 | BP36: 0.942 | BQ36: 0.950 | BR36: 0.959 | BS36: 0.968 | BT36: 0.976 | BU36: 0.985 | BV36: 0.994 | BW36: 1.003 | BX36: 1.011 | BY36: 1.020 | BZ36: 1.029 | CA36: 1.037 | CB36: 1.046 | CC36: 1.055 | CD36: 1.064 | CE36: 1.073 | CF36: 1.081 | CG36: 1.090 | CH36: 1.099 | CI36: 1.108 | CJ36: 1.117 | CK36: 1.125 | CL36: 1.134 | CM36: 1.143 | CN36: 1.152 | CO36: 1.161 | CP36: 1.170 | CQ36: 1.179 | CR36: 1.188 | CS36: 1.196 | CT36: 1.205 | CU36: 1.214 | CV36: 1.223 | CW36: 1.232 | CX36: 1.241 | CY36: 1.250 | CZ36: 1.259 | DA36: 1.269 | DB36: 1.278 | DC36: 1.287 | DD36: 1.296 | DE36: 1.305 | DF36: 1.314 | DG36: 1.324 | DH36: 1.333 | DI36: 1.342 | DJ36: 1.351 | DK36: 1.361 | DL36: 1.370 | DM36: 1.380 | DN36: 1.389 | DO36: 1.399 | DP36: 1.408 | DQ36: 1.418 | DR36: 1.427 | DS36: 1.437 | DT36: 1.447 | DU36: 1.456 | DV36: 1.466 | DW36: 1.476 | DX36: 1.486 | DY36: 1.496 | DZ36: 1.506 | EA36: 1.516 | EB36: 1.527 | EC36: 1.537 | ED36: 1.547 | EE36: 1.558 | EF36: 1.568 | EG36: 1.579 | EH36: 1.590 | EI36: 1.600 | EJ36: 1.611 | EK36: 1.622 | EL36: 1.634 | EM36: 1.645 | EN36: 1.656 | EO36: 1.668 | EP36: 1.679 | EQ36: 1.691 | ER36: 1.703 | ES36: 1.715 | ET36: 1.727 | EU36: 1.740 | EV36: 1.752 | EW36: 1.765 | EX36: 1.776 | EY36: 1.787 | EZ36: 1.798 | FA36: 1.809 | FB36: 1.820 | FC36: 1.832 | FE36: 1.4782 | FF36: 1.4719 | FG36: 1.4655 | FH36: 1.4589 | FK36: 1.4719
C37: Average height 'have' [m] = | J37: 15 | L37: 17.5 | N37: 20 | P37: 22.5 | AD37: distance inside town: | AL37: =IF(AM38>0.3,TRUE,FALSE) -> FALSE | AM37: =1+0.6*AT46 -> 1.047 | AN37: =IF(AM38>0.3,TRUE,FALSE) -> FALSE | AO37: =1+0.6*AT60 -> 1.050 | AW37: 1.047 | AX37: 0.784 | AY37: 0.793 | AZ37: 0.801 | BA37: 0.810 | BB37: 0.819 | BC37: 0.827 | BD37: 0.836 | BE37: 0.845 | BF37: 0.853 | BG37: 0.862 | BH37: 0.871 | BI37: 0.879 | BJ37: 0.888 | BK37: 0.897 | BL37: 0.905 | BM37: 0.914 | BN37: 0.923 | BO37: 0.931 | BP37: 0.940 | BQ37: 0.949 | BR37: 0.957 | BS37: 0.966 | BT37: 0.975 | BU37: 0.983 | BV37: 0.992 | BW37: 1.001 | BX37: 1.009 | BY37: 1.018 | BZ37: 1.027 | CA37: 1.036 | CB37: 1.044 | CC37: 1.053 | CD37: 1.062 | CE37: 1.071 | CF37: 1.079 | CG37: 1.088 | CH37: 1.097 | CI37: 1.106 | CJ37: 1.115 | CK37: 1.123 | CL37: 1.132 | CM37: 1.141 | CN37: 1.150 | CO37: 1.159 | CP37: 1.168 | CQ37: 1.177 | CR37: 1.185 | CS37: 1.194 | CT37: 1.203 | CU37: 1.212 | CV37: 1.221 | CW37: 1.230 | CX37: 1.239 | CY37: 1.248 | CZ37: 1.257 | DA37: 1.266 | DB37: 1.275 | DC37: 1.285 | DD37: 1.294 | DE37: 1.303 | DF37: 1.312 | DG37: 1.321 | DH37: 1.330 | DI37: 1.340 | DJ37: 1.349 | DK37: 1.358 | DL37: 1.368 | DM37: 1.377 | DN37: 1.387 | DO37: 1.396 | DP37: 1.406 | DQ37: 1.415 | DR37: 1.425 | DS37: 1.434 | DT37: 1.444 | DU37: 1.454 | DV37: 1.464 | DW37: 1.474 | DX37: 1.484 | DY37: 1.494 | DZ37: 1.504 | EA37: 1.514 | EB37: 1.524 | EC37: 1.534 | ED37: 1.545 | EE37: 1.555 | EF37: 1.566 | EG37: 1.576 | EH37: 1.587 | EI37: 1.598 | EJ37: 1.609 | EK37: 1.620 | EL37: 1.631 | EM37: 1.642 | EN37: 1.653 | EO37: 1.665 | EP37: 1.676 | EQ37: 1.688 | ER37: 1.700 | ES37: 1.712 | ET37: 1.724 | EU37: 1.736 | EV37: 1.749 | EW37: 1.762 | EX37: 1.774 | EY37: 1.787 | EZ37: 1.798 | FA37: 1.809 | FB37: 1.820 | FC37: 1.832 | FE37: 1.4756 | FF37: 1.4693 | FG37: 1.4630 | FH37: 1.4564 | FK37: 1.4693
C38: Upwind spacing 'x' [m] = | J38: 10 | L38: 10 | N38: 10 | P38: 10 | AD38: =VLOOKUP(Database!B2,Database!B3:J62,9) -> 6 | AE38: from database, constant for all directions | AL38: f | AM38: =+Z15 -> 0.300 | AW38: 1.122 | AX38: 0.783 | AY38: 0.791 | AZ38: 0.800 | BA38: 0.809 | BB38: 0.817 | BC38: 0.826 | BD38: 0.835 | BE38: 0.843 | BF38: 0.852 | BG38: 0.860 | BH38: 0.869 | BI38: 0.878 | BJ38: 0.886 | BK38: 0.895 | BL38: 0.904 | BM38: 0.912 | BN38: 0.921 | BO38: 0.930 | BP38: 0.938 | BQ38: 0.947 | BR38: 0.956 | BS38: 0.964 | BT38: 0.973 | BU38: 0.982 | BV38: 0.990 | BW38: 0.999 | BX38: 1.008 | BY38: 1.016 | BZ38: 1.025 | CA38: 1.034 | CB38: 1.043 | CC38: 1.051 | CD38: 1.060 | CE38: 1.069 | CF38: 1.078 | CG38: 1.086 | CH38: 1.095 | CI38: 1.104 | CJ38: 1.113 | CK38: 1.122 | CL38: 1.130 | CM38: 1.139 | CN38: 1.148 | CO38: 1.157 | CP38: 1.166 | CQ38: 1.175 | CR38: 1.183 | CS38: 1.192 | CT38: 1.201 | CU38: 1.210 | CV38: 1.219 | CW38: 1.228 | CX38: 1.237 | CY38: 1.246 | CZ38: 1.255 | DA38: 1.264 | DB38: 1.273 | DC38: 1.282 | DD38: 1.291 | DE38: 1.301 | DF38: 1.310 | DG38: 1.319 | DH38: 1.328 | DI38: 1.337 | DJ38: 1.347 | DK38: 1.356 | DL38: 1.365 | DM38: 1.375 | DN38: 1.384 | DO38: 1.394 | DP38: 1.403 | DQ38: 1.413 | DR38: 1.422 | DS38: 1.432 | DT38: 1.442 | DU38: 1.451 | DV38: 1.461 | DW38: 1.471 | DX38: 1.481 | DY38: 1.491 | DZ38: 1.501 | EA38: 1.511 | EB38: 1.521 | EC38: 1.532 | ED38: 1.542 | EE38: 1.552 | EF38: 1.563 | EG38: 1.574 | EH38: 1.584 | EI38: 1.595 | EJ38: 1.606 | EK38: 1.617 | EL38: 1.628 | EM38: 1.639 | EN38: 1.650 | EO38: 1.662 | EP38: 1.674 | EQ38: 1.685 | ER38: 1.697 | ES38: 1.709 | ET38: 1.721 | EU38: 1.734 | EV38: 1.746 | EW38: 1.759 | EX38: 1.771 | EY38: 1.784 | EZ38: 1.798 | FA38: 1.809 | FB38: 1.820 | FC38: 1.832 | FE38: 1.4731 | FF38: 1.4668 | FG38: 1.4605 | FH38: 1.4539 | FK38: 1.4668
C39: Effective height 'hef' [m] = | J39: =VLOOKUP(AI12,AJ18:AO19,3) -> 70.00 | L39: =IF($L$11=$AD$11,"-",VLOOKUP(AI12,AJ18:AO19,4)) -> 68.00 | N39: =IF($L$11=$AD$11,"-",VLOOKUP(AI12,AJ18:AO19,5)) -> 66.00 | P39: =IF($L$11=$AD$11,"-",VLOOKUP(AI12,AJ18:AO19,6)) -> 64.00 | AD39: =MIN(99.9,MAX(0.1,J35)) -> 6 | AE39: =MIN(99.9,MAX(0.1,L35)) -> 6 | AF39: =MIN(99.9,MAX(0.1,N35)) -> 6 | AG39: =MIN(99.9,MAX(0.1,P35)) -> 6 | AW39: 1.202 | AX39: 0.782 | AY39: 0.790 | AZ39: 0.799 | BA39: 0.807 | BB39: 0.816 | BC39: 0.825 | BD39: 0.833 | BE39: 0.842 | BF39: 0.850 | BG39: 0.859 | BH39: 0.868 | BI39: 0.876 | BJ39: 0.885 | BK39: 0.894 | BL39: 0.902 | BM39: 0.911 | BN39: 0.919 | BO39: 0.928 | BP39: 0.937 | BQ39: 0.945 | BR39: 0.954 | BS39: 0.963 | BT39: 0.971 | BU39: 0.980 | BV39: 0.989 | BW39: 0.997 | BX39: 1.006 | BY39: 1.015 | BZ39: 1.023 | CA39: 1.032 | CB39: 1.041 | CC39: 1.050 | CD39: 1.058 | CE39: 1.067 | CF39: 1.076 | CG39: 1.085 | CH39: 1.093 | CI39: 1.102 | CJ39: 1.111 | CK39: 1.120 | CL39: 1.128 | CM39: 1.137 | CN39: 1.146 | CO39: 1.155 | CP39: 1.164 | CQ39: 1.173 | CR39: 1.181 | CS39: 1.190 | CT39: 1.199 | CU39: 1.208 | CV39: 1.217 | CW39: 1.226 | CX39: 1.235 | CY39: 1.244 | CZ39: 1.253 | DA39: 1.262 | DB39: 1.271 | DC39: 1.280 | DD39: 1.289 | DE39: 1.298 | DF39: 1.308 | DG39: 1.317 | DH39: 1.326 | DI39: 1.335 | DJ39: 1.344 | DK39: 1.354 | DL39: 1.363 | DM39: 1.373 | DN39: 1.382 | DO39: 1.391 | DP39: 1.401 | DQ39: 1.410 | DR39: 1.420 | DS39: 1.430 | DT39: 1.439 | DU39: 1.449 | DV39: 1.459 | DW39: 1.469 | DX39: 1.479 | DY39: 1.489 | DZ39: 1.499 | EA39: 1.509 | EB39: 1.519 | EC39: 1.529 | ED39: 1.539 | EE39: 1.550 | EF39: 1.560 | EG39: 1.571 | EH39: 1.582 | EI39: 1.592 | EJ39: 1.603 | EK39: 1.614 | EL39: 1.625 | EM39: 1.636 | EN39: 1.648 | EO39: 1.659 | EP39: 1.671 | EQ39: 1.682 | ER39: 1.694 | ES39: 1.706 | ET39: 1.718 | EU39: 1.731 | EV39: 1.743 | EW39: 1.756 | EX39: 1.768 | EY39: 1.781 | EZ39: 1.795 | FA39: 1.808 | FB39: 1.820 | FC39: 1.832 | FE39: 1.4706 | FF39: 1.4644 | FG39: 1.4581 | FH39: 1.4515 | FK39: 1.4644
AD40: terrain: | AW40: 1.288 | AX40: 0.780 | AY40: 0.789 | AZ40: 0.797 | BA40: 0.806 | BB40: 0.815 | BC40: 0.823 | BD40: 0.832 | BE40: 0.840 | BF40: 0.849 | BG40: 0.858 | BH40: 0.866 | BI40: 0.875 | BJ40: 0.883 | BK40: 0.892 | BL40: 0.901 | BM40: 0.909 | BN40: 0.918 | BO40: 0.927 | BP40: 0.935 | BQ40: 0.944 | BR40: 0.952 | BS40: 0.961 | BT40: 0.970 | BU40: 0.978 | BV40: 0.987 | BW40: 0.996 | BX40: 1.004 | BY40: 1.013 | BZ40: 1.022 | CA40: 1.030 | CB40: 1.039 | CC40: 1.048 | CD40: 1.057 | CE40: 1.065 | CF40: 1.074 | CG40: 1.083 | CH40: 1.091 | CI40: 1.100 | CJ40: 1.109 | CK40: 1.118 | CL40: 1.127 | CM40: 1.135 | CN40: 1.144 | CO40: 1.153 | CP40: 1.162 | CQ40: 1.171 | CR40: 1.179 | CS40: 1.188 | CT40: 1.197 | CU40: 1.206 | CV40: 1.215 | CW40: 1.224 | CX40: 1.233 | CY40: 1.242 | CZ40: 1.251 | DA40: 1.260 | DB40: 1.269 | DC40: 1.278 | DD40: 1.287 | DE40: 1.296 | DF40: 1.305 | DG40: 1.315 | DH40: 1.324 | DI40: 1.333 | DJ40: 1.342 | DK40: 1.352 | DL40: 1.361 | DM40: 1.370 | DN40: 1.380 | DO40: 1.389 | DP40: 1.399 | DQ40: 1.408 | DR40: 1.418 | DS40: 1.427 | DT40: 1.437 | DU40: 1.447 | DV40: 1.456 | DW40: 1.466 | DX40: 1.476 | DY40: 1.486 | DZ40: 1.496 | EA40: 1.506 | EB40: 1.516 | EC40: 1.527 | ED40: 1.537 | EE40: 1.547 | EF40: 1.558 | EG40: 1.568 | EH40: 1.579 | EI40: 1.590 | EJ40: 1.600 | EK40: 1.611 | EL40: 1.623 | EM40: 1.634 | EN40: 1.645 | EO40: 1.656 | EP40: 1.668 | EQ40: 1.680 | ER40: 1.691 | ES40: 1.703 | ET40: 1.715 | EU40: 1.728 | EV40: 1.740 | EW40: 1.753 | EX40: 1.766 | EY40: 1.778 | EZ40: 1.792 | FA40: 1.805 | FB40: 1.819 | FC40: 1.832 | FE40: 1.4682 | FF40: 1.4619 | FG40: 1.4556 | FH40: 1.4491 | FK40: 1.4619
AD41: =MATCH(J33,$AD$19:$AD$20,0) -> 2 | AE41: =MATCH(L33,$AD$19:$AD$20,0) -> 2 | AF41: =MATCH(N33,$AD$19:$AD$20,0) -> 1 | AG41: =MATCH(P33,$AD$19:$AD$20,0) -> 1 | AW41: 1.380 | AX41: 0.779 | AY41: 0.788 | AZ41: 0.796 | BA41: 0.805 | BB41: 0.813 | BC41: 0.822 | BD41: 0.830 | BE41: 0.839 | BF41: 0.848 | BG41: 0.856 | BH41: 0.865 | BI41: 0.873 | BJ41: 0.882 | BK41: 0.891 | BL41: 0.899 | BM41: 0.908 | BN41: 0.916 | BO41: 0.925 | BP41: 0.934 | BQ41: 0.942 | BR41: 0.951 | BS41: 0.960 | BT41: 0.968 | BU41: 0.977 | BV41: 0.985 | BW41: 0.994 | BX41: 1.003 | BY41: 1.011 | BZ41: 1.020 | CA41: 1.029 | CB41: 1.037 | CC41: 1.046 | CD41: 1.055 | CE41: 1.064 | CF41: 1.072 | CG41: 1.081 | CH41: 1.090 | CI41: 1.098 | CJ41: 1.107 | CK41: 1.116 | CL41: 1.125 | CM41: 1.133 | CN41: 1.142 | CO41: 1.151 | CP41: 1.160 | CQ41: 1.169 | CR41: 1.178 | CS41: 1.186 | CT41: 1.195 | CU41: 1.204 | CV41: 1.213 | CW41: 1.222 | CX41: 1.231 | CY41: 1.240 | CZ41: 1.249 | DA41: 1.258 | DB41: 1.267 | DC41: 1.276 | DD41: 1.285 | DE41: 1.294 | DF41: 1.303 | DG41: 1.312 | DH41: 1.322 | DI41: 1.331 | DJ41: 1.340 | DK41: 1.349 | DL41: 1.359 | DM41: 1.368 | DN41: 1.377 | DO41: 1.387 | DP41: 1.396 | DQ41: 1.406 | DR41: 1.415 | DS41: 1.425 | DT41: 1.435 | DU41: 1.444 | DV41: 1.454 | DW41: 1.464 | DX41: 1.474 | DY41: 1.484 | DZ41: 1.494 | EA41: 1.504 | EB41: 1.514 | EC41: 1.524 | ED41: 1.534 | EE41: 1.545 | EF41: 1.555 | EG41: 1.566 | EH41: 1.576 | EI41: 1.587 | EJ41: 1.598 | EK41: 1.609 | EL41: 1.620 | EM41: 1.631 | EN41: 1.642 | EO41: 1.654 | EP41: 1.665 | EQ41: 1.677 | ER41: 1.689 | ES41: 1.701 | ET41: 1.713 | EU41: 1.725 | EV41: 1.737 | EW41: 1.750 | EX41: 1.763 | EY41: 1.776 | EZ41: 1.789 | FA41: 1.802 | FB41: 1.816 | FC41: 1.829 | FE41: 1.4658 | FF41: 1.4596 | FG41: 1.4533 | FH41: 1.4467 | FK41: 1.4596
C42: CALCULATIONS: PEAK VELOCITY PRESSURE | AG42: FULL HEIGHT | AW42: 1.479 | AX42: 0.778 | AY42: 0.786 | AZ42: 0.795 | BA42: 0.803 | BB42: 0.812 | BC42: 0.821 | BD42: 0.829 | BE42: 0.838 | BF42: 0.846 | BG42: 0.855 | BH42: 0.863 | BI42: 0.872 | BJ42: 0.881 | BK42: 0.889 | BL42: 0.898 | BM42: 0.906 | BN42: 0.915 | BO42: 0.924 | BP42: 0.932 | BQ42: 0.941 | BR42: 0.949 | BS42: 0.958 | BT42: 0.967 | BU42: 0.975 | BV42: 0.984 | BW42: 0.992 | BX42: 1.001 | BY42: 1.010 | BZ42: 1.018 | CA42: 1.027 | CB42: 1.036 | CC42: 1.044 | CD42: 1.053 | CE42: 1.062 | CF42: 1.070 | CG42: 1.079 | CH42: 1.088 | CI42: 1.097 | CJ42: 1.105 | CK42: 1.114 | CL42: 1.123 | CM42: 1.132 | CN42: 1.140 | CO42: 1.149 | CP42: 1.158 | CQ42: 1.167 | CR42: 1.176 | CS42: 1.184 | CT42: 1.193 | CU42: 1.202 | CV42: 1.211 | CW42: 1.220 | CX42: 1.229 | CY42: 1.238 | CZ42: 1.247 | DA42: 1.256 | DB42: 1.265 | DC42: 1.274 | DD42: 1.283 | DE42: 1.292 | DF42: 1.301 | DG42: 1.310 | DH42: 1.319 | DI42: 1.329 | DJ42: 1.338 | DK42: 1.347 | DL42: 1.356 | DM42: 1.366 | DN42: 1.375 | DO42: 1.385 | DP42: 1.394 | DQ42: 1.403 | DR42: 1.413 | DS42: 1.423 | DT42: 1.432 | DU42: 1.442 | DV42: 1.452 | DW42: 1.461 | DX42: 1.471 | DY42: 1.481 | DZ42: 1.491 | EA42: 1.501 | EB42: 1.511 | EC42: 1.522 | ED42: 1.532 | EE42: 1.542 | EF42: 1.553 | EG42: 1.563 | EH42: 1.574 | EI42: 1.584 | EJ42: 1.595 | EK42: 1.606 | EL42: 1.617 | EM42: 1.628 | EN42: 1.640 | EO42: 1.651 | EP42: 1.662 | EQ42: 1.674 | ER42: 1.686 | ES42: 1.698 | ET42: 1.710 | EU42: 1.722 | EV42: 1.734 | EW42: 1.747 | EX42: 1.760 | EY42: 1.773 | EZ42: 1.786 | FA42: 1.799 | FB42: 1.813 | FC42: 1.826 | FE42: 1.4634 | FF42: 1.4572 | FG42: 1.4509 | FH42: 1.4443 | FK42: 1.4572
C43: Wind direction: | J43: =IF(L11=AD10,"I","ANY") -> I | L43: II | N43: III | P43: IV | AI43: a) Upwind | AK43: b) Downwind Cliffs/esc | AO43: c) Downwind Hills/ridges | AW43: 1.585 | AX43: 0.776 | AY43: 0.785 | AZ43: 0.794 | BA43: 0.802 | BB43: 0.811 | BC43: 0.819 | BD43: 0.828 | BE43: 0.836 | BF43: 0.845 | BG43: 0.853 | BH43: 0.862 | BI43: 0.871 | BJ43: 0.879 | BK43: 0.888 | BL43: 0.896 | BM43: 0.905 | BN43: 0.913 | BO43: 0.922 | BP43: 0.931 | BQ43: 0.939 | BR43: 0.948 | BS43: 0.956 | BT43: 0.965 | BU43: 0.974 | BV43: 0.982 | BW43: 0.991 | BX43: 0.999 | BY43: 1.008 | BZ43: 1.017 | CA43: 1.025 | CB43: 1.034 | CC43: 1.043 | CD43: 1.051 | CE43: 1.060 | CF43: 1.069 | CG43: 1.077 | CH43: 1.086 | CI43: 1.095 | CJ43: 1.104 | CK43: 1.112 | CL43: 1.121 | CM43: 1.130 | CN43: 1.139 | CO43: 1.147 | CP43: 1.156 | CQ43: 1.165 | CR43: 1.174 | CS43: 1.183 | CT43: 1.191 | CU43: 1.200 | CV43: 1.209 | CW43: 1.218 | CX43: 1.227 | CY43: 1.236 | CZ43: 1.245 | DA43: 1.254 | DB43: 1.263 | DC43: 1.272 | DD43: 1.281 | DE43: 1.290 | DF43: 1.299 | DG43: 1.308 | DH43: 1.317 | DI43: 1.326 | DJ43: 1.336 | DK43: 1.345 | DL43: 1.354 | DM43: 1.364 | DN43: 1.373 | DO43: 1.382 | DP43: 1.392 | DQ43: 1.401 | DR43: 1.411 | DS43: 1.420 | DT43: 1.430 | DU43: 1.440 | DV43: 1.449 | DW43: 1.459 | DX43: 1.469 | DY43: 1.479 | DZ43: 1.489 | EA43: 1.499 | EB43: 1.509 | EC43: 1.519 | ED43: 1.529 | EE43: 1.540 | EF43: 1.550 | EG43: 1.561 | EH43: 1.571 | EI43: 1.582 | EJ43: 1.593 | EK43: 1.604 | EL43: 1.615 | EM43: 1.626 | EN43: 1.637 | EO43: 1.648 | EP43: 1.660 | EQ43: 1.671 | ER43: 1.683 | ES43: 1.695 | ET43: 1.707 | EU43: 1.719 | EV43: 1.732 | EW43: 1.744 | EX43: 1.757 | EY43: 1.770 | EZ43: 1.783 | FA43: 1.796 | FB43: 1.810 | FC43: 1.823 | FE43: 1.4610 | FF43: 1.4548 | FG43: 1.4486 | FH43: 1.4420 | FK43: 1.4548
C44: Topography factor 'co' = | J44: =IF($L$10=$AD$8,"-",VLOOKUP(TRUE,$AL$35:$AM$37,2,FALSE)) -> 1.05 | L44: =IF(OR($L$11=$AD$11,$L$10=$AD$8),"-",J44) -> 1.05 | N44: =IF(OR($L$11=$AD$11,$L$10=$AD$8),"-",J44) -> 1.05 | P44: =IF(OR($L$11=$AD$11,$L$10=$AD$8),"-",J44) -> 1.05 | AI44: =IF(Database!O9=1,TRUE,FALSE) -> TRUE | AL44: =AND(Database!O9=2,Database!O14=1) -> FALSE | AO44: =AND(Database!O9=2,Database!O14=2) -> FALSE | AW44: 1.698 | AX44: 0.775 | AY44: 0.784 | AZ44: 0.792 | BA44: 0.801 | BB44: 0.809 | BC44: 0.818 | BD44: 0.826 | BE44: 0.835 | BF44: 0.844 | BG44: 0.852 | BH44: 0.861 | BI44: 0.869 | BJ44: 0.878 | BK44: 0.886 | BL44: 0.895 | BM44: 0.903 | BN44: 0.912 | BO44: 0.921 | BP44: 0.929 | BQ44: 0.938 | BR44: 0.946 | BS44: 0.955 | BT44: 0.963 | BU44: 0.972 | BV44: 0.981 | BW44: 0.989 | BX44: 0.998 | BY44: 1.007 | BZ44: 1.015 | CA44: 1.024 | CB44: 1.032 | CC44: 1.041 | CD44: 1.050 | CE44: 1.058 | CF44: 1.067 | CG44: 1.076 | CH44: 1.084 | CI44: 1.093 | CJ44: 1.102 | CK44: 1.111 | CL44: 1.119 | CM44: 1.128 | CN44: 1.137 | CO44: 1.146 | CP44: 1.154 | CQ44: 1.163 | CR44: 1.172 | CS44: 1.181 | CT44: 1.190 | CU44: 1.198 | CV44: 1.207 | CW44: 1.216 | CX44: 1.225 | CY44: 1.234 | CZ44: 1.243 | DA44: 1.252 | DB44: 1.261 | DC44: 1.270 | DD44: 1.279 | DE44: 1.288 | DF44: 1.297 | DG44: 1.306 | DH44: 1.315 | DI44: 1.324 | DJ44: 1.334 | DK44: 1.343 | DL44: 1.352 | DM44: 1.361 | DN44: 1.371 | DO44: 1.380 | DP44: 1.390 | DQ44: 1.399 | DR44: 1.408 | DS44: 1.418 | DT44: 1.428 | DU44: 1.437 | DV44: 1.447 | DW44: 1.457 | DX44: 1.467 | DY44: 1.476 | DZ44: 1.486 | EA44: 1.496 | EB44: 1.507 | EC44: 1.517 | ED44: 1.527 | EE44: 1.537 | EF44: 1.548 | EG44: 1.558 | EH44: 1.569 | EI44: 1.579 | EJ44: 1.590 | EK44: 1.601 | EL44: 1.612 | EM44: 1.623 | EN44: 1.634 | EO44: 1.646 | EP44: 1.657 | EQ44: 1.669 | ER44: 1.680 | ES44: 1.692 | ET44: 1.704 | EU44: 1.717 | EV44: 1.729 | EW44: 1.741 | EX44: 1.754 | EY44: 1.767 | EZ44: 1.780 | FA44: 1.793 | FB44: 1.807 | FC44: 1.820 | FE44: 1.4587 | FF44: 1.4525 | FG44: 1.4463 | FH44: 1.4397 | FK44: 1.4525
C45: Roughness factor 'cr(z)' = | J45: =IF($L$10=$AD$8,"-",FORECAST(AD$36,OFFSET(FE$3,MATCH(AD$36,$AW$3:$AW$103,1)-1,0,2),OFFSET($AW$3,MATCH(AD$36,$AW$3:$AW$103,1)-1,0,2))) -> 1.36 | L45: =IF(OR(OR($L$11=$AD$11,$L$10=$AD$8),$L$10=$AD$8),"-",FORECAST(AE$36,OFFSET(FF$3,MATCH(AE$36,$AW$3:$AW$103,1)-1,0,2),OFFSET($AW$3,MATCH(AE$36,$AW$3:$AW$103,1)-1,0,2))) -> 1.37 | N45: =IF(OR($L$11=$AD$11,$L$10=$AD$8),"-",FORECAST(AF$36,OFFSET(FG$3,MATCH(AF$36,$AW$3:$AW$103,1)-1,0,2),OFFSET($AW$3,MATCH(AF$36,$AW$3:$AW$103,1)-1,0,2))) -> 1.49 | P45: =IF(OR($L$11=$AD$11,$L$10=$AD$8),"-",FORECAST(AG$36,OFFSET(FH$3,MATCH(AG$36,$AW$3:$AW$103,1)-1,0,2),OFFSET($AW$3,MATCH(AG$36,$AW$3:$AW$103,1)-1,0,2))) -> 1.34 | AI45: s1 | AJ45: s2 | AL45: s1 | AM45: s2 | AO45: s1 | AP45: s2 | AW45: 1.820 | AX45: 0.774 | AY45: 0.783 | AZ45: 0.791 | BA45: 0.800 | BB45: 0.808 | BC45: 0.817 | BD45: 0.825 | BE45: 0.834 | BF45: 0.842 | BG45: 0.851 | BH45: 0.859 | BI45: 0.868 | BJ45: 0.876 | BK45: 0.885 | BL45: 0.893 | BM45: 0.902 | BN45: 0.911 | BO45: 0.919 | BP45: 0.928 | BQ45: 0.936 | BR45: 0.945 | BS45: 0.953 | BT45: 0.962 | BU45: 0.971 | BV45: 0.979 | BW45: 0.988 | BX45: 0.996 | BY45: 1.005 | BZ45: 1.014 | CA45: 1.022 | CB45: 1.031 | CC45: 1.039 | CD45: 1.048 | CE45: 1.057 | CF45: 1.065 | CG45: 1.074 | CH45: 1.083 | CI45: 1.091 | CJ45: 1.100 | CK45: 1.109 | CL45: 1.118 | CM45: 1.126 | CN45: 1.135 | CO45: 1.144 | CP45: 1.152 | CQ45: 1.161 | CR45: 1.170 | CS45: 1.179 | CT45: 1.188 | CU45: 1.196 | CV45: 1.205 | CW45: 1.214 | CX45: 1.223 | CY45: 1.232 | CZ45: 1.241 | DA45: 1.250 | DB45: 1.259 | DC45: 1.268 | DD45: 1.277 | DE45: 1.286 | DF45: 1.295 | DG45: 1.304 | DH45: 1.313 | DI45: 1.322 | DJ45: 1.331 | DK45: 1.341 | DL45: 1.350 | DM45: 1.359 | DN45: 1.369 | DO45: 1.378 | DP45: 1.387 | DQ45: 1.397 | DR45: 1.406 | DS45: 1.416 | DT45: 1.425 | DU45: 1.435 | DV45: 1.445 | DW45: 1.454 | DX45: 1.464 | DY45: 1.474 | DZ45: 1.484 | EA45: 1.494 | EB45: 1.504 | EC45: 1.514 | ED45: 1.525 | EE45: 1.535 | EF45: 1.545 | EG45: 1.556 | EH45: 1.566 | EI45: 1.577 | EJ45: 1.588 | EK45: 1.599 | EL45: 1.610 | EM45: 1.621 | EN45: 1.632 | EO45: 1.643 | EP45: 1.655 | EQ45: 1.666 | ER45: 1.678 | ES45: 1.690 | ET45: 1.702 | EU45: 1.714 | EV45: 1.726 | EW45: 1.739 | EX45: 1.751 | EY45: 1.764 | EZ45: 1.777 | FA45: 1.791 | FB45: 1.804 | FC45: 1.818 | FE45: 1.4564 | FF45: 1.4502 | FG45: 1.4440 | FH45: 1.4375 | FK45: 1.4502
C46: Correction factor 'cr,T' = | J46: =IF($L$10=$AD$8,"-",VLOOKUP($AD$41,$AN$3:$AR$4,2,FALSE)) -> 0.88 | L46: =IF(OR($L$11=$AD$11,$L$10=$AD$8),"-",VLOOKUP($AE$41,$AN$3:$AR$4,3,FALSE)) -> 0.88 | N46: =IF(OR($L$11=$AD$11,$L$10=$AD$8),"-",VLOOKUP($AF$41,$AN$3:$AR$4,4,FALSE)) -> 1.00 | P46: =IF(OR($L$11=$AD$11,$L$10=$AD$8),"-",VLOOKUP($AG$41,$AN$3:$AR$4,5,FALSE)) -> 1.00 | AH46: USLOV | AI46: =AND(Z11/Z12>=-1.5,Z11/Z12<=0,0<=82/Z16,82/Z16<=2) -> TRUE | AJ46: =OR(Z11/Z12<-1.5,82/Z16>2) -> FALSE | AL46: =AND(0.1<=Z11/Z16,Z11/Z16<=3.5,0<=82/Z16,82/Z16<=2) -> FALSE | AM46: =AND(0<=Z11/Z16,Z11/Z16<=0.1) -> FALSE | AO46: =AND(0<=Z11/Z13,Z11/Z13<=2,0<=82/Z16,82/Z16<=2) -> FALSE | AP46: =OR(Z11/Z13>2,82/Z16>2) -> FALSE | AR46: Odabir | AS46: s | AT46: =VLOOKUP(1,AR47:AS52,2,FALSE) -> 0.079 | AW46: 1.950 | AX46: 0.773 | AY46: 0.781 | AZ46: 0.790 | BA46: 0.798 | BB46: 0.807 | BC46: 0.815 | BD46: 0.824 | BE46: 0.832 | BF46: 0.841 | BG46: 0.849 | BH46: 0.858 | BI46: 0.866 | BJ46: 0.875 | BK46: 0.884 | BL46: 0.892 | BM46: 0.901 | BN46: 0.909 | BO46: 0.918 | BP46: 0.926 | BQ46: 0.935 | BR46: 0.943 | BS46: 0.952 | BT46: 0.960 | BU46: 0.969 | BV46: 0.978 | BW46: 0.986 | BX46: 0.995 | BY46: 1.003 | BZ46: 1.012 | CA46: 1.021 | CB46: 1.029 | CC46: 1.038 | CD46: 1.046 | CE46: 1.055 | CF46: 1.064 | CG46: 1.072 | CH46: 1.081 | CI46: 1.090 | CJ46: 1.098 | CK46: 1.107 | CL46: 1.116 | CM46: 1.124 | CN46: 1.133 | CO46: 1.142 | CP46: 1.151 | CQ46: 1.159 | CR46: 1.168 | CS46: 1.177 | CT46: 1.186 | CU46: 1.195 | CV46: 1.203 | CW46: 1.212 | CX46: 1.221 | CY46: 1.230 | CZ46: 1.239 | DA46: 1.248 | DB46: 1.257 | DC46: 1.266 | DD46: 1.275 | DE46: 1.284 | DF46: 1.293 | DG46: 1.302 | DH46: 1.311 | DI46: 1.320 | DJ46: 1.329 | DK46: 1.339 | DL46: 1.348 | DM46: 1.357 | DN46: 1.366 | DO46: 1.376 | DP46: 1.385 | DQ46: 1.395 | DR46: 1.404 | DS46: 1.414 | DT46: 1.423 | DU46: 1.433 | DV46: 1.442 | DW46: 1.452 | DX46: 1.462 | DY46: 1.472 | DZ46: 1.482 | EA46: 1.492 | EB46: 1.502 | EC46: 1.512 | ED46: 1.522 | EE46: 1.532 | EF46: 1.543 | EG46: 1.553 | EH46: 1.564 | EI46: 1.574 | EJ46: 1.585 | EK46: 1.596 | EL46: 1.607 | EM46: 1.618 | EN46: 1.629 | EO46: 1.641 | EP46: 1.652 | EQ46: 1.664 | ER46: 1.675 | ES46: 1.687 | ET46: 1.699 | EU46: 1.711 | EV46: 1.724 | EW46: 1.736 | EX46: 1.749 | EY46: 1.762 | EZ46: 1.775 | FA46: 1.788 | FB46: 1.801 | FC46: 1.815 | FE46: 1.4542 | FF46: 1.4480 | FG46: 1.4417 | FH46: 1.4352 | FK46: 1.4480
C47: Turbulence factor 'Iv(z)flat' = | J47: =IF($L$10=$AD$8,"-",FORECAST(AD$36,OFFSET(FE$212,MATCH(AD$36,$AW$212:$AW$312,1)-1,0,2),OFFSET($AW$212,MATCH(AD$36,$AW$212:$AW$312,1)-1,0,2))) -> 0.13 | L47: =IF(OR($L$11=$AD$11,$L$10=$AD$8),"-",FORECAST(AE$36,OFFSET(FF$212,MATCH(AE$36,$AW$212:$AW$312,1)-1,0,2),OFFSET($AW$212,MATCH(AE$36,$AW$212:$AW$312,1)-1,0,2))) -> 0.13 | N47: =IF(OR($L$11=$AD$11,$L$10=$AD$8),"-",FORECAST(AF$36,OFFSET(FG$212,MATCH(AF$36,$AW$212:$AW$312,1)-1,0,2),OFFSET($AW$212,MATCH(AF$36,$AW$212:$AW$312,1)-1,0,2))) -> 0.10 | P47: =IF(OR($L$11=$AD$11,$L$10=$AD$8),"-",FORECAST(AG$36,OFFSET(FH$212,MATCH(AG$36,$AW$212:$AW$312,1)-1,0,2),OFFSET($AW$212,MATCH(AG$36,$AW$212:$AW$312,1)-1,0,2))) -> 0.13 | AM47: =OR(82/Z13>3.5,82/Z16>2) -> FALSE | AR47: =IF(AI51=TRUE,1,0) -> 1 | AS47: =+AI52 -> 0.079 | AW47: 2.089 | AX47: 0.772 | AY47: 0.780 | AZ47: 0.789 | BA47: 0.797 | BB47: 0.806 | BC47: 0.814 | BD47: 0.823 | BE47: 0.831 | BF47: 0.840 | BG47: 0.848 | BH47: 0.857 | BI47: 0.865 | BJ47: 0.874 | BK47: 0.882 | BL47: 0.891 | BM47: 0.899 | BN47: 0.908 | BO47: 0.916 | BP47: 0.925 | BQ47: 0.933 | BR47: 0.942 | BS47: 0.950 | BT47: 0.959 | BU47: 0.968 | BV47: 0.976 | BW47: 0.985 | BX47: 0.993 | BY47: 1.002 | BZ47: 1.010 | CA47: 1.019 | CB47: 1.028 | CC47: 1.036 | CD47: 1.045 | CE47: 1.053 | CF47: 1.062 | CG47: 1.071 | CH47: 1.079 | CI47: 1.088 | CJ47: 1.097 | CK47: 1.105 | CL47: 1.114 | CM47: 1.123 | CN47: 1.131 | CO47: 1.140 | CP47: 1.149 | CQ47: 1.158 | CR47: 1.166 | CS47: 1.175 | CT47: 1.184 | CU47: 1.193 | CV47: 1.202 | CW47: 1.210 | CX47: 1.219 | CY47: 1.228 | CZ47: 1.237 | DA47: 1.246 | DB47: 1.255 | DC47: 1.264 | DD47: 1.273 | DE47: 1.282 | DF47: 1.291 | DG47: 1.300 | DH47: 1.309 | DI47: 1.318 | DJ47: 1.327 | DK47: 1.337 | DL47: 1.346 | DM47: 1.355 | DN47: 1.364 | DO47: 1.374 | DP47: 1.383 | DQ47: 1.392 | DR47: 1.402 | DS47: 1.411 | DT47: 1.421 | DU47: 1.431 | DV47: 1.440 | DW47: 1.450 | DX47: 1.460 | DY47: 1.470 | DZ47: 1.480 | EA47: 1.490 | EB47: 1.500 | EC47: 1.510 | ED47: 1.520 | EE47: 1.530 | EF47: 1.540 | EG47: 1.551 | EH47: 1.561 | EI47: 1.572 | EJ47: 1.583 | EK47: 1.594 | EL47: 1.605 | EM47: 1.616 | EN47: 1.627 | EO47: 1.638 | EP47: 1.649 | EQ47: 1.661 | ER47: 1.673 | ES47: 1.685 | ET47: 1.696 | EU47: 1.709 | EV47: 1.721 | EW47: 1.733 | EX47: 1.746 | EY47: 1.759 | EZ47: 1.772 | FA47: 1.785 | FB47: 1.798 | FC47: 1.812 | FE47: 1.4519 | FF47: 1.4458 | FG47: 1.4395 | FH47: 1.4330 | FK47: 1.4458
C48: Turbulence correction factor 'kI,T' = | J48: =IF($L$10=$AD$8,"-",VLOOKUP($AD$41,$AN$5:$AR$6,2,FALSE)) -> 1.46 | L48: =IF(OR($L$11=$AD$11,$L$10=$AD$8),"-",VLOOKUP($AE$41,$AN$5:$AR$6,3,FALSE)) -> 1.47 | N48: =IF(OR($L$11=$AD$11,$L$10=$AD$8),"-",VLOOKUP($AF$41,$AN$5:$AR$6,4,FALSE)) -> 1.00 | P48: =IF(OR($L$11=$AD$11,$L$10=$AD$8),"-",VLOOKUP($AG$41,$AN$5:$AR$6,5,FALSE)) -> 1.00 | AH48: A | AI48: =0.1552*(82/Z16)^4-0.8575*(82/Z16)^3+1.8133*(82/Z16)^2-1.9115*82/Z16+1.0124 -> 0.095 | AL48: =-1.342*(LOG(82/Z16))^3-0.8222*(LOG(82/Z16))^2+0.4609*LOG(82/Z16)-0.0791 -> -0.031 | AO48: =0.1552*(82/Z16)^4-0.8575*(82/Z16)^3+1.8133*(82/Z16)^2-1.9115*(82/Z16)+1.0124 -> 0.095 | AR48: =IF(AJ51=TRUE,1,0) -> 0 | AS48: =+AJ52 -> 0.000 | AW48: 2.239 | AX48: 0.770 | AY48: 0.779 | AZ48: 0.787 | BA48: 0.796 | BB48: 0.804 | BC48: 0.813 | BD48: 0.821 | BE48: 0.830 | BF48: 0.838 | BG48: 0.847 | BH48: 0.855 | BI48: 0.864 | BJ48: 0.872 | BK48: 0.881 | BL48: 0.889 | BM48: 0.898 | BN48: 0.906 | BO48: 0.915 | BP48: 0.923 | BQ48: 0.932 | BR48: 0.940 | BS48: 0.949 | BT48: 0.958 | BU48: 0.966 | BV48: 0.975 | BW48: 0.983 | BX48: 0.992 | BY48: 1.000 | BZ48: 1.009 | CA48: 1.017 | CB48: 1.026 | CC48: 1.035 | CD48: 1.043 | CE48: 1.052 | CF48: 1.060 | CG48: 1.069 | CH48: 1.078 | CI48: 1.086 | CJ48: 1.095 | CK48: 1.104 | CL48: 1.112 | CM48: 1.121 | CN48: 1.130 | CO48: 1.138 | CP48: 1.147 | CQ48: 1.156 | CR48: 1.165 | CS48: 1.173 | CT48: 1.182 | CU48: 1.191 | CV48: 1.200 | CW48: 1.209 | CX48: 1.217 | CY48: 1.226 | CZ48: 1.235 | DA48: 1.244 | DB48: 1.253 | DC48: 1.262 | DD48: 1.271 | DE48: 1.280 | DF48: 1.289 | DG48: 1.298 | DH48: 1.307 | DI48: 1.316 | DJ48: 1.325 | DK48: 1.335 | DL48: 1.344 | DM48: 1.353 | DN48: 1.362 | DO48: 1.372 | DP48: 1.381 | DQ48: 1.390 | DR48: 1.400 | DS48: 1.409 | DT48: 1.419 | DU48: 1.428 | DV48: 1.438 | DW48: 1.448 | DX48: 1.458 | DY48: 1.467 | DZ48: 1.477 | EA48: 1.487 | EB48: 1.497 | EC48: 1.507 | ED48: 1.518 | EE48: 1.528 | EF48: 1.538 | EG48: 1.549 | EH48: 1.559 | EI48: 1.570 | EJ48: 1.580 | EK48: 1.591 | EL48: 1.602 | EM48: 1.613 | EN48: 1.624 | EO48: 1.636 | EP48: 1.647 | EQ48: 1.658 | ER48: 1.670 | ES48: 1.682 | ET48: 1.694 | EU48: 1.706 | EV48: 1.718 | EW48: 1.731 | EX48: 1.743 | EY48: 1.756 | EZ48: 1.769 | FA48: 1.782 | FB48: 1.796 | FC48: 1.809 | FE48: 1.4497 | FF48: 1.4436 | FG48: 1.4374 | FH48: 1.4309 | FK48: 1.4436
C49: Exposure factor 'ce(z)' = | J49: =FORECAST(AD$36,OFFSET(FE$108,MATCH(AD$36,$AW$108:$AW$208,1)-1,0,2),OFFSET($AW$108,MATCH(AD$36,$AW$108:$AW$208,1)-1,0,2)) -> 3.60 | L49: =IF($L$11=$AD$11,"-",FORECAST(AE$36,OFFSET(FF$108,MATCH(AE$36,$AW$108:$AW$208,1)-1,0,2),OFFSET($AW$108,MATCH(AE$36,$AW$108:$AW$208,1)-1,0,2))) -> 3.64 | N49: =IF($L$11=$AD$11,"-",FORECAST(AF$36,OFFSET(FG$108,MATCH(AF$36,$AW$108:$AW$208,1)-1,0,2),OFFSET($AW$108,MATCH(AF$36,$AW$108:$AW$208,1)-1,0,2))) -> 3.81 | P49: =IF($L$11=$AD$11,"-",FORECAST(AG$36,OFFSET(FG$108,MATCH(AG$36,$AW$108:$AW$208,1)-1,0,2),OFFSET($AW$108,MATCH(AG$36,$AW$108:$AW$208,1)-1,0,2))) -> 3.56 | AH49: B | AI49: =0.3542*(82/Z16)^2-1.0577*82/Z16+2.6456 -> 1.864 | AL49: =-1.0196*(LOG(82/Z16))^3-0.891*(LOG(82/Z16))^2+0.5343*LOG(82/Z16)-0.1156 -> -0.052 | AO49: =-0.3056*(82/Z16)^2+1.0212*(82/Z16)-1.7637 -> -0.911 | AR49: =IF(AL51=TRUE,1,0) -> 0 | AS49: =+AL52 ->  | AW49: 2.399 | AX49: 0.769 | AY49: 0.778 | AZ49: 0.786 | BA49: 0.795 | BB49: 0.803 | BC49: 0.812 | BD49: 0.820 | BE49: 0.829 | BF49: 0.837 | BG49: 0.846 | BH49: 0.854 | BI49: 0.863 | BJ49: 0.871 | BK49: 0.880 | BL49: 0.888 | BM49: 0.897 | BN49: 0.905 | BO49: 0.914 | BP49: 0.922 | BQ49: 0.931 | BR49: 0.939 | BS49: 0.948 | BT49: 0.956 | BU49: 0.965 | BV49: 0.973 | BW49: 0.982 | BX49: 0.990 | BY49: 0.999 | BZ49: 1.007 | CA49: 1.016 | CB49: 1.025 | CC49: 1.033 | CD49: 1.042 | CE49: 1.050 | CF49: 1.059 | CG49: 1.068 | CH49: 1.076 | CI49: 1.085 | CJ49: 1.093 | CK49: 1.102 | CL49: 1.111 | CM49: 1.119 | CN49: 1.128 | CO49: 1.137 | CP49: 1.145 | CQ49: 1.154 | CR49: 1.163 | CS49: 1.172 | CT49: 1.180 | CU49: 1.189 | CV49: 1.198 | CW49: 1.207 | CX49: 1.216 | CY49: 1.225 | CZ49: 1.233 | DA49: 1.242 | DB49: 1.251 | DC49: 1.260 | DD49: 1.269 | DE49: 1.278 | DF49: 1.287 | DG49: 1.296 | DH49: 1.305 | DI49: 1.314 | DJ49: 1.323 | DK49: 1.333 | DL49: 1.342 | DM49: 1.351 | DN49: 1.360 | DO49: 1.370 | DP49: 1.379 | DQ49: 1.388 | DR49: 1.398 | DS49: 1.407 | DT49: 1.417 | DU49: 1.426 | DV49: 1.436 | DW49: 1.446 | DX49: 1.455 | DY49: 1.465 | DZ49: 1.475 | EA49: 1.485 | EB49: 1.495 | EC49: 1.505 | ED49: 1.515 | EE49: 1.526 | EF49: 1.536 | EG49: 1.546 | EH49: 1.557 | EI49: 1.567 | EJ49: 1.578 | EK49: 1.589 | EL49: 1.600 | EM49: 1.611 | EN49: 1.622 | EO49: 1.633 | EP49: 1.644 | EQ49: 1.656 | ER49: 1.668 | ES49: 1.679 | ET49: 1.691 | EU49: 1.703 | EV49: 1.716 | EW49: 1.728 | EX49: 1.741 | EY49: 1.754 | EZ49: 1.766 | FA49: 1.780 | FB49: 1.793 | FC49: 1.807 | FE49: 1.4475 | FF49: 1.4414 | FG49: 1.4352 | FH49: 1.4287 | FK49: 1.4414
C50: Exposure correction factor 'ce,T' = | J50: =VLOOKUP($AD$41,$AN$7:$AR$8,2,FALSE) -> 1.00 | L50: =IF($L$11=$AD$11,"-",VLOOKUP($AE$41,$AN$7:$AR$8,3,FALSE)) -> 1.00 | N50: =IF($L$11=$AD$11,"-",VLOOKUP($AF$41,$AN$7:$AR$8,4,FALSE)) -> 1.00 | P50: =IF($L$11=$AD$11,"-",VLOOKUP($AG$41,$AN$7:$AR$8,5,FALSE)) -> 1.00 | AH50: C | AL50: =0.803*(LOG(82/Z16))^3+0.4236*(LOG(82/Z16))^2-0.5738*LOG(82/Z16)+0.1606 -> 0.065 | AR50: =IF(AM51=TRUE,1,0) -> 0 | AS50: =+AM52 -> -0.031 | AW50: 2.570 | AX50: 0.768 | AY50: 0.777 | AZ50: 0.785 | BA50: 0.794 | BB50: 0.802 | BC50: 0.810 | BD50: 0.819 | BE50: 0.827 | BF50: 0.836 | BG50: 0.844 | BH50: 0.853 | BI50: 0.861 | BJ50: 0.870 | BK50: 0.878 | BL50: 0.887 | BM50: 0.895 | BN50: 0.904 | BO50: 0.912 | BP50: 0.921 | BQ50: 0.929 | BR50: 0.938 | BS50: 0.946 | BT50: 0.955 | BU50: 0.963 | BV50: 0.972 | BW50: 0.980 | BX50: 0.989 | BY50: 0.997 | BZ50: 1.006 | CA50: 1.014 | CB50: 1.023 | CC50: 1.032 | CD50: 1.040 | CE50: 1.049 | CF50: 1.057 | CG50: 1.066 | CH50: 1.075 | CI50: 1.083 | CJ50: 1.092 | CK50: 1.100 | CL50: 1.109 | CM50: 1.118 | CN50: 1.126 | CO50: 1.135 | CP50: 1.144 | CQ50: 1.152 | CR50: 1.161 | CS50: 1.170 | CT50: 1.179 | CU50: 1.187 | CV50: 1.196 | CW50: 1.205 | CX50: 1.214 | CY50: 1.223 | CZ50: 1.232 | DA50: 1.240 | DB50: 1.249 | DC50: 1.258 | DD50: 1.267 | DE50: 1.276 | DF50: 1.285 | DG50: 1.294 | DH50: 1.303 | DI50: 1.312 | DJ50: 1.321 | DK50: 1.331 | DL50: 1.340 | DM50: 1.349 | DN50: 1.358 | DO50: 1.368 | DP50: 1.377 | DQ50: 1.386 | DR50: 1.396 | DS50: 1.405 | DT50: 1.415 | DU50: 1.424 | DV50: 1.434 | DW50: 1.444 | DX50: 1.453 | DY50: 1.463 | DZ50: 1.473 | EA50: 1.483 | EB50: 1.493 | EC50: 1.503 | ED50: 1.513 | EE50: 1.523 | EF50: 1.534 | EG50: 1.544 | EH50: 1.554 | EI50: 1.565 | EJ50: 1.576 | EK50: 1.586 | EL50: 1.597 | EM50: 1.608 | EN50: 1.619 | EO50: 1.631 | EP50: 1.642 | EQ50: 1.654 | ER50: 1.665 | ES50: 1.677 | ET50: 1.689 | EU50: 1.701 | EV50: 1.713 | EW50: 1.726 | EX50: 1.738 | EY50: 1.751 | EZ50: 1.764 | FA50: 1.777 | FB50: 1.790 | FC50: 1.804 | FE50: 1.4454 | FF50: 1.4393 | FG50: 1.4331 | FH50: 1.4266 | FK50: 1.4393
C51: Peak velocity pressure 'qp' [kN/m²] = | J51: =IF($L$10=$AD$8,J49*J50*0.613*J27^2/1000,IF(J39<=50,J49*J50*((J44+0.6)/1.6)^2*0.613*J27^2/1000,(1+3*J47*J48/J44)^2*0.613*(J45*J46*J44*J27)^2/1000)) -> 0.88 | L51: =IF($L$11=$AD$11,"-",IF($L$10=$AD$8,L49*L50*0.613*L27^2/1000,IF(L39<=50,L49*L50*((L44+0.6)/1.6)^2*0.613*L27^2/1000,(1+3*L47*L48/L44)^2*0.613*(L45*L46*L44*L27)^2/1000))) -> 0.79 | N51: =IF($L$11=$AD$11,"-",IF($L$10=$AD$8,N49*N50*0.613*N27^2/1000,IF(N39<=50,N49*N50*((N44+0.6)/1.6)^2*0.613*N27^2/1000,(1+3*N47*N48/N44)^2*0.613*(N45*N46*N44*N27)^2/1000))) -> 1.31 | P51: =IF($L$11=$AD$11,"-",IF($L$10=$AD$8,P49*P50*0.613*P27^2/1000,IF(P39<=50,P49*P50*((P44+0.6)/1.6)^2*0.613*P27^2/1000,(1+3*P47*P48/P44)^2*0.613*(P45*P46*P44*P27)^2/1000))) -> 1.25 | AH51: Odabir: | AI51: =AND(AI44=TRUE,AI46=TRUE) -> TRUE | AJ51: =AND(AI44=TRUE,AJ46=TRUE) -> FALSE | AL51: =AND(AL44=TRUE,AL46=TRUE) -> FALSE | AM51: =AND(AL44=TRUE,AM46=TRUE) -> FALSE | AO51: =AND(AO44=TRUE,AO46=TRUE) -> FALSE | AP51: =AND(AO44=TRUE,AP46=TRUE) -> FALSE | AR51: =IF(AO51=TRUE,1,0) -> 0 | AS51: =+AO52 -> 0.104 | AW51: 2.754 | AX51: 0.767 | AY51: 0.775 | AZ51: 0.784 | BA51: 0.792 | BB51: 0.801 | BC51: 0.809 | BD51: 0.818 | BE51: 0.826 | BF51: 0.835 | BG51: 0.843 | BH51: 0.852 | BI51: 0.860 | BJ51: 0.868 | BK51: 0.877 | BL51: 0.885 | BM51: 0.894 | BN51: 0.902 | BO51: 0.911 | BP51: 0.919 | BQ51: 0.928 | BR51: 0.936 | BS51: 0.945 | BT51: 0.953 | BU51: 0.962 | BV51: 0.970 | BW51: 0.979 | BX51: 0.987 | BY51: 0.996 | BZ51: 1.004 | CA51: 1.013 | CB51: 1.022 | CC51: 1.030 | CD51: 1.039 | CE51: 1.047 | CF51: 1.056 | CG51: 1.064 | CH51: 1.073 | CI51: 1.082 | CJ51: 1.090 | CK51: 1.099 | CL51: 1.107 | CM51: 1.116 | CN51: 1.125 | CO51: 1.133 | CP51: 1.142 | CQ51: 1.151 | CR51: 1.160 | CS51: 1.168 | CT51: 1.177 | CU51: 1.186 | CV51: 1.194 | CW51: 1.203 | CX51: 1.212 | CY51: 1.221 | CZ51: 1.230 | DA51: 1.239 | DB51: 1.248 | DC51: 1.256 | DD51: 1.265 | DE51: 1.274 | DF51: 1.283 | DG51: 1.292 | DH51: 1.301 | DI51: 1.310 | DJ51: 1.320 | DK51: 1.329 | DL51: 1.338 | DM51: 1.347 | DN51: 1.356 | DO51: 1.366 | DP51: 1.375 | DQ51: 1.384 | DR51: 1.394 | DS51: 1.403 | DT51: 1.413 | DU51: 1.422 | DV51: 1.432 | DW51: 1.441 | DX51: 1.451 | DY51: 1.461 | DZ51: 1.471 | EA51: 1.481 | EB51: 1.491 | EC51: 1.501 | ED51: 1.511 | EE51: 1.521 | EF51: 1.531 | EG51: 1.542 | EH51: 1.552 | EI51: 1.563 | EJ51: 1.573 | EK51: 1.584 | EL51: 1.595 | EM51: 1.606 | EN51: 1.617 | EO51: 1.628 | EP51: 1.640 | EQ51: 1.651 | ER51: 1.663 | ES51: 1.675 | ET51: 1.686 | EU51: 1.698 | EV51: 1.711 | EW51: 1.723 | EX51: 1.736 | EY51: 1.748 | EZ51: 1.761 | FA51: 1.774 | FB51: 1.788 | FC51: 1.801 | FE51: 1.4433 | FF51: 1.4372 | FG51: 1.4310 | FH51: 1.4245 | FK51: 1.4372
AH52: s | AI52: =+AI48*EXP(AI49*$Z$11/$Z$12) -> 0.079 | AJ52: 0.000 | AL52: =+AL48*(LOG($Z$11/$Z$16))^2+AL49*(LOG($Z$11/$Z$16))+AL50 ->  | AM52: =IF(AM47=TRUE,0,AL48) -> -0.031 | AO52: =+AO48*EXP(AO49*$Z$11/$Z$13) -> 0.104 | AP52: 0.000 | AR52: =IF(AP51=TRUE,1,0) -> 0 | AS52: =+AP52 -> 0.000 | AW52: 2.951 | AX52: 0.766 | AY52: 0.774 | AZ52: 0.783 | BA52: 0.791 | BB52: 0.800 | BC52: 0.808 | BD52: 0.817 | BE52: 0.825 | BF52: 0.833 | BG52: 0.842 | BH52: 0.850 | BI52: 0.859 | BJ52: 0.867 | BK52: 0.876 | BL52: 0.884 | BM52: 0.893 | BN52: 0.901 | BO52: 0.910 | BP52: 0.918 | BQ52: 0.926 | BR52: 0.935 | BS52: 0.943 | BT52: 0.952 | BU52: 0.960 | BV52: 0.969 | BW52: 0.977 | BX52: 0.986 | BY52: 0.994 | BZ52: 1.003 | CA52: 1.012 | CB52: 1.020 | CC52: 1.029 | CD52: 1.037 | CE52: 1.046 | CF52: 1.054 | CG52: 1.063 | CH52: 1.071 | CI52: 1.080 | CJ52: 1.089 | CK52: 1.097 | CL52: 1.106 | CM52: 1.114 | CN52: 1.123 | CO52: 1.132 | CP52: 1.140 | CQ52: 1.149 | CR52: 1.158 | CS52: 1.167 | CT52: 1.175 | CU52: 1.184 | CV52: 1.193 | CW52: 1.202 | CX52: 1.210 | CY52: 1.219 | CZ52: 1.228 | DA52: 1.237 | DB52: 1.246 | DC52: 1.255 | DD52: 1.264 | DE52: 1.272 | DF52: 1.281 | DG52: 1.290 | DH52: 1.299 | DI52: 1.309 | DJ52: 1.318 | DK52: 1.327 | DL52: 1.336 | DM52: 1.345 | DN52: 1.354 | DO52: 1.364 | DP52: 1.373 | DQ52: 1.382 | DR52: 1.392 | DS52: 1.401 | DT52: 1.411 | DU52: 1.420 | DV52: 1.430 | DW52: 1.439 | DX52: 1.449 | DY52: 1.459 | DZ52: 1.469 | EA52: 1.479 | EB52: 1.488 | EC52: 1.499 | ED52: 1.509 | EE52: 1.519 | EF52: 1.529 | EG52: 1.539 | EH52: 1.550 | EI52: 1.560 | EJ52: 1.571 | EK52: 1.582 | EL52: 1.593 | EM52: 1.604 | EN52: 1.615 | EO52: 1.626 | EP52: 1.637 | EQ52: 1.649 | ER52: 1.660 | ES52: 1.672 | ET52: 1.684 | EU52: 1.696 | EV52: 1.708 | EW52: 1.721 | EX52: 1.733 | EY52: 1.746 | EZ52: 1.759 | FA52: 1.772 | FB52: 1.785 | FC52: 1.799 | FE52: 1.4412 | FF52: 1.4351 | FG52: 1.4289 | FH52: 1.4224 | FK52: 1.4351
AI53: 1 | AJ53: 2 | AL53: 3 | AM53: 4 | AO53: 5 | AP53: 6 | AW53: 3.162 | AX53: 0.765 | AY53: 0.773 | AZ53: 0.782 | BA53: 0.790 | BB53: 0.799 | BC53: 0.807 | BD53: 0.815 | BE53: 0.824 | BF53: 0.832 | BG53: 0.841 | BH53: 0.849 | BI53: 0.858 | BJ53: 0.866 | BK53: 0.874 | BL53: 0.883 | BM53: 0.891 | BN53: 0.900 | BO53: 0.908 | BP53: 0.917 | BQ53: 0.925 | BR53: 0.934 | BS53: 0.942 | BT53: 0.951 | BU53: 0.959 | BV53: 0.968 | BW53: 0.976 | BX53: 0.985 | BY53: 0.993 | BZ53: 1.002 | CA53: 1.010 | CB53: 1.019 | CC53: 1.027 | CD53: 1.036 | CE53: 1.044 | CF53: 1.053 | CG53: 1.061 | CH53: 1.070 | CI53: 1.078 | CJ53: 1.087 | CK53: 1.096 | CL53: 1.104 | CM53: 1.113 | CN53: 1.122 | CO53: 1.130 | CP53: 1.139 | CQ53: 1.147 | CR53: 1.156 | CS53: 1.165 | CT53: 1.174 | CU53: 1.182 | CV53: 1.191 | CW53: 1.200 | CX53: 1.209 | CY53: 1.217 | CZ53: 1.226 | DA53: 1.235 | DB53: 1.244 | DC53: 1.253 | DD53: 1.262 | DE53: 1.271 | DF53: 1.280 | DG53: 1.289 | DH53: 1.298 | DI53: 1.307 | DJ53: 1.316 | DK53: 1.325 | DL53: 1.334 | DM53: 1.343 | DN53: 1.352 | DO53: 1.362 | DP53: 1.371 | DQ53: 1.380 | DR53: 1.390 | DS53: 1.399 | DT53: 1.409 | DU53: 1.418 | DV53: 1.428 | DW53: 1.437 | DX53: 1.447 | DY53: 1.457 | DZ53: 1.467 | EA53: 1.476 | EB53: 1.486 | EC53: 1.496 | ED53: 1.506 | EE53: 1.517 | EF53: 1.527 | EG53: 1.537 | EH53: 1.548 | EI53: 1.558 | EJ53: 1.569 | EK53: 1.580 | EL53: 1.590 | EM53: 1.601 | EN53: 1.612 | EO53: 1.624 | EP53: 1.635 | EQ53: 1.646 | ER53: 1.658 | ES53: 1.670 | ET53: 1.682 | EU53: 1.694 | EV53: 1.706 | EW53: 1.718 | EX53: 1.731 | EY53: 1.743 | EZ53: 1.756 | FA53: 1.769 | FB53: 1.783 | FC53: 1.796 | FE53: 1.4391 | FF53: 1.4331 | FG53: 1.4269 | FH53: 1.4204 | FK53: 1.4331
C54: Designer's Notes: | AH54: Blokada: | AI54: =AND(Database!O9=1,Z11<0) -> TRUE | AJ54: =AND(Database!O9=2,Z11>=0) -> FALSE | AK54: =AND(AI54=FALSE,AJ54=FALSE) -> FALSE | AM54: =+Database!U22 -> FALSE | AW54: 3.388 | AX54: 0.764 | AY54: 0.772 | AZ54: 0.781 | BA54: 0.789 | BB54: 0.797 | BC54: 0.806 | BD54: 0.814 | BE54: 0.823 | BF54: 0.831 | BG54: 0.839 | BH54: 0.848 | BI54: 0.856 | BJ54: 0.865 | BK54: 0.873 | BL54: 0.882 | BM54: 0.890 | BN54: 0.898 | BO54: 0.907 | BP54: 0.915 | BQ54: 0.924 | BR54: 0.932 | BS54: 0.941 | BT54: 0.949 | BU54: 0.958 | BV54: 0.966 | BW54: 0.975 | BX54: 0.983 | BY54: 0.992 | BZ54: 1.000 | CA54: 1.009 | CB54: 1.017 | CC54: 1.026 | CD54: 1.034 | CE54: 1.043 | CF54: 1.051 | CG54: 1.060 | CH54: 1.068 | CI54: 1.077 | CJ54: 1.086 | CK54: 1.094 | CL54: 1.103 | CM54: 1.111 | CN54: 1.120 | CO54: 1.129 | CP54: 1.137 | CQ54: 1.146 | CR54: 1.155 | CS54: 1.163 | CT54: 1.172 | CU54: 1.181 | CV54: 1.189 | CW54: 1.198 | CX54: 1.207 | CY54: 1.216 | CZ54: 1.224 | DA54: 1.233 | DB54: 1.242 | DC54: 1.251 | DD54: 1.260 | DE54: 1.269 | DF54: 1.278 | DG54: 1.287 | DH54: 1.296 | DI54: 1.305 | DJ54: 1.314 | DK54: 1.323 | DL54: 1.332 | DM54: 1.341 | DN54: 1.350 | DO54: 1.360 | DP54: 1.369 | DQ54: 1.378 | DR54: 1.388 | DS54: 1.397 | DT54: 1.407 | DU54: 1.416 | DV54: 1.426 | DW54: 1.435 | DX54: 1.445 | DY54: 1.455 | DZ54: 1.464 | EA54: 1.474 | EB54: 1.484 | EC54: 1.494 | ED54: 1.504 | EE54: 1.515 | EF54: 1.525 | EG54: 1.535 | EH54: 1.546 | EI54: 1.556 | EJ54: 1.567 | EK54: 1.577 | EL54: 1.588 | EM54: 1.599 | EN54: 1.610 | EO54: 1.621 | EP54: 1.633 | EQ54: 1.644 | ER54: 1.656 | ES54: 1.667 | ET54: 1.679 | EU54: 1.691 | EV54: 1.703 | EW54: 1.716 | EX54: 1.728 | EY54: 1.741 | EZ54: 1.754 | FA54: 1.767 | FB54: 1.780 | FC54: 1.794 | FE54: 1.4371 | FF54: 1.4311 | FG54: 1.4249 | FH54: 1.4184 | FK54: 1.4311
AW55: 3.631 | AX55: 0.763 | AY55: 0.771 | AZ55: 0.779 | BA55: 0.788 | BB55: 0.796 | BC55: 0.805 | BD55: 0.813 | BE55: 0.821 | BF55: 0.830 | BG55: 0.838 | BH55: 0.847 | BI55: 0.855 | BJ55: 0.864 | BK55: 0.872 | BL55: 0.880 | BM55: 0.889 | BN55: 0.897 | BO55: 0.906 | BP55: 0.914 | BQ55: 0.923 | BR55: 0.931 | BS55: 0.939 | BT55: 0.948 | BU55: 0.956 | BV55: 0.965 | BW55: 0.973 | BX55: 0.982 | BY55: 0.990 | BZ55: 0.999 | CA55: 1.007 | CB55: 1.016 | CC55: 1.024 | CD55: 1.033 | CE55: 1.041 | CF55: 1.050 | CG55: 1.058 | CH55: 1.067 | CI55: 1.075 | CJ55: 1.084 | CK55: 1.093 | CL55: 1.101 | CM55: 1.110 | CN55: 1.118 | CO55: 1.127 | CP55: 1.136 | CQ55: 1.144 | CR55: 1.153 | CS55: 1.162 | CT55: 1.170 | CU55: 1.179 | CV55: 1.188 | CW55: 1.196 | CX55: 1.205 | CY55: 1.214 | CZ55: 1.223 | DA55: 1.232 | DB55: 1.240 | DC55: 1.249 | DD55: 1.258 | DE55: 1.267 | DF55: 1.276 | DG55: 1.285 | DH55: 1.294 | DI55: 1.303 | DJ55: 1.312 | DK55: 1.321 | DL55: 1.330 | DM55: 1.339 | DN55: 1.349 | DO55: 1.358 | DP55: 1.367 | DQ55: 1.376 | DR55: 1.386 | DS55: 1.395 | DT55: 1.405 | DU55: 1.414 | DV55: 1.424 | DW55: 1.433 | DX55: 1.443 | DY55: 1.453 | DZ55: 1.462 | EA55: 1.472 | EB55: 1.482 | EC55: 1.492 | ED55: 1.502 | EE55: 1.512 | EF55: 1.523 | EG55: 1.533 | EH55: 1.543 | EI55: 1.554 | EJ55: 1.564 | EK55: 1.575 | EL55: 1.586 | EM55: 1.597 | EN55: 1.608 | EO55: 1.619 | EP55: 1.630 | EQ55: 1.642 | ER55: 1.653 | ES55: 1.665 | ET55: 1.677 | EU55: 1.689 | EV55: 1.701 | EW55: 1.713 | EX55: 1.726 | EY55: 1.738 | EZ55: 1.751 | FA55: 1.764 | FB55: 1.778 | FC55: 1.791 | FE55: 1.4351 | FF55: 1.4291 | FG55: 1.4229 | FH55: 1.4164 | FK55: 1.4291
AG56: CALCULATIONS FOR LOWER PART OF VERTICAL WALLS | AW56: 3.890 | AX56: 0.762 | AY56: 0.770 | AZ56: 0.778 | BA56: 0.787 | BB56: 0.795 | BC56: 0.804 | BD56: 0.812 | BE56: 0.820 | BF56: 0.829 | BG56: 0.837 | BH56: 0.846 | BI56: 0.854 | BJ56: 0.862 | BK56: 0.871 | BL56: 0.879 | BM56: 0.888 | BN56: 0.896 | BO56: 0.904 | BP56: 0.913 | BQ56: 0.921 | BR56: 0.930 | BS56: 0.938 | BT56: 0.947 | BU56: 0.955 | BV56: 0.963 | BW56: 0.972 | BX56: 0.980 | BY56: 0.989 | BZ56: 0.997 | CA56: 1.006 | CB56: 1.014 | CC56: 1.023 | CD56: 1.031 | CE56: 1.040 | CF56: 1.048 | CG56: 1.057 | CH56: 1.065 | CI56: 1.074 | CJ56: 1.083 | CK56: 1.091 | CL56: 1.100 | CM56: 1.108 | CN56: 1.117 | CO56: 1.125 | CP56: 1.134 | CQ56: 1.143 | CR56: 1.151 | CS56: 1.160 | CT56: 1.169 | CU56: 1.177 | CV56: 1.186 | CW56: 1.195 | CX56: 1.204 | CY56: 1.212 | CZ56: 1.221 | DA56: 1.230 | DB56: 1.239 | DC56: 1.248 | DD56: 1.256 | DE56: 1.265 | DF56: 1.274 | DG56: 1.283 | DH56: 1.292 | DI56: 1.301 | DJ56: 1.310 | DK56: 1.319 | DL56: 1.328 | DM56: 1.338 | DN56: 1.347 | DO56: 1.356 | DP56: 1.365 | DQ56: 1.374 | DR56: 1.384 | DS56: 1.393 | DT56: 1.403 | DU56: 1.412 | DV56: 1.422 | DW56: 1.431 | DX56: 1.441 | DY56: 1.451 | DZ56: 1.460 | EA56: 1.470 | EB56: 1.480 | EC56: 1.490 | ED56: 1.500 | EE56: 1.510 | EF56: 1.521 | EG56: 1.531 | EH56: 1.541 | EI56: 1.552 | EJ56: 1.562 | EK56: 1.573 | EL56: 1.584 | EM56: 1.595 | EN56: 1.606 | EO56: 1.617 | EP56: 1.628 | EQ56: 1.640 | ER56: 1.651 | ES56: 1.663 | ET56: 1.675 | EU56: 1.686 | EV56: 1.699 | EW56: 1.711 | EX56: 1.723 | EY56: 1.736 | EZ56: 1.749 | FA56: 1.762 | FB56: 1.775 | FC56: 1.789 | FE56: 1.4331 | FF56: 1.4271 | FG56: 1.4209 | FH56: 1.4145 | FK56: 1.4271
AI57: a) Upwind | AK57: b) Downwind Cliffs/esc | AO57: c) Downwind Hills/ridges | AW57: 4.169 | AX57: 0.761 | AY57: 0.769 | AZ57: 0.777 | BA57: 0.786 | BB57: 0.794 | BC57: 0.802 | BD57: 0.811 | BE57: 0.819 | BF57: 0.828 | BG57: 0.836 | BH57: 0.844 | BI57: 0.853 | BJ57: 0.861 | BK57: 0.870 | BL57: 0.878 | BM57: 0.886 | BN57: 0.895 | BO57: 0.903 | BP57: 0.912 | BQ57: 0.920 | BR57: 0.928 | BS57: 0.937 | BT57: 0.945 | BU57: 0.954 | BV57: 0.962 | BW57: 0.971 | BX57: 0.979 | BY57: 0.988 | BZ57: 0.996 | CA57: 1.004 | CB57: 1.013 | CC57: 1.021 | CD57: 1.030 | CE57: 1.038 | CF57: 1.047 | CG57: 1.055 | CH57: 1.064 | CI57: 1.072 | CJ57: 1.081 | CK57: 1.090 | CL57: 1.098 | CM57: 1.107 | CN57: 1.115 | CO57: 1.124 | CP57: 1.133 | CQ57: 1.141 | CR57: 1.150 | CS57: 1.158 | CT57: 1.167 | CU57: 1.176 | CV57: 1.184 | CW57: 1.193 | CX57: 1.202 | CY57: 1.211 | CZ57: 1.219 | DA57: 1.228 | DB57: 1.237 | DC57: 1.246 | DD57: 1.255 | DE57: 1.264 | DF57: 1.273 | DG57: 1.281 | DH57: 1.290 | DI57: 1.299 | DJ57: 1.308 | DK57: 1.317 | DL57: 1.327 | DM57: 1.336 | DN57: 1.345 | DO57: 1.354 | DP57: 1.363 | DQ57: 1.373 | DR57: 1.382 | DS57: 1.391 | DT57: 1.401 | DU57: 1.410 | DV57: 1.420 | DW57: 1.429 | DX57: 1.439 | DY57: 1.449 | DZ57: 1.458 | EA57: 1.468 | EB57: 1.478 | EC57: 1.488 | ED57: 1.498 | EE57: 1.508 | EF57: 1.518 | EG57: 1.529 | EH57: 1.539 | EI57: 1.550 | EJ57: 1.560 | EK57: 1.571 | EL57: 1.582 | EM57: 1.593 | EN57: 1.604 | EO57: 1.615 | EP57: 1.626 | EQ57: 1.637 | ER57: 1.649 | ES57: 1.660 | ET57: 1.672 | EU57: 1.684 | EV57: 1.696 | EW57: 1.709 | EX57: 1.721 | EY57: 1.734 | EZ57: 1.746 | FA57: 1.760 | FB57: 1.773 | FC57: 1.786 | FE57: 1.4311 | FF57: 1.4251 | FG57: 1.4189 | FH57: 1.4125 | FK57: 1.4251
AI58: =IF(Database!O9=1,TRUE,FALSE) -> TRUE | AL58: =AND(Database!O9=2,Database!O14=1) -> FALSE | AO58: =AND(Database!O9=2,Database!O14=2) -> FALSE | AW58: 4.467 | AX58: 0.760 | AY58: 0.768 | AZ58: 0.776 | BA58: 0.785 | BB58: 0.793 | BC58: 0.801 | BD58: 0.810 | BE58: 0.818 | BF58: 0.826 | BG58: 0.835 | BH58: 0.843 | BI58: 0.852 | BJ58: 0.860 | BK58: 0.868 | BL58: 0.877 | BM58: 0.885 | BN58: 0.894 | BO58: 0.902 | BP58: 0.910 | BQ58: 0.919 | BR58: 0.927 | BS58: 0.936 | BT58: 0.944 | BU58: 0.952 | BV58: 0.961 | BW58: 0.969 | BX58: 0.978 | BY58: 0.986 | BZ58: 0.995 | CA58: 1.003 | CB58: 1.012 | CC58: 1.020 | CD58: 1.029 | CE58: 1.037 | CF58: 1.046 | CG58: 1.054 | CH58: 1.063 | CI58: 1.071 | CJ58: 1.080 | CK58: 1.088 | CL58: 1.097 | CM58: 1.105 | CN58: 1.114 | CO58: 1.122 | CP58: 1.131 | CQ58: 1.140 | CR58: 1.148 | CS58: 1.157 | CT58: 1.166 | CU58: 1.174 | CV58: 1.183 | CW58: 1.192 | CX58: 1.200 | CY58: 1.209 | CZ58: 1.218 | DA58: 1.227 | DB58: 1.235 | DC58: 1.244 | DD58: 1.253 | DE58: 1.262 | DF58: 1.271 | DG58: 1.280 | DH58: 1.289 | DI58: 1.298 | DJ58: 1.307 | DK58: 1.316 | DL58: 1.325 | DM58: 1.334 | DN58: 1.343 | DO58: 1.352 | DP58: 1.361 | DQ58: 1.371 | DR58: 1.380 | DS58: 1.389 | DT58: 1.399 | DU58: 1.408 | DV58: 1.418 | DW58: 1.427 | DX58: 1.437 | DY58: 1.447 | DZ58: 1.456 | EA58: 1.466 | EB58: 1.476 | EC58: 1.486 | ED58: 1.496 | EE58: 1.506 | EF58: 1.516 | EG58: 1.527 | EH58: 1.537 | EI58: 1.547 | EJ58: 1.558 | EK58: 1.569 | EL58: 1.579 | EM58: 1.590 | EN58: 1.601 | EO58: 1.612 | EP58: 1.624 | EQ58: 1.635 | ER58: 1.647 | ES58: 1.658 | ET58: 1.670 | EU58: 1.682 | EV58: 1.694 | EW58: 1.706 | EX58: 1.719 | EY58: 1.731 | EZ58: 1.744 | FA58: 1.757 | FB58: 1.770 | FC58: 1.784 | FE58: 1.4292 | FF58: 1.4232 | FG58: 1.4170 | FH58: 1.4106 | FK58: 1.4232
AI59: s1 | AJ59: s2 | AL59: s1 | AM59: s2 | AO59: s1 | AP59: s2 | AW59: 4.786 | AX59: 0.759 | AY59: 0.767 | AZ59: 0.775 | BA59: 0.784 | BB59: 0.792 | BC59: 0.800 | BD59: 0.809 | BE59: 0.817 | BF59: 0.825 | BG59: 0.834 | BH59: 0.842 | BI59: 0.850 | BJ59: 0.859 | BK59: 0.867 | BL59: 0.876 | BM59: 0.884 | BN59: 0.892 | BO59: 0.901 | BP59: 0.909 | BQ59: 0.918 | BR59: 0.926 | BS59: 0.934 | BT59: 0.943 | BU59: 0.951 | BV59: 0.960 | BW59: 0.968 | BX59: 0.976 | BY59: 0.985 | BZ59: 0.993 | CA59: 1.002 | CB59: 1.010 | CC59: 1.019 | CD59: 1.027 | CE59: 1.036 | CF59: 1.044 | CG59: 1.053 | CH59: 1.061 | CI59: 1.070 | CJ59: 1.078 | CK59: 1.087 | CL59: 1.095 | CM59: 1.104 | CN59: 1.112 | CO59: 1.121 | CP59: 1.129 | CQ59: 1.138 | CR59: 1.147 | CS59: 1.155 | CT59: 1.164 | CU59: 1.173 | CV59: 1.181 | CW59: 1.190 | CX59: 1.199 | CY59: 1.207 | CZ59: 1.216 | DA59: 1.225 | DB59: 1.234 | DC59: 1.243 | DD59: 1.251 | DE59: 1.260 | DF59: 1.269 | DG59: 1.278 | DH59: 1.287 | DI59: 1.296 | DJ59: 1.305 | DK59: 1.314 | DL59: 1.323 | DM59: 1.332 | DN59: 1.341 | DO59: 1.350 | DP59: 1.360 | DQ59: 1.369 | DR59: 1.378 | DS59: 1.388 | DT59: 1.397 | DU59: 1.406 | DV59: 1.416 | DW59: 1.425 | DX59: 1.435 | DY59: 1.445 | DZ59: 1.454 | EA59: 1.464 | EB59: 1.474 | EC59: 1.484 | ED59: 1.494 | EE59: 1.504 | EF59: 1.514 | EG59: 1.525 | EH59: 1.535 | EI59: 1.545 | EJ59: 1.556 | EK59: 1.567 | EL59: 1.577 | EM59: 1.588 | EN59: 1.599 | EO59: 1.610 | EP59: 1.622 | EQ59: 1.633 | ER59: 1.644 | ES59: 1.656 | ET59: 1.668 | EU59: 1.680 | EV59: 1.692 | EW59: 1.704 | EX59: 1.716 | EY59: 1.729 | EZ59: 1.742 | FA59: 1.755 | FB59: 1.768 | FC59: 1.781 | FE59: 1.4273 | FF59: 1.4213 | FG59: 1.4151 | FH59: 1.4087 | FK59: 1.4213
AH60: USLOV | AI60: =AND(Z11/Z12>=-1.5,Z11/Z12<=0,0<=AN23/Z16,AN23/Z16<=2) -> TRUE | AJ60: =OR(Z11/Z12<-1.5,AN23/Z16>2) -> FALSE | AL60: =AND(0.1<=Z11/Z16,Z11/Z16<=3.5,0<=AN23/Z16,AN23/Z16<=2) -> FALSE | AM60: =AND(0<=Z11/Z16,Z11/Z16<=0.1) -> FALSE | AO60: =AND(0<=Z11/Z13,Z11/Z13<=2,0<=AN23/Z16,AN23/Z16<=2) -> FALSE | AP60: =OR(Z11/Z13>2,AN23/Z16>2) -> FALSE | AR60: Odabir | AS60: s | AT60: =VLOOKUP(1,AR61:AS66,2,FALSE) -> 0.084 | AW60: 5.129 | AX60: 0.758 | AY60: 0.766 | AZ60: 0.774 | BA60: 0.783 | BB60: 0.791 | BC60: 0.799 | BD60: 0.808 | BE60: 0.816 | BF60: 0.824 | BG60: 0.833 | BH60: 0.841 | BI60: 0.849 | BJ60: 0.858 | BK60: 0.866 | BL60: 0.874 | BM60: 0.883 | BN60: 0.891 | BO60: 0.900 | BP60: 0.908 | BQ60: 0.916 | BR60: 0.925 | BS60: 0.933 | BT60: 0.942 | BU60: 0.950 | BV60: 0.958 | BW60: 0.967 | BX60: 0.975 | BY60: 0.984 | BZ60: 0.992 | CA60: 1.000 | CB60: 1.009 | CC60: 1.017 | CD60: 1.026 | CE60: 1.034 | CF60: 1.043 | CG60: 1.051 | CH60: 1.060 | CI60: 1.068 | CJ60: 1.077 | CK60: 1.085 | CL60: 1.094 | CM60: 1.102 | CN60: 1.111 | CO60: 1.119 | CP60: 1.128 | CQ60: 1.137 | CR60: 1.145 | CS60: 1.154 | CT60: 1.162 | CU60: 1.171 | CV60: 1.180 | CW60: 1.188 | CX60: 1.197 | CY60: 1.206 | CZ60: 1.215 | DA60: 1.223 | DB60: 1.232 | DC60: 1.241 | DD60: 1.250 | DE60: 1.259 | DF60: 1.267 | DG60: 1.276 | DH60: 1.285 | DI60: 1.294 | DJ60: 1.303 | DK60: 1.312 | DL60: 1.321 | DM60: 1.330 | DN60: 1.339 | DO60: 1.349 | DP60: 1.358 | DQ60: 1.367 | DR60: 1.376 | DS60: 1.386 | DT60: 1.395 | DU60: 1.405 | DV60: 1.414 | DW60: 1.424 | DX60: 1.433 | DY60: 1.443 | DZ60: 1.453 | EA60: 1.462 | EB60: 1.472 | EC60: 1.482 | ED60: 1.492 | EE60: 1.502 | EF60: 1.512 | EG60: 1.523 | EH60: 1.533 | EI60: 1.543 | EJ60: 1.554 | EK60: 1.565 | EL60: 1.575 | EM60: 1.586 | EN60: 1.597 | EO60: 1.608 | EP60: 1.619 | EQ60: 1.631 | ER60: 1.642 | ES60: 1.654 | ET60: 1.666 | EU60: 1.677 | EV60: 1.690 | EW60: 1.702 | EX60: 1.714 | EY60: 1.727 | EZ60: 1.740 | FA60: 1.752 | FB60: 1.766 | FC60: 1.779 | FE60: 1.4254 | FF60: 1.4194 | FG60: 1.4133 | FH60: 1.4069 | FK60: 1.4194
C61: Spreadsheet provided by: www.YourSpreadsheets.co.uk | AA61: calculations are based on Eurocode EN1991-1-4 (2005) + UK N.A. | AM61: =OR(AN23/Z13>3.5,AN23/Z16>2) -> FALSE | AR61: =IF(AI65=TRUE,1,0) -> 1 | AS61: =+AI66 -> 0.084 | AW61: 5.495 | AX61: 0.757 | AY61: 0.765 | AZ61: 0.773 | BA61: 0.782 | BB61: 0.790 | BC61: 0.798 | BD61: 0.807 | BE61: 0.815 | BF61: 0.823 | BG61: 0.832 | BH61: 0.840 | BI61: 0.848 | BJ61: 0.857 | BK61: 0.865 | BL61: 0.873 | BM61: 0.882 | BN61: 0.890 | BO61: 0.898 | BP61: 0.907 | BQ61: 0.915 | BR61: 0.924 | BS61: 0.932 | BT61: 0.940 | BU61: 0.949 | BV61: 0.957 | BW61: 0.965 | BX61: 0.974 | BY61: 0.982 | BZ61: 0.991 | CA61: 0.999 | CB61: 1.008 | CC61: 1.016 | CD61: 1.024 | CE61: 1.033 | CF61: 1.041 | CG61: 1.050 | CH61: 1.058 | CI61: 1.067 | CJ61: 1.075 | CK61: 1.084 | CL61: 1.092 | CM61: 1.101 | CN61: 1.109 | CO61: 1.118 | CP61: 1.126 | CQ61: 1.135 | CR61: 1.144 | CS61: 1.152 | CT61: 1.161 | CU61: 1.170 | CV61: 1.178 | CW61: 1.187 | CX61: 1.196 | CY61: 1.204 | CZ61: 1.213 | DA61: 1.222 | DB61: 1.230 | DC61: 1.239 | DD61: 1.248 | DE61: 1.257 | DF61: 1.266 | DG61: 1.275 | DH61: 1.284 | DI61: 1.292 | DJ61: 1.301 | DK61: 1.310 | DL61: 1.320 | DM61: 1.329 | DN61: 1.338 | DO61: 1.347 | DP61: 1.356 | DQ61: 1.365 | DR61: 1.375 | DS61: 1.384 | DT61: 1.393 | DU61: 1.403 | DV61: 1.412 | DW61: 1.422 | DX61: 1.431 | DY61: 1.441 | DZ61: 1.451 | EA61: 1.460 | EB61: 1.470 | EC61: 1.480 | ED61: 1.490 | EE61: 1.500 | EF61: 1.510 | EG61: 1.521 | EH61: 1.531 | EI61: 1.541 | EJ61: 1.552 | EK61: 1.563 | EL61: 1.573 | EM61: 1.584 | EN61: 1.595 | EO61: 1.606 | EP61: 1.617 | EQ61: 1.629 | ER61: 1.640 | ES61: 1.652 | ET61: 1.663 | EU61: 1.675 | EV61: 1.687 | EW61: 1.700 | EX61: 1.712 | EY61: 1.724 | EZ61: 1.737 | FA61: 1.750 | FB61: 1.763 | FC61: 1.777 | FE61: 1.4235 | FF61: 1.4175 | FG61: 1.4114 | FH61: 1.4050 | FK61: 1.4175
AH62: A | AI62: =0.1552*(AN23/Z16)^4-0.8575*(AN23/Z16)^3+1.8133*(AN23/Z16)^2-1.9115*AN23/Z16+1.0124 -> 0.101 | AL62: =-1.342*(LOG(AN23/Z16))^3-0.8222*(LOG(AN23/Z16))^2+0.4609*LOG(AN23/Z16)-0.0791 -> -0.031 | AO62: =0.1552*(AN23/Z16)^4-0.8575*(AN23/Z16)^3+1.8133*(AN23/Z16)^2-1.9115*(AN23/Z16)+1.0124 -> 0.101 | AR62: =IF(AJ65=TRUE,1,0) -> 0 | AS62: =+AJ66 -> 0.000 | AW62: 5.888 | AX62: 0.756 | AY62: 0.764 | AZ62: 0.772 | BA62: 0.781 | BB62: 0.789 | BC62: 0.797 | BD62: 0.805 | BE62: 0.814 | BF62: 0.822 | BG62: 0.830 | BH62: 0.839 | BI62: 0.847 | BJ62: 0.855 | BK62: 0.864 | BL62: 0.872 | BM62: 0.881 | BN62: 0.889 | BO62: 0.897 | BP62: 0.906 | BQ62: 0.914 | BR62: 0.922 | BS62: 0.931 | BT62: 0.939 | BU62: 0.947 | BV62: 0.956 | BW62: 0.964 | BX62: 0.973 | BY62: 0.981 | BZ62: 0.989 | CA62: 0.998 | CB62: 1.006 | CC62: 1.015 | CD62: 1.023 | CE62: 1.032 | CF62: 1.040 | CG62: 1.048 | CH62: 1.057 | CI62: 1.065 | CJ62: 1.074 | CK62: 1.082 | CL62: 1.091 | CM62: 1.099 | CN62: 1.108 | CO62: 1.116 | CP62: 1.125 | CQ62: 1.134 | CR62: 1.142 | CS62: 1.151 | CT62: 1.159 | CU62: 1.168 | CV62: 1.177 | CW62: 1.185 | CX62: 1.194 | CY62: 1.203 | CZ62: 1.211 | DA62: 1.220 | DB62: 1.229 | DC62: 1.238 | DD62: 1.246 | DE62: 1.255 | DF62: 1.264 | DG62: 1.273 | DH62: 1.282 | DI62: 1.291 | DJ62: 1.300 | DK62: 1.309 | DL62: 1.318 | DM62: 1.327 | DN62: 1.336 | DO62: 1.345 | DP62: 1.354 | DQ62: 1.364 | DR62: 1.373 | DS62: 1.382 | DT62: 1.391 | DU62: 1.401 | DV62: 1.410 | DW62: 1.420 | DX62: 1.429 | DY62: 1.439 | DZ62: 1.449 | EA62: 1.459 | EB62: 1.468 | EC62: 1.478 | ED62: 1.488 | EE62: 1.498 | EF62: 1.508 | EG62: 1.519 | EH62: 1.529 | EI62: 1.539 | EJ62: 1.550 | EK62: 1.560 | EL62: 1.571 | EM62: 1.582 | EN62: 1.593 | EO62: 1.604 | EP62: 1.615 | EQ62: 1.626 | ER62: 1.638 | ES62: 1.649 | ET62: 1.661 | EU62: 1.673 | EV62: 1.685 | EW62: 1.697 | EX62: 1.710 | EY62: 1.722 | EZ62: 1.735 | FA62: 1.748 | FB62: 1.761 | FC62: 1.774 | FE62: 1.4217 | FF62: 1.4157 | FG62: 1.4096 | FH62: 1.4032 | FK62: 1.4157
AH63: B | AI63: =0.3542*(AN23/Z16)^2-1.0577*AN23/Z16+2.6456 -> 1.860 | AL63: =-1.0196*(LOG(AN23/Z16))^3-0.891*(LOG(AN23/Z16))^2+0.5343*LOG(AN23/Z16)-0.1156 -> -0.052 | AO63: =-0.3056*(AN23/Z16)^2+1.0212*(AN23/Z16)-1.7637 -> -0.912 | AR63: =IF(AL65=TRUE,1,0) -> 0 | AS63: =+AL66 ->  | AW63: 6.310 | AX63: 0.755 | AY63: 0.763 | AZ63: 0.771 | BA63: 0.780 | BB63: 0.788 | BC63: 0.796 | BD63: 0.804 | BE63: 0.813 | BF63: 0.821 | BG63: 0.829 | BH63: 0.838 | BI63: 0.846 | BJ63: 0.854 | BK63: 0.863 | BL63: 0.871 | BM63: 0.879 | BN63: 0.888 | BO63: 0.896 | BP63: 0.904 | BQ63: 0.913 | BR63: 0.921 | BS63: 0.930 | BT63: 0.938 | BU63: 0.946 | BV63: 0.955 | BW63: 0.963 | BX63: 0.971 | BY63: 0.980 | BZ63: 0.988 | CA63: 0.997 | CB63: 1.005 | CC63: 1.013 | CD63: 1.022 | CE63: 1.030 | CF63: 1.039 | CG63: 1.047 | CH63: 1.056 | CI63: 1.064 | CJ63: 1.073 | CK63: 1.081 | CL63: 1.090 | CM63: 1.098 | CN63: 1.107 | CO63: 1.115 | CP63: 1.124 | CQ63: 1.132 | CR63: 1.141 | CS63: 1.149 | CT63: 1.158 | CU63: 1.167 | CV63: 1.175 | CW63: 1.184 | CX63: 1.192 | CY63: 1.201 | CZ63: 1.210 | DA63: 1.219 | DB63: 1.227 | DC63: 1.236 | DD63: 1.245 | DE63: 1.254 | DF63: 1.262 | DG63: 1.271 | DH63: 1.280 | DI63: 1.289 | DJ63: 1.298 | DK63: 1.307 | DL63: 1.316 | DM63: 1.325 | DN63: 1.334 | DO63: 1.343 | DP63: 1.353 | DQ63: 1.362 | DR63: 1.371 | DS63: 1.380 | DT63: 1.390 | DU63: 1.399 | DV63: 1.409 | DW63: 1.418 | DX63: 1.428 | DY63: 1.437 | DZ63: 1.447 | EA63: 1.457 | EB63: 1.466 | EC63: 1.476 | ED63: 1.486 | EE63: 1.496 | EF63: 1.507 | EG63: 1.517 | EH63: 1.527 | EI63: 1.537 | EJ63: 1.548 | EK63: 1.558 | EL63: 1.569 | EM63: 1.580 | EN63: 1.591 | EO63: 1.602 | EP63: 1.613 | EQ63: 1.624 | ER63: 1.636 | ES63: 1.647 | ET63: 1.659 | EU63: 1.671 | EV63: 1.683 | EW63: 1.695 | EX63: 1.708 | EY63: 1.720 | EZ63: 1.733 | FA63: 1.746 | FB63: 1.759 | FC63: 1.772 | FE63: 1.4199 | FF63: 1.4139 | FG63: 1.4078 | FH63: 1.4014 | FK63: 1.4139
AH64: C | AL64: =0.803*(LOG(AN23/Z16))^3+0.4236*(LOG(AN23/Z16))^2-0.5738*LOG(AN23/Z16)+0.1606 -> 0.068 | AR64: =IF(AM65=TRUE,1,0) -> 0 | AS64: =+AM66 -> -0.031 | AW64: 6.761 | AX64: 0.754 | AY64: 0.762 | AZ64: 0.770 | BA64: 0.779 | BB64: 0.787 | BC64: 0.795 | BD64: 0.803 | BE64: 0.812 | BF64: 0.820 | BG64: 0.828 | BH64: 0.837 | BI64: 0.845 | BJ64: 0.853 | BK64: 0.862 | BL64: 0.870 | BM64: 0.878 | BN64: 0.887 | BO64: 0.895 | BP64: 0.903 | BQ64: 0.912 | BR64: 0.920 | BS64: 0.928 | BT64: 0.937 | BU64: 0.945 | BV64: 0.953 | BW64: 0.962 | BX64: 0.970 | BY64: 0.979 | BZ64: 0.987 | CA64: 0.995 | CB64: 1.004 | CC64: 1.012 | CD64: 1.021 | CE64: 1.029 | CF64: 1.037 | CG64: 1.046 | CH64: 1.054 | CI64: 1.063 | CJ64: 1.071 | CK64: 1.080 | CL64: 1.088 | CM64: 1.097 | CN64: 1.105 | CO64: 1.114 | CP64: 1.122 | CQ64: 1.131 | CR64: 1.139 | CS64: 1.148 | CT64: 1.156 | CU64: 1.165 | CV64: 1.174 | CW64: 1.182 | CX64: 1.191 | CY64: 1.200 | CZ64: 1.208 | DA64: 1.217 | DB64: 1.226 | DC64: 1.234 | DD64: 1.243 | DE64: 1.252 | DF64: 1.261 | DG64: 1.270 | DH64: 1.279 | DI64: 1.288 | DJ64: 1.296 | DK64: 1.305 | DL64: 1.314 | DM64: 1.324 | DN64: 1.333 | DO64: 1.342 | DP64: 1.351 | DQ64: 1.360 | DR64: 1.369 | DS64: 1.379 | DT64: 1.388 | DU64: 1.397 | DV64: 1.407 | DW64: 1.416 | DX64: 1.426 | DY64: 1.435 | DZ64: 1.445 | EA64: 1.455 | EB64: 1.465 | EC64: 1.475 | ED64: 1.484 | EE64: 1.494 | EF64: 1.505 | EG64: 1.515 | EH64: 1.525 | EI64: 1.535 | EJ64: 1.546 | EK64: 1.557 | EL64: 1.567 | EM64: 1.578 | EN64: 1.589 | EO64: 1.600 | EP64: 1.611 | EQ64: 1.622 | ER64: 1.634 | ES64: 1.645 | ET64: 1.657 | EU64: 1.669 | EV64: 1.681 | EW64: 1.693 | EX64: 1.705 | EY64: 1.718 | EZ64: 1.731 | FA64: 1.743 | FB64: 1.757 | FC64: 1.770 | FE64: 1.4181 | FF64: 1.4121 | FG64: 1.4060 | FH64: 1.3997 | FK64: 1.4121
AH65: Odabir: | AI65: =AND(AI58=TRUE,AI60=TRUE) -> TRUE | AJ65: =AND(AI58=TRUE,AJ60=TRUE) -> FALSE | AL65: =AND(AL58=TRUE,AL60=TRUE) -> FALSE | AM65: =AND(AL58=TRUE,AM60=TRUE) -> FALSE | AO65: =AND(AO58=TRUE,AO60=TRUE) -> FALSE | AP65: =AND(AO58=TRUE,AP60=TRUE) -> FALSE | AR65: =IF(AO65=TRUE,1,0) -> 0 | AS65: =+AO66 -> 0.110 | AW65: 7.244 | AX65: 0.753 | AY65: 0.761 | AZ65: 0.769 | BA65: 0.778 | BB65: 0.786 | BC65: 0.794 | BD65: 0.802 | BE65: 0.811 | BF65: 0.819 | BG65: 0.827 | BH65: 0.836 | BI65: 0.844 | BJ65: 0.852 | BK65: 0.861 | BL65: 0.869 | BM65: 0.877 | BN65: 0.886 | BO65: 0.894 | BP65: 0.902 | BQ65: 0.910 | BR65: 0.919 | BS65: 0.927 | BT65: 0.936 | BU65: 0.944 | BV65: 0.952 | BW65: 0.961 | BX65: 0.969 | BY65: 0.977 | BZ65: 0.986 | CA65: 0.994 | CB65: 1.002 | CC65: 1.011 | CD65: 1.019 | CE65: 1.028 | CF65: 1.036 | CG65: 1.045 | CH65: 1.053 | CI65: 1.061 | CJ65: 1.070 | CK65: 1.078 | CL65: 1.087 | CM65: 1.095 | CN65: 1.104 | CO65: 1.112 | CP65: 1.121 | CQ65: 1.129 | CR65: 1.138 | CS65: 1.146 | CT65: 1.155 | CU65: 1.164 | CV65: 1.172 | CW65: 1.181 | CX65: 1.189 | CY65: 1.198 | CZ65: 1.207 | DA65: 1.215 | DB65: 1.224 | DC65: 1.233 | DD65: 1.242 | DE65: 1.251 | DF65: 1.259 | DG65: 1.268 | DH65: 1.277 | DI65: 1.286 | DJ65: 1.295 | DK65: 1.304 | DL65: 1.313 | DM65: 1.322 | DN65: 1.331 | DO65: 1.340 | DP65: 1.349 | DQ65: 1.358 | DR65: 1.368 | DS65: 1.377 | DT65: 1.386 | DU65: 1.396 | DV65: 1.405 | DW65: 1.414 | DX65: 1.424 | DY65: 1.434 | DZ65: 1.443 | EA65: 1.453 | EB65: 1.463 | EC65: 1.473 | ED65: 1.483 | EE65: 1.493 | EF65: 1.503 | EG65: 1.513 | EH65: 1.523 | EI65: 1.534 | EJ65: 1.544 | EK65: 1.555 | EL65: 1.565 | EM65: 1.576 | EN65: 1.587 | EO65: 1.598 | EP65: 1.609 | EQ65: 1.620 | ER65: 1.632 | ES65: 1.643 | ET65: 1.655 | EU65: 1.667 | EV65: 1.679 | EW65: 1.691 | EX65: 1.703 | EY65: 1.716 | EZ65: 1.728 | FA65: 1.741 | FB65: 1.754 | FC65: 1.768 | FE65: 1.4163 | FF65: 1.4103 | FG65: 1.4042 | FH65: 1.3979 | FK65: 1.4103
AH66: s | AI66: =+AI62*EXP(AI63*$Z$11/$Z$12) -> 0.084 | AJ66: 0.000 | AL66: =+AL62*(LOG($Z$11/$Z$16))^2+AL63*(LOG($Z$11/$Z$16))+AL64 ->  | AM66: =IF(AM61=TRUE,0,AL62) -> -0.031 | AO66: =+AO62*EXP(AO63*$Z$11/$Z$13) -> 0.110 | AP66: 0.000 | AR66: =IF(AP65=TRUE,1,0) -> 0 | AS66: =+AP66 -> 0.000 | AW66: 7.762 | AX66: 0.752 | AY66: 0.760 | AZ66: 0.768 | BA66: 0.777 | BB66: 0.785 | BC66: 0.793 | BD66: 0.801 | BE66: 0.810 | BF66: 0.818 | BG66: 0.826 | BH66: 0.835 | BI66: 0.843 | BJ66: 0.851 | BK66: 0.859 | BL66: 0.868 | BM66: 0.876 | BN66: 0.884 | BO66: 0.893 | BP66: 0.901 | BQ66: 0.909 | BR66: 0.918 | BS66: 0.926 | BT66: 0.934 | BU66: 0.943 | BV66: 0.951 | BW66: 0.959 | BX66: 0.968 | BY66: 0.976 | BZ66: 0.984 | CA66: 0.993 | CB66: 1.001 | CC66: 1.010 | CD66: 1.018 | CE66: 1.026 | CF66: 1.035 | CG66: 1.043 | CH66: 1.052 | CI66: 1.060 | CJ66: 1.069 | CK66: 1.077 | CL66: 1.085 | CM66: 1.094 | CN66: 1.102 | CO66: 1.111 | CP66: 1.119 | CQ66: 1.128 | CR66: 1.136 | CS66: 1.145 | CT66: 1.154 | CU66: 1.162 | CV66: 1.171 | CW66: 1.179 | CX66: 1.188 | CY66: 1.197 | CZ66: 1.205 | DA66: 1.214 | DB66: 1.223 | DC66: 1.231 | DD66: 1.240 | DE66: 1.249 | DF66: 1.258 | DG66: 1.267 | DH66: 1.275 | DI66: 1.284 | DJ66: 1.293 | DK66: 1.302 | DL66: 1.311 | DM66: 1.320 | DN66: 1.329 | DO66: 1.338 | DP66: 1.348 | DQ66: 1.357 | DR66: 1.366 | DS66: 1.375 | DT66: 1.384 | DU66: 1.394 | DV66: 1.403 | DW66: 1.413 | DX66: 1.422 | DY66: 1.432 | DZ66: 1.441 | EA66: 1.451 | EB66: 1.461 | EC66: 1.471 | ED66: 1.481 | EE66: 1.491 | EF66: 1.501 | EG66: 1.511 | EH66: 1.521 | EI66: 1.532 | EJ66: 1.542 | EK66: 1.553 | EL66: 1.563 | EM66: 1.574 | EN66: 1.585 | EO66: 1.596 | EP66: 1.607 | EQ66: 1.618 | ER66: 1.630 | ES66: 1.641 | ET66: 1.653 | EU66: 1.665 | EV66: 1.677 | EW66: 1.689 | EX66: 1.701 | EY66: 1.714 | EZ66: 1.726 | FA66: 1.739 | FB66: 1.752 | FC66: 1.765 | FE66: 1.4146 | FF66: 1.4086 | FG66: 1.4025 | FH66: 1.3962 | FK66: 1.4086
AI67: 1 | AJ67: 2 | AL67: 3 | AM67: 4 | AO67: 5 | AP67: 6 | AW67: 8.318 | AX67: 0.751 | AY67: 0.759 | AZ67: 0.767 | BA67: 0.776 | BB67: 0.784 | BC67: 0.792 | BD67: 0.800 | BE67: 0.809 | BF67: 0.817 | BG67: 0.825 | BH67: 0.834 | BI67: 0.842 | BJ67: 0.850 | BK67: 0.858 | BL67: 0.867 | BM67: 0.875 | BN67: 0.883 | BO67: 0.892 | BP67: 0.900 | BQ67: 0.908 | BR67: 0.917 | BS67: 0.925 | BT67: 0.933 | BU67: 0.942 | BV67: 0.950 | BW67: 0.958 | BX67: 0.967 | BY67: 0.975 | BZ67: 0.983 | CA67: 0.992 | CB67: 1.000 | CC67: 1.008 | CD67: 1.017 | CE67: 1.025 | CF67: 1.034 | CG67: 1.042 | CH67: 1.050 | CI67: 1.059 | CJ67: 1.067 | CK67: 1.076 | CL67: 1.084 | CM67: 1.093 | CN67: 1.101 | CO67: 1.110 | CP67: 1.118 | CQ67: 1.127 | CR67: 1.135 | CS67: 1.144 | CT67: 1.152 | CU67: 1.161 | CV67: 1.169 | CW67: 1.178 | CX67: 1.187 | CY67: 1.195 | CZ67: 1.204 | DA67: 1.212 | DB67: 1.221 | DC67: 1.230 | DD67: 1.239 | DE67: 1.247 | DF67: 1.256 | DG67: 1.265 | DH67: 1.274 | DI67: 1.283 | DJ67: 1.292 | DK67: 1.301 | DL67: 1.310 | DM67: 1.319 | DN67: 1.328 | DO67: 1.337 | DP67: 1.346 | DQ67: 1.355 | DR67: 1.364 | DS67: 1.373 | DT67: 1.383 | DU67: 1.392 | DV67: 1.402 | DW67: 1.411 | DX67: 1.421 | DY67: 1.430 | DZ67: 1.440 | EA67: 1.449 | EB67: 1.459 | EC67: 1.469 | ED67: 1.479 | EE67: 1.489 | EF67: 1.499 | EG67: 1.509 | EH67: 1.519 | EI67: 1.530 | EJ67: 1.540 | EK67: 1.551 | EL67: 1.561 | EM67: 1.572 | EN67: 1.583 | EO67: 1.594 | EP67: 1.605 | EQ67: 1.616 | ER67: 1.628 | ES67: 1.639 | ET67: 1.651 | EU67: 1.663 | EV67: 1.675 | EW67: 1.687 | EX67: 1.699 | EY67: 1.712 | EZ67: 1.724 | FA67: 1.737 | FB67: 1.750 | FC67: 1.763 | FE67: 1.4128 | FF67: =FORECAST(L$39,OFFSET($AX67,0,MATCH(L$39,$AX$2:$FC$2,1)-1,1,2),OFFSET($AX$2,0,MATCH(L$39,$AX$2:$FC$2,1)-1,1,2)) -> 1.4068 | FG67: =FORECAST(N$39,OFFSET($AX67,0,MATCH(N$39,$AX$2:$FC$2,1)-1,1,2),OFFSET($AX$2,0,MATCH(N$39,$AX$2:$FC$2,1)-1,1,2)) -> 1.4008 | FH67: =FORECAST(P$39,OFFSET($AX67,0,MATCH(P$39,$AX$2:$FC$2,1)-1,1,2),OFFSET($AX$2,0,MATCH(P$39,$AX$2:$FC$2,1)-1,1,2)) -> 1.3945 | FK67: =FORECAST(AN$22,OFFSET($AX67,0,MATCH(AN$22,$AX$2:$FC$2,1)-1,1,2),OFFSET($AX$2,0,MATCH(AN$22,$AX$2:$FC$2,1)-1,1,2)) -> 1.4068
AH68: Blokada: | AI68: =AND(Database!O9=1,Z11<0) -> TRUE | AJ68: =AND(Database!O9=2,Z11>=0) -> FALSE | AK68: =AND(AI68=FALSE,AJ68=FALSE) -> FALSE | AM68: =+Database!U22 -> FALSE | AW68: 8.913 | AX68: 0.750 | AY68: 0.758 | AZ68: 0.766 | BA68: 0.775 | BB68: 0.783 | BC68: 0.791 | BD68: 0.799 | BE68: 0.808 | BF68: 0.816 | BG68: 0.824 | BH68: 0.833 | BI68: 0.841 | BJ68: 0.849 | BK68: 0.857 | BL68: 0.866 | BM68: 0.874 | BN68: 0.882 | BO68: 0.891 | BP68: 0.899 | BQ68: 0.907 | BR68: 0.915 | BS68: 0.924 | BT68: 0.932 | BU68: 0.940 | BV68: 0.949 | BW68: 0.957 | BX68: 0.965 | BY68: 0.974 | BZ68: 0.982 | CA68: 0.990 | CB68: 0.999 | CC68: 1.007 | CD68: 1.016 | CE68: 1.024 | CF68: 1.032 | CG68: 1.041 | CH68: 1.049 | CI68: 1.057 | CJ68: 1.066 | CK68: 1.074 | CL68: 1.083 | CM68: 1.091 | CN68: 1.100 | CO68: 1.108 | CP68: 1.117 | CQ68: 1.125 | CR68: 1.134 | CS68: 1.142 | CT68: 1.151 | CU68: 1.159 | CV68: 1.168 | CW68: 1.176 | CX68: 1.185 | CY68: 1.194 | CZ68: 1.202 | DA68: 1.211 | DB68: 1.220 | DC68: 1.228 | DD68: 1.237 | DE68: 1.246 | DF68: 1.255 | DG68: 1.264 | DH68: 1.272 | DI68: 1.281 | DJ68: 1.290 | DK68: 1.299 | DL68: 1.308 | DM68: 1.317 | DN68: 1.326 | DO68: 1.335 | DP68: 1.344 | DQ68: 1.353 | DR68: 1.363 | DS68: 1.372 | DT68: 1.381 | DU68: 1.390 | DV68: 1.400 | DW68: 1.409 | DX68: 1.419 | DY68: 1.428 | DZ68: 1.438 | EA68: 1.448 | EB68: 1.457 | EC68: 1.467 | ED68: 1.477 | EE68: 1.487 | EF68: 1.497 | EG68: 1.507 | EH68: 1.518 | EI68: 1.528 | EJ68: 1.538 | EK68: 1.549 | EL68: 1.559 | EM68: 1.570 | EN68: 1.581 | EO68: 1.592 | EP68: 1.603 | EQ68: 1.614 | ER68: 1.626 | ES68: 1.637 | ET68: 1.649 | EU68: 1.661 | EV68: 1.673 | EW68: 1.685 | EX68: 1.697 | EY68: 1.709 | EZ68: 1.722 | FA68: 1.735 | FB68: 1.748 | FC68: 1.761 | FE68: =FORECAST(J$39,OFFSET($AX68,0,MATCH(J$39,$AX$2:$FC$2,1)-1,1,2),OFFSET($AX$2,0,MATCH(J$39,$AX$2:$FC$2,1)-1,1,2)) -> 1.4111 | FF68: 1.4051 | FG68: 1.3991 | FH68: 1.3928 | FK68: 1.4051
AW69: 9.550 | AX69: 0.749 | AY69: 0.757 | AZ69: 0.766 | BA69: 0.774 | BB69: 0.782 | BC69: 0.790 | BD69: 0.799 | BE69: 0.807 | BF69: 0.815 | BG69: 0.823 | BH69: 0.832 | BI69: 0.840 | BJ69: 0.848 | BK69: 0.856 | BL69: 0.865 | BM69: 0.873 | BN69: 0.881 | BO69: 0.889 | BP69: 0.898 | BQ69: 0.906 | BR69: 0.914 | BS69: 0.923 | BT69: 0.931 | BU69: 0.939 | BV69: 0.948 | BW69: 0.956 | BX69: 0.964 | BY69: 0.973 | BZ69: 0.981 | CA69: 0.989 | CB69: 0.998 | CC69: 1.006 | CD69: 1.014 | CE69: 1.023 | CF69: 1.031 | CG69: 1.039 | CH69: 1.048 | CI69: 1.056 | CJ69: 1.065 | CK69: 1.073 | CL69: 1.081 | CM69: 1.090 | CN69: 1.098 | CO69: 1.107 | CP69: 1.115 | CQ69: 1.124 | CR69: 1.132 | CS69: 1.141 | CT69: 1.149 | CU69: 1.158 | CV69: 1.166 | CW69: 1.175 | CX69: 1.184 | CY69: 1.192 | CZ69: 1.201 | DA69: 1.210 | DB69: 1.218 | DC69: 1.227 | DD69: 1.236 | DE69: 1.244 | DF69: 1.253 | DG69: 1.262 | DH69: 1.271 | DI69: 1.280 | DJ69: 1.289 | DK69: 1.297 | DL69: 1.306 | DM69: 1.315 | DN69: 1.324 | DO69: 1.334 | DP69: 1.343 | DQ69: 1.352 | DR69: 1.361 | DS69: 1.370 | DT69: 1.379 | DU69: 1.389 | DV69: 1.398 | DW69: 1.408 | DX69: 1.417 | DY69: 1.427 | DZ69: 1.436 | EA69: 1.446 | EB69: 1.456 | EC69: 1.465 | ED69: 1.475 | EE69: 1.485 | EF69: 1.495 | EG69: 1.506 | EH69: 1.516 | EI69: 1.526 | EJ69: 1.536 | EK69: 1.547 | EL69: 1.558 | EM69: 1.568 | EN69: 1.579 | EO69: 1.590 | EP69: 1.601 | EQ69: 1.612 | ER69: 1.624 | ES69: 1.635 | ET69: 1.647 | EU69: 1.659 | EV69: 1.671 | EW69: 1.683 | EX69: 1.695 | EY69: 1.707 | EZ69: 1.720 | FA69: 1.733 | FB69: 1.746 | FC69: 1.759 | FE69: 1.4094 | FF69: 1.4034 | FG69: 1.3974 | FH69: 1.3911 | FK69: 1.4034
AW70: 10.233 | AX70: 0.748 | AY70: 0.756 | AZ70: 0.765 | BA70: 0.773 | BB70: 0.781 | BC70: 0.789 | BD70: 0.798 | BE70: 0.806 | BF70: 0.814 | BG70: 0.822 | BH70: 0.831 | BI70: 0.839 | BJ70: 0.847 | BK70: 0.855 | BL70: 0.864 | BM70: 0.872 | BN70: 0.880 | BO70: 0.888 | BP70: 0.897 | BQ70: 0.905 | BR70: 0.913 | BS70: 0.922 | BT70: 0.930 | BU70: 0.938 | BV70: 0.946 | BW70: 0.955 | BX70: 0.963 | BY70: 0.971 | BZ70: 0.980 | CA70: 0.988 | CB70: 0.996 | CC70: 1.005 | CD70: 1.013 | CE70: 1.021 | CF70: 1.030 | CG70: 1.038 | CH70: 1.047 | CI70: 1.055 | CJ70: 1.063 | CK70: 1.072 | CL70: 1.080 | CM70: 1.089 | CN70: 1.097 | CO70: 1.106 | CP70: 1.114 | CQ70: 1.122 | CR70: 1.131 | CS70: 1.139 | CT70: 1.148 | CU70: 1.157 | CV70: 1.165 | CW70: 1.174 | CX70: 1.182 | CY70: 1.191 | CZ70: 1.199 | DA70: 1.208 | DB70: 1.217 | DC70: 1.225 | DD70: 1.234 | DE70: 1.243 | DF70: 1.252 | DG70: 1.260 | DH70: 1.269 | DI70: 1.278 | DJ70: 1.287 | DK70: 1.296 | DL70: 1.305 | DM70: 1.314 | DN70: 1.323 | DO70: 1.332 | DP70: 1.341 | DQ70: 1.350 | DR70: 1.359 | DS70: 1.369 | DT70: 1.378 | DU70: 1.387 | DV70: 1.397 | DW70: 1.406 | DX70: 1.415 | DY70: 1.425 | DZ70: 1.435 | EA70: 1.444 | EB70: 1.454 | EC70: 1.464 | ED70: 1.474 | EE70: 1.484 | EF70: 1.494 | EG70: 1.504 | EH70: 1.514 | EI70: 1.524 | EJ70: 1.535 | EK70: 1.545 | EL70: 1.556 | EM70: 1.566 | EN70: 1.577 | EO70: 1.588 | EP70: 1.599 | EQ70: 1.611 | ER70: 1.622 | ES70: 1.633 | ET70: 1.645 | EU70: 1.657 | EV70: 1.669 | EW70: 1.681 | EX70: 1.693 | EY70: 1.705 | EZ70: 1.718 | FA70: 1.731 | FB70: 1.744 | FC70: 1.757 | FE70: 1.4078 | FF70: 1.4018 | FG70: 1.3958 | FH70: 1.3895 | FK70: 1.4018
AW71: 10.965 | AX71: 0.747 | AY71: 0.756 | AZ71: 0.764 | BA71: 0.772 | BB71: 0.780 | BC71: 0.788 | BD71: 0.797 | BE71: 0.805 | BF71: 0.813 | BG71: 0.821 | BH71: 0.830 | BI71: 0.838 | BJ71: 0.846 | BK71: 0.854 | BL71: 0.863 | BM71: 0.871 | BN71: 0.879 | BO71: 0.887 | BP71: 0.896 | BQ71: 0.904 | BR71: 0.912 | BS71: 0.920 | BT71: 0.929 | BU71: 0.937 | BV71: 0.945 | BW71: 0.954 | BX71: 0.962 | BY71: 0.970 | BZ71: 0.979 | CA71: 0.987 | CB71: 0.995 | CC71: 1.004 | CD71: 1.012 | CE71: 1.020 | CF71: 1.029 | CG71: 1.037 | CH71: 1.045 | CI71: 1.054 | CJ71: 1.062 | CK71: 1.071 | CL71: 1.079 | CM71: 1.087 | CN71: 1.096 | CO71: 1.104 | CP71: 1.113 | CQ71: 1.121 | CR71: 1.130 | CS71: 1.138 | CT71: 1.147 | CU71: 1.155 | CV71: 1.164 | CW71: 1.172 | CX71: 1.181 | CY71: 1.189 | CZ71: 1.198 | DA71: 1.207 | DB71: 1.215 | DC71: 1.224 | DD71: 1.233 | DE71: 1.241 | DF71: 1.250 | DG71: 1.259 | DH71: 1.268 | DI71: 1.277 | DJ71: 1.286 | DK71: 1.294 | DL71: 1.303 | DM71: 1.312 | DN71: 1.321 | DO71: 1.330 | DP71: 1.339 | DQ71: 1.349 | DR71: 1.358 | DS71: 1.367 | DT71: 1.376 | DU71: 1.386 | DV71: 1.395 | DW71: 1.404 | DX71: 1.414 | DY71: 1.423 | DZ71: 1.433 | EA71: 1.443 | EB71: 1.452 | EC71: 1.462 | ED71: 1.472 | EE71: 1.482 | EF71: 1.492 | EG71: 1.502 | EH71: 1.512 | EI71: 1.522 | EJ71: 1.533 | EK71: 1.543 | EL71: 1.554 | EM71: 1.565 | EN71: 1.575 | EO71: 1.586 | EP71: 1.597 | EQ71: 1.609 | ER71: 1.620 | ES71: 1.631 | ET71: 1.643 | EU71: 1.655 | EV71: 1.667 | EW71: 1.679 | EX71: 1.691 | EY71: 1.703 | EZ71: 1.716 | FA71: 1.729 | FB71: 1.742 | FC71: 1.755 | FE71: 1.4061 | FF71: 1.4001 | FG71: 1.3941 | FH71: 1.3879 | FK71: 1.4001
AW72: 11.749 | AX72: 0.746 | AY72: 0.755 | AZ72: 0.763 | BA72: 0.771 | BB72: 0.779 | BC72: 0.788 | BD72: 0.796 | BE72: 0.804 | BF72: 0.812 | BG72: 0.820 | BH72: 0.829 | BI72: 0.837 | BJ72: 0.845 | BK72: 0.853 | BL72: 0.862 | BM72: 0.870 | BN72: 0.878 | BO72: 0.886 | BP72: 0.895 | BQ72: 0.903 | BR72: 0.911 | BS72: 0.919 | BT72: 0.928 | BU72: 0.936 | BV72: 0.944 | BW72: 0.953 | BX72: 0.961 | BY72: 0.969 | BZ72: 0.977 | CA72: 0.986 | CB72: 0.994 | CC72: 1.002 | CD72: 1.011 | CE72: 1.019 | CF72: 1.027 | CG72: 1.036 | CH72: 1.044 | CI72: 1.053 | CJ72: 1.061 | CK72: 1.069 | CL72: 1.078 | CM72: 1.086 | CN72: 1.095 | CO72: 1.103 | CP72: 1.111 | CQ72: 1.120 | CR72: 1.128 | CS72: 1.137 | CT72: 1.145 | CU72: 1.154 | CV72: 1.162 | CW72: 1.171 | CX72: 1.179 | CY72: 1.188 | CZ72: 1.197 | DA72: 1.205 | DB72: 1.214 | DC72: 1.223 | DD72: 1.231 | DE72: 1.240 | DF72: 1.249 | DG72: 1.258 | DH72: 1.266 | DI72: 1.275 | DJ72: 1.284 | DK72: 1.293 | DL72: 1.302 | DM72: 1.311 | DN72: 1.320 | DO72: 1.329 | DP72: 1.338 | DQ72: 1.347 | DR72: 1.356 | DS72: 1.365 | DT72: 1.375 | DU72: 1.384 | DV72: 1.393 | DW72: 1.403 | DX72: 1.412 | DY72: 1.422 | DZ72: 1.431 | EA72: 1.441 | EB72: 1.451 | EC72: 1.460 | ED72: 1.470 | EE72: 1.480 | EF72: 1.490 | EG72: 1.500 | EH72: 1.510 | EI72: 1.521 | EJ72: 1.531 | EK72: 1.542 | EL72: 1.552 | EM72: 1.563 | EN72: 1.574 | EO72: 1.585 | EP72: 1.596 | EQ72: 1.607 | ER72: 1.618 | ES72: 1.629 | ET72: 1.641 | EU72: 1.653 | EV72: 1.665 | EW72: 1.677 | EX72: 1.689 | EY72: 1.701 | EZ72: 1.714 | FA72: 1.727 | FB72: 1.740 | FC72: 1.753 | FE72: 1.4045 | FF72: 1.3985 | FG72: 1.3925 | FH72: 1.3862 | FK72: 1.3985
AW73: 12.589 | AX73: 0.746 | AY73: 0.754 | AZ73: 0.762 | BA73: 0.770 | BB73: 0.778 | BC73: 0.787 | BD73: 0.795 | BE73: 0.803 | BF73: 0.811 | BG73: 0.819 | BH73: 0.828 | BI73: 0.836 | BJ73: 0.844 | BK73: 0.852 | BL73: 0.861 | BM73: 0.869 | BN73: 0.877 | BO73: 0.885 | BP73: 0.894 | BQ73: 0.902 | BR73: 0.910 | BS73: 0.918 | BT73: 0.927 | BU73: 0.935 | BV73: 0.943 | BW73: 0.951 | BX73: 0.960 | BY73: 0.968 | BZ73: 0.976 | CA73: 0.985 | CB73: 0.993 | CC73: 1.001 | CD73: 1.010 | CE73: 1.018 | CF73: 1.026 | CG73: 1.035 | CH73: 1.043 | CI73: 1.051 | CJ73: 1.060 | CK73: 1.068 | CL73: 1.076 | CM73: 1.085 | CN73: 1.093 | CO73: 1.102 | CP73: 1.110 | CQ73: 1.119 | CR73: 1.127 | CS73: 1.136 | CT73: 1.144 | CU73: 1.153 | CV73: 1.161 | CW73: 1.170 | CX73: 1.178 | CY73: 1.187 | CZ73: 1.195 | DA73: 1.204 | DB73: 1.213 | DC73: 1.221 | DD73: 1.230 | DE73: 1.239 | DF73: 1.247 | DG73: 1.256 | DH73: 1.265 | DI73: 1.274 | DJ73: 1.283 | DK73: 1.291 | DL73: 1.300 | DM73: 1.309 | DN73: 1.318 | DO73: 1.327 | DP73: 1.336 | DQ73: 1.345 | DR73: 1.355 | DS73: 1.364 | DT73: 1.373 | DU73: 1.382 | DV73: 1.392 | DW73: 1.401 | DX73: 1.410 | DY73: 1.420 | DZ73: 1.430 | EA73: 1.439 | EB73: 1.449 | EC73: 1.459 | ED73: 1.469 | EE73: 1.478 | EF73: 1.488 | EG73: 1.499 | EH73: 1.509 | EI73: 1.519 | EJ73: 1.529 | EK73: 1.540 | EL73: 1.550 | EM73: 1.561 | EN73: 1.572 | EO73: 1.583 | EP73: 1.594 | EQ73: 1.605 | ER73: 1.616 | ES73: 1.628 | ET73: 1.639 | EU73: 1.651 | EV73: 1.663 | EW73: 1.675 | EX73: 1.687 | EY73: 1.699 | EZ73: 1.712 | FA73: 1.725 | FB73: 1.738 | FC73: 1.751 | FE73: 1.4029 | FF73: 1.3969 | FG73: 1.3909 | FH73: 1.3847 | FK73: 1.3969
AW74: 13.490 | AX74: 0.745 | AY74: 0.753 | AZ74: 0.761 | BA74: 0.769 | BB74: 0.778 | BC74: 0.786 | BD74: 0.794 | BE74: 0.802 | BF74: 0.810 | BG74: 0.819 | BH74: 0.827 | BI74: 0.835 | BJ74: 0.843 | BK74: 0.851 | BL74: 0.860 | BM74: 0.868 | BN74: 0.876 | BO74: 0.884 | BP74: 0.893 | BQ74: 0.901 | BR74: 0.909 | BS74: 0.917 | BT74: 0.926 | BU74: 0.934 | BV74: 0.942 | BW74: 0.950 | BX74: 0.959 | BY74: 0.967 | BZ74: 0.975 | CA74: 0.983 | CB74: 0.992 | CC74: 1.000 | CD74: 1.008 | CE74: 1.017 | CF74: 1.025 | CG74: 1.033 | CH74: 1.042 | CI74: 1.050 | CJ74: 1.058 | CK74: 1.067 | CL74: 1.075 | CM74: 1.084 | CN74: 1.092 | CO74: 1.100 | CP74: 1.109 | CQ74: 1.117 | CR74: 1.126 | CS74: 1.134 | CT74: 1.143 | CU74: 1.151 | CV74: 1.160 | CW74: 1.168 | CX74: 1.177 | CY74: 1.185 | CZ74: 1.194 | DA74: 1.203 | DB74: 1.211 | DC74: 1.220 | DD74: 1.229 | DE74: 1.237 | DF74: 1.246 | DG74: 1.255 | DH74: 1.263 | DI74: 1.272 | DJ74: 1.281 | DK74: 1.290 | DL74: 1.299 | DM74: 1.308 | DN74: 1.317 | DO74: 1.326 | DP74: 1.335 | DQ74: 1.344 | DR74: 1.353 | DS74: 1.362 | DT74: 1.371 | DU74: 1.381 | DV74: 1.390 | DW74: 1.399 | DX74: 1.409 | DY74: 1.418 | DZ74: 1.428 | EA74: 1.438 | EB74: 1.447 | EC74: 1.457 | ED74: 1.467 | EE74: 1.477 | EF74: 1.487 | EG74: 1.497 | EH74: 1.507 | EI74: 1.517 | EJ74: 1.528 | EK74: 1.538 | EL74: 1.549 | EM74: 1.559 | EN74: 1.570 | EO74: 1.581 | EP74: 1.592 | EQ74: 1.603 | ER74: 1.614 | ES74: 1.626 | ET74: 1.637 | EU74: 1.649 | EV74: 1.661 | EW74: 1.673 | EX74: 1.685 | EY74: 1.697 | EZ74: 1.710 | FA74: 1.723 | FB74: 1.736 | FC74: 1.749 | FE74: 1.4013 | FF74: 1.3953 | FG74: 1.3893 | FH74: 1.3831 | FK74: 1.3953
AW75: 14.454 | AX75: 0.744 | AY75: 0.752 | AZ75: 0.760 | BA75: 0.768 | BB75: 0.777 | BC75: 0.785 | BD75: 0.793 | BE75: 0.801 | BF75: 0.809 | BG75: 0.818 | BH75: 0.826 | BI75: 0.834 | BJ75: 0.842 | BK75: 0.850 | BL75: 0.859 | BM75: 0.867 | BN75: 0.875 | BO75: 0.883 | BP75: 0.892 | BQ75: 0.900 | BR75: 0.908 | BS75: 0.916 | BT75: 0.925 | BU75: 0.933 | BV75: 0.941 | BW75: 0.949 | BX75: 0.958 | BY75: 0.966 | BZ75: 0.974 | CA75: 0.982 | CB75: 0.991 | CC75: 0.999 | CD75: 1.007 | CE75: 1.016 | CF75: 1.024 | CG75: 1.032 | CH75: 1.041 | CI75: 1.049 | CJ75: 1.057 | CK75: 1.066 | CL75: 1.074 | CM75: 1.082 | CN75: 1.091 | CO75: 1.099 | CP75: 1.108 | CQ75: 1.116 | CR75: 1.124 | CS75: 1.133 | CT75: 1.141 | CU75: 1.150 | CV75: 1.158 | CW75: 1.167 | CX75: 1.175 | CY75: 1.184 | CZ75: 1.193 | DA75: 1.201 | DB75: 1.210 | DC75: 1.218 | DD75: 1.227 | DE75: 1.236 | DF75: 1.245 | DG75: 1.253 | DH75: 1.262 | DI75: 1.271 | DJ75: 1.280 | DK75: 1.289 | DL75: 1.297 | DM75: 1.306 | DN75: 1.315 | DO75: 1.324 | DP75: 1.333 | DQ75: 1.342 | DR75: 1.352 | DS75: 1.361 | DT75: 1.370 | DU75: 1.379 | DV75: 1.388 | DW75: 1.398 | DX75: 1.407 | DY75: 1.417 | DZ75: 1.426 | EA75: 1.436 | EB75: 1.446 | EC75: 1.455 | ED75: 1.465 | EE75: 1.475 | EF75: 1.485 | EG75: 1.495 | EH75: 1.505 | EI75: 1.516 | EJ75: 1.526 | EK75: 1.536 | EL75: 1.547 | EM75: 1.557 | EN75: 1.568 | EO75: 1.579 | EP75: 1.590 | EQ75: 1.601 | ER75: 1.613 | ES75: 1.624 | ET75: 1.635 | EU75: 1.647 | EV75: 1.659 | EW75: 1.671 | EX75: 1.683 | EY75: 1.696 | EZ75: 1.708 | FA75: 1.721 | FB75: 1.734 | FC75: 1.747 | FE75: 1.3997 | FF75: 1.3937 | FG75: 1.3877 | FH75: 1.3815 | FK75: 1.3937
AW76: 15.488 | AX76: 0.743 | AY76: 0.751 | AZ76: 0.759 | BA76: 0.768 | BB76: 0.776 | BC76: 0.784 | BD76: 0.792 | BE76: 0.800 | BF76: 0.809 | BG76: 0.817 | BH76: 0.825 | BI76: 0.833 | BJ76: 0.841 | BK76: 0.849 | BL76: 0.858 | BM76: 0.866 | BN76: 0.874 | BO76: 0.882 | BP76: 0.891 | BQ76: 0.899 | BR76: 0.907 | BS76: 0.915 | BT76: 0.923 | BU76: 0.932 | BV76: 0.940 | BW76: 0.948 | BX76: 0.956 | BY76: 0.965 | BZ76: 0.973 | CA76: 0.981 | CB76: 0.990 | CC76: 0.998 | CD76: 1.006 | CE76: 1.014 | CF76: 1.023 | CG76: 1.031 | CH76: 1.039 | CI76: 1.048 | CJ76: 1.056 | CK76: 1.064 | CL76: 1.073 | CM76: 1.081 | CN76: 1.090 | CO76: 1.098 | CP76: 1.106 | CQ76: 1.115 | CR76: 1.123 | CS76: 1.132 | CT76: 1.140 | CU76: 1.149 | CV76: 1.157 | CW76: 1.166 | CX76: 1.174 | CY76: 1.183 | CZ76: 1.191 | DA76: 1.200 | DB76: 1.208 | DC76: 1.217 | DD76: 1.226 | DE76: 1.234 | DF76: 1.243 | DG76: 1.252 | DH76: 1.261 | DI76: 1.269 | DJ76: 1.278 | DK76: 1.287 | DL76: 1.296 | DM76: 1.305 | DN76: 1.314 | DO76: 1.323 | DP76: 1.332 | DQ76: 1.341 | DR76: 1.350 | DS76: 1.359 | DT76: 1.368 | DU76: 1.378 | DV76: 1.387 | DW76: 1.396 | DX76: 1.406 | DY76: 1.415 | DZ76: 1.425 | EA76: 1.434 | EB76: 1.444 | EC76: 1.454 | ED76: 1.464 | EE76: 1.473 | EF76: 1.483 | EG76: 1.493 | EH76: 1.504 | EI76: 1.514 | EJ76: 1.524 | EK76: 1.535 | EL76: 1.545 | EM76: 1.556 | EN76: 1.567 | EO76: 1.577 | EP76: 1.588 | EQ76: 1.599 | ER76: 1.611 | ES76: 1.622 | ET76: 1.634 | EU76: 1.645 | EV76: 1.657 | EW76: 1.669 | EX76: 1.681 | EY76: 1.694 | EZ76: 1.706 | FA76: 1.719 | FB76: 1.732 | FC76: 1.745 | FE76: 1.3982 | FF76: 1.3922 | FG76: 1.3862 | FH76: 1.3800 | FK76: 1.3922
AW77: 16.596 | AX77: 0.742 | AY77: 0.750 | AZ77: 0.759 | BA77: 0.767 | BB77: 0.775 | BC77: 0.783 | BD77: 0.791 | BE77: 0.799 | BF77: 0.808 | BG77: 0.816 | BH77: 0.824 | BI77: 0.832 | BJ77: 0.840 | BK77: 0.849 | BL77: 0.857 | BM77: 0.865 | BN77: 0.873 | BO77: 0.881 | BP77: 0.890 | BQ77: 0.898 | BR77: 0.906 | BS77: 0.914 | BT77: 0.922 | BU77: 0.931 | BV77: 0.939 | BW77: 0.947 | BX77: 0.955 | BY77: 0.964 | BZ77: 0.972 | CA77: 0.980 | CB77: 0.988 | CC77: 0.997 | CD77: 1.005 | CE77: 1.013 | CF77: 1.022 | CG77: 1.030 | CH77: 1.038 | CI77: 1.047 | CJ77: 1.055 | CK77: 1.063 | CL77: 1.072 | CM77: 1.080 | CN77: 1.088 | CO77: 1.097 | CP77: 1.105 | CQ77: 1.114 | CR77: 1.122 | CS77: 1.130 | CT77: 1.139 | CU77: 1.147 | CV77: 1.156 | CW77: 1.164 | CX77: 1.173 | CY77: 1.181 | CZ77: 1.190 | DA77: 1.199 | DB77: 1.207 | DC77: 1.216 | DD77: 1.224 | DE77: 1.233 | DF77: 1.242 | DG77: 1.250 | DH77: 1.259 | DI77: 1.268 | DJ77: 1.277 | DK77: 1.286 | DL77: 1.295 | DM77: 1.303 | DN77: 1.312 | DO77: 1.321 | DP77: 1.330 | DQ77: 1.339 | DR77: 1.349 | DS77: 1.358 | DT77: 1.367 | DU77: 1.376 | DV77: 1.385 | DW77: 1.395 | DX77: 1.404 | DY77: 1.414 | DZ77: 1.423 | EA77: 1.433 | EB77: 1.442 | EC77: 1.452 | ED77: 1.462 | EE77: 1.472 | EF77: 1.482 | EG77: 1.492 | EH77: 1.502 | EI77: 1.512 | EJ77: 1.522 | EK77: 1.533 | EL77: 1.543 | EM77: 1.554 | EN77: 1.565 | EO77: 1.576 | EP77: 1.587 | EQ77: 1.598 | ER77: 1.609 | ES77: 1.620 | ET77: 1.632 | EU77: 1.644 | EV77: 1.655 | EW77: 1.667 | EX77: 1.679 | EY77: 1.692 | EZ77: 1.704 | FA77: 1.717 | FB77: 1.730 | FC77: 1.743 | FE77: 1.3966 | FF77: 1.3907 | FG77: 1.3847 | FH77: 1.3785 | FK77: 1.3907
AW78: 17.783 | AX78: 0.741 | AY78: 0.750 | AZ78: 0.758 | BA78: 0.766 | BB78: 0.774 | BC78: 0.782 | BD78: 0.790 | BE78: 0.799 | BF78: 0.807 | BG78: 0.815 | BH78: 0.823 | BI78: 0.831 | BJ78: 0.839 | BK78: 0.848 | BL78: 0.856 | BM78: 0.864 | BN78: 0.872 | BO78: 0.880 | BP78: 0.889 | BQ78: 0.897 | BR78: 0.905 | BS78: 0.913 | BT78: 0.921 | BU78: 0.930 | BV78: 0.938 | BW78: 0.946 | BX78: 0.954 | BY78: 0.963 | BZ78: 0.971 | CA78: 0.979 | CB78: 0.987 | CC78: 0.996 | CD78: 1.004 | CE78: 1.012 | CF78: 1.021 | CG78: 1.029 | CH78: 1.037 | CI78: 1.045 | CJ78: 1.054 | CK78: 1.062 | CL78: 1.070 | CM78: 1.079 | CN78: 1.087 | CO78: 1.096 | CP78: 1.104 | CQ78: 1.112 | CR78: 1.121 | CS78: 1.129 | CT78: 1.138 | CU78: 1.146 | CV78: 1.155 | CW78: 1.163 | CX78: 1.172 | CY78: 1.180 | CZ78: 1.189 | DA78: 1.197 | DB78: 1.206 | DC78: 1.214 | DD78: 1.223 | DE78: 1.232 | DF78: 1.240 | DG78: 1.249 | DH78: 1.258 | DI78: 1.267 | DJ78: 1.275 | DK78: 1.284 | DL78: 1.293 | DM78: 1.302 | DN78: 1.311 | DO78: 1.320 | DP78: 1.329 | DQ78: 1.338 | DR78: 1.347 | DS78: 1.356 | DT78: 1.365 | DU78: 1.375 | DV78: 1.384 | DW78: 1.393 | DX78: 1.403 | DY78: 1.412 | DZ78: 1.422 | EA78: 1.431 | EB78: 1.441 | EC78: 1.451 | ED78: 1.460 | EE78: 1.470 | EF78: 1.480 | EG78: 1.490 | EH78: 1.500 | EI78: 1.511 | EJ78: 1.521 | EK78: 1.531 | EL78: 1.542 | EM78: 1.552 | EN78: 1.563 | EO78: 1.574 | EP78: 1.585 | EQ78: 1.596 | ER78: 1.607 | ES78: 1.619 | ET78: 1.630 | EU78: 1.642 | EV78: 1.654 | EW78: 1.666 | EX78: 1.678 | EY78: 1.690 | EZ78: 1.702 | FA78: 1.715 | FB78: 1.728 | FC78: 1.741 | FE78: 1.3951 | FF78: 1.3892 | FG78: 1.3832 | FH78: 1.3770 | FK78: 1.3892
AW79: 19.055 | AX79: 0.741 | AY79: 0.749 | AZ79: 0.757 | BA79: 0.765 | BB79: 0.773 | BC79: 0.781 | BD79: 0.790 | BE79: 0.798 | BF79: 0.806 | BG79: 0.814 | BH79: 0.822 | BI79: 0.830 | BJ79: 0.839 | BK79: 0.847 | BL79: 0.855 | BM79: 0.863 | BN79: 0.871 | BO79: 0.879 | BP79: 0.888 | BQ79: 0.896 | BR79: 0.904 | BS79: 0.912 | BT79: 0.920 | BU79: 0.929 | BV79: 0.937 | BW79: 0.945 | BX79: 0.953 | BY79: 0.962 | BZ79: 0.970 | CA79: 0.978 | CB79: 0.986 | CC79: 0.995 | CD79: 1.003 | CE79: 1.011 | CF79: 1.019 | CG79: 1.028 | CH79: 1.036 | CI79: 1.044 | CJ79: 1.053 | CK79: 1.061 | CL79: 1.069 | CM79: 1.078 | CN79: 1.086 | CO79: 1.094 | CP79: 1.103 | CQ79: 1.111 | CR79: 1.120 | CS79: 1.128 | CT79: 1.136 | CU79: 1.145 | CV79: 1.153 | CW79: 1.162 | CX79: 1.170 | CY79: 1.179 | CZ79: 1.187 | DA79: 1.196 | DB79: 1.205 | DC79: 1.213 | DD79: 1.222 | DE79: 1.230 | DF79: 1.239 | DG79: 1.248 | DH79: 1.257 | DI79: 1.265 | DJ79: 1.274 | DK79: 1.283 | DL79: 1.292 | DM79: 1.301 | DN79: 1.310 | DO79: 1.318 | DP79: 1.327 | DQ79: 1.337 | DR79: 1.346 | DS79: 1.355 | DT79: 1.364 | DU79: 1.373 | DV79: 1.382 | DW79: 1.392 | DX79: 1.401 | DY79: 1.411 | DZ79: 1.420 | EA79: 1.430 | EB79: 1.439 | EC79: 1.449 | ED79: 1.459 | EE79: 1.469 | EF79: 1.479 | EG79: 1.489 | EH79: 1.499 | EI79: 1.509 | EJ79: 1.519 | EK79: 1.530 | EL79: 1.540 | EM79: 1.551 | EN79: 1.561 | EO79: 1.572 | EP79: 1.583 | EQ79: 1.594 | ER79: 1.605 | ES79: 1.617 | ET79: 1.628 | EU79: 1.640 | EV79: 1.652 | EW79: 1.664 | EX79: 1.676 | EY79: 1.688 | EZ79: 1.701 | FA79: 1.713 | FB79: 1.726 | FC79: 1.739 | FE79: 1.3936 | FF79: 1.3877 | FG79: 1.3817 | FH79: 1.3755 | FK79: 1.3877
AW80: 20.417 | AX80: 0.740 | AY80: 0.748 | AZ80: 0.756 | BA80: 0.764 | BB80: 0.772 | BC80: 0.781 | BD80: 0.789 | BE80: 0.797 | BF80: 0.805 | BG80: 0.813 | BH80: 0.821 | BI80: 0.829 | BJ80: 0.838 | BK80: 0.846 | BL80: 0.854 | BM80: 0.862 | BN80: 0.870 | BO80: 0.879 | BP80: 0.887 | BQ80: 0.895 | BR80: 0.903 | BS80: 0.911 | BT80: 0.919 | BU80: 0.928 | BV80: 0.936 | BW80: 0.944 | BX80: 0.952 | BY80: 0.961 | BZ80: 0.969 | CA80: 0.977 | CB80: 0.985 | CC80: 0.994 | CD80: 1.002 | CE80: 1.010 | CF80: 1.018 | CG80: 1.027 | CH80: 1.035 | CI80: 1.043 | CJ80: 1.052 | CK80: 1.060 | CL80: 1.068 | CM80: 1.076 | CN80: 1.085 | CO80: 1.093 | CP80: 1.102 | CQ80: 1.110 | CR80: 1.118 | CS80: 1.127 | CT80: 1.135 | CU80: 1.144 | CV80: 1.152 | CW80: 1.161 | CX80: 1.169 | CY80: 1.178 | CZ80: 1.186 | DA80: 1.195 | DB80: 1.203 | DC80: 1.212 | DD80: 1.220 | DE80: 1.229 | DF80: 1.238 | DG80: 1.246 | DH80: 1.255 | DI80: 1.264 | DJ80: 1.273 | DK80: 1.281 | DL80: 1.290 | DM80: 1.299 | DN80: 1.308 | DO80: 1.317 | DP80: 1.326 | DQ80: 1.335 | DR80: 1.344 | DS80: 1.353 | DT80: 1.362 | DU80: 1.372 | DV80: 1.381 | DW80: 1.390 | DX80: 1.400 | DY80: 1.409 | DZ80: 1.419 | EA80: 1.428 | EB80: 1.438 | EC80: 1.447 | ED80: 1.457 | EE80: 1.467 | EF80: 1.477 | EG80: 1.487 | EH80: 1.497 | EI80: 1.507 | EJ80: 1.518 | EK80: 1.528 | EL80: 1.538 | EM80: 1.549 | EN80: 1.560 | EO80: 1.571 | EP80: 1.581 | EQ80: 1.593 | ER80: 1.604 | ES80: 1.615 | ET80: 1.627 | EU80: 1.638 | EV80: 1.650 | EW80: 1.662 | EX80: 1.674 | EY80: 1.686 | EZ80: 1.699 | FA80: 1.711 | FB80: 1.724 | FC80: 1.737 | FE80: 1.3921 | FF80: 1.3862 | FG80: 1.3802 | FH80: 1.3740 | FK80: 1.3862
AW81: 21.878 | AX81: 0.739 | AY81: 0.747 | AZ81: 0.755 | BA81: 0.763 | BB81: 0.772 | BC81: 0.780 | BD81: 0.788 | BE81: 0.796 | BF81: 0.804 | BG81: 0.812 | BH81: 0.820 | BI81: 0.829 | BJ81: 0.837 | BK81: 0.845 | BL81: 0.853 | BM81: 0.861 | BN81: 0.869 | BO81: 0.878 | BP81: 0.886 | BQ81: 0.894 | BR81: 0.902 | BS81: 0.910 | BT81: 0.919 | BU81: 0.927 | BV81: 0.935 | BW81: 0.943 | BX81: 0.951 | BY81: 0.960 | BZ81: 0.968 | CA81: 0.976 | CB81: 0.984 | CC81: 0.992 | CD81: 1.001 | CE81: 1.009 | CF81: 1.017 | CG81: 1.026 | CH81: 1.034 | CI81: 1.042 | CJ81: 1.050 | CK81: 1.059 | CL81: 1.067 | CM81: 1.075 | CN81: 1.084 | CO81: 1.092 | CP81: 1.100 | CQ81: 1.109 | CR81: 1.117 | CS81: 1.126 | CT81: 1.134 | CU81: 1.142 | CV81: 1.151 | CW81: 1.159 | CX81: 1.168 | CY81: 1.176 | CZ81: 1.185 | DA81: 1.193 | DB81: 1.202 | DC81: 1.211 | DD81: 1.219 | DE81: 1.228 | DF81: 1.236 | DG81: 1.245 | DH81: 1.254 | DI81: 1.263 | DJ81: 1.271 | DK81: 1.280 | DL81: 1.289 | DM81: 1.298 | DN81: 1.307 | DO81: 1.316 | DP81: 1.325 | DQ81: 1.334 | DR81: 1.343 | DS81: 1.352 | DT81: 1.361 | DU81: 1.370 | DV81: 1.379 | DW81: 1.389 | DX81: 1.398 | DY81: 1.408 | DZ81: 1.417 | EA81: 1.427 | EB81: 1.436 | EC81: 1.446 | ED81: 1.456 | EE81: 1.465 | EF81: 1.475 | EG81: 1.485 | EH81: 1.495 | EI81: 1.506 | EJ81: 1.516 | EK81: 1.526 | EL81: 1.537 | EM81: 1.547 | EN81: 1.558 | EO81: 1.569 | EP81: 1.580 | EQ81: 1.591 | ER81: 1.602 | ES81: 1.613 | ET81: 1.625 | EU81: 1.636 | EV81: 1.648 | EW81: 1.660 | EX81: 1.672 | EY81: 1.685 | EZ81: 1.697 | FA81: 1.710 | FB81: 1.722 | FC81: 1.736 | FE81: 1.3906 | FF81: 1.3847 | FG81: 1.3787 | FH81: 1.3725 | FK81: 1.3847
AW82: 23.442 | AX82: 0.738 | AY82: 0.746 | AZ82: 0.755 | BA82: 0.763 | BB82: 0.771 | BC82: 0.779 | BD82: 0.787 | BE82: 0.795 | BF82: 0.803 | BG82: 0.811 | BH82: 0.820 | BI82: 0.828 | BJ82: 0.836 | BK82: 0.844 | BL82: 0.852 | BM82: 0.860 | BN82: 0.869 | BO82: 0.877 | BP82: 0.885 | BQ82: 0.893 | BR82: 0.901 | BS82: 0.909 | BT82: 0.918 | BU82: 0.926 | BV82: 0.934 | BW82: 0.942 | BX82: 0.950 | BY82: 0.959 | BZ82: 0.967 | CA82: 0.975 | CB82: 0.983 | CC82: 0.991 | CD82: 1.000 | CE82: 1.008 | CF82: 1.016 | CG82: 1.024 | CH82: 1.033 | CI82: 1.041 | CJ82: 1.049 | CK82: 1.058 | CL82: 1.066 | CM82: 1.074 | CN82: 1.083 | CO82: 1.091 | CP82: 1.099 | CQ82: 1.108 | CR82: 1.116 | CS82: 1.124 | CT82: 1.133 | CU82: 1.141 | CV82: 1.150 | CW82: 1.158 | CX82: 1.167 | CY82: 1.175 | CZ82: 1.184 | DA82: 1.192 | DB82: 1.201 | DC82: 1.209 | DD82: 1.218 | DE82: 1.226 | DF82: 1.235 | DG82: 1.244 | DH82: 1.253 | DI82: 1.261 | DJ82: 1.270 | DK82: 1.279 | DL82: 1.288 | DM82: 1.296 | DN82: 1.305 | DO82: 1.314 | DP82: 1.323 | DQ82: 1.332 | DR82: 1.341 | DS82: 1.350 | DT82: 1.360 | DU82: 1.369 | DV82: 1.378 | DW82: 1.387 | DX82: 1.397 | DY82: 1.406 | DZ82: 1.416 | EA82: 1.425 | EB82: 1.435 | EC82: 1.444 | ED82: 1.454 | EE82: 1.464 | EF82: 1.474 | EG82: 1.484 | EH82: 1.494 | EI82: 1.504 | EJ82: 1.514 | EK82: 1.525 | EL82: 1.535 | EM82: 1.546 | EN82: 1.556 | EO82: 1.567 | EP82: 1.578 | EQ82: 1.589 | ER82: 1.600 | ES82: 1.612 | ET82: 1.623 | EU82: 1.635 | EV82: 1.647 | EW82: 1.658 | EX82: 1.671 | EY82: 1.683 | EZ82: 1.695 | FA82: 1.708 | FB82: 1.721 | FC82: 1.734 | FE82: 1.3892 | FF82: 1.3833 | FG82: 1.3773 | FH82: 1.3711 | FK82: 1.3833
AW83: 25.119 | AX83: 0.737 | AY83: 0.746 | AZ83: 0.754 | BA83: 0.762 | BB83: 0.770 | BC83: 0.778 | BD83: 0.786 | BE83: 0.794 | BF83: 0.802 | BG83: 0.811 | BH83: 0.819 | BI83: 0.827 | BJ83: 0.835 | BK83: 0.843 | BL83: 0.851 | BM83: 0.859 | BN83: 0.868 | BO83: 0.876 | BP83: 0.884 | BQ83: 0.892 | BR83: 0.900 | BS83: 0.908 | BT83: 0.917 | BU83: 0.925 | BV83: 0.933 | BW83: 0.941 | BX83: 0.949 | BY83: 0.958 | BZ83: 0.966 | CA83: 0.974 | CB83: 0.982 | CC83: 0.990 | CD83: 0.999 | CE83: 1.007 | CF83: 1.015 | CG83: 1.023 | CH83: 1.032 | CI83: 1.040 | CJ83: 1.048 | CK83: 1.056 | CL83: 1.065 | CM83: 1.073 | CN83: 1.081 | CO83: 1.090 | CP83: 1.098 | CQ83: 1.106 | CR83: 1.115 | CS83: 1.123 | CT83: 1.132 | CU83: 1.140 | CV83: 1.148 | CW83: 1.157 | CX83: 1.165 | CY83: 1.174 | CZ83: 1.182 | DA83: 1.191 | DB83: 1.199 | DC83: 1.208 | DD83: 1.217 | DE83: 1.225 | DF83: 1.234 | DG83: 1.243 | DH83: 1.251 | DI83: 1.260 | DJ83: 1.269 | DK83: 1.277 | DL83: 1.286 | DM83: 1.295 | DN83: 1.304 | DO83: 1.313 | DP83: 1.322 | DQ83: 1.331 | DR83: 1.340 | DS83: 1.349 | DT83: 1.358 | DU83: 1.367 | DV83: 1.377 | DW83: 1.386 | DX83: 1.395 | DY83: 1.405 | DZ83: 1.414 | EA83: 1.424 | EB83: 1.433 | EC83: 1.443 | ED83: 1.453 | EE83: 1.462 | EF83: 1.472 | EG83: 1.482 | EH83: 1.492 | EI83: 1.503 | EJ83: 1.513 | EK83: 1.523 | EL83: 1.534 | EM83: 1.544 | EN83: 1.555 | EO83: 1.566 | EP83: 1.577 | EQ83: 1.588 | ER83: 1.599 | ES83: 1.610 | ET83: 1.621 | EU83: 1.633 | EV83: 1.645 | EW83: 1.657 | EX83: 1.669 | EY83: 1.681 | EZ83: 1.693 | FA83: 1.706 | FB83: 1.719 | FC83: 1.732 | FE83: 1.3877 | FF83: 1.3818 | FG83: 1.3758 | FH83: 1.3696 | FK83: 1.3818
AW84: 26.915 | AX84: 0.737 | AY84: 0.745 | AZ84: 0.753 | BA84: 0.761 | BB84: 0.769 | BC84: 0.777 | BD84: 0.785 | BE84: 0.794 | BF84: 0.802 | BG84: 0.810 | BH84: 0.818 | BI84: 0.826 | BJ84: 0.834 | BK84: 0.842 | BL84: 0.850 | BM84: 0.859 | BN84: 0.867 | BO84: 0.875 | BP84: 0.883 | BQ84: 0.891 | BR84: 0.899 | BS84: 0.907 | BT84: 0.916 | BU84: 0.924 | BV84: 0.932 | BW84: 0.940 | BX84: 0.948 | BY84: 0.957 | BZ84: 0.965 | CA84: 0.973 | CB84: 0.981 | CC84: 0.989 | CD84: 0.998 | CE84: 1.006 | CF84: 1.014 | CG84: 1.022 | CH84: 1.031 | CI84: 1.039 | CJ84: 1.047 | CK84: 1.055 | CL84: 1.064 | CM84: 1.072 | CN84: 1.080 | CO84: 1.089 | CP84: 1.097 | CQ84: 1.105 | CR84: 1.114 | CS84: 1.122 | CT84: 1.130 | CU84: 1.139 | CV84: 1.147 | CW84: 1.156 | CX84: 1.164 | CY84: 1.173 | CZ84: 1.181 | DA84: 1.190 | DB84: 1.198 | DC84: 1.207 | DD84: 1.215 | DE84: 1.224 | DF84: 1.233 | DG84: 1.241 | DH84: 1.250 | DI84: 1.259 | DJ84: 1.267 | DK84: 1.276 | DL84: 1.285 | DM84: 1.294 | DN84: 1.303 | DO84: 1.312 | DP84: 1.321 | DQ84: 1.330 | DR84: 1.339 | DS84: 1.348 | DT84: 1.357 | DU84: 1.366 | DV84: 1.375 | DW84: 1.384 | DX84: 1.394 | DY84: 1.403 | DZ84: 1.413 | EA84: 1.422 | EB84: 1.432 | EC84: 1.441 | ED84: 1.451 | EE84: 1.461 | EF84: 1.471 | EG84: 1.481 | EH84: 1.491 | EI84: 1.501 | EJ84: 1.511 | EK84: 1.522 | EL84: 1.532 | EM84: 1.543 | EN84: 1.553 | EO84: 1.564 | EP84: 1.575 | EQ84: 1.586 | ER84: 1.597 | ES84: 1.608 | ET84: 1.620 | EU84: 1.631 | EV84: 1.643 | EW84: 1.655 | EX84: 1.667 | EY84: 1.679 | EZ84: 1.692 | FA84: 1.704 | FB84: 1.717 | FC84: 1.730 | FE84: 1.3863 | FF84: 1.3804 | FG84: 1.3744 | FH84: 1.3682 | FK84: 1.3804
AW85: 28.840 | AX85: 0.736 | AY85: 0.744 | AZ85: 0.752 | BA85: 0.760 | BB85: 0.768 | BC85: 0.777 | BD85: 0.785 | BE85: 0.793 | BF85: 0.801 | BG85: 0.809 | BH85: 0.817 | BI85: 0.825 | BJ85: 0.833 | BK85: 0.841 | BL85: 0.850 | BM85: 0.858 | BN85: 0.866 | BO85: 0.874 | BP85: 0.882 | BQ85: 0.890 | BR85: 0.898 | BS85: 0.907 | BT85: 0.915 | BU85: 0.923 | BV85: 0.931 | BW85: 0.939 | BX85: 0.947 | BY85: 0.956 | BZ85: 0.964 | CA85: 0.972 | CB85: 0.980 | CC85: 0.988 | CD85: 0.997 | CE85: 1.005 | CF85: 1.013 | CG85: 1.021 | CH85: 1.030 | CI85: 1.038 | CJ85: 1.046 | CK85: 1.054 | CL85: 1.063 | CM85: 1.071 | CN85: 1.079 | CO85: 1.088 | CP85: 1.096 | CQ85: 1.104 | CR85: 1.113 | CS85: 1.121 | CT85: 1.129 | CU85: 1.138 | CV85: 1.146 | CW85: 1.155 | CX85: 1.163 | CY85: 1.171 | CZ85: 1.180 | DA85: 1.188 | DB85: 1.197 | DC85: 1.206 | DD85: 1.214 | DE85: 1.223 | DF85: 1.231 | DG85: 1.240 | DH85: 1.249 | DI85: 1.257 | DJ85: 1.266 | DK85: 1.275 | DL85: 1.284 | DM85: 1.292 | DN85: 1.301 | DO85: 1.310 | DP85: 1.319 | DQ85: 1.328 | DR85: 1.337 | DS85: 1.346 | DT85: 1.355 | DU85: 1.365 | DV85: 1.374 | DW85: 1.383 | DX85: 1.392 | DY85: 1.402 | DZ85: 1.411 | EA85: 1.421 | EB85: 1.430 | EC85: 1.440 | ED85: 1.450 | EE85: 1.459 | EF85: 1.469 | EG85: 1.479 | EH85: 1.489 | EI85: 1.499 | EJ85: 1.510 | EK85: 1.520 | EL85: 1.530 | EM85: 1.541 | EN85: 1.552 | EO85: 1.562 | EP85: 1.573 | EQ85: 1.584 | ER85: 1.595 | ES85: 1.607 | ET85: 1.618 | EU85: 1.630 | EV85: 1.641 | EW85: 1.653 | EX85: 1.665 | EY85: 1.678 | EZ85: 1.690 | FA85: 1.703 | FB85: 1.715 | FC85: 1.728 | FE85: 1.3849 | FF85: 1.3790 | FG85: 1.3730 | FH85: 1.3668 | FK85: 1.3790
AW86: 30.903 | AX86: 0.735 | AY86: 0.743 | AZ86: 0.751 | BA86: 0.760 | BB86: 0.768 | BC86: 0.776 | BD86: 0.784 | BE86: 0.792 | BF86: 0.800 | BG86: 0.808 | BH86: 0.816 | BI86: 0.824 | BJ86: 0.832 | BK86: 0.841 | BL86: 0.849 | BM86: 0.857 | BN86: 0.865 | BO86: 0.873 | BP86: 0.881 | BQ86: 0.889 | BR86: 0.898 | BS86: 0.906 | BT86: 0.914 | BU86: 0.922 | BV86: 0.930 | BW86: 0.938 | BX86: 0.946 | BY86: 0.955 | BZ86: 0.963 | CA86: 0.971 | CB86: 0.979 | CC86: 0.987 | CD86: 0.996 | CE86: 1.004 | CF86: 1.012 | CG86: 1.020 | CH86: 1.029 | CI86: 1.037 | CJ86: 1.045 | CK86: 1.053 | CL86: 1.062 | CM86: 1.070 | CN86: 1.078 | CO86: 1.086 | CP86: 1.095 | CQ86: 1.103 | CR86: 1.111 | CS86: 1.120 | CT86: 1.128 | CU86: 1.137 | CV86: 1.145 | CW86: 1.153 | CX86: 1.162 | CY86: 1.170 | CZ86: 1.179 | DA86: 1.187 | DB86: 1.196 | DC86: 1.204 | DD86: 1.213 | DE86: 1.221 | DF86: 1.230 | DG86: 1.239 | DH86: 1.247 | DI86: 1.256 | DJ86: 1.265 | DK86: 1.274 | DL86: 1.282 | DM86: 1.291 | DN86: 1.300 | DO86: 1.309 | DP86: 1.318 | DQ86: 1.327 | DR86: 1.336 | DS86: 1.345 | DT86: 1.354 | DU86: 1.363 | DV86: 1.372 | DW86: 1.382 | DX86: 1.391 | DY86: 1.400 | DZ86: 1.410 | EA86: 1.419 | EB86: 1.429 | EC86: 1.438 | ED86: 1.448 | EE86: 1.458 | EF86: 1.468 | EG86: 1.478 | EH86: 1.488 | EI86: 1.498 | EJ86: 1.508 | EK86: 1.518 | EL86: 1.529 | EM86: 1.539 | EN86: 1.550 | EO86: 1.561 | EP86: 1.572 | EQ86: 1.583 | ER86: 1.594 | ES86: 1.605 | ET86: 1.617 | EU86: 1.628 | EV86: 1.640 | EW86: 1.652 | EX86: 1.664 | EY86: 1.676 | EZ86: 1.688 | FA86: 1.701 | FB86: 1.714 | FC86: 1.727 | FE86: 1.3835 | FF86: 1.3776 | FG86: 1.3716 | FH86: 1.3654 | FK86: 1.3776
AW87: 33.113 | AX87: 0.735 | AY87: 0.743 | AZ87: 0.751 | BA87: 0.759 | BB87: 0.767 | BC87: 0.775 | BD87: 0.783 | BE87: 0.791 | BF87: 0.799 | BG87: 0.807 | BH87: 0.815 | BI87: 0.824 | BJ87: 0.832 | BK87: 0.840 | BL87: 0.848 | BM87: 0.856 | BN87: 0.864 | BO87: 0.872 | BP87: 0.880 | BQ87: 0.888 | BR87: 0.897 | BS87: 0.905 | BT87: 0.913 | BU87: 0.921 | BV87: 0.929 | BW87: 0.937 | BX87: 0.946 | BY87: 0.954 | BZ87: 0.962 | CA87: 0.970 | CB87: 0.978 | CC87: 0.986 | CD87: 0.995 | CE87: 1.003 | CF87: 1.011 | CG87: 1.019 | CH87: 1.027 | CI87: 1.036 | CJ87: 1.044 | CK87: 1.052 | CL87: 1.060 | CM87: 1.069 | CN87: 1.077 | CO87: 1.085 | CP87: 1.094 | CQ87: 1.102 | CR87: 1.110 | CS87: 1.119 | CT87: 1.127 | CU87: 1.135 | CV87: 1.144 | CW87: 1.152 | CX87: 1.161 | CY87: 1.169 | CZ87: 1.178 | DA87: 1.186 | DB87: 1.195 | DC87: 1.203 | DD87: 1.212 | DE87: 1.220 | DF87: 1.229 | DG87: 1.237 | DH87: 1.246 | DI87: 1.255 | DJ87: 1.264 | DK87: 1.272 | DL87: 1.281 | DM87: 1.290 | DN87: 1.299 | DO87: 1.308 | DP87: 1.317 | DQ87: 1.326 | DR87: 1.335 | DS87: 1.344 | DT87: 1.353 | DU87: 1.362 | DV87: 1.371 | DW87: 1.380 | DX87: 1.390 | DY87: 1.399 | DZ87: 1.408 | EA87: 1.418 | EB87: 1.427 | EC87: 1.437 | ED87: 1.447 | EE87: 1.457 | EF87: 1.466 | EG87: 1.476 | EH87: 1.486 | EI87: 1.496 | EJ87: 1.507 | EK87: 1.517 | EL87: 1.527 | EM87: 1.538 | EN87: 1.549 | EO87: 1.559 | EP87: 1.570 | EQ87: 1.581 | ER87: 1.592 | ES87: 1.603 | ET87: 1.615 | EU87: 1.626 | EV87: 1.638 | EW87: 1.650 | EX87: 1.662 | EY87: 1.674 | EZ87: 1.687 | FA87: 1.699 | FB87: 1.712 | FC87: 1.725 | FE87: 1.3821 | FF87: 1.3762 | FG87: 1.3703 | FH87: 1.3641 | FK87: 1.3762
AW88: 35.481 | AX88: 0.734 | AY88: 0.742 | AZ88: 0.750 | BA88: 0.758 | BB88: 0.766 | BC88: 0.774 | BD88: 0.782 | BE88: 0.790 | BF88: 0.798 | BG88: 0.807 | BH88: 0.815 | BI88: 0.823 | BJ88: 0.831 | BK88: 0.839 | BL88: 0.847 | BM88: 0.855 | BN88: 0.863 | BO88: 0.871 | BP88: 0.879 | BQ88: 0.888 | BR88: 0.896 | BS88: 0.904 | BT88: 0.912 | BU88: 0.920 | BV88: 0.928 | BW88: 0.936 | BX88: 0.945 | BY88: 0.953 | BZ88: 0.961 | CA88: 0.969 | CB88: 0.977 | CC88: 0.985 | CD88: 0.994 | CE88: 1.002 | CF88: 1.010 | CG88: 1.018 | CH88: 1.026 | CI88: 1.035 | CJ88: 1.043 | CK88: 1.051 | CL88: 1.059 | CM88: 1.068 | CN88: 1.076 | CO88: 1.084 | CP88: 1.093 | CQ88: 1.101 | CR88: 1.109 | CS88: 1.118 | CT88: 1.126 | CU88: 1.134 | CV88: 1.143 | CW88: 1.151 | CX88: 1.160 | CY88: 1.168 | CZ88: 1.176 | DA88: 1.185 | DB88: 1.193 | DC88: 1.202 | DD88: 1.210 | DE88: 1.219 | DF88: 1.228 | DG88: 1.236 | DH88: 1.245 | DI88: 1.254 | DJ88: 1.262 | DK88: 1.271 | DL88: 1.280 | DM88: 1.289 | DN88: 1.297 | DO88: 1.306 | DP88: 1.315 | DQ88: 1.324 | DR88: 1.333 | DS88: 1.342 | DT88: 1.351 | DU88: 1.360 | DV88: 1.370 | DW88: 1.379 | DX88: 1.388 | DY88: 1.398 | DZ88: 1.407 | EA88: 1.416 | EB88: 1.426 | EC88: 1.436 | ED88: 1.445 | EE88: 1.455 | EF88: 1.465 | EG88: 1.475 | EH88: 1.485 | EI88: 1.495 | EJ88: 1.505 | EK88: 1.515 | EL88: 1.526 | EM88: 1.536 | EN88: 1.547 | EO88: 1.558 | EP88: 1.569 | EQ88: 1.580 | ER88: 1.591 | ES88: 1.602 | ET88: 1.613 | EU88: 1.625 | EV88: 1.637 | EW88: 1.648 | EX88: 1.660 | EY88: 1.673 | EZ88: 1.685 | FA88: 1.698 | FB88: 1.710 | FC88: 1.723 | FE88: 1.3808 | FF88: 1.3749 | FG88: 1.3689 | FH88: 1.3627 | FK88: 1.3749
AW89: 38.019 | AX89: 0.733 | AY89: 0.741 | AZ89: 0.749 | BA89: 0.757 | BB89: 0.765 | BC89: 0.773 | BD89: 0.781 | BE89: 0.790 | BF89: 0.798 | BG89: 0.806 | BH89: 0.814 | BI89: 0.822 | BJ89: 0.830 | BK89: 0.838 | BL89: 0.846 | BM89: 0.854 | BN89: 0.862 | BO89: 0.871 | BP89: 0.879 | BQ89: 0.887 | BR89: 0.895 | BS89: 0.903 | BT89: 0.911 | BU89: 0.919 | BV89: 0.927 | BW89: 0.936 | BX89: 0.944 | BY89: 0.952 | BZ89: 0.960 | CA89: 0.968 | CB89: 0.976 | CC89: 0.984 | CD89: 0.993 | CE89: 1.001 | CF89: 1.009 | CG89: 1.017 | CH89: 1.025 | CI89: 1.034 | CJ89: 1.042 | CK89: 1.050 | CL89: 1.058 | CM89: 1.067 | CN89: 1.075 | CO89: 1.083 | CP89: 1.092 | CQ89: 1.100 | CR89: 1.108 | CS89: 1.116 | CT89: 1.125 | CU89: 1.133 | CV89: 1.142 | CW89: 1.150 | CX89: 1.158 | CY89: 1.167 | CZ89: 1.175 | DA89: 1.184 | DB89: 1.192 | DC89: 1.201 | DD89: 1.209 | DE89: 1.218 | DF89: 1.226 | DG89: 1.235 | DH89: 1.244 | DI89: 1.252 | DJ89: 1.261 | DK89: 1.270 | DL89: 1.279 | DM89: 1.287 | DN89: 1.296 | DO89: 1.305 | DP89: 1.314 | DQ89: 1.323 | DR89: 1.332 | DS89: 1.341 | DT89: 1.350 | DU89: 1.359 | DV89: 1.368 | DW89: 1.378 | DX89: 1.387 | DY89: 1.396 | DZ89: 1.406 | EA89: 1.415 | EB89: 1.425 | EC89: 1.434 | ED89: 1.444 | EE89: 1.454 | EF89: 1.464 | EG89: 1.473 | EH89: 1.483 | EI89: 1.494 | EJ89: 1.504 | EK89: 1.514 | EL89: 1.524 | EM89: 1.535 | EN89: 1.545 | EO89: 1.556 | EP89: 1.567 | EQ89: 1.578 | ER89: 1.589 | ES89: 1.600 | ET89: 1.612 | EU89: 1.623 | EV89: 1.635 | EW89: 1.647 | EX89: 1.659 | EY89: 1.671 | EZ89: 1.683 | FA89: 1.696 | FB89: 1.709 | FC89: 1.722 | FE89: 1.3794 | FF89: 1.3735 | FG89: 1.3676 | FH89: 1.3614 | FK89: 1.3735
AW90: 40.738 | AX90: 0.732 | AY90: 0.740 | AZ90: 0.748 | BA90: 0.757 | BB90: 0.765 | BC90: 0.773 | BD90: 0.781 | BE90: 0.789 | BF90: 0.797 | BG90: 0.805 | BH90: 0.813 | BI90: 0.821 | BJ90: 0.829 | BK90: 0.837 | BL90: 0.845 | BM90: 0.853 | BN90: 0.862 | BO90: 0.870 | BP90: 0.878 | BQ90: 0.886 | BR90: 0.894 | BS90: 0.902 | BT90: 0.910 | BU90: 0.918 | BV90: 0.926 | BW90: 0.935 | BX90: 0.943 | BY90: 0.951 | BZ90: 0.959 | CA90: 0.967 | CB90: 0.975 | CC90: 0.984 | CD90: 0.992 | CE90: 1.000 | CF90: 1.008 | CG90: 1.016 | CH90: 1.024 | CI90: 1.033 | CJ90: 1.041 | CK90: 1.049 | CL90: 1.057 | CM90: 1.066 | CN90: 1.074 | CO90: 1.082 | CP90: 1.090 | CQ90: 1.099 | CR90: 1.107 | CS90: 1.115 | CT90: 1.124 | CU90: 1.132 | CV90: 1.140 | CW90: 1.149 | CX90: 1.157 | CY90: 1.166 | CZ90: 1.174 | DA90: 1.183 | DB90: 1.191 | DC90: 1.200 | DD90: 1.208 | DE90: 1.217 | DF90: 1.225 | DG90: 1.234 | DH90: 1.242 | DI90: 1.251 | DJ90: 1.260 | DK90: 1.269 | DL90: 1.277 | DM90: 1.286 | DN90: 1.295 | DO90: 1.304 | DP90: 1.313 | DQ90: 1.322 | DR90: 1.331 | DS90: 1.340 | DT90: 1.349 | DU90: 1.358 | DV90: 1.367 | DW90: 1.376 | DX90: 1.386 | DY90: 1.395 | DZ90: 1.404 | EA90: 1.414 | EB90: 1.423 | EC90: 1.433 | ED90: 1.443 | EE90: 1.452 | EF90: 1.462 | EG90: 1.472 | EH90: 1.482 | EI90: 1.492 | EJ90: 1.502 | EK90: 1.513 | EL90: 1.523 | EM90: 1.533 | EN90: 1.544 | EO90: 1.555 | EP90: 1.566 | EQ90: 1.576 | ER90: 1.588 | ES90: 1.599 | ET90: 1.610 | EU90: 1.622 | EV90: 1.633 | EW90: 1.645 | EX90: 1.657 | EY90: 1.669 | EZ90: 1.682 | FA90: 1.694 | FB90: 1.707 | FC90: 1.720 | FE90: 1.3781 | FF90: 1.3722 | FG90: 1.3662 | FH90: 1.3601 | FK90: 1.3722
AW91: 43.652 | AX91: 0.732 | AY91: 0.740 | AZ91: 0.748 | BA91: 0.756 | BB91: 0.764 | BC91: 0.772 | BD91: 0.780 | BE91: 0.788 | BF91: 0.796 | BG91: 0.804 | BH91: 0.812 | BI91: 0.820 | BJ91: 0.828 | BK91: 0.836 | BL91: 0.845 | BM91: 0.853 | BN91: 0.861 | BO91: 0.869 | BP91: 0.877 | BQ91: 0.885 | BR91: 0.893 | BS91: 0.901 | BT91: 0.909 | BU91: 0.917 | BV91: 0.926 | BW91: 0.934 | BX91: 0.942 | BY91: 0.950 | BZ91: 0.958 | CA91: 0.966 | CB91: 0.974 | CC91: 0.983 | CD91: 0.991 | CE91: 0.999 | CF91: 1.007 | CG91: 1.015 | CH91: 1.023 | CI91: 1.032 | CJ91: 1.040 | CK91: 1.048 | CL91: 1.056 | CM91: 1.065 | CN91: 1.073 | CO91: 1.081 | CP91: 1.089 | CQ91: 1.098 | CR91: 1.106 | CS91: 1.114 | CT91: 1.123 | CU91: 1.131 | CV91: 1.139 | CW91: 1.148 | CX91: 1.156 | CY91: 1.165 | CZ91: 1.173 | DA91: 1.181 | DB91: 1.190 | DC91: 1.198 | DD91: 1.207 | DE91: 1.216 | DF91: 1.224 | DG91: 1.233 | DH91: 1.241 | DI91: 1.250 | DJ91: 1.259 | DK91: 1.267 | DL91: 1.276 | DM91: 1.285 | DN91: 1.294 | DO91: 1.303 | DP91: 1.311 | DQ91: 1.320 | DR91: 1.329 | DS91: 1.338 | DT91: 1.347 | DU91: 1.357 | DV91: 1.366 | DW91: 1.375 | DX91: 1.384 | DY91: 1.394 | DZ91: 1.403 | EA91: 1.412 | EB91: 1.422 | EC91: 1.431 | ED91: 1.441 | EE91: 1.451 | EF91: 1.461 | EG91: 1.471 | EH91: 1.481 | EI91: 1.491 | EJ91: 1.501 | EK91: 1.511 | EL91: 1.521 | EM91: 1.532 | EN91: 1.543 | EO91: 1.553 | EP91: 1.564 | EQ91: 1.575 | ER91: 1.586 | ES91: 1.597 | ET91: 1.609 | EU91: 1.620 | EV91: 1.632 | EW91: 1.644 | EX91: 1.656 | EY91: 1.668 | EZ91: 1.680 | FA91: 1.693 | FB91: 1.705 | FC91: 1.718 | FE91: 1.3767 | FF91: 1.3709 | FG91: 1.3649 | FH91: 1.3588 | FK91: 1.3709
AW92: 46.774 | AX92: 0.731 | AY92: 0.739 | AZ92: 0.747 | BA92: 0.755 | BB92: 0.763 | BC92: 0.771 | BD92: 0.779 | BE92: 0.787 | BF92: 0.795 | BG92: 0.803 | BH92: 0.811 | BI92: 0.820 | BJ92: 0.828 | BK92: 0.836 | BL92: 0.844 | BM92: 0.852 | BN92: 0.860 | BO92: 0.868 | BP92: 0.876 | BQ92: 0.884 | BR92: 0.892 | BS92: 0.900 | BT92: 0.908 | BU92: 0.917 | BV92: 0.925 | BW92: 0.933 | BX92: 0.941 | BY92: 0.949 | BZ92: 0.957 | CA92: 0.965 | CB92: 0.973 | CC92: 0.982 | CD92: 0.990 | CE92: 0.998 | CF92: 1.006 | CG92: 1.014 | CH92: 1.023 | CI92: 1.031 | CJ92: 1.039 | CK92: 1.047 | CL92: 1.055 | CM92: 1.064 | CN92: 1.072 | CO92: 1.080 | CP92: 1.088 | CQ92: 1.097 | CR92: 1.105 | CS92: 1.113 | CT92: 1.122 | CU92: 1.130 | CV92: 1.138 | CW92: 1.147 | CX92: 1.155 | CY92: 1.163 | CZ92: 1.172 | DA92: 1.180 | DB92: 1.189 | DC92: 1.197 | DD92: 1.206 | DE92: 1.214 | DF92: 1.223 | DG92: 1.232 | DH92: 1.240 | DI92: 1.249 | DJ92: 1.257 | DK92: 1.266 | DL92: 1.275 | DM92: 1.284 | DN92: 1.292 | DO92: 1.301 | DP92: 1.310 | DQ92: 1.319 | DR92: 1.328 | DS92: 1.337 | DT92: 1.346 | DU92: 1.355 | DV92: 1.364 | DW92: 1.374 | DX92: 1.383 | DY92: 1.392 | DZ92: 1.402 | EA92: 1.411 | EB92: 1.421 | EC92: 1.430 | ED92: 1.440 | EE92: 1.449 | EF92: 1.459 | EG92: 1.469 | EH92: 1.479 | EI92: 1.489 | EJ92: 1.499 | EK92: 1.510 | EL92: 1.520 | EM92: 1.530 | EN92: 1.541 | EO92: 1.552 | EP92: 1.563 | EQ92: 1.573 | ER92: 1.585 | ES92: 1.596 | ET92: 1.607 | EU92: 1.619 | EV92: 1.630 | EW92: 1.642 | EX92: 1.654 | EY92: 1.666 | EZ92: 1.678 | FA92: 1.691 | FB92: 1.704 | FC92: 1.717 | FE92: 1.3754 | FF92: 1.3695 | FG92: 1.3636 | FH92: 1.3575 | FK92: 1.3695
AW93: 50.119 | AX93: 0.730 | AY93: 0.738 | AZ93: 0.746 | BA93: 0.754 | BB93: 0.762 | BC93: 0.770 | BD93: 0.779 | BE93: 0.787 | BF93: 0.795 | BG93: 0.803 | BH93: 0.811 | BI93: 0.819 | BJ93: 0.827 | BK93: 0.835 | BL93: 0.843 | BM93: 0.851 | BN93: 0.859 | BO93: 0.867 | BP93: 0.875 | BQ93: 0.883 | BR93: 0.891 | BS93: 0.900 | BT93: 0.908 | BU93: 0.916 | BV93: 0.924 | BW93: 0.932 | BX93: 0.940 | BY93: 0.948 | BZ93: 0.956 | CA93: 0.964 | CB93: 0.973 | CC93: 0.981 | CD93: 0.989 | CE93: 0.997 | CF93: 1.005 | CG93: 1.013 | CH93: 1.022 | CI93: 1.030 | CJ93: 1.038 | CK93: 1.046 | CL93: 1.054 | CM93: 1.063 | CN93: 1.071 | CO93: 1.079 | CP93: 1.087 | CQ93: 1.096 | CR93: 1.104 | CS93: 1.112 | CT93: 1.121 | CU93: 1.129 | CV93: 1.137 | CW93: 1.146 | CX93: 1.154 | CY93: 1.162 | CZ93: 1.171 | DA93: 1.179 | DB93: 1.188 | DC93: 1.196 | DD93: 1.205 | DE93: 1.213 | DF93: 1.222 | DG93: 1.230 | DH93: 1.239 | DI93: 1.248 | DJ93: 1.256 | DK93: 1.265 | DL93: 1.274 | DM93: 1.282 | DN93: 1.291 | DO93: 1.300 | DP93: 1.309 | DQ93: 1.318 | DR93: 1.327 | DS93: 1.336 | DT93: 1.345 | DU93: 1.354 | DV93: 1.363 | DW93: 1.372 | DX93: 1.382 | DY93: 1.391 | DZ93: 1.400 | EA93: 1.410 | EB93: 1.419 | EC93: 1.429 | ED93: 1.438 | EE93: 1.448 | EF93: 1.458 | EG93: 1.468 | EH93: 1.478 | EI93: 1.488 | EJ93: 1.498 | EK93: 1.508 | EL93: 1.519 | EM93: 1.529 | EN93: 1.540 | EO93: 1.550 | EP93: 1.561 | EQ93: 1.572 | ER93: 1.583 | ES93: 1.594 | ET93: 1.606 | EU93: 1.617 | EV93: 1.629 | EW93: 1.640 | EX93: 1.652 | EY93: 1.665 | EZ93: 1.677 | FA93: 1.689 | FB93: 1.702 | FC93: 1.715 | FE93: 1.3741 | FF93: 1.3683 | FG93: 1.3624 | FH93: 1.3562 | FK93: 1.3683
AW94: 53.703 | AX94: 0.730 | AY94: 0.738 | AZ94: 0.746 | BA94: 0.754 | BB94: 0.762 | BC94: 0.770 | BD94: 0.778 | BE94: 0.786 | BF94: 0.794 | BG94: 0.802 | BH94: 0.810 | BI94: 0.818 | BJ94: 0.826 | BK94: 0.834 | BL94: 0.842 | BM94: 0.850 | BN94: 0.858 | BO94: 0.866 | BP94: 0.874 | BQ94: 0.883 | BR94: 0.891 | BS94: 0.899 | BT94: 0.907 | BU94: 0.915 | BV94: 0.923 | BW94: 0.931 | BX94: 0.939 | BY94: 0.947 | BZ94: 0.955 | CA94: 0.964 | CB94: 0.972 | CC94: 0.980 | CD94: 0.988 | CE94: 0.996 | CF94: 1.004 | CG94: 1.012 | CH94: 1.021 | CI94: 1.029 | CJ94: 1.037 | CK94: 1.045 | CL94: 1.053 | CM94: 1.062 | CN94: 1.070 | CO94: 1.078 | CP94: 1.086 | CQ94: 1.095 | CR94: 1.103 | CS94: 1.111 | CT94: 1.120 | CU94: 1.128 | CV94: 1.136 | CW94: 1.145 | CX94: 1.153 | CY94: 1.161 | CZ94: 1.170 | DA94: 1.178 | DB94: 1.187 | DC94: 1.195 | DD94: 1.204 | DE94: 1.212 | DF94: 1.221 | DG94: 1.229 | DH94: 1.238 | DI94: 1.246 | DJ94: 1.255 | DK94: 1.264 | DL94: 1.272 | DM94: 1.281 | DN94: 1.290 | DO94: 1.299 | DP94: 1.308 | DQ94: 1.317 | DR94: 1.326 | DS94: 1.335 | DT94: 1.344 | DU94: 1.353 | DV94: 1.362 | DW94: 1.371 | DX94: 1.380 | DY94: 1.390 | DZ94: 1.399 | EA94: 1.408 | EB94: 1.418 | EC94: 1.427 | ED94: 1.437 | EE94: 1.447 | EF94: 1.457 | EG94: 1.466 | EH94: 1.476 | EI94: 1.486 | EJ94: 1.497 | EK94: 1.507 | EL94: 1.517 | EM94: 1.528 | EN94: 1.538 | EO94: 1.549 | EP94: 1.560 | EQ94: 1.571 | ER94: 1.582 | ES94: 1.593 | ET94: 1.604 | EU94: 1.616 | EV94: 1.627 | EW94: 1.639 | EX94: 1.651 | EY94: 1.663 | EZ94: 1.675 | FA94: 1.688 | FB94: 1.700 | FC94: 1.713 | FE94: 1.3728 | FF94: 1.3670 | FG94: 1.3611 | FH94: 1.3549 | FK94: 1.3670
AW95: 57.544 | AX95: 0.729 | AY95: 0.737 | AZ95: 0.745 | BA95: 0.753 | BB95: 0.761 | BC95: 0.769 | BD95: 0.777 | BE95: 0.785 | BF95: 0.793 | BG95: 0.801 | BH95: 0.809 | BI95: 0.817 | BJ95: 0.825 | BK95: 0.833 | BL95: 0.841 | BM95: 0.849 | BN95: 0.858 | BO95: 0.866 | BP95: 0.874 | BQ95: 0.882 | BR95: 0.890 | BS95: 0.898 | BT95: 0.906 | BU95: 0.914 | BV95: 0.922 | BW95: 0.930 | BX95: 0.938 | BY95: 0.946 | BZ95: 0.955 | CA95: 0.963 | CB95: 0.971 | CC95: 0.979 | CD95: 0.987 | CE95: 0.995 | CF95: 1.003 | CG95: 1.011 | CH95: 1.020 | CI95: 1.028 | CJ95: 1.036 | CK95: 1.044 | CL95: 1.052 | CM95: 1.061 | CN95: 1.069 | CO95: 1.077 | CP95: 1.085 | CQ95: 1.094 | CR95: 1.102 | CS95: 1.110 | CT95: 1.118 | CU95: 1.127 | CV95: 1.135 | CW95: 1.143 | CX95: 1.152 | CY95: 1.160 | CZ95: 1.169 | DA95: 1.177 | DB95: 1.186 | DC95: 1.194 | DD95: 1.202 | DE95: 1.211 | DF95: 1.220 | DG95: 1.228 | DH95: 1.237 | DI95: 1.245 | DJ95: 1.254 | DK95: 1.263 | DL95: 1.271 | DM95: 1.280 | DN95: 1.289 | DO95: 1.298 | DP95: 1.307 | DQ95: 1.315 | DR95: 1.324 | DS95: 1.333 | DT95: 1.342 | DU95: 1.351 | DV95: 1.361 | DW95: 1.370 | DX95: 1.379 | DY95: 1.388 | DZ95: 1.398 | EA95: 1.407 | EB95: 1.417 | EC95: 1.426 | ED95: 1.436 | EE95: 1.445 | EF95: 1.455 | EG95: 1.465 | EH95: 1.475 | EI95: 1.485 | EJ95: 1.495 | EK95: 1.505 | EL95: 1.516 | EM95: 1.526 | EN95: 1.537 | EO95: 1.547 | EP95: 1.558 | EQ95: 1.569 | ER95: 1.580 | ES95: 1.591 | ET95: 1.603 | EU95: 1.614 | EV95: 1.626 | EW95: 1.637 | EX95: 1.649 | EY95: 1.661 | EZ95: 1.674 | FA95: 1.686 | FB95: 1.699 | FC95: 1.712 | FE95: 1.3715 | FF95: 1.3657 | FG95: 1.3598 | FH95: 1.3537 | FK95: 1.3657
AW96: 61.660 | AX96: 0.728 | AY96: 0.736 | AZ96: 0.744 | BA96: 0.752 | BB96: 0.760 | BC96: 0.768 | BD96: 0.776 | BE96: 0.784 | BF96: 0.792 | BG96: 0.800 | BH96: 0.808 | BI96: 0.817 | BJ96: 0.825 | BK96: 0.833 | BL96: 0.841 | BM96: 0.849 | BN96: 0.857 | BO96: 0.865 | BP96: 0.873 | BQ96: 0.881 | BR96: 0.889 | BS96: 0.897 | BT96: 0.905 | BU96: 0.913 | BV96: 0.921 | BW96: 0.929 | BX96: 0.937 | BY96: 0.946 | BZ96: 0.954 | CA96: 0.962 | CB96: 0.970 | CC96: 0.978 | CD96: 0.986 | CE96: 0.994 | CF96: 1.002 | CG96: 1.011 | CH96: 1.019 | CI96: 1.027 | CJ96: 1.035 | CK96: 1.043 | CL96: 1.051 | CM96: 1.060 | CN96: 1.068 | CO96: 1.076 | CP96: 1.084 | CQ96: 1.093 | CR96: 1.101 | CS96: 1.109 | CT96: 1.117 | CU96: 1.126 | CV96: 1.134 | CW96: 1.142 | CX96: 1.151 | CY96: 1.159 | CZ96: 1.168 | DA96: 1.176 | DB96: 1.184 | DC96: 1.193 | DD96: 1.201 | DE96: 1.210 | DF96: 1.218 | DG96: 1.227 | DH96: 1.236 | DI96: 1.244 | DJ96: 1.253 | DK96: 1.261 | DL96: 1.270 | DM96: 1.279 | DN96: 1.288 | DO96: 1.296 | DP96: 1.305 | DQ96: 1.314 | DR96: 1.323 | DS96: 1.332 | DT96: 1.341 | DU96: 1.350 | DV96: 1.359 | DW96: 1.369 | DX96: 1.378 | DY96: 1.387 | DZ96: 1.396 | EA96: 1.406 | EB96: 1.415 | EC96: 1.425 | ED96: 1.434 | EE96: 1.444 | EF96: 1.454 | EG96: 1.464 | EH96: 1.474 | EI96: 1.484 | EJ96: 1.494 | EK96: 1.504 | EL96: 1.514 | EM96: 1.525 | EN96: 1.535 | EO96: 1.546 | EP96: 1.557 | EQ96: 1.568 | ER96: 1.579 | ES96: 1.590 | ET96: 1.601 | EU96: 1.613 | EV96: 1.624 | EW96: 1.636 | EX96: 1.648 | EY96: 1.660 | EZ96: 1.672 | FA96: 1.685 | FB96: 1.697 | FC96: 1.710 | FE96: 1.3703 | FF96: 1.3645 | FG96: 1.3586 | FH96: 1.3525 | FK96: 1.3645
AW97: 66.069 | AX97: 0.728 | AY97: 0.736 | AZ97: 0.744 | BA97: 0.752 | BB97: 0.760 | BC97: 0.768 | BD97: 0.776 | BE97: 0.784 | BF97: 0.792 | BG97: 0.800 | BH97: 0.808 | BI97: 0.816 | BJ97: 0.824 | BK97: 0.832 | BL97: 0.840 | BM97: 0.848 | BN97: 0.856 | BO97: 0.864 | BP97: 0.872 | BQ97: 0.880 | BR97: 0.888 | BS97: 0.896 | BT97: 0.904 | BU97: 0.912 | BV97: 0.920 | BW97: 0.929 | BX97: 0.937 | BY97: 0.945 | BZ97: 0.953 | CA97: 0.961 | CB97: 0.969 | CC97: 0.977 | CD97: 0.985 | CE97: 0.993 | CF97: 1.002 | CG97: 1.010 | CH97: 1.018 | CI97: 1.026 | CJ97: 1.034 | CK97: 1.042 | CL97: 1.051 | CM97: 1.059 | CN97: 1.067 | CO97: 1.075 | CP97: 1.083 | CQ97: 1.092 | CR97: 1.100 | CS97: 1.108 | CT97: 1.116 | CU97: 1.125 | CV97: 1.133 | CW97: 1.141 | CX97: 1.150 | CY97: 1.158 | CZ97: 1.167 | DA97: 1.175 | DB97: 1.183 | DC97: 1.192 | DD97: 1.200 | DE97: 1.209 | DF97: 1.217 | DG97: 1.226 | DH97: 1.234 | DI97: 1.243 | DJ97: 1.252 | DK97: 1.260 | DL97: 1.269 | DM97: 1.278 | DN97: 1.286 | DO97: 1.295 | DP97: 1.304 | DQ97: 1.313 | DR97: 1.322 | DS97: 1.331 | DT97: 1.340 | DU97: 1.349 | DV97: 1.358 | DW97: 1.367 | DX97: 1.376 | DY97: 1.386 | DZ97: 1.395 | EA97: 1.405 | EB97: 1.414 | EC97: 1.424 | ED97: 1.433 | EE97: 1.443 | EF97: 1.453 | EG97: 1.462 | EH97: 1.472 | EI97: 1.482 | EJ97: 1.492 | EK97: 1.503 | EL97: 1.513 | EM97: 1.523 | EN97: 1.534 | EO97: 1.545 | EP97: 1.555 | EQ97: 1.566 | ER97: 1.577 | ES97: 1.588 | ET97: 1.600 | EU97: 1.611 | EV97: 1.623 | EW97: 1.634 | EX97: 1.646 | EY97: 1.658 | EZ97: 1.671 | FA97: 1.683 | FB97: 1.696 | FC97: 1.709 | FE97: 1.3690 | FF97: 1.3633 | FG97: 1.3574 | FH97: 1.3512 | FK97: 1.3633
AW98: 70.795 | AX98: 0.727 | AY98: 0.735 | AZ98: 0.743 | BA98: 0.751 | BB98: 0.759 | BC98: 0.767 | BD98: 0.775 | BE98: 0.783 | BF98: 0.791 | BG98: 0.799 | BH98: 0.807 | BI98: 0.815 | BJ98: 0.823 | BK98: 0.831 | BL98: 0.839 | BM98: 0.847 | BN98: 0.855 | BO98: 0.863 | BP98: 0.871 | BQ98: 0.879 | BR98: 0.887 | BS98: 0.895 | BT98: 0.903 | BU98: 0.912 | BV98: 0.920 | BW98: 0.928 | BX98: 0.936 | BY98: 0.944 | BZ98: 0.952 | CA98: 0.960 | CB98: 0.968 | CC98: 0.976 | CD98: 0.984 | CE98: 0.992 | CF98: 1.001 | CG98: 1.009 | CH98: 1.017 | CI98: 1.025 | CJ98: 1.033 | CK98: 1.041 | CL98: 1.050 | CM98: 1.058 | CN98: 1.066 | CO98: 1.074 | CP98: 1.082 | CQ98: 1.091 | CR98: 1.099 | CS98: 1.107 | CT98: 1.115 | CU98: 1.124 | CV98: 1.132 | CW98: 1.140 | CX98: 1.149 | CY98: 1.157 | CZ98: 1.165 | DA98: 1.174 | DB98: 1.182 | DC98: 1.191 | DD98: 1.199 | DE98: 1.208 | DF98: 1.216 | DG98: 1.225 | DH98: 1.233 | DI98: 1.242 | DJ98: 1.251 | DK98: 1.259 | DL98: 1.268 | DM98: 1.277 | DN98: 1.285 | DO98: 1.294 | DP98: 1.303 | DQ98: 1.312 | DR98: 1.321 | DS98: 1.330 | DT98: 1.339 | DU98: 1.348 | DV98: 1.357 | DW98: 1.366 | DX98: 1.375 | DY98: 1.385 | DZ98: 1.394 | EA98: 1.403 | EB98: 1.413 | EC98: 1.422 | ED98: 1.432 | EE98: 1.442 | EF98: 1.451 | EG98: 1.461 | EH98: 1.471 | EI98: 1.481 | EJ98: 1.491 | EK98: 1.501 | EL98: 1.512 | EM98: 1.522 | EN98: 1.533 | EO98: 1.543 | EP98: 1.554 | EQ98: 1.565 | ER98: 1.576 | ES98: 1.587 | ET98: 1.598 | EU98: 1.610 | EV98: 1.621 | EW98: 1.633 | EX98: 1.645 | EY98: 1.657 | EZ98: 1.669 | FA98: 1.682 | FB98: 1.694 | FC98: 1.707 | FE98: 1.3678 | FF98: 1.3620 | FG98: 1.3561 | FH98: 1.3500 | FK98: 1.3620
AW99: 75.858 | AX99: 0.726 | AY99: 0.734 | AZ99: 0.742 | BA99: 0.750 | BB99: 0.758 | BC99: 0.766 | BD99: 0.774 | BE99: 0.782 | BF99: 0.790 | BG99: 0.798 | BH99: 0.806 | BI99: 0.814 | BJ99: 0.822 | BK99: 0.830 | BL99: 0.838 | BM99: 0.846 | BN99: 0.854 | BO99: 0.862 | BP99: 0.870 | BQ99: 0.879 | BR99: 0.887 | BS99: 0.895 | BT99: 0.903 | BU99: 0.911 | BV99: 0.919 | BW99: 0.927 | BX99: 0.935 | BY99: 0.943 | BZ99: 0.951 | CA99: 0.959 | CB99: 0.967 | CC99: 0.975 | CD99: 0.983 | CE99: 0.992 | CF99: 1.000 | CG99: 1.008 | CH99: 1.016 | CI99: 1.024 | CJ99: 1.032 | CK99: 1.040 | CL99: 1.049 | CM99: 1.057 | CN99: 1.065 | CO99: 1.073 | CP99: 1.081 | CQ99: 1.090 | CR99: 1.098 | CS99: 1.106 | CT99: 1.114 | CU99: 1.123 | CV99: 1.131 | CW99: 1.139 | CX99: 1.148 | CY99: 1.156 | CZ99: 1.164 | DA99: 1.173 | DB99: 1.181 | DC99: 1.190 | DD99: 1.198 | DE99: 1.207 | DF99: 1.215 | DG99: 1.224 | DH99: 1.232 | DI99: 1.241 | DJ99: 1.249 | DK99: 1.258 | DL99: 1.267 | DM99: 1.275 | DN99: 1.284 | DO99: 1.293 | DP99: 1.302 | DQ99: 1.311 | DR99: 1.320 | DS99: 1.329 | DT99: 1.338 | DU99: 1.347 | DV99: 1.356 | DW99: 1.365 | DX99: 1.374 | DY99: 1.383 | DZ99: 1.393 | EA99: 1.402 | EB99: 1.411 | EC99: 1.421 | ED99: 1.431 | EE99: 1.440 | EF99: 1.450 | EG99: 1.460 | EH99: 1.470 | EI99: 1.480 | EJ99: 1.490 | EK99: 1.500 | EL99: 1.510 | EM99: 1.521 | EN99: 1.531 | EO99: 1.542 | EP99: 1.553 | EQ99: 1.563 | ER99: 1.574 | ES99: 1.586 | ET99: 1.597 | EU99: 1.608 | EV99: 1.620 | EW99: 1.632 | EX99: 1.643 | EY99: 1.655 | EZ99: 1.668 | FA99: 1.680 | FB99: 1.693 | FC99: 1.706 | FE99: 1.3666 | FF99: 1.3608 | FG99: 1.3549 | FH99: 1.3488 | FK99: 1.3608
AW100: 81.283 | AX100: 0.726 | AY100: 0.734 | AZ100: 0.742 | BA100: 0.750 | BB100: 0.758 | BC100: 0.766 | BD100: 0.774 | BE100: 0.782 | BF100: 0.790 | BG100: 0.798 | BH100: 0.806 | BI100: 0.814 | BJ100: 0.822 | BK100: 0.830 | BL100: 0.838 | BM100: 0.846 | BN100: 0.854 | BO100: 0.862 | BP100: 0.870 | BQ100: 0.878 | BR100: 0.886 | BS100: 0.894 | BT100: 0.902 | BU100: 0.910 | BV100: 0.918 | BW100: 0.926 | BX100: 0.934 | BY100: 0.942 | BZ100: 0.950 | CA100: 0.958 | CB100: 0.966 | CC100: 0.975 | CD100: 0.983 | CE100: 0.991 | CF100: 0.999 | CG100: 1.007 | CH100: 1.015 | CI100: 1.023 | CJ100: 1.031 | CK100: 1.040 | CL100: 1.048 | CM100: 1.056 | CN100: 1.064 | CO100: 1.072 | CP100: 1.080 | CQ100: 1.089 | CR100: 1.097 | CS100: 1.105 | CT100: 1.113 | CU100: 1.122 | CV100: 1.130 | CW100: 1.138 | CX100: 1.147 | CY100: 1.155 | CZ100: 1.163 | DA100: 1.172 | DB100: 1.180 | DC100: 1.189 | DD100: 1.197 | DE100: 1.206 | DF100: 1.214 | DG100: 1.223 | DH100: 1.231 | DI100: 1.240 | DJ100: 1.248 | DK100: 1.257 | DL100: 1.266 | DM100: 1.274 | DN100: 1.283 | DO100: 1.292 | DP100: 1.301 | DQ100: 1.310 | DR100: 1.318 | DS100: 1.327 | DT100: 1.336 | DU100: 1.345 | DV100: 1.354 | DW100: 1.364 | DX100: 1.373 | DY100: 1.382 | DZ100: 1.391 | EA100: 1.401 | EB100: 1.410 | EC100: 1.420 | ED100: 1.429 | EE100: 1.439 | EF100: 1.449 | EG100: 1.459 | EH100: 1.468 | EI100: 1.478 | EJ100: 1.488 | EK100: 1.499 | EL100: 1.509 | EM100: 1.519 | EN100: 1.530 | EO100: 1.540 | EP100: 1.551 | EQ100: 1.562 | ER100: 1.573 | ES100: 1.584 | ET100: 1.595 | EU100: 1.607 | EV100: 1.618 | EW100: 1.630 | EX100: 1.642 | EY100: 1.654 | EZ100: 1.666 | FA100: 1.679 | FB100: 1.691 | FC100: 1.704 | FE100: 1.3654 | FF100: 1.3596 | FG100: 1.3537 | FH100: 1.3476 | FK100: 1.3596
AW101: 87.096 | AX101: 0.725 | AY101: 0.733 | AZ101: 0.741 | BA101: 0.749 | BB101: 0.757 | BC101: 0.765 | BD101: 0.773 | BE101: 0.781 | BF101: 0.789 | BG101: 0.797 | BH101: 0.805 | BI101: 0.813 | BJ101: 0.821 | BK101: 0.829 | BL101: 0.837 | BM101: 0.845 | BN101: 0.853 | BO101: 0.861 | BP101: 0.869 | BQ101: 0.877 | BR101: 0.885 | BS101: 0.893 | BT101: 0.901 | BU101: 0.909 | BV101: 0.917 | BW101: 0.925 | BX101: 0.933 | BY101: 0.941 | BZ101: 0.949 | CA101: 0.957 | CB101: 0.966 | CC101: 0.974 | CD101: 0.982 | CE101: 0.990 | CF101: 0.998 | CG101: 1.006 | CH101: 1.014 | CI101: 1.022 | CJ101: 1.030 | CK101: 1.039 | CL101: 1.047 | CM101: 1.055 | CN101: 1.063 | CO101: 1.071 | CP101: 1.080 | CQ101: 1.088 | CR101: 1.096 | CS101: 1.104 | CT101: 1.112 | CU101: 1.121 | CV101: 1.129 | CW101: 1.137 | CX101: 1.146 | CY101: 1.154 | CZ101: 1.162 | DA101: 1.171 | DB101: 1.179 | DC101: 1.188 | DD101: 1.196 | DE101: 1.204 | DF101: 1.213 | DG101: 1.222 | DH101: 1.230 | DI101: 1.239 | DJ101: 1.247 | DK101: 1.256 | DL101: 1.265 | DM101: 1.273 | DN101: 1.282 | DO101: 1.291 | DP101: 1.300 | DQ101: 1.308 | DR101: 1.317 | DS101: 1.326 | DT101: 1.335 | DU101: 1.344 | DV101: 1.353 | DW101: 1.362 | DX101: 1.372 | DY101: 1.381 | DZ101: 1.390 | EA101: 1.400 | EB101: 1.409 | EC101: 1.418 | ED101: 1.428 | EE101: 1.438 | EF101: 1.447 | EG101: 1.457 | EH101: 1.467 | EI101: 1.477 | EJ101: 1.487 | EK101: 1.497 | EL101: 1.508 | EM101: 1.518 | EN101: 1.529 | EO101: 1.539 | EP101: 1.550 | EQ101: 1.561 | ER101: 1.572 | ES101: 1.583 | ET101: 1.594 | EU101: 1.605 | EV101: 1.617 | EW101: 1.629 | EX101: 1.641 | EY101: 1.653 | EZ101: 1.665 | FA101: 1.677 | FB101: 1.690 | FC101: 1.703 | FE101: 1.3642 | FF101: 1.3584 | FG101: 1.3525 | FH101: 1.3465 | FK101: 1.3584
AW102: 93.325 | AX102: 0.724 | AY102: 0.732 | AZ102: 0.740 | BA102: 0.748 | BB102: 0.756 | BC102: 0.764 | BD102: 0.772 | BE102: 0.780 | BF102: 0.788 | BG102: 0.796 | BH102: 0.804 | BI102: 0.812 | BJ102: 0.820 | BK102: 0.828 | BL102: 0.836 | BM102: 0.844 | BN102: 0.852 | BO102: 0.860 | BP102: 0.868 | BQ102: 0.876 | BR102: 0.884 | BS102: 0.892 | BT102: 0.900 | BU102: 0.908 | BV102: 0.916 | BW102: 0.924 | BX102: 0.932 | BY102: 0.941 | BZ102: 0.949 | CA102: 0.957 | CB102: 0.965 | CC102: 0.973 | CD102: 0.981 | CE102: 0.989 | CF102: 0.997 | CG102: 1.005 | CH102: 1.013 | CI102: 1.021 | CJ102: 1.030 | CK102: 1.038 | CL102: 1.046 | CM102: 1.054 | CN102: 1.062 | CO102: 1.070 | CP102: 1.079 | CQ102: 1.087 | CR102: 1.095 | CS102: 1.103 | CT102: 1.112 | CU102: 1.120 | CV102: 1.128 | CW102: 1.136 | CX102: 1.145 | CY102: 1.153 | CZ102: 1.161 | DA102: 1.170 | DB102: 1.178 | DC102: 1.187 | DD102: 1.195 | DE102: 1.203 | DF102: 1.212 | DG102: 1.220 | DH102: 1.229 | DI102: 1.238 | DJ102: 1.246 | DK102: 1.255 | DL102: 1.263 | DM102: 1.272 | DN102: 1.281 | DO102: 1.290 | DP102: 1.298 | DQ102: 1.307 | DR102: 1.316 | DS102: 1.325 | DT102: 1.334 | DU102: 1.343 | DV102: 1.352 | DW102: 1.361 | DX102: 1.370 | DY102: 1.380 | DZ102: 1.389 | EA102: 1.398 | EB102: 1.408 | EC102: 1.417 | ED102: 1.427 | EE102: 1.436 | EF102: 1.446 | EG102: 1.456 | EH102: 1.466 | EI102: 1.476 | EJ102: 1.486 | EK102: 1.496 | EL102: 1.506 | EM102: 1.517 | EN102: 1.527 | EO102: 1.538 | EP102: 1.548 | EQ102: 1.559 | ER102: 1.570 | ES102: 1.581 | ET102: 1.593 | EU102: 1.604 | EV102: 1.616 | EW102: 1.627 | EX102: 1.639 | EY102: 1.651 | EZ102: 1.663 | FA102: 1.676 | FB102: 1.688 | FC102: 1.701 | FE102: 1.3630 | FF102: 1.3573 | FG102: 1.3514 | FH102: 1.3453 | FK102: 1.3573
AW103: 100.000 | AX103: 0.724 | AY103: 0.732 | AZ103: 0.740 | BA103: 0.748 | BB103: 0.756 | BC103: 0.764 | BD103: 0.772 | BE103: 0.780 | BF103: 0.788 | BG103: 0.796 | BH103: 0.804 | BI103: 0.811 | BJ103: 0.819 | BK103: 0.827 | BL103: 0.835 | BM103: 0.843 | BN103: 0.851 | BO103: 0.859 | BP103: 0.867 | BQ103: 0.875 | BR103: 0.883 | BS103: 0.892 | BT103: 0.900 | BU103: 0.908 | BV103: 0.916 | BW103: 0.924 | BX103: 0.932 | BY103: 0.940 | BZ103: 0.948 | CA103: 0.956 | CB103: 0.964 | CC103: 0.972 | CD103: 0.980 | CE103: 0.988 | CF103: 0.996 | CG103: 1.004 | CH103: 1.012 | CI103: 1.021 | CJ103: 1.029 | CK103: 1.037 | CL103: 1.045 | CM103: 1.053 | CN103: 1.061 | CO103: 1.069 | CP103: 1.078 | CQ103: 1.086 | CR103: 1.094 | CS103: 1.102 | CT103: 1.111 | CU103: 1.119 | CV103: 1.127 | CW103: 1.135 | CX103: 1.144 | CY103: 1.152 | CZ103: 1.160 | DA103: 1.169 | DB103: 1.177 | DC103: 1.186 | DD103: 1.194 | DE103: 1.202 | DF103: 1.211 | DG103: 1.219 | DH103: 1.228 | DI103: 1.236 | DJ103: 1.245 | DK103: 1.254 | DL103: 1.262 | DM103: 1.271 | DN103: 1.280 | DO103: 1.288 | DP103: 1.297 | DQ103: 1.306 | DR103: 1.315 | DS103: 1.324 | DT103: 1.333 | DU103: 1.342 | DV103: 1.351 | DW103: 1.360 | DX103: 1.369 | DY103: 1.378 | DZ103: 1.388 | EA103: 1.397 | EB103: 1.407 | EC103: 1.416 | ED103: 1.426 | EE103: 1.435 | EF103: 1.445 | EG103: 1.455 | EH103: 1.465 | EI103: 1.475 | EJ103: 1.485 | EK103: 1.495 | EL103: 1.505 | EM103: 1.515 | EN103: 1.526 | EO103: 1.536 | EP103: 1.547 | EQ103: 1.558 | ER103: 1.569 | ES103: 1.580 | ET103: 1.591 | EU103: 1.603 | EV103: 1.614 | EW103: 1.626 | EX103: 1.638 | EY103: 1.650 | EZ103: 1.662 | FA103: 1.674 | FB103: 1.687 | FC103: 1.700 | FE103: 1.3618 | FF103: 1.3561 | FG103: 1.3502 | FH103: 1.3442 | FK103: 1.3561
AU106: Ce(Z) | AV106: h-hdis | AW106: 1 | AX106: 2 | AY106: 3 | AZ106: 4 | BA106: 5 | BB106: 6 | BC106: 7 | BD106: 8 | BE106: 9 | BF106: 10 | BG106: 11 | BH106: 12 | BI106: 13 | BJ106: 14 | BK106: 15 | BL106: 16 | BM106: 17 | BN106: 18 | BO106: 19 | BP106: 20 | BQ106: 21 | BR106: 22 | BS106: 23 | BT106: 24 | BU106: 25 | BV106: 26 | BW106: 27 | BX106: 28 | BY106: 29 | BZ106: 30 | CA106: 31 | CB106: 32 | CC106: 33 | CD106: 34 | CE106: 35 | CF106: 36 | CG106: 37 | CH106: 38 | CI106: 39 | CJ106: 40 | CK106: 41 | CL106: 42 | CM106: 43 | CN106: 44 | CO106: 45 | CP106: 46 | CQ106: 47 | CR106: 48 | CS106: 49 | CT106: 50 | CU106: 51 | CV106: 52 | CW106: 53 | CX106: 54 | CY106: 55 | CZ106: 56 | DA106: 57 | DB106: 58 | DC106: 59 | DD106: 60 | DE106: 61 | DF106: 62 | DG106: 63 | DH106: 64 | DI106: 65 | DJ106: 66 | DK106: 67 | DL106: 68 | DM106: 69 | DN106: 70 | DO106: 71 | DP106: 72 | DQ106: 73 | DR106: 74 | DS106: 75 | DT106: 76 | DU106: 77 | DV106: 78 | DW106: 79 | DX106: 80 | DY106: 81 | DZ106: 82 | EA106: 83 | EB106: 84 | EC106: 85 | ED106: 86 | EE106: 87 | EF106: 88 | EG106: 89 | EH106: 90 | EI106: 91 | EJ106: 92 | EK106: 93 | EL106: 94 | EM106: 95 | EN106: 96 | EO106: 97 | EP106: 98 | EQ106: 99 | ER106: 100 | ES106: 101 | ET106: 102 | EU106: 103 | EV106: 104 | EW106: 105 | EX106: 106 | EY106: 107 | EZ106: 108 | FA106: 109 | FB106: 110 | FC106: 111 | FE106: 113 | FF106: 114 | FG106: 115 | FH106: 116 | FK106: 119
AV107: Upwind to shoreline | AX107: 2 | AY107: 2.094 | AZ107: 2.193 | BA107: 2.296 | BB107: 2.405 | BC107: 2.518 | BD107: 2.637 | BE107: 2.761 | BF107: 2.891 | BG107: 3.027 | BH107: 3.17 | BI107: 3.319 | BJ107: 3.476 | BK107: 3.639 | BL107: 3.811 | BM107: 3.991 | BN107: 4.179 | BO107: 4.376 | BP107: 4.582 | BQ107: 4.798 | BR107: 5.024 | BS107: 5.261 | BT107: 5.508 | BU107: 5.768 | BV107: 6.04 | BW107: 6.325 | BX107: 6.623 | BY107: 6.935 | BZ107: 7.262 | CA107: 7.604 | CB107: 7.962 | CC107: 8.337 | CD107: 8.73 | CE107: 9.142 | CF107: 9.573 | CG107: 10.024 | CH107: 10.496 | CI107: 10.991 | CJ107: 11.509 | CK107: 12.051 | CL107: 12.619 | CM107: 13.214 | CN107: 13.837 | CO107: 14.489 | CP107: 15.172 | CQ107: 15.887 | CR107: 16.635 | CS107: 17.419 | CT107: 18.24 | CU107: 19.1 | CV107: 20 | CW107: 20.943 | CX107: 21.93 | CY107: 22.963 | CZ107: 24.045 | DA107: 25.179 | DB107: 26.365 | DC107: 27.608 | DD107: 28.909 | DE107: 30.271 | DF107: 31.698 | DG107: 33.192 | DH107: 34.756 | DI107: 36.394 | DJ107: 38.109 | DK107: 39.905 | DL107: 41.786 | DM107: 43.755 | DN107: 45.817 | DO107: 47.977 | DP107: 50.238 | DQ107: 52.605 | DR107: 55.085 | DS107: 57.681 | DT107: 60.399 | DU107: 63.246 | DV107: 66.226 | DW107: 69.347 | DX107: 72.616 | DY107: 76.038 | DZ107: 79.621 | EA107: 83.374 | EB107: 87.303 | EC107: 91.418 | ED107: 95.726 | EE107: 100.237 | EF107: 104.961 | EG107: 109.908 | EH107: 115.088 | EI107: 120.512 | EJ107: 126.191 | EK107: 132.139 | EL107: 138.366 | EM107: 144.887 | EN107: 151.716 | EO107: 158.866 | EP107: 166.353 | EQ107: 174.193 | ER107: 182.402 | ES107: 190.999 | ET107: 200 | EU107: 209.426 | EV107: 219.296 | EW107: 229.631 | EX107: 240.453 | EY107: 251.785 | EZ107: 263.651 | FA107: 276.077 | FB107: 289.088 | FC107: 302.712
AW108: 0.1 | AX108: 1.9124 | AY108: 1.9441 | AZ108: 1.976 | BA108: 2.0081 | BB108: 2.0405 | BC108: 2.0683 | BD108: 2.0919 | BE108: 2.1157 | BF108: 2.1395 | BG108: 2.1635 | BH108: 2.1875 | BI108: 2.2117 | BJ108: 2.236 | BK108: 2.2604 | BL108: 2.2849 | BM108: 2.3095 | BN108: 2.3343 | BO108: 2.3591 | BP108: 2.384 | BQ108: 2.409 | BR108: 2.4341 | BS108: 2.4593 | BT108: 2.4846 | BU108: 2.51 | BV108: 2.5354 | BW108: 2.5609 | BX108: 2.5865 | BY108: 2.6122 | BZ108: 2.6379 | CA108: 2.6637 | CB108: 2.6896 | CC108: 2.7155 | CD108: 2.7415 | CE108: 2.7675 | CF108: 2.7935 | CG108: 2.8196 | CH108: 2.8457 | CI108: 2.8718 | CJ108: 2.8979 | CK108: 2.924 | CL108: 2.9502 | CM108: 2.9763 | CN108: 3.0024 | CO108: 3.0285 | CP108: 3.0545 | CQ108: 3.0806 | CR108: 3.1065 | CS108: 3.1324 | CT108: 3.1583 | CU108: 3.184 | CV108: 3.2097 | CW108: 3.2353 | CX108: 3.2608 | CY108: 3.2862 | CZ108: 3.3114 | DA108: 3.3365 | DB108: 3.3614 | DC108: 3.3862 | DD108: 3.4109 | DE108: 3.4353 | DF108: 3.4595 | DG108: 3.4836 | DH108: 3.5074 | DI108: 3.531 | DJ108: 3.5544 | DK108: 3.5776 | DL108: 3.6005 | DM108: 3.6231 | DN108: 3.6455 | DO108: 3.6676 | DP108: 3.6894 | DQ108: 3.7109 | DR108: 3.7322 | DS108: 3.7532 | DT108: 3.7739 | DU108: 3.7943 | DV108: 3.8144 | DW108: 3.8343 | DX108: 3.8538 | DY108: 3.8732 | DZ108: 3.8922 | EA108: 3.9111 | EB108: 3.9297 | EC108: 3.9481 | ED108: 3.9664 | EE108: 3.9844 | EF108: 4.0024 | EG108: 4.0202 | EH108: 4.038 | EI108: 4.0558 | EJ108: 4.0735 | EK108: 4.0913 | EL108: 4.1092 | EM108: 4.1272 | EN108: 4.1453 | EO108: 4.1637 | EP108: 4.1824 | EQ108: 4.2014 | ER108: 4.2207 | ES108: 4.2405 | ET108: 4.2607 | EU108: 4.2815 | EV108: 4.3029 | EW108: 4.3248 | EX108: 4.3475 | EY108: 4.3709 | EZ108: 4.395 | FA108: 4.4199 | FB108: 4.4457 | FC108: 4.4723 | FE108: =FORECAST(J$39,OFFSET($AX108,0,MATCH(J$39,$AX$107:$FC$107,1)-1,1,2),OFFSET($AX$107,0,MATCH(J$39,$AX$107:$FC$107,1)-1,1,2)) -> 3.8382 | FF108: =FORECAST(L$39,OFFSET($AX108,0,MATCH(L$39,$AX$107:$FC$107,1)-1,1,2),OFFSET($AX$107,0,MATCH(L$39,$AX$107:$FC$107,1)-1,1,2)) -> 3.8257 | FG108: =FORECAST(N$39,OFFSET($AX108,0,MATCH(N$39,$AX$107:$FC$107,1)-1,1,2),OFFSET($AX$107,0,MATCH(N$39,$AX$107:$FC$107,1)-1,1,2)) -> 3.8129 | FH108: =FORECAST(P$39,OFFSET($AX108,0,MATCH(P$39,$AX$107:$FC$107,1)-1,1,2),OFFSET($AX$107,0,MATCH(P$39,$AX$107:$FC$107,1)-1,1,2)) -> 3.7994 | FK108: =FORECAST(AN$22,OFFSET($AX108,0,MATCH(AN$22,$AX$107:$FC$107,1)-1,1,2),OFFSET($AX$107,0,MATCH(AN$22,$AX$107:$FC$107,1)-1,1,2)) -> 3.8257
AW109: 0.107 | AX109: 1.9023 | AY109: 1.9337 | AZ109: 1.9654 | BA109: 1.9974 | BB109: 2.0296 | BC109: 2.0621 | BD109: 2.0919 | BE109: 2.1157 | BF109: 2.1395 | BG109: 2.1635 | BH109: 2.1875 | BI109: 2.2117 | BJ109: 2.236 | BK109: 2.2604 | BL109: 2.2849 | BM109: 2.3095 | BN109: 2.3343 | BO109: 2.3591 | BP109: 2.384 | BQ109: 2.409 | BR109: 2.4341 | BS109: 2.4593 | BT109: 2.4846 | BU109: 2.51 | BV109: 2.5354 | BW109: 2.5609 | BX109: 2.5865 | BY109: 2.6122 | BZ109: 2.6379 | CA109: 2.6637 | CB109: 2.6896 | CC109: 2.7155 | CD109: 2.7415 | CE109: 2.7675 | CF109: 2.7935 | CG109: 2.8196 | CH109: 2.8457 | CI109: 2.8718 | CJ109: 2.8979 | CK109: 2.924 | CL109: 2.9502 | CM109: 2.9763 | CN109: 3.0024 | CO109: 3.0285 | CP109: 3.0545 | CQ109: 3.0806 | CR109: 3.1065 | CS109: 3.1324 | CT109: 3.1583 | CU109: 3.184 | CV109: 3.2097 | CW109: 3.2353 | CX109: 3.2608 | CY109: 3.2862 | CZ109: 3.3114 | DA109: 3.3365 | DB109: 3.3614 | DC109: 3.3862 | DD109: 3.4109 | DE109: 3.4353 | DF109: 3.4595 | DG109: 3.4836 | DH109: 3.5074 | DI109: 3.531 | DJ109: 3.5544 | DK109: 3.5776 | DL109: 3.6005 | DM109: 3.6231 | DN109: 3.6455 | DO109: 3.6676 | DP109: 3.6894 | DQ109: 3.7109 | DR109: 3.7322 | DS109: 3.7532 | DT109: 3.7739 | DU109: 3.7943 | DV109: 3.8144 | DW109: 3.8343 | DX109: 3.8538 | DY109: 3.8732 | DZ109: 3.8922 | EA109: 3.9111 | EB109: 3.9297 | EC109: 3.9481 | ED109: 3.9664 | EE109: 3.9844 | EF109: 4.0024 | EG109: 4.0202 | EH109: 4.038 | EI109: 4.0558 | EJ109: 4.0735 | EK109: 4.0913 | EL109: 4.1092 | EM109: 4.1272 | EN109: 4.1453 | EO109: 4.1637 | EP109: 4.1824 | EQ109: 4.2014 | ER109: 4.2207 | ES109: 4.2405 | ET109: 4.2607 | EU109: 4.2815 | EV109: 4.3029 | EW109: 4.3248 | EX109: 4.3475 | EY109: 4.3709 | EZ109: 4.395 | FA109: 4.4199 | FB109: 4.4457 | FC109: 4.4723 | FE109: =FORECAST(J$39,OFFSET($AX109,0,MATCH(J$39,$AX$107:$FC$107,1)-1,1,2),OFFSET($AX$107,0,MATCH(J$39,$AX$107:$FC$107,1)-1,1,2)) -> 3.8382 | FF109: =FORECAST(L$39,OFFSET($AX109,0,MATCH(L$39,$AX$107:$FC$107,1)-1,1,2),OFFSET($AX$107,0,MATCH(L$39,$AX$107:$FC$107,1)-1,1,2)) -> 3.8257 | FG109: =FORECAST(N$39,OFFSET($AX109,0,MATCH(N$39,$AX$107:$FC$107,1)-1,1,2),OFFSET($AX$107,0,MATCH(N$39,$AX$107:$FC$107,1)-1,1,2)) -> 3.8129 | FH109: =FORECAST(P$39,OFFSET($AX109,0,MATCH(P$39,$AX$107:$FC$107,1)-1,1,2),OFFSET($AX$107,0,MATCH(P$39,$AX$107:$FC$107,1)-1,1,2)) -> 3.7994 | FK109: 3.8257
AW110: 0.115 | AX110: 1.8923 | AY110: 1.9235 | AZ110: 1.9551 | BA110: 1.9869 | BB110: 2.019 | BC110: 2.0513 | BD110: 2.0838 | BE110: 2.1157 | BF110: 2.1395 | BG110: 2.1635 | BH110: 2.1875 | BI110: 2.2117 | BJ110: 2.236 | BK110: 2.2604 | BL110: 2.2849 | BM110: 2.3095 | BN110: 2.3343 | BO110: 2.3591 | BP110: 2.384 | BQ110: 2.409 | BR110: 2.4341 | BS110: 2.4593 | BT110: 2.4846 | BU110: 2.51 | BV110: 2.5354 | BW110: 2.5609 | BX110: 2.5865 | BY110: 2.6122 | BZ110: 2.6379 | CA110: 2.6637 | CB110: 2.6896 | CC110: 2.7155 | CD110: 2.7415 | CE110: 2.7675 | CF110: 2.7935 | CG110: 2.8196 | CH110: 2.8457 | CI110: 2.8718 | CJ110: 2.8979 | CK110: 2.924 | CL110: 2.9502 | CM110: 2.9763 | CN110: 3.0024 | CO110: 3.0285 | CP110: 3.0545 | CQ110: 3.0806 | CR110: 3.1065 | CS110: 3.1324 | CT110: 3.1583 | CU110: 3.184 | CV110: 3.2097 | CW110: 3.2353 | CX110: 3.2608 | CY110: 3.2862 | CZ110: 3.3114 | DA110: 3.3365 | DB110: 3.3614 | DC110: 3.3862 | DD110: 3.4109 | DE110: 3.4353 | DF110: 3.4595 | DG110: 3.4836 | DH110: 3.5074 | DI110: 3.531 | DJ110: 3.5544 | DK110: 3.5776 | DL110: 3.6005 | DM110: 3.6231 | DN110: 3.6455 | DO110: 3.6676 | DP110: 3.6894 | DQ110: 3.7109 | DR110: 3.7322 | DS110: 3.7532 | DT110: 3.7739 | DU110: 3.7943 | DV110: 3.8144 | DW110: 3.8343 | DX110: 3.8538 | DY110: 3.8732 | DZ110: 3.8922 | EA110: 3.9111 | EB110: 3.9297 | EC110: 3.9481 | ED110: 3.9664 | EE110: 3.9844 | EF110: 4.0024 | EG110: 4.0202 | EH110: 4.038 | EI110: 4.0558 | EJ110: 4.0735 | EK110: 4.0913 | EL110: 4.1092 | EM110: 4.1272 | EN110: 4.1453 | EO110: 4.1637 | EP110: 4.1824 | EQ110: 4.2014 | ER110: 4.2207 | ES110: 4.2405 | ET110: 4.2607 | EU110: 4.2815 | EV110: 4.3029 | EW110: 4.3248 | EX110: 4.3475 | EY110: 4.3709 | EZ110: 4.395 | FA110: 4.4199 | FB110: 4.4457 | FC110: 4.4723 | FE110: 3.8382 | FF110: 3.8257 | FG110: 3.8129 | FH110: 3.7994 | FK110: 3.8257
AW111: 0.123 | AX111: 1.8824 | AY111: 1.9136 | AZ111: 1.945 | BA111: 1.9766 | BB111: 2.0085 | BC111: 2.0406 | BD111: 2.073 | BE111: 2.1057 | BF111: 2.1386 | BG111: 2.1635 | BH111: 2.1875 | BI111: 2.2117 | BJ111: 2.236 | BK111: 2.2604 | BL111: 2.2849 | BM111: 2.3095 | BN111: 2.3343 | BO111: 2.3591 | BP111: 2.384 | BQ111: 2.409 | BR111: 2.4341 | BS111: 2.4593 | BT111: 2.4846 | BU111: 2.51 | BV111: 2.5354 | BW111: 2.5609 | BX111: 2.5865 | BY111: 2.6122 | BZ111: 2.6379 | CA111: 2.6637 | CB111: 2.6896 | CC111: 2.7155 | CD111: 2.7415 | CE111: 2.7675 | CF111: 2.7935 | CG111: 2.8196 | CH111: 2.8457 | CI111: 2.8718 | CJ111: 2.8979 | CK111: 2.924 | CL111: 2.9502 | CM111: 2.9763 | CN111: 3.0024 | CO111: 3.0285 | CP111: 3.0545 | CQ111: 3.0806 | CR111: 3.1065 | CS111: 3.1324 | CT111: 3.1583 | CU111: 3.184 | CV111: 3.2097 | CW111: 3.2353 | CX111: 3.2608 | CY111: 3.2862 | CZ111: 3.3114 | DA111: 3.3365 | DB111: 3.3614 | DC111: 3.3862 | DD111: 3.4109 | DE111: 3.4353 | DF111: 3.4595 | DG111: 3.4836 | DH111: 3.5074 | DI111: 3.531 | DJ111: 3.5544 | DK111: 3.5776 | DL111: 3.6005 | DM111: 3.6231 | DN111: 3.6455 | DO111: 3.6676 | DP111: 3.6894 | DQ111: 3.7109 | DR111: 3.7322 | DS111: 3.7532 | DT111: 3.7739 | DU111: 3.7943 | DV111: 3.8144 | DW111: 3.8343 | DX111: 3.8538 | DY111: 3.8732 | DZ111: 3.8922 | EA111: 3.9111 | EB111: 3.9297 | EC111: 3.9481 | ED111: 3.9664 | EE111: 3.9844 | EF111: 4.0024 | EG111: 4.0202 | EH111: 4.038 | EI111: 4.0558 | EJ111: 4.0735 | EK111: 4.0913 | EL111: 4.1092 | EM111: 4.1272 | EN111: 4.1453 | EO111: 4.1637 | EP111: 4.1824 | EQ111: 4.2014 | ER111: 4.2207 | ES111: 4.2405 | ET111: 4.2607 | EU111: 4.2815 | EV111: 4.3029 | EW111: 4.3248 | EX111: 4.3475 | EY111: 4.3709 | EZ111: 4.395 | FA111: 4.4199 | FB111: 4.4457 | FC111: 4.4723 | FE111: 3.8382 | FF111: 3.8257 | FG111: 3.8129 | FH111: 3.7994 | FK111: 3.8257
AW112: 0.132 | AX112: 1.8728 | AY112: 1.9038 | AZ112: 1.935 | BA112: 1.9665 | BB112: 1.9982 | BC112: 2.0302 | BD112: 2.0624 | BE112: 2.0949 | BF112: 2.1276 | BG112: 2.1606 | BH112: 2.1875 | BI112: 2.2117 | BJ112: 2.236 | BK112: 2.2604 | BL112: 2.2849 | BM112: 2.3095 | BN112: 2.3343 | BO112: 2.3591 | BP112: 2.384 | BQ112: 2.409 | BR112: 2.4341 | BS112: 2.4593 | BT112: 2.4846 | BU112: 2.51 | BV112: 2.5354 | BW112: 2.5609 | BX112: 2.5865 | BY112: 2.6122 | BZ112: 2.6379 | CA112: 2.6637 | CB112: 2.6896 | CC112: 2.7155 | CD112: 2.7415 | CE112: 2.7675 | CF112: 2.7935 | CG112: 2.8196 | CH112: 2.8457 | CI112: 2.8718 | CJ112: 2.8979 | CK112: 2.924 | CL112: 2.9502 | CM112: 2.9763 | CN112: 3.0024 | CO112: 3.0285 | CP112: 3.0545 | CQ112: 3.0806 | CR112: 3.1065 | CS112: 3.1324 | CT112: 3.1583 | CU112: 3.184 | CV112: 3.2097 | CW112: 3.2353 | CX112: 3.2608 | CY112: 3.2862 | CZ112: 3.3114 | DA112: 3.3365 | DB112: 3.3614 | DC112: 3.3862 | DD112: 3.4109 | DE112: 3.4353 | DF112: 3.4595 | DG112: 3.4836 | DH112: 3.5074 | DI112: 3.531 | DJ112: 3.5544 | DK112: 3.5776 | DL112: 3.6005 | DM112: 3.6231 | DN112: 3.6455 | DO112: 3.6676 | DP112: 3.6894 | DQ112: 3.7109 | DR112: 3.7322 | DS112: 3.7532 | DT112: 3.7739 | DU112: 3.7943 | DV112: 3.8144 | DW112: 3.8343 | DX112: 3.8538 | DY112: 3.8732 | DZ112: 3.8922 | EA112: 3.9111 | EB112: 3.9297 | EC112: 3.9481 | ED112: 3.9664 | EE112: 3.9844 | EF112: 4.0024 | EG112: 4.0202 | EH112: 4.038 | EI112: 4.0558 | EJ112: 4.0735 | EK112: 4.0913 | EL112: 4.1092 | EM112: 4.1272 | EN112: 4.1453 | EO112: 4.1637 | EP112: 4.1824 | EQ112: 4.2014 | ER112: 4.2207 | ES112: 4.2405 | ET112: 4.2607 | EU112: 4.2815 | EV112: 4.3029 | EW112: 4.3248 | EX112: 4.3475 | EY112: 4.3709 | EZ112: 4.395 | FA112: 4.4199 | FB112: 4.4457 | FC112: 4.4723 | FE112: 3.8382 | FF112: 3.8257 | FG112: 3.8129 | FH112: 3.7994 | FK112: 3.8257
AW113: 0.141 | AX113: 1.8634 | AY113: 1.8942 | AZ113: 1.9253 | BA113: 1.9566 | BB113: 1.9882 | BC113: 2.02 | BD113: 2.052 | BE113: 2.0843 | BF113: 2.1169 | BG113: 2.1497 | BH113: 2.1828 | BI113: 2.2117 | BJ113: 2.236 | BK113: 2.2604 | BL113: 2.2849 | BM113: 2.3095 | BN113: 2.3343 | BO113: 2.3591 | BP113: 2.384 | BQ113: 2.409 | BR113: 2.4341 | BS113: 2.4593 | BT113: 2.4846 | BU113: 2.51 | BV113: 2.5354 | BW113: 2.5609 | BX113: 2.5865 | BY113: 2.6122 | BZ113: 2.6379 | CA113: 2.6637 | CB113: 2.6896 | CC113: 2.7155 | CD113: 2.7415 | CE113: 2.7675 | CF113: 2.7935 | CG113: 2.8196 | CH113: 2.8457 | CI113: 2.8718 | CJ113: 2.8979 | CK113: 2.924 | CL113: 2.9502 | CM113: 2.9763 | CN113: 3.0024 | CO113: 3.0285 | CP113: 3.0545 | CQ113: 3.0806 | CR113: 3.1065 | CS113: 3.1324 | CT113: 3.1583 | CU113: 3.184 | CV113: 3.2097 | CW113: 3.2353 | CX113: 3.2608 | CY113: 3.2862 | CZ113: 3.3114 | DA113: 3.3365 | DB113: 3.3614 | DC113: 3.3862 | DD113: 3.4109 | DE113: 3.4353 | DF113: 3.4595 | DG113: 3.4836 | DH113: 3.5074 | DI113: 3.531 | DJ113: 3.5544 | DK113: 3.5776 | DL113: 3.6005 | DM113: 3.6231 | DN113: 3.6455 | DO113: 3.6676 | DP113: 3.6894 | DQ113: 3.7109 | DR113: 3.7322 | DS113: 3.7532 | DT113: 3.7739 | DU113: 3.7943 | DV113: 3.8144 | DW113: 3.8343 | DX113: 3.8538 | DY113: 3.8732 | DZ113: 3.8922 | EA113: 3.9111 | EB113: 3.9297 | EC113: 3.9481 | ED113: 3.9664 | EE113: 3.9844 | EF113: 4.0024 | EG113: 4.0202 | EH113: 4.038 | EI113: 4.0558 | EJ113: 4.0735 | EK113: 4.0913 | EL113: 4.1092 | EM113: 4.1272 | EN113: 4.1453 | EO113: 4.1637 | EP113: 4.1824 | EQ113: 4.2014 | ER113: 4.2207 | ES113: 4.2405 | ET113: 4.2607 | EU113: 4.2815 | EV113: 4.3029 | EW113: 4.3248 | EX113: 4.3475 | EY113: 4.3709 | EZ113: 4.395 | FA113: 4.4199 | FB113: 4.4457 | FC113: 4.4723 | FE113: 3.8382 | FF113: 3.8257 | FG113: 3.8129 | FH113: 3.7994 | FK113: 3.8257
AW114: 0.151 | AX114: 1.8541 | AY114: 1.8848 | AZ114: 1.9157 | BA114: 1.9469 | BB114: 1.9783 | BC114: 2.0099 | BD114: 2.0418 | BE114: 2.074 | BF114: 2.1064 | BG114: 2.139 | BH114: 2.1719 | BI114: 2.205 | BJ114: 2.236 | BK114: 2.2604 | BL114: 2.2849 | BM114: 2.3095 | BN114: 2.3343 | BO114: 2.3591 | BP114: 2.384 | BQ114: 2.409 | BR114: 2.4341 | BS114: 2.4593 | BT114: 2.4846 | BU114: 2.51 | BV114: 2.5354 | BW114: 2.5609 | BX114: 2.5865 | BY114: 2.6122 | BZ114: 2.6379 | CA114: 2.6637 | CB114: 2.6896 | CC114: 2.7155 | CD114: 2.7415 | CE114: 2.7675 | CF114: 2.7935 | CG114: 2.8196 | CH114: 2.8457 | CI114: 2.8718 | CJ114: 2.8979 | CK114: 2.924 | CL114: 2.9502 | CM114: 2.9763 | CN114: 3.0024 | CO114: 3.0285 | CP114: 3.0545 | CQ114: 3.0806 | CR114: 3.1065 | CS114: 3.1324 | CT114: 3.1583 | CU114: 3.184 | CV114: 3.2097 | CW114: 3.2353 | CX114: 3.2608 | CY114: 3.2862 | CZ114: 3.3114 | DA114: 3.3365 | DB114: 3.3614 | DC114: 3.3862 | DD114: 3.4109 | DE114: 3.4353 | DF114: 3.4595 | DG114: 3.4836 | DH114: 3.5074 | DI114: 3.531 | DJ114: 3.5544 | DK114: 3.5776 | DL114: 3.6005 | DM114: 3.6231 | DN114: 3.6455 | DO114: 3.6676 | DP114: 3.6894 | DQ114: 3.7109 | DR114: 3.7322 | DS114: 3.7532 | DT114: 3.7739 | DU114: 3.7943 | DV114: 3.8144 | DW114: 3.8343 | DX114: 3.8538 | DY114: 3.8732 | DZ114: 3.8922 | EA114: 3.9111 | EB114: 3.9297 | EC114: 3.9481 | ED114: 3.9664 | EE114: 3.9844 | EF114: 4.0024 | EG114: 4.0202 | EH114: 4.038 | EI114: 4.0558 | EJ114: 4.0735 | EK114: 4.0913 | EL114: 4.1092 | EM114: 4.1272 | EN114: 4.1453 | EO114: 4.1637 | EP114: 4.1824 | EQ114: 4.2014 | ER114: 4.2207 | ES114: 4.2405 | ET114: 4.2607 | EU114: 4.2815 | EV114: 4.3029 | EW114: 4.3248 | EX114: 4.3475 | EY114: 4.3709 | EZ114: 4.395 | FA114: 4.4199 | FB114: 4.4457 | FC114: 4.4723 | FE114: 3.8382 | FF114: 3.8257 | FG114: 3.8129 | FH114: 3.7994 | FK114: 3.8257
AW115: 0.162 | AX115: 1.845 | AY115: 1.8756 | AZ115: 1.9063 | BA115: 1.9373 | BB115: 1.9686 | BC115: 2.0001 | BD115: 2.0318 | BE115: 2.0638 | BF115: 2.0961 | BG115: 2.1285 | BH115: 2.1613 | BI115: 2.1942 | BJ115: 2.2274 | BK115: 2.2604 | BL115: 2.2849 | BM115: 2.3095 | BN115: 2.3343 | BO115: 2.3591 | BP115: 2.384 | BQ115: 2.409 | BR115: 2.4341 | BS115: 2.4593 | BT115: 2.4846 | BU115: 2.51 | BV115: 2.5354 | BW115: 2.5609 | BX115: 2.5865 | BY115: 2.6122 | BZ115: 2.6379 | CA115: 2.6637 | CB115: 2.6896 | CC115: 2.7155 | CD115: 2.7415 | CE115: 2.7675 | CF115: 2.7935 | CG115: 2.8196 | CH115: 2.8457 | CI115: 2.8718 | CJ115: 2.8979 | CK115: 2.924 | CL115: 2.9502 | CM115: 2.9763 | CN115: 3.0024 | CO115: 3.0285 | CP115: 3.0545 | CQ115: 3.0806 | CR115: 3.1065 | CS115: 3.1324 | CT115: 3.1583 | CU115: 3.184 | CV115: 3.2097 | CW115: 3.2353 | CX115: 3.2608 | CY115: 3.2862 | CZ115: 3.3114 | DA115: 3.3365 | DB115: 3.3614 | DC115: 3.3862 | DD115: 3.4109 | DE115: 3.4353 | DF115: 3.4595 | DG115: 3.4836 | DH115: 3.5074 | DI115: 3.531 | DJ115: 3.5544 | DK115: 3.5776 | DL115: 3.6005 | DM115: 3.6231 | DN115: 3.6455 | DO115: 3.6676 | DP115: 3.6894 | DQ115: 3.7109 | DR115: 3.7322 | DS115: 3.7532 | DT115: 3.7739 | DU115: 3.7943 | DV115: 3.8144 | DW115: 3.8343 | DX115: 3.8538 | DY115: 3.8732 | DZ115: 3.8922 | EA115: 3.9111 | EB115: 3.9297 | EC115: 3.9481 | ED115: 3.9664 | EE115: 3.9844 | EF115: 4.0024 | EG115: 4.0202 | EH115: 4.038 | EI115: 4.0558 | EJ115: 4.0735 | EK115: 4.0913 | EL115: 4.1092 | EM115: 4.1272 | EN115: 4.1453 | EO115: 4.1637 | EP115: 4.1824 | EQ115: 4.2014 | ER115: 4.2207 | ES115: 4.2405 | ET115: 4.2607 | EU115: 4.2815 | EV115: 4.3029 | EW115: 4.3248 | EX115: 4.3475 | EY115: 4.3709 | EZ115: 4.395 | FA115: 4.4199 | FB115: 4.4457 | FC115: 4.4723 | FE115: 3.8382 | FF115: 3.8257 | FG115: 3.8129 | FH115: 3.7994 | FK115: 3.8257
AW116: 0.174 | AX116: 1.8361 | AY116: 1.8665 | AZ116: 1.8971 | BA116: 1.928 | BB116: 1.9591 | BC116: 1.9904 | BD116: 2.022 | BE116: 2.0538 | BF116: 2.0859 | BG116: 2.1182 | BH116: 2.1508 | BI116: 2.1836 | BJ116: 2.2167 | BK116: 2.2499 | BL116: 2.2835 | BM116: 2.3095 | BN116: 2.3343 | BO116: 2.3591 | BP116: 2.384 | BQ116: 2.409 | BR116: 2.4341 | BS116: 2.4593 | BT116: 2.4846 | BU116: 2.51 | BV116: 2.5354 | BW116: 2.5609 | BX116: 2.5865 | BY116: 2.6122 | BZ116: 2.6379 | CA116: 2.6637 | CB116: 2.6896 | CC116: 2.7155 | CD116: 2.7415 | CE116: 2.7675 | CF116: 2.7935 | CG116: 2.8196 | CH116: 2.8457 | CI116: 2.8718 | CJ116: 2.8979 | CK116: 2.924 | CL116: 2.9502 | CM116: 2.9763 | CN116: 3.0024 | CO116: 3.0285 | CP116: 3.0545 | CQ116: 3.0806 | CR116: 3.1065 | CS116: 3.1324 | CT116: 3.1583 | CU116: 3.184 | CV116: 3.2097 | CW116: 3.2353 | CX116: 3.2608 | CY116: 3.2862 | CZ116: 3.3114 | DA116: 3.3365 | DB116: 3.3614 | DC116: 3.3862 | DD116: 3.4109 | DE116: 3.4353 | DF116: 3.4595 | DG116: 3.4836 | DH116: 3.5074 | DI116: 3.531 | DJ116: 3.5544 | DK116: 3.5776 | DL116: 3.6005 | DM116: 3.6231 | DN116: 3.6455 | DO116: 3.6676 | DP116: 3.6894 | DQ116: 3.7109 | DR116: 3.7322 | DS116: 3.7532 | DT116: 3.7739 | DU116: 3.7943 | DV116: 3.8144 | DW116: 3.8343 | DX116: 3.8538 | DY116: 3.8732 | DZ116: 3.8922 | EA116: 3.9111 | EB116: 3.9297 | EC116: 3.9481 | ED116: 3.9664 | EE116: 3.9844 | EF116: 4.0024 | EG116: 4.0202 | EH116: 4.038 | EI116: 4.0558 | EJ116: 4.0735 | EK116: 4.0913 | EL116: 4.1092 | EM116: 4.1272 | EN116: 4.1453 | EO116: 4.1637 | EP116: 4.1824 | EQ116: 4.2014 | ER116: 4.2207 | ES116: 4.2405 | ET116: 4.2607 | EU116: 4.2815 | EV116: 4.3029 | EW116: 4.3248 | EX116: 4.3475 | EY116: 4.3709 | EZ116: 4.395 | FA116: 4.4199 | FB116: 4.4457 | FC116: 4.4723 | FE116: 3.8382 | FF116: 3.8257 | FG116: 3.8129 | FH116: 3.7994 | FK116: 3.8257
AW117: 0.186 | AX117: 1.8274 | AY117: 1.8576 | AZ117: 1.8881 | BA117: 1.9188 | BB117: 1.9497 | BC117: 1.9809 | BD117: 2.0124 | BE117: 2.044 | BF117: 2.076 | BG117: 2.1081 | BH117: 2.1405 | BI117: 2.1732 | BJ117: 2.2061 | BK117: 2.2392 | BL117: 2.2726 | BM117: 2.3062 | BN117: 2.3343 | BO117: 2.3591 | BP117: 2.384 | BQ117: 2.409 | BR117: 2.4341 | BS117: 2.4593 | BT117: 2.4846 | BU117: 2.51 | BV117: 2.5354 | BW117: 2.5609 | BX117: 2.5865 | BY117: 2.6122 | BZ117: 2.6379 | CA117: 2.6637 | CB117: 2.6896 | CC117: 2.7155 | CD117: 2.7415 | CE117: 2.7675 | CF117: 2.7935 | CG117: 2.8196 | CH117: 2.8457 | CI117: 2.8718 | CJ117: 2.8979 | CK117: 2.924 | CL117: 2.9502 | CM117: 2.9763 | CN117: 3.0024 | CO117: 3.0285 | CP117: 3.0545 | CQ117: 3.0806 | CR117: 3.1065 | CS117: 3.1324 | CT117: 3.1583 | CU117: 3.184 | CV117: 3.2097 | CW117: 3.2353 | CX117: 3.2608 | CY117: 3.2862 | CZ117: 3.3114 | DA117: 3.3365 | DB117: 3.3614 | DC117: 3.3862 | DD117: 3.4109 | DE117: 3.4353 | DF117: 3.4595 | DG117: 3.4836 | DH117: 3.5074 | DI117: 3.531 | DJ117: 3.5544 | DK117: 3.5776 | DL117: 3.6005 | DM117: 3.6231 | DN117: 3.6455 | DO117: 3.6676 | DP117: 3.6894 | DQ117: 3.7109 | DR117: 3.7322 | DS117: 3.7532 | DT117: 3.7739 | DU117: 3.7943 | DV117: 3.8144 | DW117: 3.8343 | DX117: 3.8538 | DY117: 3.8732 | DZ117: 3.8922 | EA117: 3.9111 | EB117: 3.9297 | EC117: 3.9481 | ED117: 3.9664 | EE117: 3.9844 | EF117: 4.0024 | EG117: 4.0202 | EH117: 4.038 | EI117: 4.0558 | EJ117: 4.0735 | EK117: 4.0913 | EL117: 4.1092 | EM117: 4.1272 | EN117: 4.1453 | EO117: 4.1637 | EP117: 4.1824 | EQ117: 4.2014 | ER117: 4.2207 | ES117: 4.2405 | ET117: 4.2607 | EU117: 4.2815 | EV117: 4.3029 | EW117: 4.3248 | EX117: 4.3475 | EY117: 4.3709 | EZ117: 4.395 | FA117: 4.4199 | FB117: 4.4457 | FC117: 4.4723 | FE117: 3.8382 | FF117: 3.8257 | FG117: 3.8129 | FH117: 3.7994 | FK117: 3.8257
AW118: 0.2 | AX118: 1.8188 | AY118: 1.8488 | AZ118: 1.8792 | BA118: 1.9097 | BB118: 1.9405 | BC118: 1.9716 | BD118: 2.0029 | BE118: 2.0344 | BF118: 2.0662 | BG118: 2.0982 | BH118: 2.1305 | BI118: 2.163 | BJ118: 2.1957 | BK118: 2.2287 | BL118: 2.2619 | BM118: 2.2953 | BN118: 2.329 | BO118: 2.3591 | BP118: 2.384 | BQ118: 2.409 | BR118: 2.4341 | BS118: 2.4593 | BT118: 2.4846 | BU118: 2.51 | BV118: 2.5354 | BW118: 2.5609 | BX118: 2.5865 | BY118: 2.6122 | BZ118: 2.6379 | CA118: 2.6637 | CB118: 2.6896 | CC118: 2.7155 | CD118: 2.7415 | CE118: 2.7675 | CF118: 2.7935 | CG118: 2.8196 | CH118: 2.8457 | CI118: 2.8718 | CJ118: 2.8979 | CK118: 2.924 | CL118: 2.9502 | CM118: 2.9763 | CN118: 3.0024 | CO118: 3.0285 | CP118: 3.0545 | CQ118: 3.0806 | CR118: 3.1065 | CS118: 3.1324 | CT118: 3.1583 | CU118: 3.184 | CV118: 3.2097 | CW118: 3.2353 | CX118: 3.2608 | CY118: 3.2862 | CZ118: 3.3114 | DA118: 3.3365 | DB118: 3.3614 | DC118: 3.3862 | DD118: 3.4109 | DE118: 3.4353 | DF118: 3.4595 | DG118: 3.4836 | DH118: 3.5074 | DI118: 3.531 | DJ118: 3.5544 | DK118: 3.5776 | DL118: 3.6005 | DM118: 3.6231 | DN118: 3.6455 | DO118: 3.6676 | DP118: 3.6894 | DQ118: 3.7109 | DR118: 3.7322 | DS118: 3.7532 | DT118: 3.7739 | DU118: 3.7943 | DV118: 3.8144 | DW118: 3.8343 | DX118: 3.8538 | DY118: 3.8732 | DZ118: 3.8922 | EA118: 3.9111 | EB118: 3.9297 | EC118: 3.9481 | ED118: 3.9664 | EE118: 3.9844 | EF118: 4.0024 | EG118: 4.0202 | EH118: 4.038 | EI118: 4.0558 | EJ118: 4.0735 | EK118: 4.0913 | EL118: 4.1092 | EM118: 4.1272 | EN118: 4.1453 | EO118: 4.1637 | EP118: 4.1824 | EQ118: 4.2014 | ER118: 4.2207 | ES118: 4.2405 | ET118: 4.2607 | EU118: 4.2815 | EV118: 4.3029 | EW118: 4.3248 | EX118: 4.3475 | EY118: 4.3709 | EZ118: 4.395 | FA118: 4.4199 | FB118: 4.4457 | FC118: 4.4723 | FE118: 3.8382 | FF118: 3.8257 | FG118: 3.8129 | FH118: 3.7994 | FK118: 3.8257
AW119: 0.214 | AX119: 1.8103 | AY119: 1.8403 | AZ119: 1.8704 | BA119: 1.9009 | BB119: 1.9315 | BC119: 1.9624 | BD119: 1.9936 | BE119: 2.025 | BF119: 2.0566 | BG119: 2.0885 | BH119: 2.1206 | BI119: 2.1529 | BJ119: 2.1855 | BK119: 2.2183 | BL119: 2.2514 | BM119: 2.2847 | BN119: 2.3182 | BO119: 2.3519 | BP119: 2.384 | BQ119: 2.409 | BR119: 2.4341 | BS119: 2.4593 | BT119: 2.4846 | BU119: 2.51 | BV119: 2.5354 | BW119: 2.5609 | BX119: 2.5865 | BY119: 2.6122 | BZ119: 2.6379 | CA119: 2.6637 | CB119: 2.6896 | CC119: 2.7155 | CD119: 2.7415 | CE119: 2.7675 | CF119: 2.7935 | CG119: 2.8196 | CH119: 2.8457 | CI119: 2.8718 | CJ119: 2.8979 | CK119: 2.924 | CL119: 2.9502 | CM119: 2.9763 | CN119: 3.0024 | CO119: 3.0285 | CP119: 3.0545 | CQ119: 3.0806 | CR119: 3.1065 | CS119: 3.1324 | CT119: 3.1583 | CU119: 3.184 | CV119: 3.2097 | CW119: 3.2353 | CX119: 3.2608 | CY119: 3.2862 | CZ119: 3.3114 | DA119: 3.3365 | DB119: 3.3614 | DC119: 3.3862 | DD119: 3.4109 | DE119: 3.4353 | DF119: 3.4595 | DG119: 3.4836 | DH119: 3.5074 | DI119: 3.531 | DJ119: 3.5544 | DK119: 3.5776 | DL119: 3.6005 | DM119: 3.6231 | DN119: 3.6455 | DO119: 3.6676 | DP119: 3.6894 | DQ119: 3.7109 | DR119: 3.7322 | DS119: 3.7532 | DT119: 3.7739 | DU119: 3.7943 | DV119: 3.8144 | DW119: 3.8343 | DX119: 3.8538 | DY119: 3.8732 | DZ119: 3.8922 | EA119: 3.9111 | EB119: 3.9297 | EC119: 3.9481 | ED119: 3.9664 | EE119: 3.9844 | EF119: 4.0024 | EG119: 4.0202 | EH119: 4.038 | EI119: 4.0558 | EJ119: 4.0735 | EK119: 4.0913 | EL119: 4.1092 | EM119: 4.1272 | EN119: 4.1453 | EO119: 4.1637 | EP119: 4.1824 | EQ119: 4.2014 | ER119: 4.2207 | ES119: 4.2405 | ET119: 4.2607 | EU119: 4.2815 | EV119: 4.3029 | EW119: 4.3248 | EX119: 4.3475 | EY119: 4.3709 | EZ119: 4.395 | FA119: 4.4199 | FB119: 4.4457 | FC119: 4.4723 | FE119: 3.8382 | FF119: 3.8257 | FG119: 3.8129 | FH119: 3.7994 | FK119: 3.8257
AW120: 0.229 | AX120: 1.802 | AY120: 1.8318 | AZ120: 1.8619 | BA120: 1.8922 | BB120: 1.9227 | BC120: 1.9535 | BD120: 1.9845 | BE120: 2.0157 | BF120: 2.0472 | BG120: 2.0789 | BH120: 2.1109 | BI120: 2.1431 | BJ120: 2.1755 | BK120: 2.2082 | BL120: 2.2411 | BM120: 2.2742 | BN120: 2.3075 | BO120: 2.3411 | BP120: 2.375 | BQ120: 2.409 | BR120: 2.4341 | BS120: 2.4593 | BT120: 2.4846 | BU120: 2.51 | BV120: 2.5354 | BW120: 2.5609 | BX120: 2.5865 | BY120: 2.6122 | BZ120: 2.6379 | CA120: 2.6637 | CB120: 2.6896 | CC120: 2.7155 | CD120: 2.7415 | CE120: 2.7675 | CF120: 2.7935 | CG120: 2.8196 | CH120: 2.8457 | CI120: 2.8718 | CJ120: 2.8979 | CK120: 2.924 | CL120: 2.9502 | CM120: 2.9763 | CN120: 3.0024 | CO120: 3.0285 | CP120: 3.0545 | CQ120: 3.0806 | CR120: 3.1065 | CS120: 3.1324 | CT120: 3.1583 | CU120: 3.184 | CV120: 3.2097 | CW120: 3.2353 | CX120: 3.2608 | CY120: 3.2862 | CZ120: 3.3114 | DA120: 3.3365 | DB120: 3.3614 | DC120: 3.3862 | DD120: 3.4109 | DE120: 3.4353 | DF120: 3.4595 | DG120: 3.4836 | DH120: 3.5074 | DI120: 3.531 | DJ120: 3.5544 | DK120: 3.5776 | DL120: 3.6005 | DM120: 3.6231 | DN120: 3.6455 | DO120: 3.6676 | DP120: 3.6894 | DQ120: 3.7109 | DR120: 3.7322 | DS120: 3.7532 | DT120: 3.7739 | DU120: 3.7943 | DV120: 3.8144 | DW120: 3.8343 | DX120: 3.8538 | DY120: 3.8732 | DZ120: 3.8922 | EA120: 3.9111 | EB120: 3.9297 | EC120: 3.9481 | ED120: 3.9664 | EE120: 3.9844 | EF120: 4.0024 | EG120: 4.0202 | EH120: 4.038 | EI120: 4.0558 | EJ120: 4.0735 | EK120: 4.0913 | EL120: 4.1092 | EM120: 4.1272 | EN120: 4.1453 | EO120: 4.1637 | EP120: 4.1824 | EQ120: 4.2014 | ER120: 4.2207 | ES120: 4.2405 | ET120: 4.2607 | EU120: 4.2815 | EV120: 4.3029 | EW120: 4.3248 | EX120: 4.3475 | EY120: 4.3709 | EZ120: 4.395 | FA120: 4.4199 | FB120: 4.4457 | FC120: 4.4723 | FE120: 3.8382 | FF120: 3.8257 | FG120: 3.8129 | FH120: 3.7994 | FK120: 3.8257
AW121: 0.245 | AX121: 1.7939 | AY121: 1.8236 | AZ121: 1.8535 | BA121: 1.8836 | BB121: 1.914 | BC121: 1.9446 | BD121: 1.9755 | BE121: 2.0066 | BF121: 2.0379 | BG121: 2.0695 | BH121: 2.1013 | BI121: 2.1334 | BJ121: 2.1657 | BK121: 2.1982 | BL121: 2.2309 | BM121: 2.2639 | BN121: 2.2971 | BO121: 2.3306 | BP121: 2.3642 | BQ121: 2.3981 | BR121: 2.4322 | BS121: 2.4593 | BT121: 2.4846 | BU121: 2.51 | BV121: 2.5354 | BW121: 2.5609 | BX121: 2.5865 | BY121: 2.6122 | BZ121: 2.6379 | CA121: 2.6637 | CB121: 2.6896 | CC121: 2.7155 | CD121: 2.7415 | CE121: 2.7675 | CF121: 2.7935 | CG121: 2.8196 | CH121: 2.8457 | CI121: 2.8718 | CJ121: 2.8979 | CK121: 2.924 | CL121: 2.9502 | CM121: 2.9763 | CN121: 3.0024 | CO121: 3.0285 | CP121: 3.0545 | CQ121: 3.0806 | CR121: 3.1065 | CS121: 3.1324 | CT121: 3.1583 | CU121: 3.184 | CV121: 3.2097 | CW121: 3.2353 | CX121: 3.2608 | CY121: 3.2862 | CZ121: 3.3114 | DA121: 3.3365 | DB121: 3.3614 | DC121: 3.3862 | DD121: 3.4109 | DE121: 3.4353 | DF121: 3.4595 | DG121: 3.4836 | DH121: 3.5074 | DI121: 3.531 | DJ121: 3.5544 | DK121: 3.5776 | DL121: 3.6005 | DM121: 3.6231 | DN121: 3.6455 | DO121: 3.6676 | DP121: 3.6894 | DQ121: 3.7109 | DR121: 3.7322 | DS121: 3.7532 | DT121: 3.7739 | DU121: 3.7943 | DV121: 3.8144 | DW121: 3.8343 | DX121: 3.8538 | DY121: 3.8732 | DZ121: 3.8922 | EA121: 3.9111 | EB121: 3.9297 | EC121: 3.9481 | ED121: 3.9664 | EE121: 3.9844 | EF121: 4.0024 | EG121: 4.0202 | EH121: 4.038 | EI121: 4.0558 | EJ121: 4.0735 | EK121: 4.0913 | EL121: 4.1092 | EM121: 4.1272 | EN121: 4.1453 | EO121: 4.1637 | EP121: 4.1824 | EQ121: 4.2014 | ER121: 4.2207 | ES121: 4.2405 | ET121: 4.2607 | EU121: 4.2815 | EV121: 4.3029 | EW121: 4.3248 | EX121: 4.3475 | EY121: 4.3709 | EZ121: 4.395 | FA121: 4.4199 | FB121: 4.4457 | FC121: 4.4723 | FE121: 3.8382 | FF121: 3.8257 | FG121: 3.8129 | FH121: 3.7994 | FK121: 3.8257
AW122: 0.263 | AX122: 1.7859 | AY122: 1.8154 | AZ122: 1.8452 | BA122: 1.8752 | BB122: 1.9055 | BC122: 1.936 | BD122: 1.9667 | BE122: 1.9977 | BF122: 2.0289 | BG122: 2.0603 | BH122: 2.092 | BI122: 2.1239 | BJ122: 2.156 | BK122: 2.1884 | BL122: 2.221 | BM122: 2.2538 | BN122: 2.2869 | BO122: 2.3202 | BP122: 2.3537 | BQ122: 2.3874 | BR122: 2.4214 | BS122: 2.4556 | BT122: 2.4846 | BU122: 2.51 | BV122: 2.5354 | BW122: 2.5609 | BX122: 2.5865 | BY122: 2.6122 | BZ122: 2.6379 | CA122: 2.6637 | CB122: 2.6896 | CC122: 2.7155 | CD122: 2.7415 | CE122: 2.7675 | CF122: 2.7935 | CG122: 2.8196 | CH122: 2.8457 | CI122: 2.8718 | CJ122: 2.8979 | CK122: 2.924 | CL122: 2.9502 | CM122: 2.9763 | CN122: 3.0024 | CO122: 3.0285 | CP122: 3.0545 | CQ122: 3.0806 | CR122: 3.1065 | CS122: 3.1324 | CT122: 3.1583 | CU122: 3.184 | CV122: 3.2097 | CW122: 3.2353 | CX122: 3.2608 | CY122: 3.2862 | CZ122: 3.3114 | DA122: 3.3365 | DB122: 3.3614 | DC122: 3.3862 | DD122: 3.4109 | DE122: 3.4353 | DF122: 3.4595 | DG122: 3.4836 | DH122: 3.5074 | DI122: 3.531 | DJ122: 3.5544 | DK122: 3.5776 | DL122: 3.6005 | DM122: 3.6231 | DN122: 3.6455 | DO122: 3.6676 | DP122: 3.6894 | DQ122: 3.7109 | DR122: 3.7322 | DS122: 3.7532 | DT122: 3.7739 | DU122: 3.7943 | DV122: 3.8144 | DW122: 3.8343 | DX122: 3.8538 | DY122: 3.8732 | DZ122: 3.8922 | EA122: 3.9111 | EB122: 3.9297 | EC122: 3.9481 | ED122: 3.9664 | EE122: 3.9844 | EF122: 4.0024 | EG122: 4.0202 | EH122: 4.038 | EI122: 4.0558 | EJ122: 4.0735 | EK122: 4.0913 | EL122: 4.1092 | EM122: 4.1272 | EN122: 4.1453 | EO122: 4.1637 | EP122: 4.1824 | EQ122: 4.2014 | ER122: 4.2207 | ES122: 4.2405 | ET122: 4.2607 | EU122: 4.2815 | EV122: 4.3029 | EW122: 4.3248 | EX122: 4.3475 | EY122: 4.3709 | EZ122: 4.395 | FA122: 4.4199 | FB122: 4.4457 | FC122: 4.4723 | FE122: 3.8382 | FF122: 3.8257 | FG122: 3.8129 | FH122: 3.7994 | FK122: 3.8257
AW123: 0.282 | AX123: 1.778 | AY123: 1.8074 | AZ123: 1.8371 | BA123: 1.867 | BB123: 1.8971 | BC123: 1.9274 | BD123: 1.958 | BE123: 1.9889 | BF123: 2.0199 | BG123: 2.0512 | BH123: 2.0828 | BI123: 2.1145 | BJ123: 2.1465 | BK123: 2.1788 | BL123: 2.2112 | BM123: 2.2439 | BN123: 2.2768 | BO123: 2.31 | BP123: 2.3433 | BQ123: 2.3769 | BR123: 2.4107 | BS123: 2.4448 | BT123: 2.479 | BU123: 2.51 | BV123: 2.5354 | BW123: 2.5609 | BX123: 2.5865 | BY123: 2.6122 | BZ123: 2.6379 | CA123: 2.6637 | CB123: 2.6896 | CC123: 2.7155 | CD123: 2.7415 | CE123: 2.7675 | CF123: 2.7935 | CG123: 2.8196 | CH123: 2.8457 | CI123: 2.8718 | CJ123: 2.8979 | CK123: 2.924 | CL123: 2.9502 | CM123: 2.9763 | CN123: 3.0024 | CO123: 3.0285 | CP123: 3.0545 | CQ123: 3.0806 | CR123: 3.1065 | CS123: 3.1324 | CT123: 3.1583 | CU123: 3.184 | CV123: 3.2097 | CW123: 3.2353 | CX123: 3.2608 | CY123: 3.2862 | CZ123: 3.3114 | DA123: 3.3365 | DB123: 3.3614 | DC123: 3.3862 | DD123: 3.4109 | DE123: 3.4353 | DF123: 3.4595 | DG123: 3.4836 | DH123: 3.5074 | DI123: 3.531 | DJ123: 3.5544 | DK123: 3.5776 | DL123: 3.6005 | DM123: 3.6231 | DN123: 3.6455 | DO123: 3.6676 | DP123: 3.6894 | DQ123: 3.7109 | DR123: 3.7322 | DS123: 3.7532 | DT123: 3.7739 | DU123: 3.7943 | DV123: 3.8144 | DW123: 3.8343 | DX123: 3.8538 | DY123: 3.8732 | DZ123: 3.8922 | EA123: 3.9111 | EB123: 3.9297 | EC123: 3.9481 | ED123: 3.9664 | EE123: 3.9844 | EF123: 4.0024 | EG123: 4.0202 | EH123: 4.038 | EI123: 4.0558 | EJ123: 4.0735 | EK123: 4.0913 | EL123: 4.1092 | EM123: 4.1272 | EN123: 4.1453 | EO123: 4.1637 | EP123: 4.1824 | EQ123: 4.2014 | ER123: 4.2207 | ES123: 4.2405 | ET123: 4.2607 | EU123: 4.2815 | EV123: 4.3029 | EW123: 4.3248 | EX123: 4.3475 | EY123: 4.3709 | EZ123: 4.395 | FA123: 4.4199 | FB123: 4.4457 | FC123: 4.4723 | FE123: 3.8382 | FF123: 3.8257 | FG123: 3.8129 | FH123: 3.7994 | FK123: 3.8257
AW124: 0.302 | AX124: 1.7703 | AY124: 1.7996 | AZ124: 1.8291 | BA124: 1.8589 | BB124: 1.8889 | BC124: 1.9191 | BD124: 1.9495 | BE124: 1.9802 | BF124: 2.0112 | BG124: 2.0423 | BH124: 2.0737 | BI124: 2.1054 | BJ124: 2.1372 | BK124: 2.1693 | BL124: 2.2016 | BM124: 2.2342 | BN124: 2.2669 | BO124: 2.2999 | BP124: 2.3332 | BQ124: 2.3666 | BR124: 2.4003 | BS124: 2.4341 | BT124: 2.4682 | BU124: 2.5026 | BV124: 2.5354 | BW124: 2.5609 | BX124: 2.5865 | BY124: 2.6122 | BZ124: 2.6379 | CA124: 2.6637 | CB124: 2.6896 | CC124: 2.7155 | CD124: 2.7415 | CE124: 2.7675 | CF124: 2.7935 | CG124: 2.8196 | CH124: 2.8457 | CI124: 2.8718 | CJ124: 2.8979 | CK124: 2.924 | CL124: 2.9502 | CM124: 2.9763 | CN124: 3.0024 | CO124: 3.0285 | CP124: 3.0545 | CQ124: 3.0806 | CR124: 3.1065 | CS124: 3.1324 | CT124: 3.1583 | CU124: 3.184 | CV124: 3.2097 | CW124: 3.2353 | CX124: 3.2608 | CY124: 3.2862 | CZ124: 3.3114 | DA124: 3.3365 | DB124: 3.3614 | DC124: 3.3862 | DD124: 3.4109 | DE124: 3.4353 | DF124: 3.4595 | DG124: 3.4836 | DH124: 3.5074 | DI124: 3.531 | DJ124: 3.5544 | DK124: 3.5776 | DL124: 3.6005 | DM124: 3.6231 | DN124: 3.6455 | DO124: 3.6676 | DP124: 3.6894 | DQ124: 3.7109 | DR124: 3.7322 | DS124: 3.7532 | DT124: 3.7739 | DU124: 3.7943 | DV124: 3.8144 | DW124: 3.8343 | DX124: 3.8538 | DY124: 3.8732 | DZ124: 3.8922 | EA124: 3.9111 | EB124: 3.9297 | EC124: 3.9481 | ED124: 3.9664 | EE124: 3.9844 | EF124: 4.0024 | EG124: 4.0202 | EH124: 4.038 | EI124: 4.0558 | EJ124: 4.0735 | EK124: 4.0913 | EL124: 4.1092 | EM124: 4.1272 | EN124: 4.1453 | EO124: 4.1637 | EP124: 4.1824 | EQ124: 4.2014 | ER124: 4.2207 | ES124: 4.2405 | ET124: 4.2607 | EU124: 4.2815 | EV124: 4.3029 | EW124: 4.3248 | EX124: 4.3475 | EY124: 4.3709 | EZ124: 4.395 | FA124: 4.4199 | FB124: 4.4457 | FC124: 4.4723 | FE124: 3.8382 | FF124: 3.8257 | FG124: 3.8129 | FH124: 3.7994 | FK124: 3.8257
AW125: 0.324 | AX125: 1.7627 | AY125: 1.7919 | AZ125: 1.8213 | BA125: 1.8509 | BB125: 1.8808 | BC125: 1.9109 | BD125: 1.9412 | BE125: 1.9718 | BF125: 2.0026 | BG125: 2.0336 | BH125: 2.0648 | BI125: 2.0963 | BJ125: 2.1281 | BK125: 2.16 | BL125: 2.1922 | BM125: 2.2246 | BN125: 2.2572 | BO125: 2.2901 | BP125: 2.3232 | BQ125: 2.3565 | BR125: 2.39 | BS125: 2.4237 | BT125: 2.4577 | BU125: 2.4918 | BV125: 2.5262 | BW125: 2.5608 | BX125: 2.5865 | BY125: 2.6122 | BZ125: 2.6379 | CA125: 2.6637 | CB125: 2.6896 | CC125: 2.7155 | CD125: 2.7415 | CE125: 2.7675 | CF125: 2.7935 | CG125: 2.8196 | CH125: 2.8457 | CI125: 2.8718 | CJ125: 2.8979 | CK125: 2.924 | CL125: 2.9502 | CM125: 2.9763 | CN125: 3.0024 | CO125: 3.0285 | CP125: 3.0545 | CQ125: 3.0806 | CR125: 3.1065 | CS125: 3.1324 | CT125: 3.1583 | CU125: 3.184 | CV125: 3.2097 | CW125: 3.2353 | CX125: 3.2608 | CY125: 3.2862 | CZ125: 3.3114 | DA125: 3.3365 | DB125: 3.3614 | DC125: 3.3862 | DD125: 3.4109 | DE125: 3.4353 | DF125: 3.4595 | DG125: 3.4836 | DH125: 3.5074 | DI125: 3.531 | DJ125: 3.5544 | DK125: 3.5776 | DL125: 3.6005 | DM125: 3.6231 | DN125: 3.6455 | DO125: 3.6676 | DP125: 3.6894 | DQ125: 3.7109 | DR125: 3.7322 | DS125: 3.7532 | DT125: 3.7739 | DU125: 3.7943 | DV125: 3.8144 | DW125: 3.8343 | DX125: 3.8538 | DY125: 3.8732 | DZ125: 3.8922 | EA125: 3.9111 | EB125: 3.9297 | EC125: 3.9481 | ED125: 3.9664 | EE125: 3.9844 | EF125: 4.0024 | EG125: 4.0202 | EH125: 4.038 | EI125: 4.0558 | EJ125: 4.0735 | EK125: 4.0913 | EL125: 4.1092 | EM125: 4.1272 | EN125: 4.1453 | EO125: 4.1637 | EP125: 4.1824 | EQ125: 4.2014 | ER125: 4.2207 | ES125: 4.2405 | ET125: 4.2607 | EU125: 4.2815 | EV125: 4.3029 | EW125: 4.3248 | EX125: 4.3475 | EY125: 4.3709 | EZ125: 4.395 | FA125: 4.4199 | FB125: 4.4457 | FC125: 4.4723 | FE125: 3.8382 | FF125: 3.8257 | FG125: 3.8129 | FH125: 3.7994 | FK125: 3.8257
AW126: 0.347 | AX126: 1.7553 | AY126: 1.7843 | AZ126: 1.8136 | BA126: 1.8431 | BB126: 1.8728 | BC126: 1.9028 | BD126: 1.933 | BE126: 1.9634 | BF126: 1.9941 | BG126: 2.025 | BH126: 2.0561 | BI126: 2.0875 | BJ126: 2.1191 | BK126: 2.1509 | BL126: 2.1829 | BM126: 2.2152 | BN126: 2.2477 | BO126: 2.2804 | BP126: 2.3133 | BQ126: 2.3465 | BR126: 2.3799 | BS126: 2.4135 | BT126: 2.4473 | BU126: 2.4813 | BV126: 2.5155 | BW126: 2.55 | BX126: 2.5846 | BY126: 2.6122 | BZ126: 2.6379 | CA126: 2.6637 | CB126: 2.6896 | CC126: 2.7155 | CD126: 2.7415 | CE126: 2.7675 | CF126: 2.7935 | CG126: 2.8196 | CH126: 2.8457 | CI126: 2.8718 | CJ126: 2.8979 | CK126: 2.924 | CL126: 2.9502 | CM126: 2.9763 | CN126: 3.0024 | CO126: 3.0285 | CP126: 3.0545 | CQ126: 3.0806 | CR126: 3.1065 | CS126: 3.1324 | CT126: 3.1583 | CU126: 3.184 | CV126: 3.2097 | CW126: 3.2353 | CX126: 3.2608 | CY126: 3.2862 | CZ126: 3.3114 | DA126: 3.3365 | DB126: 3.3614 | DC126: 3.3862 | DD126: 3.4109 | DE126: 3.4353 | DF126: 3.4595 | DG126: 3.4836 | DH126: 3.5074 | DI126: 3.531 | DJ126: 3.5544 | DK126: 3.5776 | DL126: 3.6005 | DM126: 3.6231 | DN126: 3.6455 | DO126: 3.6676 | DP126: 3.6894 | DQ126: 3.7109 | DR126: 3.7322 | DS126: 3.7532 | DT126: 3.7739 | DU126: 3.7943 | DV126: 3.8144 | DW126: 3.8343 | DX126: 3.8538 | DY126: 3.8732 | DZ126: 3.8922 | EA126: 3.9111 | EB126: 3.9297 | EC126: 3.9481 | ED126: 3.9664 | EE126: 3.9844 | EF126: 4.0024 | EG126: 4.0202 | EH126: 4.038 | EI126: 4.0558 | EJ126: 4.0735 | EK126: 4.0913 | EL126: 4.1092 | EM126: 4.1272 | EN126: 4.1453 | EO126: 4.1637 | EP126: 4.1824 | EQ126: 4.2014 | ER126: 4.2207 | ES126: 4.2405 | ET126: 4.2607 | EU126: 4.2815 | EV126: 4.3029 | EW126: 4.3248 | EX126: 4.3475 | EY126: 4.3709 | EZ126: 4.395 | FA126: 4.4199 | FB126: 4.4457 | FC126: 4.4723 | FE126: 3.8382 | FF126: 3.8257 | FG126: 3.8129 | FH126: 3.7994 | FK126: 3.8257
AW127: 0.372 | AX127: 1.748 | AY127: 1.7769 | AZ127: 1.806 | BA127: 1.8354 | BB127: 1.865 | BC127: 1.8948 | BD127: 1.9249 | BE127: 1.9552 | BF127: 1.9858 | BG127: 2.0165 | BH127: 2.0475 | BI127: 2.0788 | BJ127: 2.1102 | BK127: 2.1419 | BL127: 2.1738 | BM127: 2.2059 | BN127: 2.2383 | BO127: 2.2709 | BP127: 2.3037 | BQ127: 2.3367 | BR127: 2.3699 | BS127: 2.4034 | BT127: 2.4371 | BU127: 2.4709 | BV127: 2.505 | BW127: 2.5393 | BX127: 2.5738 | BY127: 2.6085 | BZ127: 2.6379 | CA127: 2.6637 | CB127: 2.6896 | CC127: 2.7155 | CD127: 2.7415 | CE127: 2.7675 | CF127: 2.7935 | CG127: 2.8196 | CH127: 2.8457 | CI127: 2.8718 | CJ127: 2.8979 | CK127: 2.924 | CL127: 2.9502 | CM127: 2.9763 | CN127: 3.0024 | CO127: 3.0285 | CP127: 3.0545 | CQ127: 3.0806 | CR127: 3.1065 | CS127: 3.1324 | CT127: 3.1583 | CU127: 3.184 | CV127: 3.2097 | CW127: 3.2353 | CX127: 3.2608 | CY127: 3.2862 | CZ127: 3.3114 | DA127: 3.3365 | DB127: 3.3614 | DC127: 3.3862 | DD127: 3.4109 | DE127: 3.4353 | DF127: 3.4595 | DG127: 3.4836 | DH127: 3.5074 | DI127: 3.531 | DJ127: 3.5544 | DK127: 3.5776 | DL127: 3.6005 | DM127: 3.6231 | DN127: 3.6455 | DO127: 3.6676 | DP127: 3.6894 | DQ127: 3.7109 | DR127: 3.7322 | DS127: 3.7532 | DT127: 3.7739 | DU127: 3.7943 | DV127: 3.8144 | DW127: 3.8343 | DX127: 3.8538 | DY127: 3.8732 | DZ127: 3.8922 | EA127: 3.9111 | EB127: 3.9297 | EC127: 3.9481 | ED127: 3.9664 | EE127: 3.9844 | EF127: 4.0024 | EG127: 4.0202 | EH127: 4.038 | EI127: 4.0558 | EJ127: 4.0735 | EK127: 4.0913 | EL127: 4.1092 | EM127: 4.1272 | EN127: 4.1453 | EO127: 4.1637 | EP127: 4.1824 | EQ127: 4.2014 | ER127: 4.2207 | ES127: 4.2405 | ET127: 4.2607 | EU127: 4.2815 | EV127: 4.3029 | EW127: 4.3248 | EX127: 4.3475 | EY127: 4.3709 | EZ127: 4.395 | FA127: 4.4199 | FB127: 4.4457 | FC127: 4.4723 | FE127: 3.8382 | FF127: 3.8257 | FG127: 3.8129 | FH127: 3.7994 | FK127: 3.8257
AW128: 0.398 | AX128: 1.7408 | AY128: 1.7695 | AZ128: 1.7986 | BA128: 1.8278 | BB128: 1.8573 | BC128: 1.887 | BD128: 1.917 | BE128: 1.9472 | BF128: 1.9776 | BG128: 2.0082 | BH128: 2.0391 | BI128: 2.0702 | BJ128: 2.1015 | BK128: 2.1331 | BL128: 2.1649 | BM128: 2.1969 | BN128: 2.2291 | BO128: 2.2615 | BP128: 2.2942 | BQ128: 2.3271 | BR128: 2.3602 | BS128: 2.3935 | BT128: 2.427 | BU128: 2.4608 | BV128: 2.4947 | BW128: 2.5289 | BX128: 2.5632 | BY128: 2.5978 | BZ128: 2.6326 | CA128: 2.6637 | CB128: 2.6896 | CC128: 2.7155 | CD128: 2.7415 | CE128: 2.7675 | CF128: 2.7935 | CG128: 2.8196 | CH128: 2.8457 | CI128: 2.8718 | CJ128: 2.8979 | CK128: 2.924 | CL128: 2.9502 | CM128: 2.9763 | CN128: 3.0024 | CO128: 3.0285 | CP128: 3.0545 | CQ128: 3.0806 | CR128: 3.1065 | CS128: 3.1324 | CT128: 3.1583 | CU128: 3.184 | CV128: 3.2097 | CW128: 3.2353 | CX128: 3.2608 | CY128: 3.2862 | CZ128: 3.3114 | DA128: 3.3365 | DB128: 3.3614 | DC128: 3.3862 | DD128: 3.4109 | DE128: 3.4353 | DF128: 3.4595 | DG128: 3.4836 | DH128: 3.5074 | DI128: 3.531 | DJ128: 3.5544 | DK128: 3.5776 | DL128: 3.6005 | DM128: 3.6231 | DN128: 3.6455 | DO128: 3.6676 | DP128: 3.6894 | DQ128: 3.7109 | DR128: 3.7322 | DS128: 3.7532 | DT128: 3.7739 | DU128: 3.7943 | DV128: 3.8144 | DW128: 3.8343 | DX128: 3.8538 | DY128: 3.8732 | DZ128: 3.8922 | EA128: 3.9111 | EB128: 3.9297 | EC128: 3.9481 | ED128: 3.9664 | EE128: 3.9844 | EF128: 4.0024 | EG128: 4.0202 | EH128: 4.038 | EI128: 4.0558 | EJ128: 4.0735 | EK128: 4.0913 | EL128: 4.1092 | EM128: 4.1272 | EN128: 4.1453 | EO128: 4.1637 | EP128: 4.1824 | EQ128: 4.2014 | ER128: 4.2207 | ES128: 4.2405 | ET128: 4.2607 | EU128: 4.2815 | EV128: 4.3029 | EW128: 4.3248 | EX128: 4.3475 | EY128: 4.3709 | EZ128: 4.395 | FA128: 4.4199 | FB128: 4.4457 | FC128: 4.4723 | FE128: 3.8382 | FF128: 3.8257 | FG128: 3.8129 | FH128: 3.7994 | FK128: 3.8257
AW129: 0.427 | AX129: 1.7337 | AY129: 1.7624 | AZ129: 1.7913 | BA129: 1.8204 | BB129: 1.8498 | BC129: 1.8794 | BD129: 1.9092 | BE129: 1.9393 | BF129: 1.9695 | BG129: 2.0001 | BH129: 2.0308 | BI129: 2.0618 | BJ129: 2.093 | BK129: 2.1244 | BL129: 2.1561 | BM129: 2.1879 | BN129: 2.22 | BO129: 2.2523 | BP129: 2.2849 | BQ129: 2.3176 | BR129: 2.3506 | BS129: 2.3838 | BT129: 2.4172 | BU129: 2.4508 | BV129: 2.4846 | BW129: 2.5186 | BX129: 2.5528 | BY129: 2.5872 | BZ129: 2.6219 | CA129: 2.6567 | CB129: 2.6896 | CC129: 2.7155 | CD129: 2.7415 | CE129: 2.7675 | CF129: 2.7935 | CG129: 2.8196 | CH129: 2.8457 | CI129: 2.8718 | CJ129: 2.8979 | CK129: 2.924 | CL129: 2.9502 | CM129: 2.9763 | CN129: 3.0024 | CO129: 3.0285 | CP129: 3.0545 | CQ129: 3.0806 | CR129: 3.1065 | CS129: 3.1324 | CT129: 3.1583 | CU129: 3.184 | CV129: 3.2097 | CW129: 3.2353 | CX129: 3.2608 | CY129: 3.2862 | CZ129: 3.3114 | DA129: 3.3365 | DB129: 3.3614 | DC129: 3.3862 | DD129: 3.4109 | DE129: 3.4353 | DF129: 3.4595 | DG129: 3.4836 | DH129: 3.5074 | DI129: 3.531 | DJ129: 3.5544 | DK129: 3.5776 | DL129: 3.6005 | DM129: 3.6231 | DN129: 3.6455 | DO129: 3.6676 | DP129: 3.6894 | DQ129: 3.7109 | DR129: 3.7322 | DS129: 3.7532 | DT129: 3.7739 | DU129: 3.7943 | DV129: 3.8144 | DW129: 3.8343 | DX129: 3.8538 | DY129: 3.8732 | DZ129: 3.8922 | EA129: 3.9111 | EB129: 3.9297 | EC129: 3.9481 | ED129: 3.9664 | EE129: 3.9844 | EF129: 4.0024 | EG129: 4.0202 | EH129: 4.038 | EI129: 4.0558 | EJ129: 4.0735 | EK129: 4.0913 | EL129: 4.1092 | EM129: 4.1272 | EN129: 4.1453 | EO129: 4.1637 | EP129: 4.1824 | EQ129: 4.2014 | ER129: 4.2207 | ES129: 4.2405 | ET129: 4.2607 | EU129: 4.2815 | EV129: 4.3029 | EW129: 4.3248 | EX129: 4.3475 | EY129: 4.3709 | EZ129: 4.395 | FA129: 4.4199 | FB129: 4.4457 | FC129: 4.4723 | FE129: 3.8382 | FF129: 3.8257 | FG129: 3.8129 | FH129: 3.7994 | FK129: 3.8257
AW130: 0.457 | AX130: 1.7267 | AY130: 1.7553 | AZ130: 1.7841 | BA130: 1.8131 | BB130: 1.8423 | BC130: 1.8718 | BD130: 1.9015 | BE130: 1.9315 | BF130: 1.9616 | BG130: 1.992 | BH130: 2.0227 | BI130: 2.0535 | BJ130: 2.0846 | BK130: 2.1159 | BL130: 2.1474 | BM130: 2.1792 | BN130: 2.2111 | BO130: 2.2433 | BP130: 2.2757 | BQ130: 2.3083 | BR130: 2.3412 | BS130: 2.3742 | BT130: 2.4075 | BU130: 2.4409 | BV130: 2.4746 | BW130: 2.5085 | BX130: 2.5426 | BY130: 2.5769 | BZ130: 2.6113 | CA130: 2.646 | CB130: 2.6809 | CC130: 2.7155 | CD130: 2.7415 | CE130: 2.7675 | CF130: 2.7935 | CG130: 2.8196 | CH130: 2.8457 | CI130: 2.8718 | CJ130: 2.8979 | CK130: 2.924 | CL130: 2.9502 | CM130: 2.9763 | CN130: 3.0024 | CO130: 3.0285 | CP130: 3.0545 | CQ130: 3.0806 | CR130: 3.1065 | CS130: 3.1324 | CT130: 3.1583 | CU130: 3.184 | CV130: 3.2097 | CW130: 3.2353 | CX130: 3.2608 | CY130: 3.2862 | CZ130: 3.3114 | DA130: 3.3365 | DB130: 3.3614 | DC130: 3.3862 | DD130: 3.4109 | DE130: 3.4353 | DF130: 3.4595 | DG130: 3.4836 | DH130: 3.5074 | DI130: 3.531 | DJ130: 3.5544 | DK130: 3.5776 | DL130: 3.6005 | DM130: 3.6231 | DN130: 3.6455 | DO130: 3.6676 | DP130: 3.6894 | DQ130: 3.7109 | DR130: 3.7322 | DS130: 3.7532 | DT130: 3.7739 | DU130: 3.7943 | DV130: 3.8144 | DW130: 3.8343 | DX130: 3.8538 | DY130: 3.8732 | DZ130: 3.8922 | EA130: 3.9111 | EB130: 3.9297 | EC130: 3.9481 | ED130: 3.9664 | EE130: 3.9844 | EF130: 4.0024 | EG130: 4.0202 | EH130: 4.038 | EI130: 4.0558 | EJ130: 4.0735 | EK130: 4.0913 | EL130: 4.1092 | EM130: 4.1272 | EN130: 4.1453 | EO130: 4.1637 | EP130: 4.1824 | EQ130: 4.2014 | ER130: 4.2207 | ES130: 4.2405 | ET130: 4.2607 | EU130: 4.2815 | EV130: 4.3029 | EW130: 4.3248 | EX130: 4.3475 | EY130: 4.3709 | EZ130: 4.395 | FA130: 4.4199 | FB130: 4.4457 | FC130: 4.4723 | FE130: 3.8382 | FF130: 3.8257 | FG130: 3.8129 | FH130: 3.7994 | FK130: 3.8257
AW131: 0.49 | AX131: 1.7199 | AY131: 1.7483 | AZ131: 1.777 | BA131: 1.8059 | BB131: 1.835 | BC131: 1.8644 | BD131: 1.894 | BE131: 1.9238 | BF131: 1.9539 | BG131: 1.9841 | BH131: 2.0147 | BI131: 2.0454 | BJ131: 2.0763 | BK131: 2.1075 | BL131: 2.1389 | BM131: 2.1705 | BN131: 2.2024 | BO131: 2.2344 | BP131: 2.2667 | BQ131: 2.2992 | BR131: 2.3319 | BS131: 2.3648 | BT131: 2.3979 | BU131: 2.4313 | BV131: 2.4648 | BW131: 2.4985 | BX131: 2.5325 | BY131: 2.5666 | BZ131: 2.601 | CA131: 2.6355 | CB131: 2.6702 | CC131: 2.7052 | CD131: 2.7403 | CE131: 2.7675 | CF131: 2.7935 | CG131: 2.8196 | CH131: 2.8457 | CI131: 2.8718 | CJ131: 2.8979 | CK131: 2.924 | CL131: 2.9502 | CM131: 2.9763 | CN131: 3.0024 | CO131: 3.0285 | CP131: 3.0545 | CQ131: 3.0806 | CR131: 3.1065 | CS131: 3.1324 | CT131: 3.1583 | CU131: 3.184 | CV131: 3.2097 | CW131: 3.2353 | CX131: 3.2608 | CY131: 3.2862 | CZ131: 3.3114 | DA131: 3.3365 | DB131: 3.3614 | DC131: 3.3862 | DD131: 3.4109 | DE131: 3.4353 | DF131: 3.4595 | DG131: 3.4836 | DH131: 3.5074 | DI131: 3.531 | DJ131: 3.5544 | DK131: 3.5776 | DL131: 3.6005 | DM131: 3.6231 | DN131: 3.6455 | DO131: 3.6676 | DP131: 3.6894 | DQ131: 3.7109 | DR131: 3.7322 | DS131: 3.7532 | DT131: 3.7739 | DU131: 3.7943 | DV131: 3.8144 | DW131: 3.8343 | DX131: 3.8538 | DY131: 3.8732 | DZ131: 3.8922 | EA131: 3.9111 | EB131: 3.9297 | EC131: 3.9481 | ED131: 3.9664 | EE131: 3.9844 | EF131: 4.0024 | EG131: 4.0202 | EH131: 4.038 | EI131: 4.0558 | EJ131: 4.0735 | EK131: 4.0913 | EL131: 4.1092 | EM131: 4.1272 | EN131: 4.1453 | EO131: 4.1637 | EP131: 4.1824 | EQ131: 4.2014 | ER131: 4.2207 | ES131: 4.2405 | ET131: 4.2607 | EU131: 4.2815 | EV131: 4.3029 | EW131: 4.3248 | EX131: 4.3475 | EY131: 4.3709 | EZ131: 4.395 | FA131: 4.4199 | FB131: 4.4457 | FC131: 4.4723 | FE131: 3.8382 | FF131: 3.8257 | FG131: 3.8129 | FH131: 3.7994 | FK131: 3.8257
AW132: 0.525 | AX132: 1.7132 | AY132: 1.7415 | AZ132: 1.7701 | BA132: 1.7988 | BB132: 1.8279 | BC132: 1.8571 | BD132: 1.8866 | BE132: 1.9163 | BF132: 1.9462 | BG132: 1.9764 | BH132: 2.0068 | BI132: 2.0374 | BJ132: 2.0682 | BK132: 2.0993 | BL132: 2.1305 | BM132: 2.162 | BN132: 2.1937 | BO132: 2.2257 | BP132: 2.2578 | BQ132: 2.2902 | BR132: 2.3228 | BS132: 2.3555 | BT132: 2.3885 | BU132: 2.4218 | BV132: 2.4552 | BW132: 2.4888 | BX132: 2.5226 | BY132: 2.5566 | BZ132: 2.5908 | CA132: 2.6252 | CB132: 2.6598 | CC132: 2.6946 | CD132: 2.7295 | CE132: 2.7647 | CF132: 2.7935 | CG132: 2.8196 | CH132: 2.8457 | CI132: 2.8718 | CJ132: 2.8979 | CK132: 2.924 | CL132: 2.9502 | CM132: 2.9763 | CN132: 3.0024 | CO132: 3.0285 | CP132: 3.0545 | CQ132: 3.0806 | CR132: 3.1065 | CS132: 3.1324 | CT132: 3.1583 | CU132: 3.184 | CV132: 3.2097 | CW132: 3.2353 | CX132: 3.2608 | CY132: 3.2862 | CZ132: 3.3114 | DA132: 3.3365 | DB132: 3.3614 | DC132: 3.3862 | DD132: 3.4109 | DE132: 3.4353 | DF132: 3.4595 | DG132: 3.4836 | DH132: 3.5074 | DI132: 3.531 | DJ132: 3.5544 | DK132: 3.5776 | DL132: 3.6005 | DM132: 3.6231 | DN132: 3.6455 | DO132: 3.6676 | DP132: 3.6894 | DQ132: 3.7109 | DR132: 3.7322 | DS132: 3.7532 | DT132: 3.7739 | DU132: 3.7943 | DV132: 3.8144 | DW132: 3.8343 | DX132: 3.8538 | DY132: 3.8732 | DZ132: 3.8922 | EA132: 3.9111 | EB132: 3.9297 | EC132: 3.9481 | ED132: 3.9664 | EE132: 3.9844 | EF132: 4.0024 | EG132: 4.0202 | EH132: 4.038 | EI132: 4.0558 | EJ132: 4.0735 | EK132: 4.0913 | EL132: 4.1092 | EM132: 4.1272 | EN132: 4.1453 | EO132: 4.1637 | EP132: 4.1824 | EQ132: 4.2014 | ER132: 4.2207 | ES132: 4.2405 | ET132: 4.2607 | EU132: 4.2815 | EV132: 4.3029 | EW132: 4.3248 | EX132: 4.3475 | EY132: 4.3709 | EZ132: 4.395 | FA132: 4.4199 | FB132: 4.4457 | FC132: 4.4723 | FE132: 3.8382 | FF132: 3.8257 | FG132: 3.8129 | FH132: 3.7994 | FK132: 3.8257
AW133: 0.562 | AX133: 1.7065 | AY133: 1.7348 | AZ133: 1.7632 | BA133: 1.7919 | BB133: 1.8208 | BC133: 1.8499 | BD133: 1.8793 | BE133: 1.9089 | BF133: 1.9387 | BG133: 1.9688 | BH133: 1.999 | BI133: 2.0295 | BJ133: 2.0602 | BK133: 2.0912 | BL133: 2.1223 | BM133: 2.1537 | BN133: 2.1853 | BO133: 2.2171 | BP133: 2.2491 | BQ133: 2.2813 | BR133: 2.3138 | BS133: 2.3465 | BT133: 2.3793 | BU133: 2.4124 | BV133: 2.4457 | BW133: 2.4792 | BX133: 2.5128 | BY133: 2.5467 | BZ133: 2.5808 | CA133: 2.6151 | CB133: 2.6495 | CC133: 2.6842 | CD133: 2.719 | CE133: 2.754 | CF133: 2.7892 | CG133: 2.8196 | CH133: 2.8457 | CI133: 2.8718 | CJ133: 2.8979 | CK133: 2.924 | CL133: 2.9502 | CM133: 2.9763 | CN133: 3.0024 | CO133: 3.0285 | CP133: 3.0545 | CQ133: 3.0806 | CR133: 3.1065 | CS133: 3.1324 | CT133: 3.1583 | CU133: 3.184 | CV133: 3.2097 | CW133: 3.2353 | CX133: 3.2608 | CY133: 3.2862 | CZ133: 3.3114 | DA133: 3.3365 | DB133: 3.3614 | DC133: 3.3862 | DD133: 3.4109 | DE133: 3.4353 | DF133: 3.4595 | DG133: 3.4836 | DH133: 3.5074 | DI133: 3.531 | DJ133: 3.5544 | DK133: 3.5776 | DL133: 3.6005 | DM133: 3.6231 | DN133: 3.6455 | DO133: 3.6676 | DP133: 3.6894 | DQ133: 3.7109 | DR133: 3.7322 | DS133: 3.7532 | DT133: 3.7739 | DU133: 3.7943 | DV133: 3.8144 | DW133: 3.8343 | DX133: 3.8538 | DY133: 3.8732 | DZ133: 3.8922 | EA133: 3.9111 | EB133: 3.9297 | EC133: 3.9481 | ED133: 3.9664 | EE133: 3.9844 | EF133: 4.0024 | EG133: 4.0202 | EH133: 4.038 | EI133: 4.0558 | EJ133: 4.0735 | EK133: 4.0913 | EL133: 4.1092 | EM133: 4.1272 | EN133: 4.1453 | EO133: 4.1637 | EP133: 4.1824 | EQ133: 4.2014 | ER133: 4.2207 | ES133: 4.2405 | ET133: 4.2607 | EU133: 4.2815 | EV133: 4.3029 | EW133: 4.3248 | EX133: 4.3475 | EY133: 4.3709 | EZ133: 4.395 | FA133: 4.4199 | FB133: 4.4457 | FC133: 4.4723 | FE133: 3.8382 | FF133: 3.8257 | FG133: 3.8129 | FH133: 3.7994 | FK133: 3.8257
AW134: 0.603 | AX134: 1.7 | AY134: 1.7281 | AZ134: 1.7565 | BA134: 1.7851 | BB134: 1.8139 | BC134: 1.8429 | BD134: 1.8721 | BE134: 1.9016 | BF134: 1.9313 | BG134: 1.9613 | BH134: 1.9914 | BI134: 2.0218 | BJ134: 2.0524 | BK134: 2.0832 | BL134: 2.1142 | BM134: 2.1455 | BN134: 2.1769 | BO134: 2.2086 | BP134: 2.2405 | BQ134: 2.2726 | BR134: 2.305 | BS134: 2.3375 | BT134: 2.3702 | BU134: 2.4032 | BV134: 2.4364 | BW134: 2.4697 | BX134: 2.5033 | BY134: 2.537 | BZ134: 2.571 | CA134: 2.6051 | CB134: 2.6394 | CC134: 2.6739 | CD134: 2.7086 | CE134: 2.7435 | CF134: 2.7785 | CG134: 2.8138 | CH134: 2.8457 | CI134: 2.8718 | CJ134: 2.8979 | CK134: 2.924 | CL134: 2.9502 | CM134: 2.9763 | CN134: 3.0024 | CO134: 3.0285 | CP134: 3.0545 | CQ134: 3.0806 | CR134: 3.1065 | CS134: 3.1324 | CT134: 3.1583 | CU134: 3.184 | CV134: 3.2097 | CW134: 3.2353 | CX134: 3.2608 | CY134: 3.2862 | CZ134: 3.3114 | DA134: 3.3365 | DB134: 3.3614 | DC134: 3.3862 | DD134: 3.4109 | DE134: 3.4353 | DF134: 3.4595 | DG134: 3.4836 | DH134: 3.5074 | DI134: 3.531 | DJ134: 3.5544 | DK134: 3.5776 | DL134: 3.6005 | DM134: 3.6231 | DN134: 3.6455 | DO134: 3.6676 | DP134: 3.6894 | DQ134: 3.7109 | DR134: 3.7322 | DS134: 3.7532 | DT134: 3.7739 | DU134: 3.7943 | DV134: 3.8144 | DW134: 3.8343 | DX134: 3.8538 | DY134: 3.8732 | DZ134: 3.8922 | EA134: 3.9111 | EB134: 3.9297 | EC134: 3.9481 | ED134: 3.9664 | EE134: 3.9844 | EF134: 4.0024 | EG134: 4.0202 | EH134: 4.038 | EI134: 4.0558 | EJ134: 4.0735 | EK134: 4.0913 | EL134: 4.1092 | EM134: 4.1272 | EN134: 4.1453 | EO134: 4.1637 | EP134: 4.1824 | EQ134: 4.2014 | ER134: 4.2207 | ES134: 4.2405 | ET134: 4.2607 | EU134: 4.2815 | EV134: 4.3029 | EW134: 4.3248 | EX134: 4.3475 | EY134: 4.3709 | EZ134: 4.395 | FA134: 4.4199 | FB134: 4.4457 | FC134: 4.4723 | FE134: 3.8382 | FF134: 3.8257 | FG134: 3.8129 | FH134: 3.7994 | FK134: 3.8257
AW135: 0.646 | AX135: 1.6936 | AY135: 1.7216 | AZ135: 1.7499 | BA135: 1.7783 | BB135: 1.807 | BC135: 1.836 | BD135: 1.8651 | BE135: 1.8945 | BF135: 1.9241 | BG135: 1.9539 | BH135: 1.9839 | BI135: 2.0142 | BJ135: 2.0446 | BK135: 2.0753 | BL135: 2.1063 | BM135: 2.1374 | BN135: 2.1687 | BO135: 2.2003 | BP135: 2.2321 | BQ135: 2.2641 | BR135: 2.2963 | BS135: 2.3287 | BT135: 2.3613 | BU135: 2.3942 | BV135: 2.4272 | BW135: 2.4604 | BX135: 2.4938 | BY135: 2.5275 | BZ135: 2.5613 | CA135: 2.5953 | CB135: 2.6295 | CC135: 2.6639 | CD135: 2.6984 | CE135: 2.7332 | CF135: 2.7681 | CG135: 2.8032 | CH135: 2.8384 | CI135: 2.8718 | CJ135: 2.8979 | CK135: 2.924 | CL135: 2.9502 | CM135: 2.9763 | CN135: 3.0024 | CO135: 3.0285 | CP135: 3.0545 | CQ135: 3.0806 | CR135: 3.1065 | CS135: 3.1324 | CT135: 3.1583 | CU135: 3.184 | CV135: 3.2097 | CW135: 3.2353 | CX135: 3.2608 | CY135: 3.2862 | CZ135: 3.3114 | DA135: 3.3365 | DB135: 3.3614 | DC135: 3.3862 | DD135: 3.4109 | DE135: 3.4353 | DF135: 3.4595 | DG135: 3.4836 | DH135: 3.5074 | DI135: 3.531 | DJ135: 3.5544 | DK135: 3.5776 | DL135: 3.6005 | DM135: 3.6231 | DN135: 3.6455 | DO135: 3.6676 | DP135: 3.6894 | DQ135: 3.7109 | DR135: 3.7322 | DS135: 3.7532 | DT135: 3.7739 | DU135: 3.7943 | DV135: 3.8144 | DW135: 3.8343 | DX135: 3.8538 | DY135: 3.8732 | DZ135: 3.8922 | EA135: 3.9111 | EB135: 3.9297 | EC135: 3.9481 | ED135: 3.9664 | EE135: 3.9844 | EF135: 4.0024 | EG135: 4.0202 | EH135: 4.038 | EI135: 4.0558 | EJ135: 4.0735 | EK135: 4.0913 | EL135: 4.1092 | EM135: 4.1272 | EN135: 4.1453 | EO135: 4.1637 | EP135: 4.1824 | EQ135: 4.2014 | ER135: 4.2207 | ES135: 4.2405 | ET135: 4.2607 | EU135: 4.2815 | EV135: 4.3029 | EW135: 4.3248 | EX135: 4.3475 | EY135: 4.3709 | EZ135: 4.395 | FA135: 4.4199 | FB135: 4.4457 | FC135: 4.4723 | FE135: 3.8382 | FF135: 3.8257 | FG135: 3.8129 | FH135: 3.7994 | FK135: 3.8257
AW136: 0.692 | AX136: 1.6873 | AY136: 1.7152 | AZ136: 1.7434 | BA136: 1.7717 | BB136: 1.8003 | BC136: 1.8291 | BD136: 1.8582 | BE136: 1.8874 | BF136: 1.9169 | BG136: 1.9466 | BH136: 1.9765 | BI136: 2.0067 | BJ136: 2.037 | BK136: 2.0676 | BL136: 2.0984 | BM136: 2.1294 | BN136: 2.1607 | BO136: 2.1921 | BP136: 2.2238 | BQ136: 2.2557 | BR136: 2.2878 | BS136: 2.32 | BT136: 2.3525 | BU136: 2.3853 | BV136: 2.4182 | BW136: 2.4513 | BX136: 2.4846 | BY136: 2.5181 | BZ136: 2.5518 | CA136: 2.5856 | CB136: 2.6197 | CC136: 2.654 | CD136: 2.6884 | CE136: 2.723 | CF136: 2.7578 | CG136: 2.7927 | CH136: 2.8279 | CI136: 2.8631 | CJ136: 2.8979 | CK136: 2.924 | CL136: 2.9502 | CM136: 2.9763 | CN136: 3.0024 | CO136: 3.0285 | CP136: 3.0545 | CQ136: 3.0806 | CR136: 3.1065 | CS136: 3.1324 | CT136: 3.1583 | CU136: 3.184 | CV136: 3.2097 | CW136: 3.2353 | CX136: 3.2608 | CY136: 3.2862 | CZ136: 3.3114 | DA136: 3.3365 | DB136: 3.3614 | DC136: 3.3862 | DD136: 3.4109 | DE136: 3.4353 | DF136: 3.4595 | DG136: 3.4836 | DH136: 3.5074 | DI136: 3.531 | DJ136: 3.5544 | DK136: 3.5776 | DL136: 3.6005 | DM136: 3.6231 | DN136: 3.6455 | DO136: 3.6676 | DP136: 3.6894 | DQ136: 3.7109 | DR136: 3.7322 | DS136: 3.7532 | DT136: 3.7739 | DU136: 3.7943 | DV136: 3.8144 | DW136: 3.8343 | DX136: 3.8538 | DY136: 3.8732 | DZ136: 3.8922 | EA136: 3.9111 | EB136: 3.9297 | EC136: 3.9481 | ED136: 3.9664 | EE136: 3.9844 | EF136: 4.0024 | EG136: 4.0202 | EH136: 4.038 | EI136: 4.0558 | EJ136: 4.0735 | EK136: 4.0913 | EL136: 4.1092 | EM136: 4.1272 | EN136: 4.1453 | EO136: 4.1637 | EP136: 4.1824 | EQ136: 4.2014 | ER136: 4.2207 | ES136: 4.2405 | ET136: 4.2607 | EU136: 4.2815 | EV136: 4.3029 | EW136: 4.3248 | EX136: 4.3475 | EY136: 4.3709 | EZ136: 4.395 | FA136: 4.4199 | FB136: 4.4457 | FC136: 4.4723 | FE136: 3.8382 | FF136: 3.8257 | FG136: 3.8129 | FH136: 3.7994 | FK136: 3.8257
AW137: 0.741 | AX137: 1.6811 | AY137: 1.7089 | AZ137: 1.737 | BA137: 1.7652 | BB137: 1.7937 | BC137: 1.8224 | BD137: 1.8513 | BE137: 1.8805 | BF137: 1.9099 | BG137: 1.9395 | BH137: 1.9693 | BI137: 1.9993 | BJ137: 2.0296 | BK137: 2.06 | BL137: 2.0907 | BM137: 2.1216 | BN137: 2.1527 | BO137: 2.1841 | BP137: 2.2156 | BQ137: 2.2474 | BR137: 2.2794 | BS137: 2.3115 | BT137: 2.3439 | BU137: 2.3765 | BV137: 2.4093 | BW137: 2.4423 | BX137: 2.4755 | BY137: 2.5088 | BZ137: 2.5424 | CA137: 2.5762 | CB137: 2.6101 | CC137: 2.6442 | CD137: 2.6785 | CE137: 2.713 | CF137: 2.7477 | CG137: 2.7825 | CH137: 2.8175 | CI137: 2.8526 | CJ137: 2.8879 | CK137: 2.9233 | CL137: 2.9502 | CM137: 2.9763 | CN137: 3.0024 | CO137: 3.0285 | CP137: 3.0545 | CQ137: 3.0806 | CR137: 3.1065 | CS137: 3.1324 | CT137: 3.1583 | CU137: 3.184 | CV137: 3.2097 | CW137: 3.2353 | CX137: 3.2608 | CY137: 3.2862 | CZ137: 3.3114 | DA137: 3.3365 | DB137: 3.3614 | DC137: 3.3862 | DD137: 3.4109 | DE137: 3.4353 | DF137: 3.4595 | DG137: 3.4836 | DH137: 3.5074 | DI137: 3.531 | DJ137: 3.5544 | DK137: 3.5776 | DL137: 3.6005 | DM137: 3.6231 | DN137: 3.6455 | DO137: 3.6676 | DP137: 3.6894 | DQ137: 3.7109 | DR137: 3.7322 | DS137: 3.7532 | DT137: 3.7739 | DU137: 3.7943 | DV137: 3.8144 | DW137: 3.8343 | DX137: 3.8538 | DY137: 3.8732 | DZ137: 3.8922 | EA137: 3.9111 | EB137: 3.9297 | EC137: 3.9481 | ED137: 3.9664 | EE137: 3.9844 | EF137: 4.0024 | EG137: 4.0202 | EH137: 4.038 | EI137: 4.0558 | EJ137: 4.0735 | EK137: 4.0913 | EL137: 4.1092 | EM137: 4.1272 | EN137: 4.1453 | EO137: 4.1637 | EP137: 4.1824 | EQ137: 4.2014 | ER137: 4.2207 | ES137: 4.2405 | ET137: 4.2607 | EU137: 4.2815 | EV137: 4.3029 | EW137: 4.3248 | EX137: 4.3475 | EY137: 4.3709 | EZ137: 4.395 | FA137: 4.4199 | FB137: 4.4457 | FC137: 4.4723 | FE137: 3.8382 | FF137: 3.8257 | FG137: 3.8129 | FH137: 3.7994 | FK137: 3.8257
